Workbook

Sheet Application info
B2: Applicant Information
B4: Instructions: | J4: Sample numbers and locations
B5: 1. All applicants and laboratories should refer to the most recent guidance on sediment analysis in support of marine licence applications
C6: Sediment analysis guidance | K6: Sample ID | L6: Excluded sample (MMO use) | M6: Sample location (decimal degrees, WGS84) | O6: Location name (as per sampling plan) | P6: Sampling depth (m) | Q6: Dredge area
B7: 2. Full information must be provided under each relevant sheet of the workbook. Grey highlighted cells indicate where information can be entered. | M7: Position latitude | N7: Position longitude
B8: 3. Where information cannot be provided, the applicant should consult with the MMO prior to submission. | K8: 1 | M8: 447989.69 | N8: 521067.69
B9: 4. Worksheets are protected to prevent accidental amendments to calculated values. If amendments are required please consult with the MMO. | K9: 2 | M9: 448036.92 | N9: 521464.24
B10: 5. Sample IDs used through the data output worksheets should correspond to Sample IDs provided on this worksheet. | K10: 3 | M10: 448355.59 | N10: 522031.58
B11: 6 Where more than 6 dredge areas or 30 samples are required, please contact MMO. | K11: 4 | M11: 449008.89 | N11: 521899.85
B12: 7. Macros must be enabled to use this workbook | K12: 5 | M12: 449537.63 | N12: 521471.02
K13: 6 | M13: 450316.52 | N13: 521211.43
B14: Marine licence applicant information: | K14: 7 | M14: 450867.66 | N14: 520857.37
K15: 8 | M15: 451613.64 | N15: 520969.67
C16: Applicant: | E16: PD Ports | K16: 9 | M16: 452656.67 | N16: 521937.69
C17: Application number: | K17: 10 | M17: 453369.58 | N17: 522755.71
C18: Application title: | E18: Mid licence sampling - year 9 | K18: 11 | M18: 453549.82 | N18: 522946.45
C19: Date sampled: | K19: 12 | M19: 453536.02 | N19: 523138.98
C20: Sampling location: | K20: 13 | M20: 453871.64 | N20: 523201.16
K21: 15 | M21: 454396.91 | N21: 523900.38
K22: 17 | M22: 454717.22 | N22: 524583.94
B23: Dredge area tonnages: | K23: 18 | M23: 454597.05 | N23: 524901.32
K24: 19 | M24: 454670.14 | N24: 525204.82
C25: Dredge Area | D25: Dredging tonnages | E25: % total dredged material | F25: Total dredged material | K25: 20 | M25: 453981.46 | N25: 525672.42
C26: Area i | E26: =IF(D26="","",(D26/$F$26)) ->  | F26: =SUM(D26:D31) -> 0 | K26: 21 | M26: 454718.5 | N26: 526036.58
C27: Area ii | K27: 22 | M27: 453203.84 | N27: 526573.12
C28: Area iii | K28: 23 | M28: 453837.7 | N28: 526498.41
C29: Area iv | K29: 24 | M29: 454554.39 | N29: 526555.54
C30: Area v | K30: 25 | M30: 455105.7 | N30: 527781.65
C31: Area vi
C36: MMO use only
Q99: Do not delete
Q100: y

Sheet Physical Data
B2: Physical characteristics data
B4: Instructions: | H4: Physical characteristics analysis outputs:
B5: 1. Record the laboratory/contractor responsible for analysis
B6: 2. Record the date the samples were analysed. | H6: Laboratory sample number | I6: Dredge Area | J6: Sample ID(s) | K6: Visual appearance* | L6: Exempt from chemical analysis▫ | M6: Total Solids (% total sediments) | N6: Organic matter (total organic carbon) | O6: Particle size distribution (% at 0.5 phi intervals)
B7: 3. Enter full dataset for each sample in the analysis results table | O7: -5.5 | P7: -5 | Q7: -4.5 | R7: -4 | S7: -3.5 | T7: -3 | U7: -2.5 | V7: -2 | W7: -1.5 | X7: -1 | Y7: -0.5 | Z7: 0 | AA7: 0.5 | AB7: 1 | AC7: 1.5 | AD7: 2 | AE7: 2.5 | AF7: 3 | AG7: 3.5 | AH7: 4 | AI7: 4.5 | AJ7: 5 | AK7: 5.5 | AL7: 6 | AM7: 6.5 | AN7: 7 | AO7: 7.5 | AP7: 8 | AQ7: 8.5 | AR7: 9 | AS7: 9.5 | AT7: 10 | AU7: 10.5 | AV7: 11 | AW7: 11.5 | AX7: 12 | AY7: 12.5 | AZ7: 13 | BA7: 13.5 | BB7: 14 | BC7: 14.5 | BD7: >14.5
B8: 4. Where copying and pasting entries please use paste values only | O8: 45mm | P8: 31.5mm | Q8: 22.4mm | R8: 16mm | S8: 11.2mm | T8: 8mm | U8: 5.6mm | V8: 4mm | W8: 2.8mm | X8: 2mm | Y8: 1.4mm | Z8: 1mm | AA8: 707µm | AB8: 500µm | AC8: 353.6µm | AD8: 250µm | AE8: 176.8µm | AF8: 125µm | AG8: 88.39µm | AH8: 63µm | AI8: 44.2µm | AJ8: 31.3µm | AK8: 22.1µm | AL8: 15.6µm | AM8: 11µm | AN8: 7.8µm | AO8: 5.5µm | AP8: 3.9µm | AQ8: 2.75µm | AR8: 1.95µm | AS8: 1.38µm | AT8: 0.98µm | AU8: 0.69µm | AV8: 0.49µm | AW8: 0.34µm | AX8: 0.24µm | AY8: 0.17µm | AZ8: 0.12µm | BA8: 0.09µm | BB8: 0.06µm | BC8: 0.04µm | BD8: <0.04µm
B9: 5. Where entering multiple Sample IDs please use the pop-up form | H9: MAR02481.001 | J9: 1 | K9: Black Mud with an Anoxic Odour. | O9: 0 | P9: 0 | Q9: 0 | R9: 0 | S9: 0 | T9: 0 | U9: 0 | V9: 0 | W9: 0 | X9: 0 | Y9: 0 | Z9: 0 | AA9: 0 | AB9: 0 | AC9: 0 | AD9: 0.1676 | AE9: 3.0241 | AF9: 6.97793334 | AG9: 8.98783333 | AH9: 10.12846667 | AI9: 11.08736666 | AJ9: 11.51853334 | AK9: 10.64116666 | AL9: 9.82493334 | AM9: 8.23786666 | AN9: 6.08516667 | AO9: 4.35620667 | AP9: 2.84871333 | AQ9: 1.77124 | AR9: 1.07895667 | AS9: 0.71486666 | AT9: 0.54298 | AU9: 0.45941334 | AV9: 0.40604333 | AW9: 0.35290233 | AX9: 0.28928934 | AY9: 0.21324333 | AZ9: 0.15207367 | BA9: 0.0920559 | BB9: 0.03661437 | BC9: 0.00443329 | BD9: 0
C10: IDs should be separated by a comma | H10: MAR02481.002 | J10: 2 | K10: Black Mud with an Anoxic Odour. | O10: 0 | P10: 0 | Q10: 0 | R10: 0 | S10: 0 | T10: 0 | U10: 0 | V10: 0 | W10: 0 | X10: 0 | Y10: 0 | Z10: 0 | AA10: 0 | AB10: 0 | AC10: 0 | AD10: 0.0776 | AE10: 2.06643334 | AF10: 4.77583333 | AG10: 6.12786667 | AH10: 7.11536666 | AI10: 8.18236667 | AJ10: 9.208 | AK10: 9.2726 | AL10: 10.25826667 | AM10: 10.14316666 | AN10: 8.60996667 | AO10: 6.9942 | AP10: 5.1111 | AQ10: 3.42412333 | AR10: 2.13925 | AS10: 1.3947 | AT10: 1.03028 | AU10: 0.87906334 | AV10: 0.81655 | AW10: 0.74999333 | AX10: 0.62811067 | AY10: 0.448748 | AZ10: 0.303433 | BA10: 0.17257943 | BB10: 0.06322343 | BC10: 0.00717689 | BD10: 0
H11: MAR02481.003 | J11: 3 | K11: Black Mud with an Anoxic Odour. | O11: 0 | P11: 0 | Q11: 0 | R11: 0 | S11: 0 | T11: 0 | U11: 0 | V11: 0 | W11: 0 | X11: 0 | Y11: 0 | Z11: 0 | AA11: 0 | AB11: 0 | AC11: 0 | AD11: 0.078 | AE11: 2.5728 | AF11: 6.04416667 | AG11: 6.43873333 | AH11: 7.23006667 | AI11: 8.16066667 | AJ11: 8.63533333 | AK11: 8.33253333 | AL11: 8.8059 | AM11: 8.66643334 | AN11: 7.39126666 | AO11: 6.37993334 | AP11: 5.1795 | AQ11: 3.9779 | AR11: 2.89836666 | AS11: 2.10588 | AT11: 1.55802334 | AU11: 1.27285333 | AV11: 1.18279 | AW11: 1.11058667 | AX11: 0.90677733 | AY11: 0.57572667 | AZ11: 0.31700366 | BA11: 0.13687764 | BB11: 0.03791191 | BC11: 0.00396864 | BD11: 0
H12: MAR02481.004 | J12: 4 | K12: Black Mud with an Anoxic Odour. | O12: 0 | P12: 0 | Q12: 0 | R12: 0 | S12: 0 | T12: 0 | U12: 0 | V12: 0 | W12: 0 | X12: 0 | Y12: 0 | Z12: 0 | AA12: 0 | AB12: 0 | AC12: 0 | AD12: 0.03243334 | AE12: 1.67433333 | AF12: 3.86063333 | AG12: 4.4101 | AH12: 5.12606667 | AI12: 6.58116667 | AJ12: 8.1188 | AK12: 8.72563333 | AL12: 10.65456667 | AM12: 11.2653 | AN12: 9.9837 | AO12: 8.36753333 | AP12: 6.25746667 | AQ12: 4.2537 | AR12: 2.67691333 | AS12: 1.75023333 | AT12: 1.29004 | AU12: 1.08624334 | AV12: 0.98856666 | AW12: 0.89399667 | AX12: 0.74976 | AY12: 0.54891433 | AZ12: 0.38204934 | BA12: 0.22467846 | BB12: 0.08681123 | BC12: 0.0103574 | BD12: 0
B13: Analysis information: | H13: MAR02481.005 | J13: 5 | K13: Black Mud with an Anoxic Odour. | O13: 0 | P13: 0 | Q13: 0 | R13: 0 | S13: 0 | T13: 0 | U13: 0 | V13: 0 | W13: 0 | X13: 0 | Y13: 0 | Z13: 0 | AA13: 0 | AB13: 0 | AC13: 0 | AD13: 0.0248 | AE13: 1.576 | AF13: 5.04263334 | AG13: 4.98723333 | AH13: 5.9394 | AI13: 6.17733333 | AJ13: 7.87836667 | AK13: 8.47996667 | AL13: 9.83483333 | AM13: 10.66946667 | AN13: 9.64163333 | AO13: 8.18116667 | AP13: 6.1902 | AQ13: 4.2767 | AR13: 2.75549 | AS13: 1.84109 | AT13: 1.36258666 | AU13: 1.1387 | AV13: 1.03279 | AW13: 0.93432 | AX13: 0.77928667 | AY13: 0.56129867 | AZ13: 0.38172733 | BA13: 0.2194223 | BB13: 0.08357095 | BC13: 0.00998166 | BD13: 0
H14: MAR02481.006 | J14: 6 | K14: Black Mud with an Anoxic Odour. | O14: 0 | P14: 0 | Q14: 0 | R14: 0 | S14: 0 | T14: 0 | U14: 0 | V14: 0 | W14: 0 | X14: 0 | Y14: 0 | Z14: 0 | AA14: 0 | AB14: 0 | AC14: 0 | AD14: 0.09573334 | AE14: 2.93056666 | AF14: 5.4682 | AG14: 4.54666667 | AH14: 5.52173333 | AI14: 5.9134 | AJ14: 7.16756667 | AK14: 7.38026667 | AL14: 8.7346 | AM14: 9.13656666 | AN14: 8.12833334 | AO14: 7.29413333 | AP14: 6.07643333 | AQ14: 4.73726667 | AR14: 3.5656 | AS14: 2.75696667 | AT14: 2.18354333 | AU14: 1.87148333 | AV14: 1.77928667 | AW14: 1.68498667 | AX14: 1.38212666 | AY14: 0.87775834 | AZ14: 0.48737533 | BA14: 0.21365423 | BB14: 0.05963785 | BC14: 0.00611289 | BD14: 0
C15: Laboratory/contractor: | D15: Ocean Ecology Ltd | H15: MAR02481.007 | J15: 7 | K15: Black Mud with an Anoxic Odour. | O15: 0 | P15: 0 | Q15: 0 | R15: 0 | S15: 0 | T15: 0 | U15: 0 | V15: 0 | W15: 0 | X15: 0 | Y15: 0 | Z15: 0 | AA15: 0 | AB15: 0 | AC15: 0 | AD15: 0 | AE15: 0.03336667 | AF15: 1.65803333 | AG15: 3.7448 | AH15: 4.232 | AI15: 4.9473 | AJ15: 7.14536667 | AK15: 8.05566667 | AL15: 10.43953333 | AM15: 12.05973333 | AN15: 11.34573334 | AO15: 9.86776666 | AP15: 7.57873334 | AQ15: 5.2658 | AR15: 3.37863333 | AS15: 2.23432667 | AT15: 1.64559 | AU15: 1.38724333 | AV15: 1.27780333 | AW15: 1.17039 | AX15: 0.98008667 | AY15: 0.701044 | AZ15: 0.47187433 | BA15: 0.26766534 | BB15: 0.09981446 | BC15: 0.01169229 | BD15: 0
C16: Date of analysis: | D16: 2024-10-25 | H16: MAR02481.008 | J16: 8 | K16: Black Mud with an Anoxic Odour. | O16: 0 | P16: 0 | Q16: 0 | R16: 0 | S16: 0 | T16: 0 | U16: 0 | V16: 0 | W16: 0 | X16: 0 | Y16: 0 | Z16: 0 | AA16: 0 | AB16: 0 | AC16: 0.00173334 | AD16: 1.1724 | AE16: 5.594 | AF16: 4.8885 | AG16: 4.50883333 | AH16: 4.78726667 | AI16: 5.3619 | AJ16: 6.67213333 | AK16: 7.05783333 | AL16: 8.75533334 | AM16: 9.47426666 | AN16: 8.5541 | AO16: 7.55693334 | AP16: 6.09303333 | AQ16: 4.55996667 | AR16: 3.30083333 | AS16: 2.5143 | AT16: 2.00298 | AU16: 1.68266333 | AV16: 1.50825 | AW16: 1.35054334 | AX16: 1.09408 | AY16: 0.732491 | AZ16: 0.453628 | BA16: 0.23411826 | BB16: 0.07908761 | BC16: 0.00878959 | BD16: 0
H17: MAR02481.009 | J17: 9 | K17: Black Mud with an Anoxic Odour. | O17: 0 | P17: 0 | Q17: 0 | R17: 0 | S17: 0 | T17: 0 | U17: 0 | V17: 0 | W17: 0 | X17: 0 | Y17: 0 | Z17: 0 | AA17: 0 | AB17: 0 | AC17: 0 | AD17: 0 | AE17: 0 | AF17: 0.08843334 | AG17: 1.76716666 | AH17: 3.7853 | AI17: 5.6314 | AJ17: 6.72646667 | AK17: 7.24953333 | AL17: 9.51096667 | AM17: 10.51966667 | AN17: 9.51613333 | AO17: 8.4251 | AP17: 6.85833333 | AQ17: 5.30673334 | AR17: 4.2322 | AS17: 3.74093333 | AT17: 3.40403333 | AU17: 3.04732334 | AV17: 2.72511333 | AW17: 2.38477333 | AX17: 1.94850334 | AY17: 1.39334 | AZ17: 0.95548133 | BA17: 0.55322633 | BB17: 0.2062179 | BC17: 0.02361482 | BD17: 0
H18: MAR02481.010 | J18: 10 | K18: Black Mud with Organic Matter and Shell Fragments and an Anoxic Odour. | O18: 0 | P18: 0 | Q18: 0 | R18: 0 | S18: 0 | T18: 0 | U18: 0.046001 | V18: 0.386411 | W18: 0.807323 | X18: 0.391011 | Y18: 0.170205 | Z18: 0.144904 | AA18: 0 | AB18: 0 | AC18: 0 | AD18: 0 | AE18: 0 | AF18: 0 | AG18: 0.140871 | AH18: 3.56855 | AI18: 7.242279 | AJ18: 7.346151 | AK18: 7.703232 | AL18: 9.755276 | AM18: 10.442374 | AN18: 9.377506 | AO18: 8.283386 | AP18: 6.715728 | AQ18: 5.148921 | AR18: 4.025547 | AS18: 3.477948 | AT18: 3.116847 | AU18: 2.754838 | AV18: 2.424271 | AW18: 2.087367 | AX18: 1.69048 | AY18: 1.213286 | AZ18: 0.838305 | BA18: 0.491061 | BB18: 0.187798 | BC18: 0.022117 | BD18: 0
H19: MAR02481.011 | J19: 11 | K19: Black Mud with an Anoxic Odour. | O19: 0 | P19: 0 | Q19: 0 | R19: 0 | S19: 0 | T19: 0 | U19: 0 | V19: 0 | W19: 0 | X19: 0 | Y19: 0 | Z19: 0 | AA19: 0 | AB19: 0 | AC19: 0 | AD19: 0 | AE19: 0 | AF19: 0.0389 | AG19: 2.81246667 | AH19: 6.52426667 | AI19: 7.37613333 | AJ19: 8.2648 | AK19: 8.4454 | AL19: 9.78426667 | AM19: 9.8578 | AN19: 8.67656666 | AO19: 7.7244 | AP19: 6.42396667 | AQ19: 5.04013333 | AR19: 3.829 | AS19: 3.03276667 | AT19: 2.50393 | AU19: 2.14839667 | AV19: 1.92188666 | AW19: 1.71552334 | AX19: 1.43835 | AY19: 1.06116333 | AZ19: 0.74533167 | BA19: 0.442054 | BB19: 0.17192533 | BC19: 0.02056722 | BD19: 0
C20: Dredge Areas | H20: MAR02481.012 | J20: 12 | K20: Black Mud with an Anoxic Odour. | O20: 0 | P20: 0 | Q20: 0 | R20: 0 | S20: 0 | T20: 0 | U20: 0 | V20: 0 | W20: 0 | X20: 0 | Y20: 0 | Z20: 0 | AA20: 0 | AB20: 0 | AC20: 0 | AD20: 0 | AE20: 0.19853334 | AF20: 2.6532 | AG20: 3.40913333 | AH20: 4.49706667 | AI20: 6.0753 | AJ20: 7.64176666 | AK20: 8.0198 | AL20: 9.54983334 | AM20: 9.71146666 | AN20: 8.46163334 | AO20: 7.61946666 | AP20: 6.42723334 | AQ20: 5.0699 | AR20: 3.91686666 | AS20: 3.202 | AT20: 2.70186667 | AU20: 2.36423667 | AV20: 2.18638666 | AW20: 2.01425 | AX20: 1.69145334 | AY20: 1.19296 | AZ20: 0.78819766 | BA20: 0.43582067 | BB20: 0.15447067 | BC20: 0.01715303 | BD20: 0
C21: ='Application info'!$C$26 -> Area i | H21: MAR02481.013 | J21: 13 | K21: Black Mud with an Anoxic Odour. | O21: 0 | P21: 0 | Q21: 0 | R21: 0 | S21: 0 | T21: 0 | U21: 0 | V21: 0 | W21: 0 | X21: 0 | Y21: 0 | Z21: 0 | AA21: 0 | AB21: 0 | AC21: 0 | AD21: 0 | AE21: 0.0699 | AF21: 3.27143334 | AG21: 5.07506666 | AH21: 5.2807 | AI21: 5.99653334 | AJ21: 7.49626666 | AK21: 8.01216667 | AL21: 9.74593333 | AM21: 10.5159 | AN21: 9.7101 | AO21: 8.5975 | AP21: 6.80956667 | AQ21: 4.90693333 | AR21: 3.3136 | AS21: 2.35599334 | AT21: 1.85295666 | AU21: 1.58342 | AV21: 1.41208667 | AW21: 1.24285 | AX21: 1.0257 | AY21: 0.75003567 | AZ21: 0.52621866 | BA21: 0.3127 | BB21: 0.1218599 | BC21: 0.01457546 | BD21: 0
C22: ='Application info'!$C$27 -> Area ii | H22: MAR02481.014 | J22: 15 | K22: Black Mud with Organic Matter and Shell Fragments and an Anoxic Odour. | O22: 0 | P22: 0 | Q22: 0 | R22: 0 | S22: 0 | T22: 0 | U22: 0 | V22: 0 | W22: 0 | X22: 0 | Y22: 0 | Z22: 0 | AA22: 0 | AB22: 0 | AC22: 0.00313334 | AD22: 1.79583333 | AE22: 7.9363 | AF22: 6.45453333 | AG22: 4.8798 | AH22: 5.43713334 | AI22: 5.8387 | AJ22: 6.90343333 | AK22: 6.714 | AL22: 7.62183333 | AM22: 8.0168 | AN22: 7.24506667 | AO22: 6.45563333 | AP22: 5.28743334 | AQ22: 3.99736666 | AR22: 2.7243 | AS22: 1.73983334 | AT22: 1.32805333 | AU22: 1.70667 | AV22: 2.45996 | AW22: 2.71927333 | AX22: 1.932088 | AY22: 0.70824704 | AZ22: 0.09434801 | BA22: 0.00022695 | BB22: 0 | BC22: 0 | BD22: 0
C23: ='Application info'!$C$28 -> Area iii | H23: MAR02481.015 | J23: 17 | K23: Black Mud with an Anoxic Odour. | O23: 0 | P23: 0 | Q23: 0 | R23: 0 | S23: 0 | T23: 0.479658 | U23: 0.034884 | V23: 0.313958 | W23: 0.237649 | X23: 0.259451 | Y23: 0.318319 | Z23: 0.268173 | AA23: 0 | AB23: 0 | AC23: 3.2e-05 | AD23: 0.181985 | AE23: 2.366927 | AF23: 4.691022 | AG23: 6.225378 | AH23: 7.110491 | AI23: 7.954243 | AJ23: 8.954478 | AK23: 8.288984 | AL23: 8.503175 | AM23: 8.445957 | AN23: 7.540442 | AO23: 6.620541 | AP23: 5.288311 | AQ23: 3.891245 | AR23: 2.693801 | AS23: 1.948039 | AT23: 1.540677 | AU23: 1.312975 | AV23: 1.163882 | AW23: 1.021553 | AX23: 0.849892 | AY23: 0.634825 | AZ23: 0.457544 | BA23: 0.278479 | BB23: 0.109918 | BC23: 0.013106 | BD23: 0
C24: ='Application info'!$C$29 -> Area iv | H24: MAR02481.016 | J24: 18 | K24: Black Mud with Organic Matter and Shell Fragments and an Anoxic Odour. | O24: 0 | P24: 0 | Q24: 0 | R24: 0 | S24: 0 | T24: 0 | U24: 0 | V24: 0.023036 | W24: 0.146851 | X24: 0.210199 | Y24: 0.135334 | Z24: 0.109419 | AA24: 0 | AB24: 0 | AC24: 0 | AD24: 0.195968 | AE24: 3.001031 | AF24: 5.193743 | AG24: 6.065296 | AH24: 7.693493 | AI24: 8.274704 | AJ24: 9.400625 | AK24: 8.918192 | AL24: 9.080239 | AM24: 9.023331 | AN24: 7.880583 | AO24: 6.617193 | AP24: 5.005792 | AQ24: 3.470323 | AR24: 2.249079 | AS24: 1.535959 | AT24: 1.186646 | AU24: 1.014643 | AV24: 0.904188 | AW24: 0.794372 | AX24: 0.663809 | AY24: 0.503491 | AZ24: 0.369389 | BA24: 0.229016 | BB24: 0.092753 | BC24: 0.011299 | BD24: 0
C25: ='Application info'!$C$30 -> Area v | H25: MAR02481.017 | J25: 19 | K25: Black Mud with an Anoxic Odour. | O25: 0 | P25: 0 | Q25: 0 | R25: 0 | S25: 0 | T25: 0 | U25: 0 | V25: 0 | W25: 0 | X25: 0 | Y25: 0 | Z25: 0 | AA25: 0.00016667 | AB25: 0.2021 | AC25: 0.7726 | AD25: 0.95216667 | AE25: 4.1844 | AF25: 7.71463333 | AG25: 8.8366 | AH25: 8.21653333 | AI25: 7.76666667 | AJ25: 8.16216667 | AK25: 7.0592 | AL25: 7.1105 | AM25: 6.65393333 | AN25: 5.719 | AO25: 5.2377 | AP25: 4.511 | AQ25: 3.58526667 | AR25: 2.71086666 | AS25: 2.13586667 | AT25: 1.75725667 | AU25: 1.50896 | AV25: 1.36066333 | AW25: 1.22305667 | AX25: 1.01626 | AY25: 0.72409133 | AZ25: 0.48836267 | BA25: 0.277047 | BB25: 0.1014028 | BC25: 0.01152981 | BD25: 0
C26: ='Application info'!$C$31 -> Area vi | H26: MAR02481.018 | J26: 20 | K26: Black Mud with an Anoxic Odour. | O26: 0 | P26: 0 | Q26: 0 | R26: 0 | S26: 0 | T26: 0 | U26: 0 | V26: 0 | W26: 0 | X26: 0 | Y26: 0 | Z26: 0 | AA26: 0 | AB26: 0 | AC26: 0 | AD26: 0.0443 | AE26: 1.5614 | AF26: 4.7158 | AG26: 6.677 | AH26: 7.6255 | AI26: 9.04076667 | AJ26: 9.53616667 | AK26: 8.6253 | AL26: 8.45376666 | AM26: 7.6611 | AN26: 6.52013334 | AO26: 5.92013333 | AP26: 5.08576667 | AQ26: 4.06176666 | AR26: 3.05916667 | AS26: 2.35673 | AT26: 1.89213333 | AU26: 1.6047 | AV26: 1.44155667 | AW26: 1.29596333 | AX26: 1.08125334 | AY26: 0.778121 | AZ26: 0.53048766 | BA26: 0.304517 | BB26: 0.11338034 | BC26: 0.01308727 | BD26: 0
H27: MAR02481.019 | J27: 21 | K27: Black Mud with Shell Fragments and an Anoxic Odour. | O27: 0 | P27: 0 | Q27: 0 | R27: 0 | S27: 0.219597 | T27: 0.083295 | U27: 0.33823 | V27: 0.191832 | W27: 0.181736 | X27: 0.15397 | Y27: 0.171639 | Z27: 0.133778 | AA27: 0 | AB27: 0 | AC27: 0.00023 | AD27: 0.291407 | AE27: 2.299497 | AF27: 4.470515 | AG27: 6.350587 | AH27: 6.793986 | AI27: 7.703545 | AJ27: 8.385541 | AK27: 7.950517 | AL27: 8.705619 | AM27: 8.852357 | AN27: 7.956461 | AO27: 7.002631 | AP27: 5.57637 | AQ27: 4.058283 | AR27: 2.765984 | AS27: 1.971533 | AT27: 1.540174 | AU27: 1.307003 | AV27: 1.166737 | AW27: 1.035258 | AX27: 0.863829 | AY27: 0.638134 | AZ27: 0.452371 | BA27: 0.270503 | BB27: 0.104566 | BC27: 0.012283 | BD27: 0
H28: MAR02481.020 | J28: 22 | K28: Black Mud with Shell Fragments and an Anoxic Odour. | O28: 0 | P28: 0 | Q28: 0 | R28: 0 | S28: 0 | T28: 0 | U28: 0.14949 | V28: 0 | W28: 0.035174 | X28: 0.043968 | Y28: 0.052761 | Z28: 0.074745 | AA28: 0 | AB28: 0 | AC28: 0 | AD28: 0.081309 | AE28: 2.411414 | AF28: 5.36715 | AG28: 5.891443 | AH28: 7.309973 | AI28: 8.091647 | AJ28: 8.558112 | AK28: 8.058067 | AL28: 8.583754 | AM28: 8.724849 | AN28: 7.928396 | AO28: 6.986263 | AP28: 5.529604 | AQ28: 3.987548 | AR28: 2.693613 | AS28: 1.923861 | AT28: 1.53329 | AU28: 1.32698 | AV28: 1.189316 | AW28: 1.049263 | AX28: 0.875013 | AY28: 0.654734 | AZ28: 0.473386 | BA28: 0.288501 | BB28: 0.113057 | BC28: 0.013314 | BD28: 0
H29: MAR02481.021 | J29: 23 | K29: Black Mud with Shell Fragments and an Anoxic Odour. | O29: 0 | P29: 0 | Q29: 0 | R29: 0 | S29: 0 | T29: 0.223891 | U29: 0.250323 | V29: 0.199014 | W29: 0.377816 | X29: 0.34983 | Y29: 0.42757 | Z29: 0.321843 | AA29: 0 | AB29: 0 | AC29: 0 | AD29: 0 | AE29: 0 | AF29: 0 | AG29: 0 | AH29: 0.255486 | AI29: 5.100025 | AJ29: 5.602711 | AK29: 5.773263 | AL29: 8.227138 | AM29: 8.803832 | AN29: 8.350135 | AO29: 8.192044 | AP29: 7.37004 | AQ29: 6.142939 | AR29: 5.257106 | AS29: 4.818739 | AT29: 4.365761 | AU29: 4.143935 | AV29: 4.28161 | AW29: 4.260824 | AX29: 3.504165 | AY29: 2.079186 | AZ29: 0.981409 | BA29: 0.300311 | BB29: 0.036912 | BC29: 0.00214 | BD29: 0
H30: MAR02481.022 | J30: 24 | K30: Odourless Black Mud . | O30: 0 | P30: 0 | Q30: 0 | R30: 0 | S30: 0 | T30: 0.001449 | U30: 0 | V30: 0.011596 | W30: 0.063777 | X30: 0.049283 | Y30: 0.086969 | Z30: 0.131903 | AA30: 0.382377 | AB30: 4.156825 | AC30: 4.463564 | AD30: 3.065433 | AE30: 13.716866 | AF30: 20.520207 | AG30: 11.948548 | AH30: 5.327777 | AI30: 4.249605 | AJ30: 4.158753 | AK30: 3.813313 | AL30: 4.114006 | AM30: 4.358993 | AN30: 3.896891 | AO30: 3.218149 | AP30: 2.343592 | AQ30: 1.55384 | AR30: 0.976264 | AS30: 0.67265 | AT30: 0.543175 | AU30: 0.480213 | AV30: 0.429747 | AW30: 0.373197 | AX30: 0.309948 | AY30: 0.237872 | AZ30: 0.177779 | BA30: 0.112506 | BB30: 0.047046 | BC30: 0.005884 | BD30: 0
H31: MAR02481.023 | J31: 25 | K31: Odourless Black Mud . | O31: 0 | P31: 0 | Q31: 0 | R31: 0 | S31: 0 | T31: 0 | U31: 0 | V31: 0 | W31: 0 | X31: 0 | Y31: 0 | Z31: 0.00036667 | AA31: 0.3837 | AB31: 4.1712 | AC31: 4.479 | AD31: 3.07603333 | AE31: 13.7643 | AF31: 20.59116667 | AG31: 11.98986667 | AH31: 5.3462 | AI31: 4.2643 | AJ31: 4.17313333 | AK31: 3.8265 | AL31: 4.12823333 | AM31: 4.37406667 | AN31: 3.91036667 | AO31: 3.22927666 | AP31: 2.35169667 | AQ31: 1.55921333 | AR31: 0.97964 | AS31: 0.67497667 | AT31: 0.54505333 | AU31: 0.48187334 | AV31: 0.43123333 | AW31: 0.37448767 | AX31: 0.31102 | AY31: 0.23869366 | AZ31: 0.17839334 | BA31: 0.11289466 | BB31: 0.04720899 | BC31: 0.00590358 | BD31: 0
H40: * Visual appearance: Incude a description of what the material looks like and what it contains, e.g. sandy material containing brick fragments, or black silt, or foreign man made matter caught in the sample.
H43: ▫ Exempt from chemical analysis: enter 'y' where sediment samples contain glacial material or are too coarse and thus exempt from chemical analysis.
A200: y

Sheet Physical Stats (hidden)
B2: Physical characteristics summary
H4: Physical characteristics statistics: | BN4: Lookup table
B6: Analysis information: | H6: Laboratory sample number | I6: Dredge Area | J6: Sample ID | K6: Excluded (y if yes) | L6: Visual appearance | M6: Exempt from chemical analysis | N6: Total solids (% total sediments) | O6: Organic matter (total organic carbon) | Q6: Particle size distribution (% at 0.5 phi intervals) | BF6: Particle size summary statistics | BO6: Sample ID | BP6: Total Solids (%)
P7: -5.5 | Q7: -5 | R7: -4.5 | S7: -4 | T7: -3.5 | U7: -3 | V7: -2.5 | W7: -2 | X7: -1.5 | Y7: -1 | Z7: -0.5 | AA7: 0 | AB7: 0.5 | AC7: 1 | AD7: 1.5 | AE7: 2 | AF7: 2.5 | AG7: 3 | AH7: 3.5 | AI7: 4 | AJ7: 4.5 | AK7: 5 | AL7: 5.5 | AM7: 6 | AN7: 6.5 | AO7: 7 | AP7: 7.5 | AQ7: 8 | AR7: 8.5 | AS7: 9 | AT7: 9.5 | AU7: 10 | AV7: 10.5 | AW7: 11 | AX7: 11.5 | AY7: 12 | AZ7: 12.5 | BA7: 13 | BB7: 13.5 | BC7: 14 | BD7: 14.5 | BE7: >14.5 | BF7: Gravel (%) | BG7: Sand (%) | BH7: Very coarse and coarse sand (%) | BI7: Medium sand (%) | BJ7: Fine sand and very fine sand (%) | BK7: Silt/Clay (%)
C8: Applicant: | D8: =IF('Application info'!E16="","",'Application info'!E16) -> PD Ports | P8: 45mm | Q8: 31.5mm | R8: 22.4mm | S8: 16mm | T8: 11.2mm | U8: 8mm | V8: 5.6mm | W8: 4mm | X8: 2.8mm | Y8: 2mm | Z8: 1.4mm | AA8: 1mm | AB8: 707µm | AC8: 500µm | AD8: 353.6µm | AE8: 250µm | AF8: 176.8µm | AG8: 125µm | AH8: 88.39µm | AI8: 63µm | AJ8: 44.2µm | AK8: 31.3µm | AL8: 22.1µm | AM8: 15.6µm | AN8: 11µm | AO8: 7.8µm | AP8: 5.5µm | AQ8: 3.9µm | AR8: 2.75µm | AS8: 1.95µm | AT8: 1.38µm | AU8: 0.98µm | AV8: 0.69µm | AW8: 0.49µm | AX8: 0.34µm | AY8: 0.24µm | AZ8: 0.17µm | BA8: 0.12µm | BB8: 0.09µm | BC8: 0.06µm | BD8: 0.04µm | BE8: <0.04µm | BO8: =IF(J9="","",J9) -> 1 | BP8: =IF(K9="","",K9) -> 
C9: Application number: | D9: =IF('Application info'!E17="","",'Application info'!E17) ->  | H9: =IF('Physical Data'!H9="","",'Physical Data'!H9) -> MAR02481.001 | I9: =IF('Physical Data'!I9="","",'Physical Data'!I9) ->  | J9: =IF('Physical Data'!J9="","",'Physical Data'!J9) -> 1 | K9: =IFERROR(IF(J9="","",(IF(VLOOKUP(J9,'Application info'!$K$8:$L$37,2,0)="y","y",""))),"Manual entry required") ->  | L9: =IF('Physical Data'!K9="","",'Physical Data'!K9) -> Black Mud with an Anoxic Odour. | M9: =IF('Physical Data'!L9="","",'Physical Data'!L9) ->  | N9: =IF('Physical Data'!M9="","",'Physical Data'!M9) ->  | O9: =IF('Physical Data'!N9="","",'Physical Data'!N9) ->  | P9: =IF('Physical Data'!O9="","",'Physical Data'!O9) -> 0 | Q9: =IF('Physical Data'!P9="","",'Physical Data'!P9) -> 0 | R9: =IF('Physical Data'!Q9="","",'Physical Data'!Q9) -> 0 | S9: =IF('Physical Data'!R9="","",'Physical Data'!R9) -> 0 | T9: =IF('Physical Data'!S9="","",'Physical Data'!S9) -> 0 | U9: =IF('Physical Data'!T9="","",'Physical Data'!T9) -> 0 | V9: =IF('Physical Data'!U9="","",'Physical Data'!U9) -> 0 | W9: =IF('Physical Data'!V9="","",'Physical Data'!V9) -> 0 | X9: =IF('Physical Data'!W9="","",'Physical Data'!W9) -> 0 | Y9: =IF('Physical Data'!X9="","",'Physical Data'!X9) -> 0 | Z9: =IF('Physical Data'!Y9="","",'Physical Data'!Y9) -> 0 | AA9: =IF('Physical Data'!Z9="","",'Physical Data'!Z9) -> 0 | AB9: =IF('Physical Data'!AA9="","",'Physical Data'!AA9) -> 0 | AC9: =IF('Physical Data'!AB9="","",'Physical Data'!AB9) -> 0 | AD9: =IF('Physical Data'!AC9="","",'Physical Data'!AC9) -> 0 | AE9: =IF('Physical Data'!AD9="","",'Physical Data'!AD9) -> 0.1676 | AF9: =IF('Physical Data'!AE9="","",'Physical Data'!AE9) -> 3.0241 | AG9: =IF('Physical Data'!AF9="","",'Physical Data'!AF9) -> 6.97793334 | AH9: =IF('Physical Data'!AG9="","",'Physical Data'!AG9) -> 8.98783333 | AI9: =IF('Physical Data'!AH9="","",'Physical Data'!AH9) -> 10.12846667 | AJ9: =IF('Physical Data'!AI9="","",'Physical Data'!AI9) -> 11.08736666 | AK9: =IF('Physical Data'!AJ9="","",'Physical Data'!AJ9) -> 11.51853334 | AL9: =IF('Physical Data'!AK9="","",'Physical Data'!AK9) -> 10.64116666 | AM9: =IF('Physical Data'!AL9="","",'Physical Data'!AL9) -> 9.82493334 | AN9: =IF('Physical Data'!AM9="","",'Physical Data'!AM9) -> 8.23786666 | AO9: =IF('Physical Data'!AN9="","",'Physical Data'!AN9) -> 6.08516667 | AP9: =IF('Physical Data'!AO9="","",'Physical Data'!AO9) -> 4.35620667 | AQ9: =IF('Physical Data'!AP9="","",'Physical Data'!AP9) -> 2.84871333 | AR9: =IF('Physical Data'!AQ9="","",'Physical Data'!AQ9) -> 1.77124 | AS9: =IF('Physical Data'!AR9="","",'Physical Data'!AR9) -> 1.07895667 | AT9: =IF('Physical Data'!AS9="","",'Physical Data'!AS9) -> 0.71486666 | AU9: =IF('Physical Data'!AT9="","",'Physical Data'!AT9) -> 0.54298 | AV9: =IF('Physical Data'!AU9="","",'Physical Data'!AU9) -> 0.45941334 | AW9: =IF('Physical Data'!AV9="","",'Physical Data'!AV9) -> 0.40604333 | AX9: =IF('Physical Data'!AW9="","",'Physical Data'!AW9) -> 0.35290233 | AY9: =IF('Physical Data'!AX9="","",'Physical Data'!AX9) -> 0.28928934 | AZ9: =IF('Physical Data'!AY9="","",'Physical Data'!AY9) -> 0.21324333 | BA9: =IF('Physical Data'!AZ9="","",'Physical Data'!AZ9) -> 0.15207367 | BB9: =IF('Physical Data'!BA9="","",'Physical Data'!BA9) -> 0.0920559 | BC9: =IF('Physical Data'!BB9="","",'Physical Data'!BB9) -> 0.03661437 | BD9: =IF('Physical Data'!BC9="","",'Physical Data'!BC9) -> 0.00443329 | BE9: =IF('Physical Data'!BD9="","",'Physical Data'!BD9) -> 0 | BF9: =IF(SUM(P9:BE9)<1,"",SUM(P9:Y9)) -> 0 | BG9: =IF(SUM(P9:BE9)<1,"",SUM(Z9:AI9)) -> 29.28593334 | BH9: =IF(SUM(P9:BE9)<1,"",SUM(Z9:AC9)) -> 0 | BI9: =IF(SUM(P9:BE9)<1,"", SUM(AD9:AE9)) -> 0.1676 | BJ9: =IF(SUM(P9:BE9)<1,"",SUM(AF9:AI9)) -> 29.11833334 | BK9: =IF(SUM(P9:BE9)<1,"",SUM(AJ9:BE9)) -> 70.71406556 | BO9: =IF(J10="","",J10) -> 2
C10: Application title: | D10: =IF('Application info'!E18="","",'Application info'!E18) -> Mid licence sampling - year 9 | H10: =IF('Physical Data'!H10="","",'Physical Data'!H10) -> MAR02481.002 | I10: =IF('Physical Data'!I10="","",'Physical Data'!I10) ->  | J10: =IF('Physical Data'!J10="","",'Physical Data'!J10) -> 2 | K10: =IFERROR(IF(J10="","",(IF(VLOOKUP(J10,'Application info'!$K$8:$L$37,2,0)="y","y",""))),"Manual entry required") ->  | L10: =IF('Physical Data'!K10="","",'Physical Data'!K10) -> Black Mud with an Anoxic Odour. | M10: =IF('Physical Data'!L10="","",'Physical Data'!L10) ->  | N10: =IF('Physical Data'!M10="","",'Physical Data'!M10) ->  | O10: =IF('Physical Data'!N10="","",'Physical Data'!N10) ->  | P10: =IF('Physical Data'!O10="","",'Physical Data'!O10) -> 0 | Q10: =IF('Physical Data'!P10="","",'Physical Data'!P10) -> 0 | R10: =IF('Physical Data'!Q10="","",'Physical Data'!Q10) -> 0 | S10: =IF('Physical Data'!R10="","",'Physical Data'!R10) -> 0 | T10: =IF('Physical Data'!S10="","",'Physical Data'!S10) -> 0 | U10: =IF('Physical Data'!T10="","",'Physical Data'!T10) -> 0 | V10: =IF('Physical Data'!U10="","",'Physical Data'!U10) -> 0 | W10: =IF('Physical Data'!V10="","",'Physical Data'!V10) -> 0 | X10: =IF('Physical Data'!W10="","",'Physical Data'!W10) -> 0 | Y10: =IF('Physical Data'!X10="","",'Physical Data'!X10) -> 0 | Z10: =IF('Physical Data'!Y10="","",'Physical Data'!Y10) -> 0 | AA10: =IF('Physical Data'!Z10="","",'Physical Data'!Z10) -> 0 | AB10: =IF('Physical Data'!AA10="","",'Physical Data'!AA10) -> 0 | AC10: =IF('Physical Data'!AB10="","",'Physical Data'!AB10) -> 0 | AD10: =IF('Physical Data'!AC10="","",'Physical Data'!AC10) -> 0 | AE10: =IF('Physical Data'!AD10="","",'Physical Data'!AD10) -> 0.0776 | AF10: =IF('Physical Data'!AE10="","",'Physical Data'!AE10) -> 2.06643334 | AG10: =IF('Physical Data'!AF10="","",'Physical Data'!AF10) -> 4.77583333 | AH10: =IF('Physical Data'!AG10="","",'Physical Data'!AG10) -> 6.12786667 | AI10: =IF('Physical Data'!AH10="","",'Physical Data'!AH10) -> 7.11536666 | AJ10: =IF('Physical Data'!AI10="","",'Physical Data'!AI10) -> 8.18236667 | AK10: =IF('Physical Data'!AJ10="","",'Physical Data'!AJ10) -> 9.208 | AL10: =IF('Physical Data'!AK10="","",'Physical Data'!AK10) -> 9.2726 | AM10: =IF('Physical Data'!AL10="","",'Physical Data'!AL10) -> 10.25826667 | AN10: =IF('Physical Data'!AM10="","",'Physical Data'!AM10) -> 10.14316666 | AO10: =IF('Physical Data'!AN10="","",'Physical Data'!AN10) -> 8.60996667 | AP10: =IF('Physical Data'!AO10="","",'Physical Data'!AO10) -> 6.9942 | AQ10: =IF('Physical Data'!AP10="","",'Physical Data'!AP10) -> 5.1111 | AR10: =IF('Physical Data'!AQ10="","",'Physical Data'!AQ10) -> 3.42412333 | AS10: =IF('Physical Data'!AR10="","",'Physical Data'!AR10) -> 2.13925 | AT10: =IF('Physical Data'!AS10="","",'Physical Data'!AS10) -> 1.3947 | AU10: =IF('Physical Data'!AT10="","",'Physical Data'!AT10) -> 1.03028 | AV10: =IF('Physical Data'!AU10="","",'Physical Data'!AU10) -> 0.87906334 | AW10: =IF('Physical Data'!AV10="","",'Physical Data'!AV10) -> 0.81655 | AX10: =IF('Physical Data'!AW10="","",'Physical Data'!AW10) -> 0.74999333 | AY10: =IF('Physical Data'!AX10="","",'Physical Data'!AX10) -> 0.62811067 | AZ10: =IF('Physical Data'!AY10="","",'Physical Data'!AY10) -> 0.448748 | BA10: =IF('Physical Data'!AZ10="","",'Physical Data'!AZ10) -> 0.303433 | BB10: =IF('Physical Data'!BA10="","",'Physical Data'!BA10) -> 0.17257943 | BC10: =IF('Physical Data'!BB10="","",'Physical Data'!BB10) -> 0.06322343 | BD10: =IF('Physical Data'!BC10="","",'Physical Data'!BC10) -> 0.00717689 | BE10: =IF('Physical Data'!BD10="","",'Physical Data'!BD10) -> 0 | BF10: 0 | BG10: =IF(SUM(P10:BE10)<1,"",SUM(Z10:AI10)) -> 20.1631 | BH10: 0 | BI10: 0.0776 | BJ10: 20.0855 | BK10: 79.83689809 | BO10: 3
C11: Date sampled: | D11: =IF('Application info'!E19="","",'Application info'!E19) ->  | H11: =IF('Physical Data'!H11="","",'Physical Data'!H11) -> MAR02481.003 | I11: =IF('Physical Data'!I11="","",'Physical Data'!I11) ->  | J11: =IF('Physical Data'!J11="","",'Physical Data'!J11) -> 3 | K11: =IFERROR(IF(J11="","",(IF(VLOOKUP(J11,'Application info'!$K$8:$L$37,2,0)="y","y",""))),"Manual entry required") ->  | L11: =IF('Physical Data'!K11="","",'Physical Data'!K11) -> Black Mud with an Anoxic Odour. | M11: =IF('Physical Data'!L11="","",'Physical Data'!L11) ->  | N11: =IF('Physical Data'!M11="","",'Physical Data'!M11) ->  | O11: =IF('Physical Data'!N11="","",'Physical Data'!N11) ->  | P11: =IF('Physical Data'!O11="","",'Physical Data'!O11) -> 0 | Q11: =IF('Physical Data'!P11="","",'Physical Data'!P11) -> 0 | R11: =IF('Physical Data'!Q11="","",'Physical Data'!Q11) -> 0 | S11: =IF('Physical Data'!R11="","",'Physical Data'!R11) -> 0 | T11: =IF('Physical Data'!S11="","",'Physical Data'!S11) -> 0 | U11: =IF('Physical Data'!T11="","",'Physical Data'!T11) -> 0 | V11: =IF('Physical Data'!U11="","",'Physical Data'!U11) -> 0 | W11: =IF('Physical Data'!V11="","",'Physical Data'!V11) -> 0 | X11: =IF('Physical Data'!W11="","",'Physical Data'!W11) -> 0 | Y11: =IF('Physical Data'!X11="","",'Physical Data'!X11) -> 0 | Z11: =IF('Physical Data'!Y11="","",'Physical Data'!Y11) -> 0 | AA11: =IF('Physical Data'!Z11="","",'Physical Data'!Z11) -> 0 | AB11: =IF('Physical Data'!AA11="","",'Physical Data'!AA11) -> 0 | AC11: =IF('Physical Data'!AB11="","",'Physical Data'!AB11) -> 0 | AD11: =IF('Physical Data'!AC11="","",'Physical Data'!AC11) -> 0 | AE11: =IF('Physical Data'!AD11="","",'Physical Data'!AD11) -> 0.078 | AF11: =IF('Physical Data'!AE11="","",'Physical Data'!AE11) -> 2.5728 | AG11: =IF('Physical Data'!AF11="","",'Physical Data'!AF11) -> 6.04416667 | AH11: =IF('Physical Data'!AG11="","",'Physical Data'!AG11) -> 6.43873333 | AI11: =IF('Physical Data'!AH11="","",'Physical Data'!AH11) -> 7.23006667 | AJ11: =IF('Physical Data'!AI11="","",'Physical Data'!AI11) -> 8.16066667 | AK11: =IF('Physical Data'!AJ11="","",'Physical Data'!AJ11) -> 8.63533333 | AL11: =IF('Physical Data'!AK11="","",'Physical Data'!AK11) -> 8.33253333 | AM11: =IF('Physical Data'!AL11="","",'Physical Data'!AL11) -> 8.8059 | AN11: =IF('Physical Data'!AM11="","",'Physical Data'!AM11) -> 8.66643334 | AO11: =IF('Physical Data'!AN11="","",'Physical Data'!AN11) -> 7.39126666 | AP11: =IF('Physical Data'!AO11="","",'Physical Data'!AO11) -> 6.37993334 | AQ11: =IF('Physical Data'!AP11="","",'Physical Data'!AP11) -> 5.1795 | AR11: =IF('Physical Data'!AQ11="","",'Physical Data'!AQ11) -> 3.9779 | AS11: =IF('Physical Data'!AR11="","",'Physical Data'!AR11) -> 2.89836666 | AT11: =IF('Physical Data'!AS11="","",'Physical Data'!AS11) -> 2.10588 | AU11: =IF('Physical Data'!AT11="","",'Physical Data'!AT11) -> 1.55802334 | AV11: =IF('Physical Data'!AU11="","",'Physical Data'!AU11) -> 1.27285333 | AW11: =IF('Physical Data'!AV11="","",'Physical Data'!AV11) -> 1.18279 | AX11: =IF('Physical Data'!AW11="","",'Physical Data'!AW11) -> 1.11058667 | AY11: =IF('Physical Data'!AX11="","",'Physical Data'!AX11) -> 0.90677733 | AZ11: =IF('Physical Data'!AY11="","",'Physical Data'!AY11) -> 0.57572667 | BA11: =IF('Physical Data'!AZ11="","",'Physical Data'!AZ11) -> 0.31700366 | BB11: =IF('Physical Data'!BA11="","",'Physical Data'!BA11) -> 0.13687764 | BC11: =IF('Physical Data'!BB11="","",'Physical Data'!BB11) -> 0.03791191 | BD11: =IF('Physical Data'!BC11="","",'Physical Data'!BC11) -> 0.00396864 | BE11: =IF('Physical Data'!BD11="","",'Physical Data'!BD11) -> 0 | BF11: 0 | BG11: 22.36376667 | BH11: 0 | BI11: 0.078 | BJ11: 22.28576667 | BK11: 77.63623252 | BO11: 4
C12: Sampling location: | D12: =IF('Application info'!E20="","",'Application info'!E20) ->  | H12: =IF('Physical Data'!H12="","",'Physical Data'!H12) -> MAR02481.004 | I12: =IF('Physical Data'!I12="","",'Physical Data'!I12) ->  | J12: =IF('Physical Data'!J12="","",'Physical Data'!J12) -> 4 | K12: =IFERROR(IF(J12="","",(IF(VLOOKUP(J12,'Application info'!$K$8:$L$37,2,0)="y","y",""))),"Manual entry required") ->  | L12: =IF('Physical Data'!K12="","",'Physical Data'!K12) -> Black Mud with an Anoxic Odour. | M12: =IF('Physical Data'!L12="","",'Physical Data'!L12) ->  | N12: =IF('Physical Data'!M12="","",'Physical Data'!M12) ->  | O12: =IF('Physical Data'!N12="","",'Physical Data'!N12) ->  | P12: =IF('Physical Data'!O12="","",'Physical Data'!O12) -> 0 | Q12: =IF('Physical Data'!P12="","",'Physical Data'!P12) -> 0 | R12: =IF('Physical Data'!Q12="","",'Physical Data'!Q12) -> 0 | S12: =IF('Physical Data'!R12="","",'Physical Data'!R12) -> 0 | T12: =IF('Physical Data'!S12="","",'Physical Data'!S12) -> 0 | U12: =IF('Physical Data'!T12="","",'Physical Data'!T12) -> 0 | V12: =IF('Physical Data'!U12="","",'Physical Data'!U12) -> 0 | W12: =IF('Physical Data'!V12="","",'Physical Data'!V12) -> 0 | X12: =IF('Physical Data'!W12="","",'Physical Data'!W12) -> 0 | Y12: =IF('Physical Data'!X12="","",'Physical Data'!X12) -> 0 | Z12: =IF('Physical Data'!Y12="","",'Physical Data'!Y12) -> 0 | AA12: =IF('Physical Data'!Z12="","",'Physical Data'!Z12) -> 0 | AB12: =IF('Physical Data'!AA12="","",'Physical Data'!AA12) -> 0 | AC12: =IF('Physical Data'!AB12="","",'Physical Data'!AB12) -> 0 | AD12: =IF('Physical Data'!AC12="","",'Physical Data'!AC12) -> 0 | AE12: =IF('Physical Data'!AD12="","",'Physical Data'!AD12) -> 0.03243334 | AF12: =IF('Physical Data'!AE12="","",'Physical Data'!AE12) -> 1.67433333 | AG12: =IF('Physical Data'!AF12="","",'Physical Data'!AF12) -> 3.86063333 | AH12: =IF('Physical Data'!AG12="","",'Physical Data'!AG12) -> 4.4101 | AI12: =IF('Physical Data'!AH12="","",'Physical Data'!AH12) -> 5.12606667 | AJ12: =IF('Physical Data'!AI12="","",'Physical Data'!AI12) -> 6.58116667 | AK12: =IF('Physical Data'!AJ12="","",'Physical Data'!AJ12) -> 8.1188 | AL12: =IF('Physical Data'!AK12="","",'Physical Data'!AK12) -> 8.72563333 | AM12: =IF('Physical Data'!AL12="","",'Physical Data'!AL12) -> 10.65456667 | AN12: =IF('Physical Data'!AM12="","",'Physical Data'!AM12) -> 11.2653 | AO12: =IF('Physical Data'!AN12="","",'Physical Data'!AN12) -> 9.9837 | AP12: =IF('Physical Data'!AO12="","",'Physical Data'!AO12) -> 8.36753333 | AQ12: =IF('Physical Data'!AP12="","",'Physical Data'!AP12) -> 6.25746667 | AR12: =IF('Physical Data'!AQ12="","",'Physical Data'!AQ12) -> 4.2537 | AS12: =IF('Physical Data'!AR12="","",'Physical Data'!AR12) -> 2.67691333 | AT12: =IF('Physical Data'!AS12="","",'Physical Data'!AS12) -> 1.75023333 | AU12: =IF('Physical Data'!AT12="","",'Physical Data'!AT12) -> 1.29004 | AV12: =IF('Physical Data'!AU12="","",'Physical Data'!AU12) -> 1.08624334 | AW12: =IF('Physical Data'!AV12="","",'Physical Data'!AV12) -> 0.98856666 | AX12: =IF('Physical Data'!AW12="","",'Physical Data'!AW12) -> 0.89399667 | AY12: =IF('Physical Data'!AX12="","",'Physical Data'!AX12) -> 0.74976 | AZ12: =IF('Physical Data'!AY12="","",'Physical Data'!AY12) -> 0.54891433 | BA12: =IF('Physical Data'!AZ12="","",'Physical Data'!AZ12) -> 0.38204934 | BB12: =IF('Physical Data'!BA12="","",'Physical Data'!BA12) -> 0.22467846 | BC12: =IF('Physical Data'!BB12="","",'Physical Data'!BB12) -> 0.08681123 | BD12: =IF('Physical Data'!BC12="","",'Physical Data'!BC12) -> 0.0103574 | BE12: =IF('Physical Data'!BD12="","",'Physical Data'!BD12) -> 0 | BF12: 0 | BG12: 15.10356667 | BH12: 0 | BI12: 0.03243334 | BJ12: 15.07113333 | BK12: 84.89643076 | BO12: 5
H13: =IF('Physical Data'!H13="","",'Physical Data'!H13) -> MAR02481.005 | I13: =IF('Physical Data'!I13="","",'Physical Data'!I13) ->  | J13: =IF('Physical Data'!J13="","",'Physical Data'!J13) -> 5 | K13: =IFERROR(IF(J13="","",(IF(VLOOKUP(J13,'Application info'!$K$8:$L$37,2,0)="y","y",""))),"Manual entry required") ->  | L13: =IF('Physical Data'!K13="","",'Physical Data'!K13) -> Black Mud with an Anoxic Odour. | M13: =IF('Physical Data'!L13="","",'Physical Data'!L13) ->  | N13: =IF('Physical Data'!M13="","",'Physical Data'!M13) ->  | O13: =IF('Physical Data'!N13="","",'Physical Data'!N13) ->  | P13: =IF('Physical Data'!O13="","",'Physical Data'!O13) -> 0 | Q13: =IF('Physical Data'!P13="","",'Physical Data'!P13) -> 0 | R13: =IF('Physical Data'!Q13="","",'Physical Data'!Q13) -> 0 | S13: =IF('Physical Data'!R13="","",'Physical Data'!R13) -> 0 | T13: =IF('Physical Data'!S13="","",'Physical Data'!S13) -> 0 | U13: =IF('Physical Data'!T13="","",'Physical Data'!T13) -> 0 | V13: =IF('Physical Data'!U13="","",'Physical Data'!U13) -> 0 | W13: =IF('Physical Data'!V13="","",'Physical Data'!V13) -> 0 | X13: =IF('Physical Data'!W13="","",'Physical Data'!W13) -> 0 | Y13: =IF('Physical Data'!X13="","",'Physical Data'!X13) -> 0 | Z13: =IF('Physical Data'!Y13="","",'Physical Data'!Y13) -> 0 | AA13: =IF('Physical Data'!Z13="","",'Physical Data'!Z13) -> 0 | AB13: =IF('Physical Data'!AA13="","",'Physical Data'!AA13) -> 0 | AC13: =IF('Physical Data'!AB13="","",'Physical Data'!AB13) -> 0 | AD13: =IF('Physical Data'!AC13="","",'Physical Data'!AC13) -> 0 | AE13: =IF('Physical Data'!AD13="","",'Physical Data'!AD13) -> 0.0248 | AF13: =IF('Physical Data'!AE13="","",'Physical Data'!AE13) -> 1.576 | AG13: =IF('Physical Data'!AF13="","",'Physical Data'!AF13) -> 5.04263334 | AH13: =IF('Physical Data'!AG13="","",'Physical Data'!AG13) -> 4.98723333 | AI13: =IF('Physical Data'!AH13="","",'Physical Data'!AH13) -> 5.9394 | AJ13: =IF('Physical Data'!AI13="","",'Physical Data'!AI13) -> 6.17733333 | AK13: =IF('Physical Data'!AJ13="","",'Physical Data'!AJ13) -> 7.87836667 | AL13: =IF('Physical Data'!AK13="","",'Physical Data'!AK13) -> 8.47996667 | AM13: =IF('Physical Data'!AL13="","",'Physical Data'!AL13) -> 9.83483333 | AN13: =IF('Physical Data'!AM13="","",'Physical Data'!AM13) -> 10.66946667 | AO13: =IF('Physical Data'!AN13="","",'Physical Data'!AN13) -> 9.64163333 | AP13: =IF('Physical Data'!AO13="","",'Physical Data'!AO13) -> 8.18116667 | AQ13: =IF('Physical Data'!AP13="","",'Physical Data'!AP13) -> 6.1902 | AR13: =IF('Physical Data'!AQ13="","",'Physical Data'!AQ13) -> 4.2767 | AS13: =IF('Physical Data'!AR13="","",'Physical Data'!AR13) -> 2.75549 | AT13: =IF('Physical Data'!AS13="","",'Physical Data'!AS13) -> 1.84109 | AU13: =IF('Physical Data'!AT13="","",'Physical Data'!AT13) -> 1.36258666 | AV13: =IF('Physical Data'!AU13="","",'Physical Data'!AU13) -> 1.1387 | AW13: =IF('Physical Data'!AV13="","",'Physical Data'!AV13) -> 1.03279 | AX13: =IF('Physical Data'!AW13="","",'Physical Data'!AW13) -> 0.93432 | AY13: =IF('Physical Data'!AX13="","",'Physical Data'!AX13) -> 0.77928667 | AZ13: =IF('Physical Data'!AY13="","",'Physical Data'!AY13) -> 0.56129867 | BA13: =IF('Physical Data'!AZ13="","",'Physical Data'!AZ13) -> 0.38172733 | BB13: =IF('Physical Data'!BA13="","",'Physical Data'!BA13) -> 0.2194223 | BC13: =IF('Physical Data'!BB13="","",'Physical Data'!BB13) -> 0.08357095 | BD13: =IF('Physical Data'!BC13="","",'Physical Data'!BC13) -> 0.00998166 | BE13: =IF('Physical Data'!BD13="","",'Physical Data'!BD13) -> 0 | BF13: 0 | BG13: 17.57006667 | BH13: 0 | BI13: 0.0248 | BJ13: 17.54526667 | BK13: 82.42993091 | BO13: 6
C14: Laboratory/contractor: | D14: =IF('Physical Data'!D15="","",'Physical Data'!D15) -> Ocean Ecology Ltd | H14: =IF('Physical Data'!H14="","",'Physical Data'!H14) -> MAR02481.006 | I14: =IF('Physical Data'!I14="","",'Physical Data'!I14) ->  | J14: =IF('Physical Data'!J14="","",'Physical Data'!J14) -> 6 | K14: =IFERROR(IF(J14="","",(IF(VLOOKUP(J14,'Application info'!$K$8:$L$37,2,0)="y","y",""))),"Manual entry required") ->  | L14: =IF('Physical Data'!K14="","",'Physical Data'!K14) -> Black Mud with an Anoxic Odour. | M14: =IF('Physical Data'!L14="","",'Physical Data'!L14) ->  | N14: =IF('Physical Data'!M14="","",'Physical Data'!M14) ->  | O14: =IF('Physical Data'!N14="","",'Physical Data'!N14) ->  | P14: =IF('Physical Data'!O14="","",'Physical Data'!O14) -> 0 | Q14: =IF('Physical Data'!P14="","",'Physical Data'!P14) -> 0 | R14: =IF('Physical Data'!Q14="","",'Physical Data'!Q14) -> 0 | S14: =IF('Physical Data'!R14="","",'Physical Data'!R14) -> 0 | T14: =IF('Physical Data'!S14="","",'Physical Data'!S14) -> 0 | U14: =IF('Physical Data'!T14="","",'Physical Data'!T14) -> 0 | V14: =IF('Physical Data'!U14="","",'Physical Data'!U14) -> 0 | W14: =IF('Physical Data'!V14="","",'Physical Data'!V14) -> 0 | X14: =IF('Physical Data'!W14="","",'Physical Data'!W14) -> 0 | Y14: =IF('Physical Data'!X14="","",'Physical Data'!X14) -> 0 | Z14: =IF('Physical Data'!Y14="","",'Physical Data'!Y14) -> 0 | AA14: =IF('Physical Data'!Z14="","",'Physical Data'!Z14) -> 0 | AB14: =IF('Physical Data'!AA14="","",'Physical Data'!AA14) -> 0 | AC14: =IF('Physical Data'!AB14="","",'Physical Data'!AB14) -> 0 | AD14: =IF('Physical Data'!AC14="","",'Physical Data'!AC14) -> 0 | AE14: =IF('Physical Data'!AD14="","",'Physical Data'!AD14) -> 0.09573334 | AF14: =IF('Physical Data'!AE14="","",'Physical Data'!AE14) -> 2.93056666 | AG14: =IF('Physical Data'!AF14="","",'Physical Data'!AF14) -> 5.4682 | AH14: =IF('Physical Data'!AG14="","",'Physical Data'!AG14) -> 4.54666667 | AI14: =IF('Physical Data'!AH14="","",'Physical Data'!AH14) -> 5.52173333 | AJ14: =IF('Physical Data'!AI14="","",'Physical Data'!AI14) -> 5.9134 | AK14: =IF('Physical Data'!AJ14="","",'Physical Data'!AJ14) -> 7.16756667 | AL14: =IF('Physical Data'!AK14="","",'Physical Data'!AK14) -> 7.38026667 | AM14: =IF('Physical Data'!AL14="","",'Physical Data'!AL14) -> 8.7346 | AN14: =IF('Physical Data'!AM14="","",'Physical Data'!AM14) -> 9.13656666 | AO14: =IF('Physical Data'!AN14="","",'Physical Data'!AN14) -> 8.12833334 | AP14: =IF('Physical Data'!AO14="","",'Physical Data'!AO14) -> 7.29413333 | AQ14: =IF('Physical Data'!AP14="","",'Physical Data'!AP14) -> 6.07643333 | AR14: =IF('Physical Data'!AQ14="","",'Physical Data'!AQ14) -> 4.73726667 | AS14: =IF('Physical Data'!AR14="","",'Physical Data'!AR14) -> 3.5656 | AT14: =IF('Physical Data'!AS14="","",'Physical Data'!AS14) -> 2.75696667 | AU14: =IF('Physical Data'!AT14="","",'Physical Data'!AT14) -> 2.18354333 | AV14: =IF('Physical Data'!AU14="","",'Physical Data'!AU14) -> 1.87148333 | AW14: =IF('Physical Data'!AV14="","",'Physical Data'!AV14) -> 1.77928667 | AX14: =IF('Physical Data'!AW14="","",'Physical Data'!AW14) -> 1.68498667 | AY14: =IF('Physical Data'!AX14="","",'Physical Data'!AX14) -> 1.38212666 | AZ14: =IF('Physical Data'!AY14="","",'Physical Data'!AY14) -> 0.87775834 | BA14: =IF('Physical Data'!AZ14="","",'Physical Data'!AZ14) -> 0.48737533 | BB14: =IF('Physical Data'!BA14="","",'Physical Data'!BA14) -> 0.21365423 | BC14: =IF('Physical Data'!BB14="","",'Physical Data'!BB14) -> 0.05963785 | BD14: =IF('Physical Data'!BC14="","",'Physical Data'!BC14) -> 0.00611289 | BE14: =IF('Physical Data'!BD14="","",'Physical Data'!BD14) -> 0 | BF14: 0 | BG14: 18.5629 | BH14: 0 | BI14: 0.09573334 | BJ14: 18.46716666 | BK14: 81.43709864 | BO14: 7
C15: Date of analysis: | D15: =IF('Physical Data'!D16="","",'Physical Data'!D16) -> 2024-10-25 | H15: =IF('Physical Data'!H15="","",'Physical Data'!H15) -> MAR02481.007 | I15: =IF('Physical Data'!I15="","",'Physical Data'!I15) ->  | J15: =IF('Physical Data'!J15="","",'Physical Data'!J15) -> 7 | K15: =IFERROR(IF(J15="","",(IF(VLOOKUP(J15,'Application info'!$K$8:$L$37,2,0)="y","y",""))),"Manual entry required") ->  | L15: =IF('Physical Data'!K15="","",'Physical Data'!K15) -> Black Mud with an Anoxic Odour. | M15: =IF('Physical Data'!L15="","",'Physical Data'!L15) ->  | N15: =IF('Physical Data'!M15="","",'Physical Data'!M15) ->  | O15: =IF('Physical Data'!N15="","",'Physical Data'!N15) ->  | P15: =IF('Physical Data'!O15="","",'Physical Data'!O15) -> 0 | Q15: =IF('Physical Data'!P15="","",'Physical Data'!P15) -> 0 | R15: =IF('Physical Data'!Q15="","",'Physical Data'!Q15) -> 0 | S15: =IF('Physical Data'!R15="","",'Physical Data'!R15) -> 0 | T15: =IF('Physical Data'!S15="","",'Physical Data'!S15) -> 0 | U15: =IF('Physical Data'!T15="","",'Physical Data'!T15) -> 0 | V15: =IF('Physical Data'!U15="","",'Physical Data'!U15) -> 0 | W15: =IF('Physical Data'!V15="","",'Physical Data'!V15) -> 0 | X15: =IF('Physical Data'!W15="","",'Physical Data'!W15) -> 0 | Y15: =IF('Physical Data'!X15="","",'Physical Data'!X15) -> 0 | Z15: =IF('Physical Data'!Y15="","",'Physical Data'!Y15) -> 0 | AA15: =IF('Physical Data'!Z15="","",'Physical Data'!Z15) -> 0 | AB15: =IF('Physical Data'!AA15="","",'Physical Data'!AA15) -> 0 | AC15: =IF('Physical Data'!AB15="","",'Physical Data'!AB15) -> 0 | AD15: =IF('Physical Data'!AC15="","",'Physical Data'!AC15) -> 0 | AE15: =IF('Physical Data'!AD15="","",'Physical Data'!AD15) -> 0 | AF15: =IF('Physical Data'!AE15="","",'Physical Data'!AE15) -> 0.03336667 | AG15: =IF('Physical Data'!AF15="","",'Physical Data'!AF15) -> 1.65803333 | AH15: =IF('Physical Data'!AG15="","",'Physical Data'!AG15) -> 3.7448 | AI15: =IF('Physical Data'!AH15="","",'Physical Data'!AH15) -> 4.232 | AJ15: =IF('Physical Data'!AI15="","",'Physical Data'!AI15) -> 4.9473 | AK15: =IF('Physical Data'!AJ15="","",'Physical Data'!AJ15) -> 7.14536667 | AL15: =IF('Physical Data'!AK15="","",'Physical Data'!AK15) -> 8.05566667 | AM15: =IF('Physical Data'!AL15="","",'Physical Data'!AL15) -> 10.43953333 | AN15: =IF('Physical Data'!AM15="","",'Physical Data'!AM15) -> 12.05973333 | AO15: =IF('Physical Data'!AN15="","",'Physical Data'!AN15) -> 11.34573334 | AP15: =IF('Physical Data'!AO15="","",'Physical Data'!AO15) -> 9.86776666 | AQ15: =IF('Physical Data'!AP15="","",'Physical Data'!AP15) -> 7.57873334 | AR15: =IF('Physical Data'!AQ15="","",'Physical Data'!AQ15) -> 5.2658 | AS15: =IF('Physical Data'!AR15="","",'Physical Data'!AR15) -> 3.37863333 | AT15: =IF('Physical Data'!AS15="","",'Physical Data'!AS15) -> 2.23432667 | AU15: =IF('Physical Data'!AT15="","",'Physical Data'!AT15) -> 1.64559 | AV15: =IF('Physical Data'!AU15="","",'Physical Data'!AU15) -> 1.38724333 | AW15: =IF('Physical Data'!AV15="","",'Physical Data'!AV15) -> 1.27780333 | AX15: =IF('Physical Data'!AW15="","",'Physical Data'!AW15) -> 1.17039 | AY15: =IF('Physical Data'!AX15="","",'Physical Data'!AX15) -> 0.98008667 | AZ15: =IF('Physical Data'!AY15="","",'Physical Data'!AY15) -> 0.701044 | BA15: =IF('Physical Data'!AZ15="","",'Physical Data'!AZ15) -> 0.47187433 | BB15: =IF('Physical Data'!BA15="","",'Physical Data'!BA15) -> 0.26766534 | BC15: =IF('Physical Data'!BB15="","",'Physical Data'!BB15) -> 0.09981446 | BD15: =IF('Physical Data'!BC15="","",'Physical Data'!BC15) -> 0.01169229 | BE15: =IF('Physical Data'!BD15="","",'Physical Data'!BD15) -> 0 | BF15: 0 | BG15: 9.6682 | BH15: 0 | BI15: 0 | BJ15: 9.6682 | BK15: 90.33179709 | BO15: 8
H16: =IF('Physical Data'!H16="","",'Physical Data'!H16) -> MAR02481.008 | I16: =IF('Physical Data'!I16="","",'Physical Data'!I16) ->  | J16: =IF('Physical Data'!J16="","",'Physical Data'!J16) -> 8 | K16: =IFERROR(IF(J16="","",(IF(VLOOKUP(J16,'Application info'!$K$8:$L$37,2,0)="y","y",""))),"Manual entry required") ->  | L16: =IF('Physical Data'!K16="","",'Physical Data'!K16) -> Black Mud with an Anoxic Odour. | M16: =IF('Physical Data'!L16="","",'Physical Data'!L16) ->  | N16: =IF('Physical Data'!M16="","",'Physical Data'!M16) ->  | O16: =IF('Physical Data'!N16="","",'Physical Data'!N16) ->  | P16: =IF('Physical Data'!O16="","",'Physical Data'!O16) -> 0 | Q16: =IF('Physical Data'!P16="","",'Physical Data'!P16) -> 0 | R16: =IF('Physical Data'!Q16="","",'Physical Data'!Q16) -> 0 | S16: =IF('Physical Data'!R16="","",'Physical Data'!R16) -> 0 | T16: =IF('Physical Data'!S16="","",'Physical Data'!S16) -> 0 | U16: =IF('Physical Data'!T16="","",'Physical Data'!T16) -> 0 | V16: =IF('Physical Data'!U16="","",'Physical Data'!U16) -> 0 | W16: =IF('Physical Data'!V16="","",'Physical Data'!V16) -> 0 | X16: =IF('Physical Data'!W16="","",'Physical Data'!W16) -> 0 | Y16: =IF('Physical Data'!X16="","",'Physical Data'!X16) -> 0 | Z16: =IF('Physical Data'!Y16="","",'Physical Data'!Y16) -> 0 | AA16: =IF('Physical Data'!Z16="","",'Physical Data'!Z16) -> 0 | AB16: =IF('Physical Data'!AA16="","",'Physical Data'!AA16) -> 0 | AC16: =IF('Physical Data'!AB16="","",'Physical Data'!AB16) -> 0 | AD16: =IF('Physical Data'!AC16="","",'Physical Data'!AC16) -> 0.00173334 | AE16: =IF('Physical Data'!AD16="","",'Physical Data'!AD16) -> 1.1724 | AF16: =IF('Physical Data'!AE16="","",'Physical Data'!AE16) -> 5.594 | AG16: =IF('Physical Data'!AF16="","",'Physical Data'!AF16) -> 4.8885 | AH16: =IF('Physical Data'!AG16="","",'Physical Data'!AG16) -> 4.50883333 | AI16: =IF('Physical Data'!AH16="","",'Physical Data'!AH16) -> 4.78726667 | AJ16: =IF('Physical Data'!AI16="","",'Physical Data'!AI16) -> 5.3619 | AK16: =IF('Physical Data'!AJ16="","",'Physical Data'!AJ16) -> 6.67213333 | AL16: =IF('Physical Data'!AK16="","",'Physical Data'!AK16) -> 7.05783333 | AM16: =IF('Physical Data'!AL16="","",'Physical Data'!AL16) -> 8.75533334 | AN16: =IF('Physical Data'!AM16="","",'Physical Data'!AM16) -> 9.47426666 | AO16: =IF('Physical Data'!AN16="","",'Physical Data'!AN16) -> 8.5541 | AP16: =IF('Physical Data'!AO16="","",'Physical Data'!AO16) -> 7.55693334 | AQ16: =IF('Physical Data'!AP16="","",'Physical Data'!AP16) -> 6.09303333 | AR16: =IF('Physical Data'!AQ16="","",'Physical Data'!AQ16) -> 4.55996667 | AS16: =IF('Physical Data'!AR16="","",'Physical Data'!AR16) -> 3.30083333 | AT16: =IF('Physical Data'!AS16="","",'Physical Data'!AS16) -> 2.5143 | AU16: =IF('Physical Data'!AT16="","",'Physical Data'!AT16) -> 2.00298 | AV16: =IF('Physical Data'!AU16="","",'Physical Data'!AU16) -> 1.68266333 | AW16: =IF('Physical Data'!AV16="","",'Physical Data'!AV16) -> 1.50825 | AX16: =IF('Physical Data'!AW16="","",'Physical Data'!AW16) -> 1.35054334 | AY16: =IF('Physical Data'!AX16="","",'Physical Data'!AX16) -> 1.09408 | AZ16: =IF('Physical Data'!AY16="","",'Physical Data'!AY16) -> 0.732491 | BA16: =IF('Physical Data'!AZ16="","",'Physical Data'!AZ16) -> 0.453628 | BB16: =IF('Physical Data'!BA16="","",'Physical Data'!BA16) -> 0.23411826 | BC16: =IF('Physical Data'!BB16="","",'Physical Data'!BB16) -> 0.07908761 | BD16: =IF('Physical Data'!BC16="","",'Physical Data'!BC16) -> 0.00878959 | BE16: =IF('Physical Data'!BD16="","",'Physical Data'!BD16) -> 0 | BF16: 0 | BG16: 20.95273334 | BH16: 0 | BI16: 1.17413334 | BJ16: 19.7786 | BK16: 79.04726446 | BO16: 9
H17: =IF('Physical Data'!H17="","",'Physical Data'!H17) -> MAR02481.009 | I17: =IF('Physical Data'!I17="","",'Physical Data'!I17) ->  | J17: =IF('Physical Data'!J17="","",'Physical Data'!J17) -> 9 | K17: =IFERROR(IF(J17="","",(IF(VLOOKUP(J17,'Application info'!$K$8:$L$37,2,0)="y","y",""))),"Manual entry required") ->  | L17: =IF('Physical Data'!K17="","",'Physical Data'!K17) -> Black Mud with an Anoxic Odour. | M17: =IF('Physical Data'!L17="","",'Physical Data'!L17) ->  | N17: =IF('Physical Data'!M17="","",'Physical Data'!M17) ->  | O17: =IF('Physical Data'!N17="","",'Physical Data'!N17) ->  | P17: =IF('Physical Data'!O17="","",'Physical Data'!O17) -> 0 | Q17: =IF('Physical Data'!P17="","",'Physical Data'!P17) -> 0 | R17: =IF('Physical Data'!Q17="","",'Physical Data'!Q17) -> 0 | S17: =IF('Physical Data'!R17="","",'Physical Data'!R17) -> 0 | T17: =IF('Physical Data'!S17="","",'Physical Data'!S17) -> 0 | U17: =IF('Physical Data'!T17="","",'Physical Data'!T17) -> 0 | V17: =IF('Physical Data'!U17="","",'Physical Data'!U17) -> 0 | W17: =IF('Physical Data'!V17="","",'Physical Data'!V17) -> 0 | X17: =IF('Physical Data'!W17="","",'Physical Data'!W17) -> 0 | Y17: =IF('Physical Data'!X17="","",'Physical Data'!X17) -> 0 | Z17: =IF('Physical Data'!Y17="","",'Physical Data'!Y17) -> 0 | AA17: =IF('Physical Data'!Z17="","",'Physical Data'!Z17) -> 0 | AB17: =IF('Physical Data'!AA17="","",'Physical Data'!AA17) -> 0 | AC17: =IF('Physical Data'!AB17="","",'Physical Data'!AB17) -> 0 | AD17: =IF('Physical Data'!AC17="","",'Physical Data'!AC17) -> 0 | AE17: =IF('Physical Data'!AD17="","",'Physical Data'!AD17) -> 0 | AF17: =IF('Physical Data'!AE17="","",'Physical Data'!AE17) -> 0 | AG17: =IF('Physical Data'!AF17="","",'Physical Data'!AF17) -> 0.08843334 | AH17: =IF('Physical Data'!AG17="","",'Physical Data'!AG17) -> 1.76716666 | AI17: =IF('Physical Data'!AH17="","",'Physical Data'!AH17) -> 3.7853 | AJ17: =IF('Physical Data'!AI17="","",'Physical Data'!AI17) -> 5.6314 | AK17: =IF('Physical Data'!AJ17="","",'Physical Data'!AJ17) -> 6.72646667 | AL17: =IF('Physical Data'!AK17="","",'Physical Data'!AK17) -> 7.24953333 | AM17: =IF('Physical Data'!AL17="","",'Physical Data'!AL17) -> 9.51096667 | AN17: =IF('Physical Data'!AM17="","",'Physical Data'!AM17) -> 10.51966667 | AO17: =IF('Physical Data'!AN17="","",'Physical Data'!AN17) -> 9.51613333 | AP17: =IF('Physical Data'!AO17="","",'Physical Data'!AO17) -> 8.4251 | AQ17: =IF('Physical Data'!AP17="","",'Physical Data'!AP17) -> 6.85833333 | AR17: =IF('Physical Data'!AQ17="","",'Physical Data'!AQ17) -> 5.30673334 | AS17: =IF('Physical Data'!AR17="","",'Physical Data'!AR17) -> 4.2322 | AT17: =IF('Physical Data'!AS17="","",'Physical Data'!AS17) -> 3.74093333 | AU17: =IF('Physical Data'!AT17="","",'Physical Data'!AT17) -> 3.40403333 | AV17: =IF('Physical Data'!AU17="","",'Physical Data'!AU17) -> 3.04732334 | AW17: =IF('Physical Data'!AV17="","",'Physical Data'!AV17) -> 2.72511333 | AX17: =IF('Physical Data'!AW17="","",'Physical Data'!AW17) -> 2.38477333 | AY17: =IF('Physical Data'!AX17="","",'Physical Data'!AX17) -> 1.94850334 | AZ17: =IF('Physical Data'!AY17="","",'Physical Data'!AY17) -> 1.39334 | BA17: =IF('Physical Data'!AZ17="","",'Physical Data'!AZ17) -> 0.95548133 | BB17: =IF('Physical Data'!BA17="","",'Physical Data'!BA17) -> 0.55322633 | BC17: =IF('Physical Data'!BB17="","",'Physical Data'!BB17) -> 0.2062179 | BD17: =IF('Physical Data'!BC17="","",'Physical Data'!BC17) -> 0.02361482 | BE17: =IF('Physical Data'!BD17="","",'Physical Data'!BD17) -> 0 | BF17: 0 | BG17: 5.6409 | BH17: 0 | BI17: 0 | BJ17: 5.6409 | BK17: 94.35909372 | BO17: 10
H18: =IF('Physical Data'!H18="","",'Physical Data'!H18) -> MAR02481.010 | I18: =IF('Physical Data'!I18="","",'Physical Data'!I18) ->  | J18: =IF('Physical Data'!J18="","",'Physical Data'!J18) -> 10 | K18: =IFERROR(IF(J18="","",(IF(VLOOKUP(J18,'Application info'!$K$8:$L$37,2,0)="y","y",""))),"Manual entry required") ->  | L18: =IF('Physical Data'!K18="","",'Physical Data'!K18) -> Black Mud with Organic Matter and Shell Fragments and an Anoxic Odour. | M18: =IF('Physical Data'!L18="","",'Physical Data'!L18) ->  | N18: =IF('Physical Data'!M18="","",'Physical Data'!M18) ->  | O18: =IF('Physical Data'!N18="","",'Physical Data'!N18) ->  | P18: =IF('Physical Data'!O18="","",'Physical Data'!O18) -> 0 | Q18: =IF('Physical Data'!P18="","",'Physical Data'!P18) -> 0 | R18: =IF('Physical Data'!Q18="","",'Physical Data'!Q18) -> 0 | S18: =IF('Physical Data'!R18="","",'Physical Data'!R18) -> 0 | T18: =IF('Physical Data'!S18="","",'Physical Data'!S18) -> 0 | U18: =IF('Physical Data'!T18="","",'Physical Data'!T18) -> 0 | V18: =IF('Physical Data'!U18="","",'Physical Data'!U18) -> 0.046001 | W18: =IF('Physical Data'!V18="","",'Physical Data'!V18) -> 0.386411 | X18: =IF('Physical Data'!W18="","",'Physical Data'!W18) -> 0.807323 | Y18: =IF('Physical Data'!X18="","",'Physical Data'!X18) -> 0.391011 | Z18: =IF('Physical Data'!Y18="","",'Physical Data'!Y18) -> 0.170205 | AA18: =IF('Physical Data'!Z18="","",'Physical Data'!Z18) -> 0.144904 | AB18: =IF('Physical Data'!AA18="","",'Physical Data'!AA18) -> 0 | AC18: =IF('Physical Data'!AB18="","",'Physical Data'!AB18) -> 0 | AD18: =IF('Physical Data'!AC18="","",'Physical Data'!AC18) -> 0 | AE18: =IF('Physical Data'!AD18="","",'Physical Data'!AD18) -> 0 | AF18: =IF('Physical Data'!AE18="","",'Physical Data'!AE18) -> 0 | AG18: =IF('Physical Data'!AF18="","",'Physical Data'!AF18) -> 0 | AH18: =IF('Physical Data'!AG18="","",'Physical Data'!AG18) -> 0.140871 | AI18: =IF('Physical Data'!AH18="","",'Physical Data'!AH18) -> 3.56855 | AJ18: =IF('Physical Data'!AI18="","",'Physical Data'!AI18) -> 7.242279 | AK18: =IF('Physical Data'!AJ18="","",'Physical Data'!AJ18) -> 7.346151 | AL18: =IF('Physical Data'!AK18="","",'Physical Data'!AK18) -> 7.703232 | AM18: =IF('Physical Data'!AL18="","",'Physical Data'!AL18) -> 9.755276 | AN18: =IF('Physical Data'!AM18="","",'Physical Data'!AM18) -> 10.442374 | AO18: =IF('Physical Data'!AN18="","",'Physical Data'!AN18) -> 9.377506 | AP18: =IF('Physical Data'!AO18="","",'Physical Data'!AO18) -> 8.283386 | AQ18: =IF('Physical Data'!AP18="","",'Physical Data'!AP18) -> 6.715728 | AR18: =IF('Physical Data'!AQ18="","",'Physical Data'!AQ18) -> 5.148921 | AS18: =IF('Physical Data'!AR18="","",'Physical Data'!AR18) -> 4.025547 | AT18: =IF('Physical Data'!AS18="","",'Physical Data'!AS18) -> 3.477948 | AU18: =IF('Physical Data'!AT18="","",'Physical Data'!AT18) -> 3.116847 | AV18: =IF('Physical Data'!AU18="","",'Physical Data'!AU18) -> 2.754838 | AW18: =IF('Physical Data'!AV18="","",'Physical Data'!AV18) -> 2.424271 | AX18: =IF('Physical Data'!AW18="","",'Physical Data'!AW18) -> 2.087367 | AY18: =IF('Physical Data'!AX18="","",'Physical Data'!AX18) -> 1.69048 | AZ18: =IF('Physical Data'!AY18="","",'Physical Data'!AY18) -> 1.213286 | BA18: =IF('Physical Data'!AZ18="","",'Physical Data'!AZ18) -> 0.838305 | BB18: =IF('Physical Data'!BA18="","",'Physical Data'!BA18) -> 0.491061 | BC18: =IF('Physical Data'!BB18="","",'Physical Data'!BB18) -> 0.187798 | BD18: =IF('Physical Data'!BC18="","",'Physical Data'!BC18) -> 0.022117 | BE18: =IF('Physical Data'!BD18="","",'Physical Data'!BD18) -> 0 | BF18: 1.630746 | BG18: 4.02453 | BH18: 0.315109 | BI18: 0 | BJ18: 3.709421 | BK18: 94.344718 | BO18: 11
H19: =IF('Physical Data'!H19="","",'Physical Data'!H19) -> MAR02481.011 | I19: =IF('Physical Data'!I19="","",'Physical Data'!I19) ->  | J19: =IF('Physical Data'!J19="","",'Physical Data'!J19) -> 11 | K19: =IFERROR(IF(J19="","",(IF(VLOOKUP(J19,'Application info'!$K$8:$L$37,2,0)="y","y",""))),"Manual entry required") ->  | L19: =IF('Physical Data'!K19="","",'Physical Data'!K19) -> Black Mud with an Anoxic Odour. | M19: =IF('Physical Data'!L19="","",'Physical Data'!L19) ->  | N19: =IF('Physical Data'!M19="","",'Physical Data'!M19) ->  | O19: =IF('Physical Data'!N19="","",'Physical Data'!N19) ->  | P19: =IF('Physical Data'!O19="","",'Physical Data'!O19) -> 0 | Q19: =IF('Physical Data'!P19="","",'Physical Data'!P19) -> 0 | R19: =IF('Physical Data'!Q19="","",'Physical Data'!Q19) -> 0 | S19: =IF('Physical Data'!R19="","",'Physical Data'!R19) -> 0 | T19: =IF('Physical Data'!S19="","",'Physical Data'!S19) -> 0 | U19: =IF('Physical Data'!T19="","",'Physical Data'!T19) -> 0 | V19: =IF('Physical Data'!U19="","",'Physical Data'!U19) -> 0 | W19: =IF('Physical Data'!V19="","",'Physical Data'!V19) -> 0 | X19: =IF('Physical Data'!W19="","",'Physical Data'!W19) -> 0 | Y19: =IF('Physical Data'!X19="","",'Physical Data'!X19) -> 0 | Z19: =IF('Physical Data'!Y19="","",'Physical Data'!Y19) -> 0 | AA19: =IF('Physical Data'!Z19="","",'Physical Data'!Z19) -> 0 | AB19: =IF('Physical Data'!AA19="","",'Physical Data'!AA19) -> 0 | AC19: =IF('Physical Data'!AB19="","",'Physical Data'!AB19) -> 0 | AD19: =IF('Physical Data'!AC19="","",'Physical Data'!AC19) -> 0 | AE19: =IF('Physical Data'!AD19="","",'Physical Data'!AD19) -> 0 | AF19: =IF('Physical Data'!AE19="","",'Physical Data'!AE19) -> 0 | AG19: =IF('Physical Data'!AF19="","",'Physical Data'!AF19) -> 0.0389 | AH19: =IF('Physical Data'!AG19="","",'Physical Data'!AG19) -> 2.81246667 | AI19: =IF('Physical Data'!AH19="","",'Physical Data'!AH19) -> 6.52426667 | AJ19: =IF('Physical Data'!AI19="","",'Physical Data'!AI19) -> 7.37613333 | AK19: =IF('Physical Data'!AJ19="","",'Physical Data'!AJ19) -> 8.2648 | AL19: =IF('Physical Data'!AK19="","",'Physical Data'!AK19) -> 8.4454 | AM19: =IF('Physical Data'!AL19="","",'Physical Data'!AL19) -> 9.78426667 | AN19: =IF('Physical Data'!AM19="","",'Physical Data'!AM19) -> 9.8578 | AO19: =IF('Physical Data'!AN19="","",'Physical Data'!AN19) -> 8.67656666 | AP19: =IF('Physical Data'!AO19="","",'Physical Data'!AO19) -> 7.7244 | AQ19: =IF('Physical Data'!AP19="","",'Physical Data'!AP19) -> 6.42396667 | AR19: =IF('Physical Data'!AQ19="","",'Physical Data'!AQ19) -> 5.04013333 | AS19: =IF('Physical Data'!AR19="","",'Physical Data'!AR19) -> 3.829 | AT19: =IF('Physical Data'!AS19="","",'Physical Data'!AS19) -> 3.03276667 | AU19: =IF('Physical Data'!AT19="","",'Physical Data'!AT19) -> 2.50393 | AV19: =IF('Physical Data'!AU19="","",'Physical Data'!AU19) -> 2.14839667 | AW19: =IF('Physical Data'!AV19="","",'Physical Data'!AV19) -> 1.92188666 | AX19: =IF('Physical Data'!AW19="","",'Physical Data'!AW19) -> 1.71552334 | AY19: =IF('Physical Data'!AX19="","",'Physical Data'!AX19) -> 1.43835 | AZ19: =IF('Physical Data'!AY19="","",'Physical Data'!AY19) -> 1.06116333 | BA19: =IF('Physical Data'!AZ19="","",'Physical Data'!AZ19) -> 0.74533167 | BB19: =IF('Physical Data'!BA19="","",'Physical Data'!BA19) -> 0.442054 | BC19: =IF('Physical Data'!BB19="","",'Physical Data'!BB19) -> 0.17192533 | BD19: =IF('Physical Data'!BC19="","",'Physical Data'!BC19) -> 0.02056722 | BE19: =IF('Physical Data'!BD19="","",'Physical Data'!BD19) -> 0 | BF19: 0 | BG19: 9.37563334 | BH19: 0 | BI19: 0 | BJ19: 9.37563334 | BK19: 90.62436155 | BO19: 12
H20: =IF('Physical Data'!H20="","",'Physical Data'!H20) -> MAR02481.012 | I20: =IF('Physical Data'!I20="","",'Physical Data'!I20) ->  | J20: =IF('Physical Data'!J20="","",'Physical Data'!J20) -> 12 | K20: =IFERROR(IF(J20="","",(IF(VLOOKUP(J20,'Application info'!$K$8:$L$37,2,0)="y","y",""))),"Manual entry required") ->  | L20: =IF('Physical Data'!K20="","",'Physical Data'!K20) -> Black Mud with an Anoxic Odour. | M20: =IF('Physical Data'!L20="","",'Physical Data'!L20) ->  | N20: =IF('Physical Data'!M20="","",'Physical Data'!M20) ->  | O20: =IF('Physical Data'!N20="","",'Physical Data'!N20) ->  | P20: =IF('Physical Data'!O20="","",'Physical Data'!O20) -> 0 | Q20: =IF('Physical Data'!P20="","",'Physical Data'!P20) -> 0 | R20: =IF('Physical Data'!Q20="","",'Physical Data'!Q20) -> 0 | S20: =IF('Physical Data'!R20="","",'Physical Data'!R20) -> 0 | T20: =IF('Physical Data'!S20="","",'Physical Data'!S20) -> 0 | U20: =IF('Physical Data'!T20="","",'Physical Data'!T20) -> 0 | V20: =IF('Physical Data'!U20="","",'Physical Data'!U20) -> 0 | W20: =IF('Physical Data'!V20="","",'Physical Data'!V20) -> 0 | X20: =IF('Physical Data'!W20="","",'Physical Data'!W20) -> 0 | Y20: =IF('Physical Data'!X20="","",'Physical Data'!X20) -> 0 | Z20: =IF('Physical Data'!Y20="","",'Physical Data'!Y20) -> 0 | AA20: =IF('Physical Data'!Z20="","",'Physical Data'!Z20) -> 0 | AB20: =IF('Physical Data'!AA20="","",'Physical Data'!AA20) -> 0 | AC20: =IF('Physical Data'!AB20="","",'Physical Data'!AB20) -> 0 | AD20: =IF('Physical Data'!AC20="","",'Physical Data'!AC20) -> 0 | AE20: =IF('Physical Data'!AD20="","",'Physical Data'!AD20) -> 0 | AF20: =IF('Physical Data'!AE20="","",'Physical Data'!AE20) -> 0.19853334 | AG20: =IF('Physical Data'!AF20="","",'Physical Data'!AF20) -> 2.6532 | AH20: =IF('Physical Data'!AG20="","",'Physical Data'!AG20) -> 3.40913333 | AI20: =IF('Physical Data'!AH20="","",'Physical Data'!AH20) -> 4.49706667 | AJ20: =IF('Physical Data'!AI20="","",'Physical Data'!AI20) -> 6.0753 | AK20: =IF('Physical Data'!AJ20="","",'Physical Data'!AJ20) -> 7.64176666 | AL20: =IF('Physical Data'!AK20="","",'Physical Data'!AK20) -> 8.0198 | AM20: =IF('Physical Data'!AL20="","",'Physical Data'!AL20) -> 9.54983334 | AN20: =IF('Physical Data'!AM20="","",'Physical Data'!AM20) -> 9.71146666 | AO20: =IF('Physical Data'!AN20="","",'Physical Data'!AN20) -> 8.46163334 | AP20: =IF('Physical Data'!AO20="","",'Physical Data'!AO20) -> 7.61946666 | AQ20: =IF('Physical Data'!AP20="","",'Physical Data'!AP20) -> 6.42723334 | AR20: =IF('Physical Data'!AQ20="","",'Physical Data'!AQ20) -> 5.0699 | AS20: =IF('Physical Data'!AR20="","",'Physical Data'!AR20) -> 3.91686666 | AT20: =IF('Physical Data'!AS20="","",'Physical Data'!AS20) -> 3.202 | AU20: =IF('Physical Data'!AT20="","",'Physical Data'!AT20) -> 2.70186667 | AV20: =IF('Physical Data'!AU20="","",'Physical Data'!AU20) -> 2.36423667 | AW20: =IF('Physical Data'!AV20="","",'Physical Data'!AV20) -> 2.18638666 | AX20: =IF('Physical Data'!AW20="","",'Physical Data'!AW20) -> 2.01425 | AY20: =IF('Physical Data'!AX20="","",'Physical Data'!AX20) -> 1.69145334 | AZ20: =IF('Physical Data'!AY20="","",'Physical Data'!AY20) -> 1.19296 | BA20: =IF('Physical Data'!AZ20="","",'Physical Data'!AZ20) -> 0.78819766 | BB20: =IF('Physical Data'!BA20="","",'Physical Data'!BA20) -> 0.43582067 | BC20: =IF('Physical Data'!BB20="","",'Physical Data'!BB20) -> 0.15447067 | BD20: =IF('Physical Data'!BC20="","",'Physical Data'!BC20) -> 0.01715303 | BE20: =IF('Physical Data'!BD20="","",'Physical Data'!BD20) -> 0 | BF20: 0 | BG20: 10.75793334 | BH20: 0 | BI20: 0 | BJ20: 10.75793334 | BK20: 89.24206203 | BO20: 13
H21: =IF('Physical Data'!H21="","",'Physical Data'!H21) -> MAR02481.013 | I21: =IF('Physical Data'!I21="","",'Physical Data'!I21) ->  | J21: =IF('Physical Data'!J21="","",'Physical Data'!J21) -> 13 | K21: =IFERROR(IF(J21="","",(IF(VLOOKUP(J21,'Application info'!$K$8:$L$37,2,0)="y","y",""))),"Manual entry required") ->  | L21: =IF('Physical Data'!K21="","",'Physical Data'!K21) -> Black Mud with an Anoxic Odour. | M21: =IF('Physical Data'!L21="","",'Physical Data'!L21) ->  | N21: =IF('Physical Data'!M21="","",'Physical Data'!M21) ->  | O21: =IF('Physical Data'!N21="","",'Physical Data'!N21) ->  | P21: =IF('Physical Data'!O21="","",'Physical Data'!O21) -> 0 | Q21: =IF('Physical Data'!P21="","",'Physical Data'!P21) -> 0 | R21: =IF('Physical Data'!Q21="","",'Physical Data'!Q21) -> 0 | S21: =IF('Physical Data'!R21="","",'Physical Data'!R21) -> 0 | T21: =IF('Physical Data'!S21="","",'Physical Data'!S21) -> 0 | U21: =IF('Physical Data'!T21="","",'Physical Data'!T21) -> 0 | V21: =IF('Physical Data'!U21="","",'Physical Data'!U21) -> 0 | W21: =IF('Physical Data'!V21="","",'Physical Data'!V21) -> 0 | X21: =IF('Physical Data'!W21="","",'Physical Data'!W21) -> 0 | Y21: =IF('Physical Data'!X21="","",'Physical Data'!X21) -> 0 | Z21: =IF('Physical Data'!Y21="","",'Physical Data'!Y21) -> 0 | AA21: =IF('Physical Data'!Z21="","",'Physical Data'!Z21) -> 0 | AB21: =IF('Physical Data'!AA21="","",'Physical Data'!AA21) -> 0 | AC21: =IF('Physical Data'!AB21="","",'Physical Data'!AB21) -> 0 | AD21: =IF('Physical Data'!AC21="","",'Physical Data'!AC21) -> 0 | AE21: =IF('Physical Data'!AD21="","",'Physical Data'!AD21) -> 0 | AF21: =IF('Physical Data'!AE21="","",'Physical Data'!AE21) -> 0.0699 | AG21: =IF('Physical Data'!AF21="","",'Physical Data'!AF21) -> 3.27143334 | AH21: =IF('Physical Data'!AG21="","",'Physical Data'!AG21) -> 5.07506666 | AI21: =IF('Physical Data'!AH21="","",'Physical Data'!AH21) -> 5.2807 | AJ21: =IF('Physical Data'!AI21="","",'Physical Data'!AI21) -> 5.99653334 | AK21: =IF('Physical Data'!AJ21="","",'Physical Data'!AJ21) -> 7.49626666 | AL21: =IF('Physical Data'!AK21="","",'Physical Data'!AK21) -> 8.01216667 | AM21: =IF('Physical Data'!AL21="","",'Physical Data'!AL21) -> 9.74593333 | AN21: =IF('Physical Data'!AM21="","",'Physical Data'!AM21) -> 10.5159 | AO21: =IF('Physical Data'!AN21="","",'Physical Data'!AN21) -> 9.7101 | AP21: =IF('Physical Data'!AO21="","",'Physical Data'!AO21) -> 8.5975 | AQ21: =IF('Physical Data'!AP21="","",'Physical Data'!AP21) -> 6.80956667 | AR21: =IF('Physical Data'!AQ21="","",'Physical Data'!AQ21) -> 4.90693333 | AS21: =IF('Physical Data'!AR21="","",'Physical Data'!AR21) -> 3.3136 | AT21: =IF('Physical Data'!AS21="","",'Physical Data'!AS21) -> 2.35599334 | AU21: =IF('Physical Data'!AT21="","",'Physical Data'!AT21) -> 1.85295666 | AV21: =IF('Physical Data'!AU21="","",'Physical Data'!AU21) -> 1.58342 | AW21: =IF('Physical Data'!AV21="","",'Physical Data'!AV21) -> 1.41208667 | AX21: =IF('Physical Data'!AW21="","",'Physical Data'!AW21) -> 1.24285 | AY21: =IF('Physical Data'!AX21="","",'Physical Data'!AX21) -> 1.0257 | AZ21: =IF('Physical Data'!AY21="","",'Physical Data'!AY21) -> 0.75003567 | BA21: =IF('Physical Data'!AZ21="","",'Physical Data'!AZ21) -> 0.52621866 | BB21: =IF('Physical Data'!BA21="","",'Physical Data'!BA21) -> 0.3127 | BC21: =IF('Physical Data'!BB21="","",'Physical Data'!BB21) -> 0.1218599 | BD21: =IF('Physical Data'!BC21="","",'Physical Data'!BC21) -> 0.01457546 | BE21: =IF('Physical Data'!BD21="","",'Physical Data'!BD21) -> 0 | BF21: 0 | BG21: 13.6971 | BH21: 0 | BI21: 0 | BJ21: 13.6971 | BK21: 86.30289636 | BO21: 15
H22: =IF('Physical Data'!H22="","",'Physical Data'!H22) -> MAR02481.014 | I22: =IF('Physical Data'!I22="","",'Physical Data'!I22) ->  | J22: =IF('Physical Data'!J22="","",'Physical Data'!J22) -> 15 | K22: =IFERROR(IF(J22="","",(IF(VLOOKUP(J22,'Application info'!$K$8:$L$37,2,0)="y","y",""))),"Manual entry required") ->  | L22: =IF('Physical Data'!K22="","",'Physical Data'!K22) -> Black Mud with Organic Matter and Shell Fragments and an Anoxic Odour. | M22: =IF('Physical Data'!L22="","",'Physical Data'!L22) ->  | N22: =IF('Physical Data'!M22="","",'Physical Data'!M22) ->  | O22: =IF('Physical Data'!N22="","",'Physical Data'!N22) ->  | P22: =IF('Physical Data'!O22="","",'Physical Data'!O22) -> 0 | Q22: =IF('Physical Data'!P22="","",'Physical Data'!P22) -> 0 | R22: =IF('Physical Data'!Q22="","",'Physical Data'!Q22) -> 0 | S22: =IF('Physical Data'!R22="","",'Physical Data'!R22) -> 0 | T22: =IF('Physical Data'!S22="","",'Physical Data'!S22) -> 0 | U22: =IF('Physical Data'!T22="","",'Physical Data'!T22) -> 0 | V22: =IF('Physical Data'!U22="","",'Physical Data'!U22) -> 0 | W22: =IF('Physical Data'!V22="","",'Physical Data'!V22) -> 0 | X22: =IF('Physical Data'!W22="","",'Physical Data'!W22) -> 0 | Y22: =IF('Physical Data'!X22="","",'Physical Data'!X22) -> 0 | Z22: =IF('Physical Data'!Y22="","",'Physical Data'!Y22) -> 0 | AA22: =IF('Physical Data'!Z22="","",'Physical Data'!Z22) -> 0 | AB22: =IF('Physical Data'!AA22="","",'Physical Data'!AA22) -> 0 | AC22: =IF('Physical Data'!AB22="","",'Physical Data'!AB22) -> 0 | AD22: =IF('Physical Data'!AC22="","",'Physical Data'!AC22) -> 0.00313334 | AE22: =IF('Physical Data'!AD22="","",'Physical Data'!AD22) -> 1.79583333 | AF22: =IF('Physical Data'!AE22="","",'Physical Data'!AE22) -> 7.9363 | AG22: =IF('Physical Data'!AF22="","",'Physical Data'!AF22) -> 6.45453333 | AH22: =IF('Physical Data'!AG22="","",'Physical Data'!AG22) -> 4.8798 | AI22: =IF('Physical Data'!AH22="","",'Physical Data'!AH22) -> 5.43713334 | AJ22: =IF('Physical Data'!AI22="","",'Physical Data'!AI22) -> 5.8387 | AK22: =IF('Physical Data'!AJ22="","",'Physical Data'!AJ22) -> 6.90343333 | AL22: =IF('Physical Data'!AK22="","",'Physical Data'!AK22) -> 6.714 | AM22: =IF('Physical Data'!AL22="","",'Physical Data'!AL22) -> 7.62183333 | AN22: =IF('Physical Data'!AM22="","",'Physical Data'!AM22) -> 8.0168 | AO22: =IF('Physical Data'!AN22="","",'Physical Data'!AN22) -> 7.24506667 | AP22: =IF('Physical Data'!AO22="","",'Physical Data'!AO22) -> 6.45563333 | AQ22: =IF('Physical Data'!AP22="","",'Physical Data'!AP22) -> 5.28743334 | AR22: =IF('Physical Data'!AQ22="","",'Physical Data'!AQ22) -> 3.99736666 | AS22: =IF('Physical Data'!AR22="","",'Physical Data'!AR22) -> 2.7243 | AT22: =IF('Physical Data'!AS22="","",'Physical Data'!AS22) -> 1.73983334 | AU22: =IF('Physical Data'!AT22="","",'Physical Data'!AT22) -> 1.32805333 | AV22: =IF('Physical Data'!AU22="","",'Physical Data'!AU22) -> 1.70667 | AW22: =IF('Physical Data'!AV22="","",'Physical Data'!AV22) -> 2.45996 | AX22: =IF('Physical Data'!AW22="","",'Physical Data'!AW22) -> 2.71927333 | AY22: =IF('Physical Data'!AX22="","",'Physical Data'!AX22) -> 1.932088 | AZ22: =IF('Physical Data'!AY22="","",'Physical Data'!AY22) -> 0.70824704 | BA22: =IF('Physical Data'!AZ22="","",'Physical Data'!AZ22) -> 0.09434801 | BB22: =IF('Physical Data'!BA22="","",'Physical Data'!BA22) -> 0.00022695 | BC22: =IF('Physical Data'!BB22="","",'Physical Data'!BB22) -> 0 | BD22: =IF('Physical Data'!BC22="","",'Physical Data'!BC22) -> 0 | BE22: =IF('Physical Data'!BD22="","",'Physical Data'!BD22) -> 0 | BF22: 0 | BG22: 26.50673334 | BH22: 0 | BI22: 1.79896667 | BJ22: 24.70776667 | BK22: 73.49326666 | BO22: 17
H23: =IF('Physical Data'!H23="","",'Physical Data'!H23) -> MAR02481.015 | I23: =IF('Physical Data'!I23="","",'Physical Data'!I23) ->  | J23: =IF('Physical Data'!J23="","",'Physical Data'!J23) -> 17 | K23: =IFERROR(IF(J23="","",(IF(VLOOKUP(J23,'Application info'!$K$8:$L$37,2,0)="y","y",""))),"Manual entry required") ->  | L23: =IF('Physical Data'!K23="","",'Physical Data'!K23) -> Black Mud with an Anoxic Odour. | M23: =IF('Physical Data'!L23="","",'Physical Data'!L23) ->  | N23: =IF('Physical Data'!M23="","",'Physical Data'!M23) ->  | O23: =IF('Physical Data'!N23="","",'Physical Data'!N23) ->  | P23: =IF('Physical Data'!O23="","",'Physical Data'!O23) -> 0 | Q23: =IF('Physical Data'!P23="","",'Physical Data'!P23) -> 0 | R23: =IF('Physical Data'!Q23="","",'Physical Data'!Q23) -> 0 | S23: =IF('Physical Data'!R23="","",'Physical Data'!R23) -> 0 | T23: =IF('Physical Data'!S23="","",'Physical Data'!S23) -> 0 | U23: =IF('Physical Data'!T23="","",'Physical Data'!T23) -> 0.479658 | V23: =IF('Physical Data'!U23="","",'Physical Data'!U23) -> 0.034884 | W23: =IF('Physical Data'!V23="","",'Physical Data'!V23) -> 0.313958 | X23: =IF('Physical Data'!W23="","",'Physical Data'!W23) -> 0.237649 | Y23: =IF('Physical Data'!X23="","",'Physical Data'!X23) -> 0.259451 | Z23: =IF('Physical Data'!Y23="","",'Physical Data'!Y23) -> 0.318319 | AA23: =IF('Physical Data'!Z23="","",'Physical Data'!Z23) -> 0.268173 | AB23: =IF('Physical Data'!AA23="","",'Physical Data'!AA23) -> 0 | AC23: =IF('Physical Data'!AB23="","",'Physical Data'!AB23) -> 0 | AD23: =IF('Physical Data'!AC23="","",'Physical Data'!AC23) -> 3.2e-05 | AE23: =IF('Physical Data'!AD23="","",'Physical Data'!AD23) -> 0.181985 | AF23: =IF('Physical Data'!AE23="","",'Physical Data'!AE23) -> 2.366927 | AG23: =IF('Physical Data'!AF23="","",'Physical Data'!AF23) -> 4.691022 | AH23: =IF('Physical Data'!AG23="","",'Physical Data'!AG23) -> 6.225378 | AI23: =IF('Physical Data'!AH23="","",'Physical Data'!AH23) -> 7.110491 | AJ23: =IF('Physical Data'!AI23="","",'Physical Data'!AI23) -> 7.954243 | AK23: =IF('Physical Data'!AJ23="","",'Physical Data'!AJ23) -> 8.954478 | AL23: =IF('Physical Data'!AK23="","",'Physical Data'!AK23) -> 8.288984 | AM23: =IF('Physical Data'!AL23="","",'Physical Data'!AL23) -> 8.503175 | AN23: =IF('Physical Data'!AM23="","",'Physical Data'!AM23) -> 8.445957 | AO23: =IF('Physical Data'!AN23="","",'Physical Data'!AN23) -> 7.540442 | AP23: =IF('Physical Data'!AO23="","",'Physical Data'!AO23) -> 6.620541 | AQ23: =IF('Physical Data'!AP23="","",'Physical Data'!AP23) -> 5.288311 | AR23: =IF('Physical Data'!AQ23="","",'Physical Data'!AQ23) -> 3.891245 | AS23: =IF('Physical Data'!AR23="","",'Physical Data'!AR23) -> 2.693801 | AT23: =IF('Physical Data'!AS23="","",'Physical Data'!AS23) -> 1.948039 | AU23: =IF('Physical Data'!AT23="","",'Physical Data'!AT23) -> 1.540677 | AV23: =IF('Physical Data'!AU23="","",'Physical Data'!AU23) -> 1.312975 | AW23: =IF('Physical Data'!AV23="","",'Physical Data'!AV23) -> 1.163882 | AX23: =IF('Physical Data'!AW23="","",'Physical Data'!AW23) -> 1.021553 | AY23: =IF('Physical Data'!AX23="","",'Physical Data'!AX23) -> 0.849892 | AZ23: =IF('Physical Data'!AY23="","",'Physical Data'!AY23) -> 0.634825 | BA23: =IF('Physical Data'!AZ23="","",'Physical Data'!AZ23) -> 0.457544 | BB23: =IF('Physical Data'!BA23="","",'Physical Data'!BA23) -> 0.278479 | BC23: =IF('Physical Data'!BB23="","",'Physical Data'!BB23) -> 0.109918 | BD23: =IF('Physical Data'!BC23="","",'Physical Data'!BC23) -> 0.013106 | BE23: =IF('Physical Data'!BD23="","",'Physical Data'!BD23) -> 0 | BF23: 1.3256 | BG23: 21.162327 | BH23: 0.586492 | BI23: 0.182017 | BJ23: 20.393818 | BK23: 77.512067 | BO23: 18
H24: =IF('Physical Data'!H24="","",'Physical Data'!H24) -> MAR02481.016 | I24: =IF('Physical Data'!I24="","",'Physical Data'!I24) ->  | J24: =IF('Physical Data'!J24="","",'Physical Data'!J24) -> 18 | K24: =IFERROR(IF(J24="","",(IF(VLOOKUP(J24,'Application info'!$K$8:$L$37,2,0)="y","y",""))),"Manual entry required") ->  | L24: =IF('Physical Data'!K24="","",'Physical Data'!K24) -> Black Mud with Organic Matter and Shell Fragments and an Anoxic Odour. | M24: =IF('Physical Data'!L24="","",'Physical Data'!L24) ->  | N24: =IF('Physical Data'!M24="","",'Physical Data'!M24) ->  | O24: =IF('Physical Data'!N24="","",'Physical Data'!N24) ->  | P24: =IF('Physical Data'!O24="","",'Physical Data'!O24) -> 0 | Q24: =IF('Physical Data'!P24="","",'Physical Data'!P24) -> 0 | R24: =IF('Physical Data'!Q24="","",'Physical Data'!Q24) -> 0 | S24: =IF('Physical Data'!R24="","",'Physical Data'!R24) -> 0 | T24: =IF('Physical Data'!S24="","",'Physical Data'!S24) -> 0 | U24: =IF('Physical Data'!T24="","",'Physical Data'!T24) -> 0 | V24: =IF('Physical Data'!U24="","",'Physical Data'!U24) -> 0 | W24: =IF('Physical Data'!V24="","",'Physical Data'!V24) -> 0.023036 | X24: =IF('Physical Data'!W24="","",'Physical Data'!W24) -> 0.146851 | Y24: =IF('Physical Data'!X24="","",'Physical Data'!X24) -> 0.210199 | Z24: =IF('Physical Data'!Y24="","",'Physical Data'!Y24) -> 0.135334 | AA24: =IF('Physical Data'!Z24="","",'Physical Data'!Z24) -> 0.109419 | AB24: =IF('Physical Data'!AA24="","",'Physical Data'!AA24) -> 0 | AC24: =IF('Physical Data'!AB24="","",'Physical Data'!AB24) -> 0 | AD24: =IF('Physical Data'!AC24="","",'Physical Data'!AC24) -> 0 | AE24: =IF('Physical Data'!AD24="","",'Physical Data'!AD24) -> 0.195968 | AF24: =IF('Physical Data'!AE24="","",'Physical Data'!AE24) -> 3.001031 | AG24: =IF('Physical Data'!AF24="","",'Physical Data'!AF24) -> 5.193743 | AH24: =IF('Physical Data'!AG24="","",'Physical Data'!AG24) -> 6.065296 | AI24: =IF('Physical Data'!AH24="","",'Physical Data'!AH24) -> 7.693493 | AJ24: =IF('Physical Data'!AI24="","",'Physical Data'!AI24) -> 8.274704 | AK24: =IF('Physical Data'!AJ24="","",'Physical Data'!AJ24) -> 9.400625 | AL24: =IF('Physical Data'!AK24="","",'Physical Data'!AK24) -> 8.918192 | AM24: =IF('Physical Data'!AL24="","",'Physical Data'!AL24) -> 9.080239 | AN24: =IF('Physical Data'!AM24="","",'Physical Data'!AM24) -> 9.023331 | AO24: =IF('Physical Data'!AN24="","",'Physical Data'!AN24) -> 7.880583 | AP24: =IF('Physical Data'!AO24="","",'Physical Data'!AO24) -> 6.617193 | AQ24: =IF('Physical Data'!AP24="","",'Physical Data'!AP24) -> 5.005792 | AR24: =IF('Physical Data'!AQ24="","",'Physical Data'!AQ24) -> 3.470323 | AS24: =IF('Physical Data'!AR24="","",'Physical Data'!AR24) -> 2.249079 | AT24: =IF('Physical Data'!AS24="","",'Physical Data'!AS24) -> 1.535959 | AU24: =IF('Physical Data'!AT24="","",'Physical Data'!AT24) -> 1.186646 | AV24: =IF('Physical Data'!AU24="","",'Physical Data'!AU24) -> 1.014643 | AW24: =IF('Physical Data'!AV24="","",'Physical Data'!AV24) -> 0.904188 | AX24: =IF('Physical Data'!AW24="","",'Physical Data'!AW24) -> 0.794372 | AY24: =IF('Physical Data'!AX24="","",'Physical Data'!AX24) -> 0.663809 | AZ24: =IF('Physical Data'!AY24="","",'Physical Data'!AY24) -> 0.503491 | BA24: =IF('Physical Data'!AZ24="","",'Physical Data'!AZ24) -> 0.369389 | BB24: =IF('Physical Data'!BA24="","",'Physical Data'!BA24) -> 0.229016 | BC24: =IF('Physical Data'!BB24="","",'Physical Data'!BB24) -> 0.092753 | BD24: =IF('Physical Data'!BC24="","",'Physical Data'!BC24) -> 0.011299 | BE24: =IF('Physical Data'!BD24="","",'Physical Data'!BD24) -> 0 | BF24: 0.380086 | BG24: 22.394284 | BH24: 0.244753 | BI24: 0.195968 | BJ24: 21.953563 | BK24: 77.225626 | BO24: 19
H25: =IF('Physical Data'!H25="","",'Physical Data'!H25) -> MAR02481.017 | I25: =IF('Physical Data'!I25="","",'Physical Data'!I25) ->  | J25: =IF('Physical Data'!J25="","",'Physical Data'!J25) -> 19 | K25: =IFERROR(IF(J25="","",(IF(VLOOKUP(J25,'Application info'!$K$8:$L$37,2,0)="y","y",""))),"Manual entry required") ->  | L25: =IF('Physical Data'!K25="","",'Physical Data'!K25) -> Black Mud with an Anoxic Odour. | M25: =IF('Physical Data'!L25="","",'Physical Data'!L25) ->  | N25: =IF('Physical Data'!M25="","",'Physical Data'!M25) ->  | O25: =IF('Physical Data'!N25="","",'Physical Data'!N25) ->  | P25: =IF('Physical Data'!O25="","",'Physical Data'!O25) -> 0 | Q25: =IF('Physical Data'!P25="","",'Physical Data'!P25) -> 0 | R25: =IF('Physical Data'!Q25="","",'Physical Data'!Q25) -> 0 | S25: =IF('Physical Data'!R25="","",'Physical Data'!R25) -> 0 | T25: =IF('Physical Data'!S25="","",'Physical Data'!S25) -> 0 | U25: =IF('Physical Data'!T25="","",'Physical Data'!T25) -> 0 | V25: =IF('Physical Data'!U25="","",'Physical Data'!U25) -> 0 | W25: =IF('Physical Data'!V25="","",'Physical Data'!V25) -> 0 | X25: =IF('Physical Data'!W25="","",'Physical Data'!W25) -> 0 | Y25: =IF('Physical Data'!X25="","",'Physical Data'!X25) -> 0 | Z25: =IF('Physical Data'!Y25="","",'Physical Data'!Y25) -> 0 | AA25: =IF('Physical Data'!Z25="","",'Physical Data'!Z25) -> 0 | AB25: =IF('Physical Data'!AA25="","",'Physical Data'!AA25) -> 0.00016667 | AC25: =IF('Physical Data'!AB25="","",'Physical Data'!AB25) -> 0.2021 | AD25: =IF('Physical Data'!AC25="","",'Physical Data'!AC25) -> 0.7726 | AE25: =IF('Physical Data'!AD25="","",'Physical Data'!AD25) -> 0.95216667 | AF25: =IF('Physical Data'!AE25="","",'Physical Data'!AE25) -> 4.1844 | AG25: =IF('Physical Data'!AF25="","",'Physical Data'!AF25) -> 7.71463333 | AH25: =IF('Physical Data'!AG25="","",'Physical Data'!AG25) -> 8.8366 | AI25: =IF('Physical Data'!AH25="","",'Physical Data'!AH25) -> 8.21653333 | AJ25: =IF('Physical Data'!AI25="","",'Physical Data'!AI25) -> 7.76666667 | AK25: =IF('Physical Data'!AJ25="","",'Physical Data'!AJ25) -> 8.16216667 | AL25: =IF('Physical Data'!AK25="","",'Physical Data'!AK25) -> 7.0592 | AM25: =IF('Physical Data'!AL25="","",'Physical Data'!AL25) -> 7.1105 | AN25: =IF('Physical Data'!AM25="","",'Physical Data'!AM25) -> 6.65393333 | AO25: =IF('Physical Data'!AN25="","",'Physical Data'!AN25) -> 5.719 | AP25: =IF('Physical Data'!AO25="","",'Physical Data'!AO25) -> 5.2377 | AQ25: =IF('Physical Data'!AP25="","",'Physical Data'!AP25) -> 4.511 | AR25: =IF('Physical Data'!AQ25="","",'Physical Data'!AQ25) -> 3.58526667 | AS25: =IF('Physical Data'!AR25="","",'Physical Data'!AR25) -> 2.71086666 | AT25: =IF('Physical Data'!AS25="","",'Physical Data'!AS25) -> 2.13586667 | AU25: =IF('Physical Data'!AT25="","",'Physical Data'!AT25) -> 1.75725667 | AV25: =IF('Physical Data'!AU25="","",'Physical Data'!AU25) -> 1.50896 | AW25: =IF('Physical Data'!AV25="","",'Physical Data'!AV25) -> 1.36066333 | AX25: =IF('Physical Data'!AW25="","",'Physical Data'!AW25) -> 1.22305667 | AY25: =IF('Physical Data'!AX25="","",'Physical Data'!AX25) -> 1.01626 | AZ25: =IF('Physical Data'!AY25="","",'Physical Data'!AY25) -> 0.72409133 | BA25: =IF('Physical Data'!AZ25="","",'Physical Data'!AZ25) -> 0.48836267 | BB25: =IF('Physical Data'!BA25="","",'Physical Data'!BA25) -> 0.277047 | BC25: =IF('Physical Data'!BB25="","",'Physical Data'!BB25) -> 0.1014028 | BD25: =IF('Physical Data'!BC25="","",'Physical Data'!BC25) -> 0.01152981 | BE25: =IF('Physical Data'!BD25="","",'Physical Data'!BD25) -> 0 | BF25: 0 | BG25: 30.8792 | BH25: 0.20226667 | BI25: 1.72476667 | BJ25: 28.95216666 | BK25: 69.12079695 | BO25: 20
H26: =IF('Physical Data'!H26="","",'Physical Data'!H26) -> MAR02481.018 | I26: =IF('Physical Data'!I26="","",'Physical Data'!I26) ->  | J26: =IF('Physical Data'!J26="","",'Physical Data'!J26) -> 20 | K26: =IFERROR(IF(J26="","",(IF(VLOOKUP(J26,'Application info'!$K$8:$L$37,2,0)="y","y",""))),"Manual entry required") ->  | L26: =IF('Physical Data'!K26="","",'Physical Data'!K26) -> Black Mud with an Anoxic Odour. | M26: =IF('Physical Data'!L26="","",'Physical Data'!L26) ->  | N26: =IF('Physical Data'!M26="","",'Physical Data'!M26) ->  | O26: =IF('Physical Data'!N26="","",'Physical Data'!N26) ->  | P26: =IF('Physical Data'!O26="","",'Physical Data'!O26) -> 0 | Q26: =IF('Physical Data'!P26="","",'Physical Data'!P26) -> 0 | R26: =IF('Physical Data'!Q26="","",'Physical Data'!Q26) -> 0 | S26: =IF('Physical Data'!R26="","",'Physical Data'!R26) -> 0 | T26: =IF('Physical Data'!S26="","",'Physical Data'!S26) -> 0 | U26: =IF('Physical Data'!T26="","",'Physical Data'!T26) -> 0 | V26: =IF('Physical Data'!U26="","",'Physical Data'!U26) -> 0 | W26: =IF('Physical Data'!V26="","",'Physical Data'!V26) -> 0 | X26: =IF('Physical Data'!W26="","",'Physical Data'!W26) -> 0 | Y26: =IF('Physical Data'!X26="","",'Physical Data'!X26) -> 0 | Z26: =IF('Physical Data'!Y26="","",'Physical Data'!Y26) -> 0 | AA26: =IF('Physical Data'!Z26="","",'Physical Data'!Z26) -> 0 | AB26: =IF('Physical Data'!AA26="","",'Physical Data'!AA26) -> 0 | AC26: =IF('Physical Data'!AB26="","",'Physical Data'!AB26) -> 0 | AD26: =IF('Physical Data'!AC26="","",'Physical Data'!AC26) -> 0 | AE26: =IF('Physical Data'!AD26="","",'Physical Data'!AD26) -> 0.0443 | AF26: =IF('Physical Data'!AE26="","",'Physical Data'!AE26) -> 1.5614 | AG26: =IF('Physical Data'!AF26="","",'Physical Data'!AF26) -> 4.7158 | AH26: =IF('Physical Data'!AG26="","",'Physical Data'!AG26) -> 6.677 | AI26: =IF('Physical Data'!AH26="","",'Physical Data'!AH26) -> 7.6255 | AJ26: =IF('Physical Data'!AI26="","",'Physical Data'!AI26) -> 9.04076667 | AK26: =IF('Physical Data'!AJ26="","",'Physical Data'!AJ26) -> 9.53616667 | AL26: =IF('Physical Data'!AK26="","",'Physical Data'!AK26) -> 8.6253 | AM26: =IF('Physical Data'!AL26="","",'Physical Data'!AL26) -> 8.45376666 | AN26: =IF('Physical Data'!AM26="","",'Physical Data'!AM26) -> 7.6611 | AO26: =IF('Physical Data'!AN26="","",'Physical Data'!AN26) -> 6.52013334 | AP26: =IF('Physical Data'!AO26="","",'Physical Data'!AO26) -> 5.92013333 | AQ26: =IF('Physical Data'!AP26="","",'Physical Data'!AP26) -> 5.08576667 | AR26: =IF('Physical Data'!AQ26="","",'Physical Data'!AQ26) -> 4.06176666 | AS26: =IF('Physical Data'!AR26="","",'Physical Data'!AR26) -> 3.05916667 | AT26: =IF('Physical Data'!AS26="","",'Physical Data'!AS26) -> 2.35673 | AU26: =IF('Physical Data'!AT26="","",'Physical Data'!AT26) -> 1.89213333 | AV26: =IF('Physical Data'!AU26="","",'Physical Data'!AU26) -> 1.6047 | AW26: =IF('Physical Data'!AV26="","",'Physical Data'!AV26) -> 1.44155667 | AX26: =IF('Physical Data'!AW26="","",'Physical Data'!AW26) -> 1.29596333 | AY26: =IF('Physical Data'!AX26="","",'Physical Data'!AX26) -> 1.08125334 | AZ26: =IF('Physical Data'!AY26="","",'Physical Data'!AY26) -> 0.778121 | BA26: =IF('Physical Data'!AZ26="","",'Physical Data'!AZ26) -> 0.53048766 | BB26: =IF('Physical Data'!BA26="","",'Physical Data'!BA26) -> 0.304517 | BC26: =IF('Physical Data'!BB26="","",'Physical Data'!BB26) -> 0.11338034 | BD26: =IF('Physical Data'!BC26="","",'Physical Data'!BC26) -> 0.01308727 | BE26: =IF('Physical Data'!BD26="","",'Physical Data'!BD26) -> 0 | BF26: 0 | BG26: 20.624 | BH26: 0 | BI26: 0.0443 | BJ26: 20.5797 | BK26: 79.37599661 | BO26: 21
H27: =IF('Physical Data'!H27="","",'Physical Data'!H27) -> MAR02481.019 | I27: =IF('Physical Data'!I27="","",'Physical Data'!I27) ->  | J27: =IF('Physical Data'!J27="","",'Physical Data'!J27) -> 21 | K27: =IFERROR(IF(J27="","",(IF(VLOOKUP(J27,'Application info'!$K$8:$L$37,2,0)="y","y",""))),"Manual entry required") ->  | L27: =IF('Physical Data'!K27="","",'Physical Data'!K27) -> Black Mud with Shell Fragments and an Anoxic Odour. | M27: =IF('Physical Data'!L27="","",'Physical Data'!L27) ->  | N27: =IF('Physical Data'!M27="","",'Physical Data'!M27) ->  | O27: =IF('Physical Data'!N27="","",'Physical Data'!N27) ->  | P27: =IF('Physical Data'!O27="","",'Physical Data'!O27) -> 0 | Q27: =IF('Physical Data'!P27="","",'Physical Data'!P27) -> 0 | R27: =IF('Physical Data'!Q27="","",'Physical Data'!Q27) -> 0 | S27: =IF('Physical Data'!R27="","",'Physical Data'!R27) -> 0 | T27: =IF('Physical Data'!S27="","",'Physical Data'!S27) -> 0.219597 | U27: =IF('Physical Data'!T27="","",'Physical Data'!T27) -> 0.083295 | V27: =IF('Physical Data'!U27="","",'Physical Data'!U27) -> 0.33823 | W27: =IF('Physical Data'!V27="","",'Physical Data'!V27) -> 0.191832 | X27: =IF('Physical Data'!W27="","",'Physical Data'!W27) -> 0.181736 | Y27: =IF('Physical Data'!X27="","",'Physical Data'!X27) -> 0.15397 | Z27: =IF('Physical Data'!Y27="","",'Physical Data'!Y27) -> 0.171639 | AA27: =IF('Physical Data'!Z27="","",'Physical Data'!Z27) -> 0.133778 | AB27: =IF('Physical Data'!AA27="","",'Physical Data'!AA27) -> 0 | AC27: =IF('Physical Data'!AB27="","",'Physical Data'!AB27) -> 0 | AD27: =IF('Physical Data'!AC27="","",'Physical Data'!AC27) -> 0.00023 | AE27: =IF('Physical Data'!AD27="","",'Physical Data'!AD27) -> 0.291407 | AF27: =IF('Physical Data'!AE27="","",'Physical Data'!AE27) -> 2.299497 | AG27: =IF('Physical Data'!AF27="","",'Physical Data'!AF27) -> 4.470515 | AH27: =IF('Physical Data'!AG27="","",'Physical Data'!AG27) -> 6.350587 | AI27: =IF('Physical Data'!AH27="","",'Physical Data'!AH27) -> 6.793986 | AJ27: =IF('Physical Data'!AI27="","",'Physical Data'!AI27) -> 7.703545 | AK27: =IF('Physical Data'!AJ27="","",'Physical Data'!AJ27) -> 8.385541 | AL27: =IF('Physical Data'!AK27="","",'Physical Data'!AK27) -> 7.950517 | AM27: =IF('Physical Data'!AL27="","",'Physical Data'!AL27) -> 8.705619 | AN27: =IF('Physical Data'!AM27="","",'Physical Data'!AM27) -> 8.852357 | AO27: =IF('Physical Data'!AN27="","",'Physical Data'!AN27) -> 7.956461 | AP27: =IF('Physical Data'!AO27="","",'Physical Data'!AO27) -> 7.002631 | AQ27: =IF('Physical Data'!AP27="","",'Physical Data'!AP27) -> 5.57637 | AR27: =IF('Physical Data'!AQ27="","",'Physical Data'!AQ27) -> 4.058283 | AS27: =IF('Physical Data'!AR27="","",'Physical Data'!AR27) -> 2.765984 | AT27: =IF('Physical Data'!AS27="","",'Physical Data'!AS27) -> 1.971533 | AU27: =IF('Physical Data'!AT27="","",'Physical Data'!AT27) -> 1.540174 | AV27: =IF('Physical Data'!AU27="","",'Physical Data'!AU27) -> 1.307003 | AW27: =IF('Physical Data'!AV27="","",'Physical Data'!AV27) -> 1.166737 | AX27: =IF('Physical Data'!AW27="","",'Physical Data'!AW27) -> 1.035258 | AY27: =IF('Physical Data'!AX27="","",'Physical Data'!AX27) -> 0.863829 | AZ27: =IF('Physical Data'!AY27="","",'Physical Data'!AY27) -> 0.638134 | BA27: =IF('Physical Data'!AZ27="","",'Physical Data'!AZ27) -> 0.452371 | BB27: =IF('Physical Data'!BA27="","",'Physical Data'!BA27) -> 0.270503 | BC27: =IF('Physical Data'!BB27="","",'Physical Data'!BB27) -> 0.104566 | BD27: =IF('Physical Data'!BC27="","",'Physical Data'!BC27) -> 0.012283 | BE27: =IF('Physical Data'!BD27="","",'Physical Data'!BD27) -> 0 | BF27: 1.16866 | BG27: 20.511639 | BH27: 0.305417 | BI27: 0.291637 | BJ27: 19.914585 | BK27: 78.319699 | BO27: 22
H28: =IF('Physical Data'!H28="","",'Physical Data'!H28) -> MAR02481.020 | I28: =IF('Physical Data'!I28="","",'Physical Data'!I28) ->  | J28: =IF('Physical Data'!J28="","",'Physical Data'!J28) -> 22 | K28: =IFERROR(IF(J28="","",(IF(VLOOKUP(J28,'Application info'!$K$8:$L$37,2,0)="y","y",""))),"Manual entry required") ->  | L28: =IF('Physical Data'!K28="","",'Physical Data'!K28) -> Black Mud with Shell Fragments and an Anoxic Odour. | M28: =IF('Physical Data'!L28="","",'Physical Data'!L28) ->  | N28: =IF('Physical Data'!M28="","",'Physical Data'!M28) ->  | O28: =IF('Physical Data'!N28="","",'Physical Data'!N28) ->  | P28: =IF('Physical Data'!O28="","",'Physical Data'!O28) -> 0 | Q28: =IF('Physical Data'!P28="","",'Physical Data'!P28) -> 0 | R28: =IF('Physical Data'!Q28="","",'Physical Data'!Q28) -> 0 | S28: =IF('Physical Data'!R28="","",'Physical Data'!R28) -> 0 | T28: =IF('Physical Data'!S28="","",'Physical Data'!S28) -> 0 | U28: =IF('Physical Data'!T28="","",'Physical Data'!T28) -> 0 | V28: =IF('Physical Data'!U28="","",'Physical Data'!U28) -> 0.14949 | W28: =IF('Physical Data'!V28="","",'Physical Data'!V28) -> 0 | X28: =IF('Physical Data'!W28="","",'Physical Data'!W28) -> 0.035174 | Y28: =IF('Physical Data'!X28="","",'Physical Data'!X28) -> 0.043968 | Z28: =IF('Physical Data'!Y28="","",'Physical Data'!Y28) -> 0.052761 | AA28: =IF('Physical Data'!Z28="","",'Physical Data'!Z28) -> 0.074745 | AB28: =IF('Physical Data'!AA28="","",'Physical Data'!AA28) -> 0 | AC28: =IF('Physical Data'!AB28="","",'Physical Data'!AB28) -> 0 | AD28: =IF('Physical Data'!AC28="","",'Physical Data'!AC28) -> 0 | AE28: =IF('Physical Data'!AD28="","",'Physical Data'!AD28) -> 0.081309 | AF28: =IF('Physical Data'!AE28="","",'Physical Data'!AE28) -> 2.411414 | AG28: =IF('Physical Data'!AF28="","",'Physical Data'!AF28) -> 5.36715 | AH28: =IF('Physical Data'!AG28="","",'Physical Data'!AG28) -> 5.891443 | AI28: =IF('Physical Data'!AH28="","",'Physical Data'!AH28) -> 7.309973 | AJ28: =IF('Physical Data'!AI28="","",'Physical Data'!AI28) -> 8.091647 | AK28: =IF('Physical Data'!AJ28="","",'Physical Data'!AJ28) -> 8.558112 | AL28: =IF('Physical Data'!AK28="","",'Physical Data'!AK28) -> 8.058067 | AM28: =IF('Physical Data'!AL28="","",'Physical Data'!AL28) -> 8.583754 | AN28: =IF('Physical Data'!AM28="","",'Physical Data'!AM28) -> 8.724849 | AO28: =IF('Physical Data'!AN28="","",'Physical Data'!AN28) -> 7.928396 | AP28: =IF('Physical Data'!AO28="","",'Physical Data'!AO28) -> 6.986263 | AQ28: =IF('Physical Data'!AP28="","",'Physical Data'!AP28) -> 5.529604 | AR28: =IF('Physical Data'!AQ28="","",'Physical Data'!AQ28) -> 3.987548 | AS28: =IF('Physical Data'!AR28="","",'Physical Data'!AR28) -> 2.693613 | AT28: =IF('Physical Data'!AS28="","",'Physical Data'!AS28) -> 1.923861 | AU28: =IF('Physical Data'!AT28="","",'Physical Data'!AT28) -> 1.53329 | AV28: =IF('Physical Data'!AU28="","",'Physical Data'!AU28) -> 1.32698 | AW28: =IF('Physical Data'!AV28="","",'Physical Data'!AV28) -> 1.189316 | AX28: =IF('Physical Data'!AW28="","",'Physical Data'!AW28) -> 1.049263 | AY28: =IF('Physical Data'!AX28="","",'Physical Data'!AX28) -> 0.875013 | AZ28: =IF('Physical Data'!AY28="","",'Physical Data'!AY28) -> 0.654734 | BA28: =IF('Physical Data'!AZ28="","",'Physical Data'!AZ28) -> 0.473386 | BB28: =IF('Physical Data'!BA28="","",'Physical Data'!BA28) -> 0.288501 | BC28: =IF('Physical Data'!BB28="","",'Physical Data'!BB28) -> 0.113057 | BD28: =IF('Physical Data'!BC28="","",'Physical Data'!BC28) -> 0.013314 | BE28: =IF('Physical Data'!BD28="","",'Physical Data'!BD28) -> 0 | BF28: 0.228632 | BG28: 21.188795 | BH28: 0.127506 | BI28: 0.081309 | BJ28: 20.97998 | BK28: 78.582568 | BO28: 23
H29: =IF('Physical Data'!H29="","",'Physical Data'!H29) -> MAR02481.021 | I29: =IF('Physical Data'!I29="","",'Physical Data'!I29) ->  | J29: =IF('Physical Data'!J29="","",'Physical Data'!J29) -> 23 | K29: =IFERROR(IF(J29="","",(IF(VLOOKUP(J29,'Application info'!$K$8:$L$37,2,0)="y","y",""))),"Manual entry required") ->  | L29: =IF('Physical Data'!K29="","",'Physical Data'!K29) -> Black Mud with Shell Fragments and an Anoxic Odour. | M29: =IF('Physical Data'!L29="","",'Physical Data'!L29) ->  | N29: =IF('Physical Data'!M29="","",'Physical Data'!M29) ->  | O29: =IF('Physical Data'!N29="","",'Physical Data'!N29) ->  | P29: =IF('Physical Data'!O29="","",'Physical Data'!O29) -> 0 | Q29: =IF('Physical Data'!P29="","",'Physical Data'!P29) -> 0 | R29: =IF('Physical Data'!Q29="","",'Physical Data'!Q29) -> 0 | S29: =IF('Physical Data'!R29="","",'Physical Data'!R29) -> 0 | T29: =IF('Physical Data'!S29="","",'Physical Data'!S29) -> 0 | U29: =IF('Physical Data'!T29="","",'Physical Data'!T29) -> 0.223891 | V29: =IF('Physical Data'!U29="","",'Physical Data'!U29) -> 0.250323 | W29: =IF('Physical Data'!V29="","",'Physical Data'!V29) -> 0.199014 | X29: =IF('Physical Data'!W29="","",'Physical Data'!W29) -> 0.377816 | Y29: =IF('Physical Data'!X29="","",'Physical Data'!X29) -> 0.34983 | Z29: =IF('Physical Data'!Y29="","",'Physical Data'!Y29) -> 0.42757 | AA29: =IF('Physical Data'!Z29="","",'Physical Data'!Z29) -> 0.321843 | AB29: =IF('Physical Data'!AA29="","",'Physical Data'!AA29) -> 0 | AC29: =IF('Physical Data'!AB29="","",'Physical Data'!AB29) -> 0 | AD29: =IF('Physical Data'!AC29="","",'Physical Data'!AC29) -> 0 | AE29: =IF('Physical Data'!AD29="","",'Physical Data'!AD29) -> 0 | AF29: =IF('Physical Data'!AE29="","",'Physical Data'!AE29) -> 0 | AG29: =IF('Physical Data'!AF29="","",'Physical Data'!AF29) -> 0 | AH29: =IF('Physical Data'!AG29="","",'Physical Data'!AG29) -> 0 | AI29: =IF('Physical Data'!AH29="","",'Physical Data'!AH29) -> 0.255486 | AJ29: =IF('Physical Data'!AI29="","",'Physical Data'!AI29) -> 5.100025 | AK29: =IF('Physical Data'!AJ29="","",'Physical Data'!AJ29) -> 5.602711 | AL29: =IF('Physical Data'!AK29="","",'Physical Data'!AK29) -> 5.773263 | AM29: =IF('Physical Data'!AL29="","",'Physical Data'!AL29) -> 8.227138 | AN29: =IF('Physical Data'!AM29="","",'Physical Data'!AM29) -> 8.803832 | AO29: =IF('Physical Data'!AN29="","",'Physical Data'!AN29) -> 8.350135 | AP29: =IF('Physical Data'!AO29="","",'Physical Data'!AO29) -> 8.192044 | AQ29: =IF('Physical Data'!AP29="","",'Physical Data'!AP29) -> 7.37004 | AR29: =IF('Physical Data'!AQ29="","",'Physical Data'!AQ29) -> 6.142939 | AS29: =IF('Physical Data'!AR29="","",'Physical Data'!AR29) -> 5.257106 | AT29: =IF('Physical Data'!AS29="","",'Physical Data'!AS29) -> 4.818739 | AU29: =IF('Physical Data'!AT29="","",'Physical Data'!AT29) -> 4.365761 | AV29: =IF('Physical Data'!AU29="","",'Physical Data'!AU29) -> 4.143935 | AW29: =IF('Physical Data'!AV29="","",'Physical Data'!AV29) -> 4.28161 | AX29: =IF('Physical Data'!AW29="","",'Physical Data'!AW29) -> 4.260824 | AY29: =IF('Physical Data'!AX29="","",'Physical Data'!AX29) -> 3.504165 | AZ29: =IF('Physical Data'!AY29="","",'Physical Data'!AY29) -> 2.079186 | BA29: =IF('Physical Data'!AZ29="","",'Physical Data'!AZ29) -> 0.981409 | BB29: =IF('Physical Data'!BA29="","",'Physical Data'!BA29) -> 0.300311 | BC29: =IF('Physical Data'!BB29="","",'Physical Data'!BB29) -> 0.036912 | BD29: =IF('Physical Data'!BC29="","",'Physical Data'!BC29) -> 0.00214 | BE29: =IF('Physical Data'!BD29="","",'Physical Data'!BD29) -> 0 | BF29: 1.400874 | BG29: 1.004899 | BH29: 0.749413 | BI29: 0 | BJ29: 0.255486 | BK29: 97.594225 | BO29: 24
H30: =IF('Physical Data'!H30="","",'Physical Data'!H30) -> MAR02481.022 | I30: =IF('Physical Data'!I30="","",'Physical Data'!I30) ->  | J30: =IF('Physical Data'!J30="","",'Physical Data'!J30) -> 24 | K30: =IFERROR(IF(J30="","",(IF(VLOOKUP(J30,'Application info'!$K$8:$L$37,2,0)="y","y",""))),"Manual entry required") ->  | L30: =IF('Physical Data'!K30="","",'Physical Data'!K30) -> Odourless Black Mud . | M30: =IF('Physical Data'!L30="","",'Physical Data'!L30) ->  | N30: =IF('Physical Data'!M30="","",'Physical Data'!M30) ->  | O30: =IF('Physical Data'!N30="","",'Physical Data'!N30) ->  | P30: =IF('Physical Data'!O30="","",'Physical Data'!O30) -> 0 | Q30: =IF('Physical Data'!P30="","",'Physical Data'!P30) -> 0 | R30: =IF('Physical Data'!Q30="","",'Physical Data'!Q30) -> 0 | S30: =IF('Physical Data'!R30="","",'Physical Data'!R30) -> 0 | T30: =IF('Physical Data'!S30="","",'Physical Data'!S30) -> 0 | U30: =IF('Physical Data'!T30="","",'Physical Data'!T30) -> 0.001449 | V30: =IF('Physical Data'!U30="","",'Physical Data'!U30) -> 0 | W30: =IF('Physical Data'!V30="","",'Physical Data'!V30) -> 0.011596 | X30: =IF('Physical Data'!W30="","",'Physical Data'!W30) -> 0.063777 | Y30: =IF('Physical Data'!X30="","",'Physical Data'!X30) -> 0.049283 | Z30: =IF('Physical Data'!Y30="","",'Physical Data'!Y30) -> 0.086969 | AA30: =IF('Physical Data'!Z30="","",'Physical Data'!Z30) -> 0.131903 | AB30: =IF('Physical Data'!AA30="","",'Physical Data'!AA30) -> 0.382377 | AC30: =IF('Physical Data'!AB30="","",'Physical Data'!AB30) -> 4.156825 | AD30: =IF('Physical Data'!AC30="","",'Physical Data'!AC30) -> 4.463564 | AE30: =IF('Physical Data'!AD30="","",'Physical Data'!AD30) -> 3.065433 | AF30: =IF('Physical Data'!AE30="","",'Physical Data'!AE30) -> 13.716866 | AG30: =IF('Physical Data'!AF30="","",'Physical Data'!AF30) -> 20.520207 | AH30: =IF('Physical Data'!AG30="","",'Physical Data'!AG30) -> 11.948548 | AI30: =IF('Physical Data'!AH30="","",'Physical Data'!AH30) -> 5.327777 | AJ30: =IF('Physical Data'!AI30="","",'Physical Data'!AI30) -> 4.249605 | AK30: =IF('Physical Data'!AJ30="","",'Physical Data'!AJ30) -> 4.158753 | AL30: =IF('Physical Data'!AK30="","",'Physical Data'!AK30) -> 3.813313 | AM30: =IF('Physical Data'!AL30="","",'Physical Data'!AL30) -> 4.114006 | AN30: =IF('Physical Data'!AM30="","",'Physical Data'!AM30) -> 4.358993 | AO30: =IF('Physical Data'!AN30="","",'Physical Data'!AN30) -> 3.896891 | AP30: =IF('Physical Data'!AO30="","",'Physical Data'!AO30) -> 3.218149 | AQ30: =IF('Physical Data'!AP30="","",'Physical Data'!AP30) -> 2.343592 | AR30: =IF('Physical Data'!AQ30="","",'Physical Data'!AQ30) -> 1.55384 | AS30: =IF('Physical Data'!AR30="","",'Physical Data'!AR30) -> 0.976264 | AT30: =IF('Physical Data'!AS30="","",'Physical Data'!AS30) -> 0.67265 | AU30: =IF('Physical Data'!AT30="","",'Physical Data'!AT30) -> 0.543175 | AV30: =IF('Physical Data'!AU30="","",'Physical Data'!AU30) -> 0.480213 | AW30: =IF('Physical Data'!AV30="","",'Physical Data'!AV30) -> 0.429747 | AX30: =IF('Physical Data'!AW30="","",'Physical Data'!AW30) -> 0.373197 | AY30: =IF('Physical Data'!AX30="","",'Physical Data'!AX30) -> 0.309948 | AZ30: =IF('Physical Data'!AY30="","",'Physical Data'!AY30) -> 0.237872 | BA30: =IF('Physical Data'!AZ30="","",'Physical Data'!AZ30) -> 0.177779 | BB30: =IF('Physical Data'!BA30="","",'Physical Data'!BA30) -> 0.112506 | BC30: =IF('Physical Data'!BB30="","",'Physical Data'!BB30) -> 0.047046 | BD30: =IF('Physical Data'!BC30="","",'Physical Data'!BC30) -> 0.005884 | BE30: =IF('Physical Data'!BD30="","",'Physical Data'!BD30) -> 0 | BF30: 0.126105 | BG30: 63.800469 | BH30: 4.758074 | BI30: 7.528997 | BJ30: 51.513398 | BK30: 36.073423 | BO30: 25
H31: =IF('Physical Data'!H31="","",'Physical Data'!H31) -> MAR02481.023 | I31: =IF('Physical Data'!I31="","",'Physical Data'!I31) ->  | J31: =IF('Physical Data'!J31="","",'Physical Data'!J31) -> 25 | K31: =IFERROR(IF(J31="","",(IF(VLOOKUP(J31,'Application info'!$K$8:$L$37,2,0)="y","y",""))),"Manual entry required") ->  | L31: =IF('Physical Data'!K31="","",'Physical Data'!K31) -> Odourless Black Mud . | M31: =IF('Physical Data'!L31="","",'Physical Data'!L31) ->  | N31: =IF('Physical Data'!M31="","",'Physical Data'!M31) ->  | O31: =IF('Physical Data'!N31="","",'Physical Data'!N31) ->  | P31: =IF('Physical Data'!O31="","",'Physical Data'!O31) -> 0 | Q31: =IF('Physical Data'!P31="","",'Physical Data'!P31) -> 0 | R31: =IF('Physical Data'!Q31="","",'Physical Data'!Q31) -> 0 | S31: =IF('Physical Data'!R31="","",'Physical Data'!R31) -> 0 | T31: =IF('Physical Data'!S31="","",'Physical Data'!S31) -> 0 | U31: =IF('Physical Data'!T31="","",'Physical Data'!T31) -> 0 | V31: =IF('Physical Data'!U31="","",'Physical Data'!U31) -> 0 | W31: =IF('Physical Data'!V31="","",'Physical Data'!V31) -> 0 | X31: =IF('Physical Data'!W31="","",'Physical Data'!W31) -> 0 | Y31: =IF('Physical Data'!X31="","",'Physical Data'!X31) -> 0 | Z31: =IF('Physical Data'!Y31="","",'Physical Data'!Y31) -> 0 | AA31: =IF('Physical Data'!Z31="","",'Physical Data'!Z31) -> 0.00036667 | AB31: =IF('Physical Data'!AA31="","",'Physical Data'!AA31) -> 0.3837 | AC31: =IF('Physical Data'!AB31="","",'Physical Data'!AB31) -> 4.1712 | AD31: =IF('Physical Data'!AC31="","",'Physical Data'!AC31) -> 4.479 | AE31: =IF('Physical Data'!AD31="","",'Physical Data'!AD31) -> 3.07603333 | AF31: =IF('Physical Data'!AE31="","",'Physical Data'!AE31) -> 13.7643 | AG31: =IF('Physical Data'!AF31="","",'Physical Data'!AF31) -> 20.59116667 | AH31: =IF('Physical Data'!AG31="","",'Physical Data'!AG31) -> 11.98986667 | AI31: =IF('Physical Data'!AH31="","",'Physical Data'!AH31) -> 5.3462 | AJ31: =IF('Physical Data'!AI31="","",'Physical Data'!AI31) -> 4.2643 | AK31: =IF('Physical Data'!AJ31="","",'Physical Data'!AJ31) -> 4.17313333 | AL31: =IF('Physical Data'!AK31="","",'Physical Data'!AK31) -> 3.8265 | AM31: =IF('Physical Data'!AL31="","",'Physical Data'!AL31) -> 4.12823333 | AN31: =IF('Physical Data'!AM31="","",'Physical Data'!AM31) -> 4.37406667 | AO31: =IF('Physical Data'!AN31="","",'Physical Data'!AN31) -> 3.91036667 | AP31: =IF('Physical Data'!AO31="","",'Physical Data'!AO31) -> 3.22927666 | AQ31: =IF('Physical Data'!AP31="","",'Physical Data'!AP31) -> 2.35169667 | AR31: =IF('Physical Data'!AQ31="","",'Physical Data'!AQ31) -> 1.55921333 | AS31: =IF('Physical Data'!AR31="","",'Physical Data'!AR31) -> 0.97964 | AT31: =IF('Physical Data'!AS31="","",'Physical Data'!AS31) -> 0.67497667 | AU31: =IF('Physical Data'!AT31="","",'Physical Data'!AT31) -> 0.54505333 | AV31: =IF('Physical Data'!AU31="","",'Physical Data'!AU31) -> 0.48187334 | AW31: =IF('Physical Data'!AV31="","",'Physical Data'!AV31) -> 0.43123333 | AX31: =IF('Physical Data'!AW31="","",'Physical Data'!AW31) -> 0.37448767 | AY31: =IF('Physical Data'!AX31="","",'Physical Data'!AX31) -> 0.31102 | AZ31: =IF('Physical Data'!AY31="","",'Physical Data'!AY31) -> 0.23869366 | BA31: =IF('Physical Data'!AZ31="","",'Physical Data'!AZ31) -> 0.17839334 | BB31: =IF('Physical Data'!BA31="","",'Physical Data'!BA31) -> 0.11289466 | BC31: =IF('Physical Data'!BB31="","",'Physical Data'!BB31) -> 0.04720899 | BD31: =IF('Physical Data'!BC31="","",'Physical Data'!BC31) -> 0.00590358 | BE31: =IF('Physical Data'!BD31="","",'Physical Data'!BD31) -> 0 | BF31: 0 | BG31: 63.80183334 | BH31: 4.55526667 | BI31: 7.55503333 | BJ31: 51.69153334 | BK31: 36.19816523
H32: =IF('Physical Data'!H32="","",'Physical Data'!H32) ->  | I32: =IF('Physical Data'!I32="","",'Physical Data'!I32) ->  | J32: =IF('Physical Data'!J32="","",'Physical Data'!J32) ->  | K32: =IFERROR(IF(J32="","",(IF(VLOOKUP(J32,'Application info'!$K$8:$L$37,2,0)="y","y",""))),"Manual entry required") ->  | L32: =IF('Physical Data'!K32="","",'Physical Data'!K32) ->  | M32: =IF('Physical Data'!L32="","",'Physical Data'!L32) ->  | N32: =IF('Physical Data'!M32="","",'Physical Data'!M32) ->  | O32: =IF('Physical Data'!N32="","",'Physical Data'!N32) ->  | P32: =IF('Physical Data'!O32="","",'Physical Data'!O32) ->  | Q32: =IF('Physical Data'!P32="","",'Physical Data'!P32) ->  | R32: =IF('Physical Data'!Q32="","",'Physical Data'!Q32) ->  | S32: =IF('Physical Data'!R32="","",'Physical Data'!R32) ->  | T32: =IF('Physical Data'!S32="","",'Physical Data'!S32) ->  | U32: =IF('Physical Data'!T32="","",'Physical Data'!T32) ->  | V32: =IF('Physical Data'!U32="","",'Physical Data'!U32) ->  | W32: =IF('Physical Data'!V32="","",'Physical Data'!V32) ->  | X32: =IF('Physical Data'!W32="","",'Physical Data'!W32) ->  | Y32: =IF('Physical Data'!X32="","",'Physical Data'!X32) ->  | Z32: =IF('Physical Data'!Y32="","",'Physical Data'!Y32) ->  | AA32: =IF('Physical Data'!Z32="","",'Physical Data'!Z32) ->  | AB32: =IF('Physical Data'!AA32="","",'Physical Data'!AA32) ->  | AC32: =IF('Physical Data'!AB32="","",'Physical Data'!AB32) ->  | AD32: =IF('Physical Data'!AC32="","",'Physical Data'!AC32) ->  | AE32: =IF('Physical Data'!AD32="","",'Physical Data'!AD32) ->  | AF32: =IF('Physical Data'!AE32="","",'Physical Data'!AE32) ->  | AG32: =IF('Physical Data'!AF32="","",'Physical Data'!AF32) ->  | AH32: =IF('Physical Data'!AG32="","",'Physical Data'!AG32) ->  | AI32: =IF('Physical Data'!AH32="","",'Physical Data'!AH32) ->  | AJ32: =IF('Physical Data'!AI32="","",'Physical Data'!AI32) ->  | AK32: =IF('Physical Data'!AJ32="","",'Physical Data'!AJ32) ->  | AL32: =IF('Physical Data'!AK32="","",'Physical Data'!AK32) ->  | AM32: =IF('Physical Data'!AL32="","",'Physical Data'!AL32) ->  | AN32: =IF('Physical Data'!AM32="","",'Physical Data'!AM32) ->  | AO32: =IF('Physical Data'!AN32="","",'Physical Data'!AN32) ->  | AP32: =IF('Physical Data'!AO32="","",'Physical Data'!AO32) ->  | AQ32: =IF('Physical Data'!AP32="","",'Physical Data'!AP32) ->  | AR32: =IF('Physical Data'!AQ32="","",'Physical Data'!AQ32) ->  | AS32: =IF('Physical Data'!AR32="","",'Physical Data'!AR32) ->  | AT32: =IF('Physical Data'!AS32="","",'Physical Data'!AS32) ->  | AU32: =IF('Physical Data'!AT32="","",'Physical Data'!AT32) ->  | AV32: =IF('Physical Data'!AU32="","",'Physical Data'!AU32) ->  | AW32: =IF('Physical Data'!AV32="","",'Physical Data'!AV32) ->  | AX32: =IF('Physical Data'!AW32="","",'Physical Data'!AW32) ->  | AY32: =IF('Physical Data'!AX32="","",'Physical Data'!AX32) ->  | AZ32: =IF('Physical Data'!AY32="","",'Physical Data'!AY32) ->  | BA32: =IF('Physical Data'!AZ32="","",'Physical Data'!AZ32) ->  | BB32: =IF('Physical Data'!BA32="","",'Physical Data'!BA32) ->  | BC32: =IF('Physical Data'!BB32="","",'Physical Data'!BB32) ->  | BD32: =IF('Physical Data'!BC32="","",'Physical Data'!BC32) ->  | BE32: =IF('Physical Data'!BD32="","",'Physical Data'!BD32) -> 
H33: =IF('Physical Data'!H33="","",'Physical Data'!H33) ->  | I33: =IF('Physical Data'!I33="","",'Physical Data'!I33) ->  | J33: =IF('Physical Data'!J33="","",'Physical Data'!J33) ->  | K33: =IFERROR(IF(J33="","",(IF(VLOOKUP(J33,'Application info'!$K$8:$L$37,2,0)="y","y",""))),"Manual entry required") ->  | L33: =IF('Physical Data'!K33="","",'Physical Data'!K33) ->  | M33: =IF('Physical Data'!L33="","",'Physical Data'!L33) ->  | N33: =IF('Physical Data'!M33="","",'Physical Data'!M33) ->  | O33: =IF('Physical Data'!N33="","",'Physical Data'!N33) ->  | P33: =IF('Physical Data'!O33="","",'Physical Data'!O33) ->  | Q33: =IF('Physical Data'!P33="","",'Physical Data'!P33) ->  | R33: =IF('Physical Data'!Q33="","",'Physical Data'!Q33) ->  | S33: =IF('Physical Data'!R33="","",'Physical Data'!R33) ->  | T33: =IF('Physical Data'!S33="","",'Physical Data'!S33) ->  | U33: =IF('Physical Data'!T33="","",'Physical Data'!T33) ->  | V33: =IF('Physical Data'!U33="","",'Physical Data'!U33) ->  | W33: =IF('Physical Data'!V33="","",'Physical Data'!V33) ->  | X33: =IF('Physical Data'!W33="","",'Physical Data'!W33) ->  | Y33: =IF('Physical Data'!X33="","",'Physical Data'!X33) ->  | Z33: =IF('Physical Data'!Y33="","",'Physical Data'!Y33) ->  | AA33: =IF('Physical Data'!Z33="","",'Physical Data'!Z33) ->  | AB33: =IF('Physical Data'!AA33="","",'Physical Data'!AA33) ->  | AC33: =IF('Physical Data'!AB33="","",'Physical Data'!AB33) ->  | AD33: =IF('Physical Data'!AC33="","",'Physical Data'!AC33) ->  | AE33: =IF('Physical Data'!AD33="","",'Physical Data'!AD33) ->  | AF33: =IF('Physical Data'!AE33="","",'Physical Data'!AE33) ->  | AG33: =IF('Physical Data'!AF33="","",'Physical Data'!AF33) ->  | AH33: =IF('Physical Data'!AG33="","",'Physical Data'!AG33) ->  | AI33: =IF('Physical Data'!AH33="","",'Physical Data'!AH33) ->  | AJ33: =IF('Physical Data'!AI33="","",'Physical Data'!AI33) ->  | AK33: =IF('Physical Data'!AJ33="","",'Physical Data'!AJ33) ->  | AL33: =IF('Physical Data'!AK33="","",'Physical Data'!AK33) ->  | AM33: =IF('Physical Data'!AL33="","",'Physical Data'!AL33) ->  | AN33: =IF('Physical Data'!AM33="","",'Physical Data'!AM33) ->  | AO33: =IF('Physical Data'!AN33="","",'Physical Data'!AN33) ->  | AP33: =IF('Physical Data'!AO33="","",'Physical Data'!AO33) ->  | AQ33: =IF('Physical Data'!AP33="","",'Physical Data'!AP33) ->  | AR33: =IF('Physical Data'!AQ33="","",'Physical Data'!AQ33) ->  | AS33: =IF('Physical Data'!AR33="","",'Physical Data'!AR33) ->  | AT33: =IF('Physical Data'!AS33="","",'Physical Data'!AS33) ->  | AU33: =IF('Physical Data'!AT33="","",'Physical Data'!AT33) ->  | AV33: =IF('Physical Data'!AU33="","",'Physical Data'!AU33) ->  | AW33: =IF('Physical Data'!AV33="","",'Physical Data'!AV33) ->  | AX33: =IF('Physical Data'!AW33="","",'Physical Data'!AW33) ->  | AY33: =IF('Physical Data'!AX33="","",'Physical Data'!AX33) ->  | AZ33: =IF('Physical Data'!AY33="","",'Physical Data'!AY33) ->  | BA33: =IF('Physical Data'!AZ33="","",'Physical Data'!AZ33) ->  | BB33: =IF('Physical Data'!BA33="","",'Physical Data'!BA33) ->  | BC33: =IF('Physical Data'!BB33="","",'Physical Data'!BB33) ->  | BD33: =IF('Physical Data'!BC33="","",'Physical Data'!BC33) ->  | BE33: =IF('Physical Data'!BD33="","",'Physical Data'!BD33) -> 
H34: =IF('Physical Data'!H34="","",'Physical Data'!H34) ->  | I34: =IF('Physical Data'!I34="","",'Physical Data'!I34) ->  | J34: =IF('Physical Data'!J34="","",'Physical Data'!J34) ->  | K34: =IFERROR(IF(J34="","",(IF(VLOOKUP(J34,'Application info'!$K$8:$L$37,2,0)="y","y",""))),"Manual entry required") ->  | L34: =IF('Physical Data'!K34="","",'Physical Data'!K34) ->  | M34: =IF('Physical Data'!L34="","",'Physical Data'!L34) ->  | N34: =IF('Physical Data'!M34="","",'Physical Data'!M34) ->  | O34: =IF('Physical Data'!N34="","",'Physical Data'!N34) ->  | P34: =IF('Physical Data'!O34="","",'Physical Data'!O34) ->  | Q34: =IF('Physical Data'!P34="","",'Physical Data'!P34) ->  | R34: =IF('Physical Data'!Q34="","",'Physical Data'!Q34) ->  | S34: =IF('Physical Data'!R34="","",'Physical Data'!R34) ->  | T34: =IF('Physical Data'!S34="","",'Physical Data'!S34) ->  | U34: =IF('Physical Data'!T34="","",'Physical Data'!T34) ->  | V34: =IF('Physical Data'!U34="","",'Physical Data'!U34) ->  | W34: =IF('Physical Data'!V34="","",'Physical Data'!V34) ->  | X34: =IF('Physical Data'!W34="","",'Physical Data'!W34) ->  | Y34: =IF('Physical Data'!X34="","",'Physical Data'!X34) ->  | Z34: =IF('Physical Data'!Y34="","",'Physical Data'!Y34) ->  | AA34: =IF('Physical Data'!Z34="","",'Physical Data'!Z34) ->  | AB34: =IF('Physical Data'!AA34="","",'Physical Data'!AA34) ->  | AC34: =IF('Physical Data'!AB34="","",'Physical Data'!AB34) ->  | AD34: =IF('Physical Data'!AC34="","",'Physical Data'!AC34) ->  | AE34: =IF('Physical Data'!AD34="","",'Physical Data'!AD34) ->  | AF34: =IF('Physical Data'!AE34="","",'Physical Data'!AE34) ->  | AG34: =IF('Physical Data'!AF34="","",'Physical Data'!AF34) ->  | AH34: =IF('Physical Data'!AG34="","",'Physical Data'!AG34) ->  | AI34: =IF('Physical Data'!AH34="","",'Physical Data'!AH34) ->  | AJ34: =IF('Physical Data'!AI34="","",'Physical Data'!AI34) ->  | AK34: =IF('Physical Data'!AJ34="","",'Physical Data'!AJ34) ->  | AL34: =IF('Physical Data'!AK34="","",'Physical Data'!AK34) ->  | AM34: =IF('Physical Data'!AL34="","",'Physical Data'!AL34) ->  | AN34: =IF('Physical Data'!AM34="","",'Physical Data'!AM34) ->  | AO34: =IF('Physical Data'!AN34="","",'Physical Data'!AN34) ->  | AP34: =IF('Physical Data'!AO34="","",'Physical Data'!AO34) ->  | AQ34: =IF('Physical Data'!AP34="","",'Physical Data'!AP34) ->  | AR34: =IF('Physical Data'!AQ34="","",'Physical Data'!AQ34) ->  | AS34: =IF('Physical Data'!AR34="","",'Physical Data'!AR34) ->  | AT34: =IF('Physical Data'!AS34="","",'Physical Data'!AS34) ->  | AU34: =IF('Physical Data'!AT34="","",'Physical Data'!AT34) ->  | AV34: =IF('Physical Data'!AU34="","",'Physical Data'!AU34) ->  | AW34: =IF('Physical Data'!AV34="","",'Physical Data'!AV34) ->  | AX34: =IF('Physical Data'!AW34="","",'Physical Data'!AW34) ->  | AY34: =IF('Physical Data'!AX34="","",'Physical Data'!AX34) ->  | AZ34: =IF('Physical Data'!AY34="","",'Physical Data'!AY34) ->  | BA34: =IF('Physical Data'!AZ34="","",'Physical Data'!AZ34) ->  | BB34: =IF('Physical Data'!BA34="","",'Physical Data'!BA34) ->  | BC34: =IF('Physical Data'!BB34="","",'Physical Data'!BB34) ->  | BD34: =IF('Physical Data'!BC34="","",'Physical Data'!BC34) ->  | BE34: =IF('Physical Data'!BD34="","",'Physical Data'!BD34) -> 
H35: =IF('Physical Data'!H35="","",'Physical Data'!H35) ->  | I35: =IF('Physical Data'!I35="","",'Physical Data'!I35) ->  | J35: =IF('Physical Data'!J35="","",'Physical Data'!J35) ->  | K35: =IFERROR(IF(J35="","",(IF(VLOOKUP(J35,'Application info'!$K$8:$L$37,2,0)="y","y",""))),"Manual entry required") ->  | L35: =IF('Physical Data'!K35="","",'Physical Data'!K35) ->  | M35: =IF('Physical Data'!L35="","",'Physical Data'!L35) ->  | N35: =IF('Physical Data'!M35="","",'Physical Data'!M35) ->  | O35: =IF('Physical Data'!N35="","",'Physical Data'!N35) ->  | P35: =IF('Physical Data'!O35="","",'Physical Data'!O35) ->  | Q35: =IF('Physical Data'!P35="","",'Physical Data'!P35) ->  | R35: =IF('Physical Data'!Q35="","",'Physical Data'!Q35) ->  | S35: =IF('Physical Data'!R35="","",'Physical Data'!R35) ->  | T35: =IF('Physical Data'!S35="","",'Physical Data'!S35) ->  | U35: =IF('Physical Data'!T35="","",'Physical Data'!T35) ->  | V35: =IF('Physical Data'!U35="","",'Physical Data'!U35) ->  | W35: =IF('Physical Data'!V35="","",'Physical Data'!V35) ->  | X35: =IF('Physical Data'!W35="","",'Physical Data'!W35) ->  | Y35: =IF('Physical Data'!X35="","",'Physical Data'!X35) ->  | Z35: =IF('Physical Data'!Y35="","",'Physical Data'!Y35) ->  | AA35: =IF('Physical Data'!Z35="","",'Physical Data'!Z35) ->  | AB35: =IF('Physical Data'!AA35="","",'Physical Data'!AA35) ->  | AC35: =IF('Physical Data'!AB35="","",'Physical Data'!AB35) ->  | AD35: =IF('Physical Data'!AC35="","",'Physical Data'!AC35) ->  | AE35: =IF('Physical Data'!AD35="","",'Physical Data'!AD35) ->  | AF35: =IF('Physical Data'!AE35="","",'Physical Data'!AE35) ->  | AG35: =IF('Physical Data'!AF35="","",'Physical Data'!AF35) ->  | AH35: =IF('Physical Data'!AG35="","",'Physical Data'!AG35) ->  | AI35: =IF('Physical Data'!AH35="","",'Physical Data'!AH35) ->  | AJ35: =IF('Physical Data'!AI35="","",'Physical Data'!AI35) ->  | AK35: =IF('Physical Data'!AJ35="","",'Physical Data'!AJ35) ->  | AL35: =IF('Physical Data'!AK35="","",'Physical Data'!AK35) ->  | AM35: =IF('Physical Data'!AL35="","",'Physical Data'!AL35) ->  | AN35: =IF('Physical Data'!AM35="","",'Physical Data'!AM35) ->  | AO35: =IF('Physical Data'!AN35="","",'Physical Data'!AN35) ->  | AP35: =IF('Physical Data'!AO35="","",'Physical Data'!AO35) ->  | AQ35: =IF('Physical Data'!AP35="","",'Physical Data'!AP35) ->  | AR35: =IF('Physical Data'!AQ35="","",'Physical Data'!AQ35) ->  | AS35: =IF('Physical Data'!AR35="","",'Physical Data'!AR35) ->  | AT35: =IF('Physical Data'!AS35="","",'Physical Data'!AS35) ->  | AU35: =IF('Physical Data'!AT35="","",'Physical Data'!AT35) ->  | AV35: =IF('Physical Data'!AU35="","",'Physical Data'!AU35) ->  | AW35: =IF('Physical Data'!AV35="","",'Physical Data'!AV35) ->  | AX35: =IF('Physical Data'!AW35="","",'Physical Data'!AW35) ->  | AY35: =IF('Physical Data'!AX35="","",'Physical Data'!AX35) ->  | AZ35: =IF('Physical Data'!AY35="","",'Physical Data'!AY35) ->  | BA35: =IF('Physical Data'!AZ35="","",'Physical Data'!AZ35) ->  | BB35: =IF('Physical Data'!BA35="","",'Physical Data'!BA35) ->  | BC35: =IF('Physical Data'!BB35="","",'Physical Data'!BB35) ->  | BD35: =IF('Physical Data'!BC35="","",'Physical Data'!BC35) ->  | BE35: =IF('Physical Data'!BD35="","",'Physical Data'!BD35) -> 
H36: =IF('Physical Data'!H36="","",'Physical Data'!H36) ->  | I36: =IF('Physical Data'!I36="","",'Physical Data'!I36) ->  | J36: =IF('Physical Data'!J36="","",'Physical Data'!J36) ->  | K36: =IFERROR(IF(J36="","",(IF(VLOOKUP(J36,'Application info'!$K$8:$L$37,2,0)="y","y",""))),"Manual entry required") ->  | L36: =IF('Physical Data'!K36="","",'Physical Data'!K36) ->  | M36: =IF('Physical Data'!L36="","",'Physical Data'!L36) ->  | N36: =IF('Physical Data'!M36="","",'Physical Data'!M36) ->  | O36: =IF('Physical Data'!N36="","",'Physical Data'!N36) ->  | P36: =IF('Physical Data'!O36="","",'Physical Data'!O36) ->  | Q36: =IF('Physical Data'!P36="","",'Physical Data'!P36) ->  | R36: =IF('Physical Data'!Q36="","",'Physical Data'!Q36) ->  | S36: =IF('Physical Data'!R36="","",'Physical Data'!R36) ->  | T36: =IF('Physical Data'!S36="","",'Physical Data'!S36) ->  | U36: =IF('Physical Data'!T36="","",'Physical Data'!T36) ->  | V36: =IF('Physical Data'!U36="","",'Physical Data'!U36) ->  | W36: =IF('Physical Data'!V36="","",'Physical Data'!V36) ->  | X36: =IF('Physical Data'!W36="","",'Physical Data'!W36) ->  | Y36: =IF('Physical Data'!X36="","",'Physical Data'!X36) ->  | Z36: =IF('Physical Data'!Y36="","",'Physical Data'!Y36) ->  | AA36: =IF('Physical Data'!Z36="","",'Physical Data'!Z36) ->  | AB36: =IF('Physical Data'!AA36="","",'Physical Data'!AA36) ->  | AC36: =IF('Physical Data'!AB36="","",'Physical Data'!AB36) ->  | AD36: =IF('Physical Data'!AC36="","",'Physical Data'!AC36) ->  | AE36: =IF('Physical Data'!AD36="","",'Physical Data'!AD36) ->  | AF36: =IF('Physical Data'!AE36="","",'Physical Data'!AE36) ->  | AG36: =IF('Physical Data'!AF36="","",'Physical Data'!AF36) ->  | AH36: =IF('Physical Data'!AG36="","",'Physical Data'!AG36) ->  | AI36: =IF('Physical Data'!AH36="","",'Physical Data'!AH36) ->  | AJ36: =IF('Physical Data'!AI36="","",'Physical Data'!AI36) ->  | AK36: =IF('Physical Data'!AJ36="","",'Physical Data'!AJ36) ->  | AL36: =IF('Physical Data'!AK36="","",'Physical Data'!AK36) ->  | AM36: =IF('Physical Data'!AL36="","",'Physical Data'!AL36) ->  | AN36: =IF('Physical Data'!AM36="","",'Physical Data'!AM36) ->  | AO36: =IF('Physical Data'!AN36="","",'Physical Data'!AN36) ->  | AP36: =IF('Physical Data'!AO36="","",'Physical Data'!AO36) ->  | AQ36: =IF('Physical Data'!AP36="","",'Physical Data'!AP36) ->  | AR36: =IF('Physical Data'!AQ36="","",'Physical Data'!AQ36) ->  | AS36: =IF('Physical Data'!AR36="","",'Physical Data'!AR36) ->  | AT36: =IF('Physical Data'!AS36="","",'Physical Data'!AS36) ->  | AU36: =IF('Physical Data'!AT36="","",'Physical Data'!AT36) ->  | AV36: =IF('Physical Data'!AU36="","",'Physical Data'!AU36) ->  | AW36: =IF('Physical Data'!AV36="","",'Physical Data'!AV36) ->  | AX36: =IF('Physical Data'!AW36="","",'Physical Data'!AW36) ->  | AY36: =IF('Physical Data'!AX36="","",'Physical Data'!AX36) ->  | AZ36: =IF('Physical Data'!AY36="","",'Physical Data'!AY36) ->  | BA36: =IF('Physical Data'!AZ36="","",'Physical Data'!AZ36) ->  | BB36: =IF('Physical Data'!BA36="","",'Physical Data'!BA36) ->  | BC36: =IF('Physical Data'!BB36="","",'Physical Data'!BB36) ->  | BD36: =IF('Physical Data'!BC36="","",'Physical Data'!BC36) ->  | BE36: =IF('Physical Data'!BD36="","",'Physical Data'!BD36) -> 
H37: =IF('Physical Data'!H37="","",'Physical Data'!H37) ->  | I37: =IF('Physical Data'!I37="","",'Physical Data'!I37) ->  | J37: =IF('Physical Data'!J37="","",'Physical Data'!J37) ->  | K37: =IFERROR(IF(J37="","",(IF(VLOOKUP(J37,'Application info'!$K$8:$L$37,2,0)="y","y",""))),"Manual entry required") ->  | L37: =IF('Physical Data'!K37="","",'Physical Data'!K37) ->  | M37: =IF('Physical Data'!L37="","",'Physical Data'!L37) ->  | N37: =IF('Physical Data'!M37="","",'Physical Data'!M37) ->  | O37: =IF('Physical Data'!N37="","",'Physical Data'!N37) ->  | P37: =IF('Physical Data'!O37="","",'Physical Data'!O37) ->  | Q37: =IF('Physical Data'!P37="","",'Physical Data'!P37) ->  | R37: =IF('Physical Data'!Q37="","",'Physical Data'!Q37) ->  | S37: =IF('Physical Data'!R37="","",'Physical Data'!R37) ->  | T37: =IF('Physical Data'!S37="","",'Physical Data'!S37) ->  | U37: =IF('Physical Data'!T37="","",'Physical Data'!T37) ->  | V37: =IF('Physical Data'!U37="","",'Physical Data'!U37) ->  | W37: =IF('Physical Data'!V37="","",'Physical Data'!V37) ->  | X37: =IF('Physical Data'!W37="","",'Physical Data'!W37) ->  | Y37: =IF('Physical Data'!X37="","",'Physical Data'!X37) ->  | Z37: =IF('Physical Data'!Y37="","",'Physical Data'!Y37) ->  | AA37: =IF('Physical Data'!Z37="","",'Physical Data'!Z37) ->  | AB37: =IF('Physical Data'!AA37="","",'Physical Data'!AA37) ->  | AC37: =IF('Physical Data'!AB37="","",'Physical Data'!AB37) ->  | AD37: =IF('Physical Data'!AC37="","",'Physical Data'!AC37) ->  | AE37: =IF('Physical Data'!AD37="","",'Physical Data'!AD37) ->  | AF37: =IF('Physical Data'!AE37="","",'Physical Data'!AE37) ->  | AG37: =IF('Physical Data'!AF37="","",'Physical Data'!AF37) ->  | AH37: =IF('Physical Data'!AG37="","",'Physical Data'!AG37) ->  | AI37: =IF('Physical Data'!AH37="","",'Physical Data'!AH37) ->  | AJ37: =IF('Physical Data'!AI37="","",'Physical Data'!AI37) ->  | AK37: =IF('Physical Data'!AJ37="","",'Physical Data'!AJ37) ->  | AL37: =IF('Physical Data'!AK37="","",'Physical Data'!AK37) ->  | AM37: =IF('Physical Data'!AL37="","",'Physical Data'!AL37) ->  | AN37: =IF('Physical Data'!AM37="","",'Physical Data'!AM37) ->  | AO37: =IF('Physical Data'!AN37="","",'Physical Data'!AN37) ->  | AP37: =IF('Physical Data'!AO37="","",'Physical Data'!AO37) ->  | AQ37: =IF('Physical Data'!AP37="","",'Physical Data'!AP37) ->  | AR37: =IF('Physical Data'!AQ37="","",'Physical Data'!AQ37) ->  | AS37: =IF('Physical Data'!AR37="","",'Physical Data'!AR37) ->  | AT37: =IF('Physical Data'!AS37="","",'Physical Data'!AS37) ->  | AU37: =IF('Physical Data'!AT37="","",'Physical Data'!AT37) ->  | AV37: =IF('Physical Data'!AU37="","",'Physical Data'!AU37) ->  | AW37: =IF('Physical Data'!AV37="","",'Physical Data'!AV37) ->  | AX37: =IF('Physical Data'!AW37="","",'Physical Data'!AW37) ->  | AY37: =IF('Physical Data'!AX37="","",'Physical Data'!AX37) ->  | AZ37: =IF('Physical Data'!AY37="","",'Physical Data'!AY37) ->  | BA37: =IF('Physical Data'!AZ37="","",'Physical Data'!AZ37) ->  | BB37: =IF('Physical Data'!BA37="","",'Physical Data'!BA37) ->  | BC37: =IF('Physical Data'!BB37="","",'Physical Data'!BB37) ->  | BD37: =IF('Physical Data'!BC37="","",'Physical Data'!BC37) ->  | BE37: =IF('Physical Data'!BD37="","",'Physical Data'!BD37) -> 
H38: =IF('Physical Data'!H38="","",'Physical Data'!H38) ->  | I38: =IF('Physical Data'!I38="","",'Physical Data'!I38) ->  | J38: =IF('Physical Data'!J38="","",'Physical Data'!J38) ->  | K38: =IFERROR(IF(J38="","",(IF(VLOOKUP(J38,'Application info'!$K$8:$L$37,2,0)="y","y",""))),"Manual entry required") ->  | L38: =IF('Physical Data'!K38="","",'Physical Data'!K38) ->  | M38: =IF('Physical Data'!L38="","",'Physical Data'!L38) ->  | N38: =IF('Physical Data'!M38="","",'Physical Data'!M38) ->  | O38: =IF('Physical Data'!N38="","",'Physical Data'!N38) ->  | P38: =IF('Physical Data'!O38="","",'Physical Data'!O38) ->  | Q38: =IF('Physical Data'!P38="","",'Physical Data'!P38) ->  | R38: =IF('Physical Data'!Q38="","",'Physical Data'!Q38) ->  | S38: =IF('Physical Data'!R38="","",'Physical Data'!R38) ->  | T38: =IF('Physical Data'!S38="","",'Physical Data'!S38) ->  | U38: =IF('Physical Data'!T38="","",'Physical Data'!T38) ->  | V38: =IF('Physical Data'!U38="","",'Physical Data'!U38) ->  | W38: =IF('Physical Data'!V38="","",'Physical Data'!V38) ->  | X38: =IF('Physical Data'!W38="","",'Physical Data'!W38) ->  | Y38: =IF('Physical Data'!X38="","",'Physical Data'!X38) ->  | Z38: =IF('Physical Data'!Y38="","",'Physical Data'!Y38) ->  | AA38: =IF('Physical Data'!Z38="","",'Physical Data'!Z38) ->  | AB38: =IF('Physical Data'!AA38="","",'Physical Data'!AA38) ->  | AC38: =IF('Physical Data'!AB38="","",'Physical Data'!AB38) ->  | AD38: =IF('Physical Data'!AC38="","",'Physical Data'!AC38) ->  | AE38: =IF('Physical Data'!AD38="","",'Physical Data'!AD38) ->  | AF38: =IF('Physical Data'!AE38="","",'Physical Data'!AE38) ->  | AG38: =IF('Physical Data'!AF38="","",'Physical Data'!AF38) ->  | AH38: =IF('Physical Data'!AG38="","",'Physical Data'!AG38) ->  | AI38: =IF('Physical Data'!AH38="","",'Physical Data'!AH38) ->  | AJ38: =IF('Physical Data'!AI38="","",'Physical Data'!AI38) ->  | AK38: =IF('Physical Data'!AJ38="","",'Physical Data'!AJ38) ->  | AL38: =IF('Physical Data'!AK38="","",'Physical Data'!AK38) ->  | AM38: =IF('Physical Data'!AL38="","",'Physical Data'!AL38) ->  | AN38: =IF('Physical Data'!AM38="","",'Physical Data'!AM38) ->  | AO38: =IF('Physical Data'!AN38="","",'Physical Data'!AN38) ->  | AP38: =IF('Physical Data'!AO38="","",'Physical Data'!AO38) ->  | AQ38: =IF('Physical Data'!AP38="","",'Physical Data'!AP38) ->  | AR38: =IF('Physical Data'!AQ38="","",'Physical Data'!AQ38) ->  | AS38: =IF('Physical Data'!AR38="","",'Physical Data'!AR38) ->  | AT38: =IF('Physical Data'!AS38="","",'Physical Data'!AS38) ->  | AU38: =IF('Physical Data'!AT38="","",'Physical Data'!AT38) ->  | AV38: =IF('Physical Data'!AU38="","",'Physical Data'!AU38) ->  | AW38: =IF('Physical Data'!AV38="","",'Physical Data'!AV38) ->  | AX38: =IF('Physical Data'!AW38="","",'Physical Data'!AW38) ->  | AY38: =IF('Physical Data'!AX38="","",'Physical Data'!AX38) ->  | AZ38: =IF('Physical Data'!AY38="","",'Physical Data'!AY38) ->  | BA38: =IF('Physical Data'!AZ38="","",'Physical Data'!AZ38) ->  | BB38: =IF('Physical Data'!BA38="","",'Physical Data'!BA38) ->  | BC38: =IF('Physical Data'!BB38="","",'Physical Data'!BB38) ->  | BD38: =IF('Physical Data'!BC38="","",'Physical Data'!BC38) ->  | BE38: =IF('Physical Data'!BD38="","",'Physical Data'!BD38) -> 
H40: Averages: | N40: =IF(COUNT(N9:N38)<1,"", AVERAGE(N9:N38)) ->  | P40: 0 | Q40: 0 | R40: 0 | S40: 0 | T40: 0.009547695652 | U40: 0.0342736087 | V40: 0.03560556522 | W40: 0.04894986957 | X40: 0.08044895652 | Y40: 0.06337878261 | Z40: 0.05925204348 | AA40: 0.05152746391 | AB40: 0.03331494217 | AC40: 0.370875 | AD40: 0.4226214209 | AE40: 0.4927392178 | AF40: 3.086181232 | AG40: 5.412463928 | AH40: 5.470490854 | AI40: 5.863166203 | AJ40: 6.826841218 | AK40: 7.72411613 | AL40: 7.669701507 | AM40: 8.703587261 | AN40: 8.939792448 | AO40: 7.931709305 | AP40: 6.91857784 | AQ40: 5.518244073 | AR40: 4.089004739 | AS40: 2.922655535 | AT40: 2.213051841 | AU40: 1.801212028 | AV40: 1.589731755 | AW40: 1.499596419 | AX40: 1.384336117 | AY40: 1.130925277 | AZ40: 0.7594523639 | BA40: 0.4785290722 | BB40: 0.2595615291 | BC40: 0.09370381478 | BD40: 0.01082986261 | BE40: 0 | BF40: 0.2722044783 | BG40: 21.26263231 | BH40: 0.5149694496 | BI40: 0.9153606387 | BJ40: 19.83230222 | BK40: 78.46516014
G44: Removal of excluded areas
H46: Laboratory sample number | I46: Dredge Area | J46: Sample ID(s) | K46: Excluded (y if yes) | L46: Particle size summary statistics
L47: Total solids (%) | N47: Gravel (%) | O47: Sand (%) | P47: Silt/Clay (%)
H49: =IF(H9="","",H9) -> MAR02481.001 | I49: =IF($K9="y","",I9) ->  | J49: =IF($K9="y","",J9) -> 1 | K49: =IF(K9="","",K9) ->  | L49: =IF($K9="y","",N9) ->  | N49: =IF($K9="y","",BF9) -> 0 | O49: =IF($K9="y","",BG9) -> 29.28593334 | P49: =IF($K9="y","",BK9) -> 70.71406556
H50: =IF(H10="","",H10) -> MAR02481.002 | I50: =IF($K10="y","",I10) ->  | J50: 2 | L50: =IF($K10="y","",N10) ->  | N50: =IF($K10="y","",BF10) -> 0 | O50: =IF($K10="y","",BG10) -> 20.1631 | P50: =IF($K10="y","",BK10) -> 79.83689809
H51: =IF(H11="","",H11) -> MAR02481.003 | J51: 3 | N51: 0 | O51: 22.36376667 | P51: 77.63623252
H52: =IF(H12="","",H12) -> MAR02481.004 | J52: 4 | N52: 0 | O52: 15.10356667 | P52: 84.89643076
H53: =IF(H13="","",H13) -> MAR02481.005 | J53: 5 | N53: 0 | O53: 17.57006667 | P53: 82.42993091
H54: =IF(H14="","",H14) -> MAR02481.006 | J54: 6 | N54: 0 | O54: 18.5629 | P54: 81.43709864
H55: =IF(H15="","",H15) -> MAR02481.007 | J55: 7 | N55: 0 | O55: 9.6682 | P55: 90.33179709
H56: =IF(H16="","",H16) -> MAR02481.008 | J56: 8 | N56: 0 | O56: 20.95273334 | P56: 79.04726446
H57: =IF(H17="","",H17) -> MAR02481.009 | J57: 9 | N57: 0 | O57: 5.6409 | P57: 94.35909372
H58: =IF(H18="","",H18) -> MAR02481.010 | J58: 10 | N58: 1.630746 | O58: 4.02453 | P58: 94.344718
H59: =IF(H19="","",H19) -> MAR02481.011 | J59: 11 | N59: 0 | O59: 9.37563334 | P59: 90.62436155
H60: =IF(H20="","",H20) -> MAR02481.012 | J60: 12 | N60: 0 | O60: 10.75793334 | P60: 89.24206203
H61: =IF(H21="","",H21) -> MAR02481.013 | J61: 13 | N61: 0 | O61: 13.6971 | P61: 86.30289636
H62: =IF(H22="","",H22) -> MAR02481.014 | J62: 15 | N62: 0 | O62: 26.50673334 | P62: 73.49326666
H63: =IF(H23="","",H23) -> MAR02481.015 | J63: 17 | N63: 1.3256 | O63: 21.162327 | P63: 77.512067
H64: =IF(H24="","",H24) -> MAR02481.016 | J64: 18 | N64: 0.380086 | O64: 22.394284 | P64: 77.225626
H65: =IF(H25="","",H25) -> MAR02481.017 | J65: 19 | N65: 0 | O65: 30.8792 | P65: 69.12079695
H66: =IF(H26="","",H26) -> MAR02481.018 | J66: 20 | N66: 0 | O66: 20.624 | P66: 79.37599661
H67: =IF(H27="","",H27) -> MAR02481.019 | J67: 21 | N67: 1.16866 | O67: 20.511639 | P67: 78.319699
H68: =IF(H28="","",H28) -> MAR02481.020 | J68: 22 | N68: 0.228632 | O68: 21.188795 | P68: 78.582568
H69: =IF(H29="","",H29) -> MAR02481.021 | J69: 23 | N69: 1.400874 | O69: 1.004899 | P69: 97.594225
H70: =IF(H30="","",H30) -> MAR02481.022 | J70: 24 | N70: 0.126105 | O70: 63.800469 | P70: 36.073423
H71: =IF(H31="","",H31) -> MAR02481.023 | J71: 25 | N71: 0 | O71: 63.80183334 | P71: 36.19816523
H72: =IF(H32="","",H32) -> 
H73: =IF(H33="","",H33) -> 
H74: =IF(H34="","",H34) -> 
H75: =IF(H35="","",H35) -> 
H76: =IF(H36="","",H36) -> 
H77: =IF(H37="","",H37) -> 
H78: =IF(H38="","",H38) -> 
H80: Averages: | L80: =IF(COUNT(L49:L78)<1,"", AVERAGE(L49:L78)) ->  | N80: 0.2722044783 | O80: 21.26263231 | P80: 78.46516014
G84: Average of dredge areas
K86: Dredge area | L86: Particle size summary statistics
L87: Total solids (%) | N87: Gravel (%) | O87: Sand (%) | P87: Silt/Clay (%)
K89: Area i | L89: =IF(COUNTIF($I$49:$I$78,"Area i")<1,"",AVERAGEIF($I$49:$I$78,"Area i",L$49:L$78)) ->  | N89: =IF(COUNTIF($I$49:$I$78,"Area i")<1,"",AVERAGEIF($I$49:$I$78,"Area i",N$49:N$78)) ->  | O89: =IF(COUNTIF($I$49:$I$78,"Area i")<1,"",AVERAGEIF($I$49:$I$78,"Area i",O$49:O$78)) -> 
K90: Area ii | L90: =IF(COUNTIF($I$49:$I$78,"Area ii")<1,"",AVERAGEIF($I$49:$I$78,"Area ii",L$49:L$78)) ->  | N90: =IF(COUNTIF($I$49:$I$78,"Area ii")<1,"",AVERAGEIF($I$49:$I$78,"Area ii",N$49:N$78)) ->  | O90: =IF(COUNTIF($I$49:$I$78,"Area ii")<1,"",AVERAGEIF($I$49:$I$78,"Area ii",O$49:O$78)) -> 
K91: Area iii | L91: =IF(COUNTIF($I$49:$I$78,"Area iii")<1,"",AVERAGEIF($I$49:$I$78,"Area iii",L$49:L$78)) ->  | N91: =IF(COUNTIF($I$49:$I$78,"Area iii")<1,"",AVERAGEIF($I$49:$I$78,"Area iii",N$49:N$78)) ->  | O91: =IF(COUNTIF($I$49:$I$78,"Area iii")<1,"",AVERAGEIF($I$49:$I$78,"Area iii",O$49:O$78)) -> 
K92: Area iv | L92: =IF(COUNTIF($I$49:$I$78,"Area iv")<1,"",AVERAGEIF($I$49:$I$78,"Area iv",L$49:L$78)) ->  | N92: =IF(COUNTIF($I$49:$I$78,"Area iv")<1,"",AVERAGEIF($I$49:$I$78,"Area iv",N$49:N$78)) ->  | O92: =IF(COUNTIF($I$49:$I$78,"Area iv")<1,"",AVERAGEIF($I$49:$I$78,"Area iv",O$49:O$78)) -> 
K93: Area v | L93: =IF(COUNTIF($I$49:$I$78,"Area v")<1,"",AVERAGEIF($I$49:$I$78,"Area v",L$49:L$78)) ->  | N93: =IF(COUNTIF($I$49:$I$78,"Area v")<1,"",AVERAGEIF($I$49:$I$78,"Area v",N$49:N$78)) ->  | O93: =IF(COUNTIF($I$49:$I$78,"Area v")<1,"",AVERAGEIF($I$49:$I$78,"Area v",O$49:O$78)) -> 
K94: Area vi | L94: =IF(COUNTIF($I$49:$I$78,"Area vi")<1,"",AVERAGEIF($I$49:$I$78,"Area vi",L$49:L$78)) ->  | N94: =IF(COUNTIF($I$49:$I$78,"Area vi")<1,"",AVERAGEIF($I$49:$I$78,"Area vi",N$49:N$78)) ->  | O94: =IF(COUNTIF($I$49:$I$78,"Area vi")<1,"",AVERAGEIF($I$49:$I$78,"Area vi",O$49:O$78)) -> 
G98: PR weightings (dredge area averages multiplied by proportion of total tonnages)
K100: Dredge area | L100: Particle size summary statistics
L101: Total solids (%) | N101: Gravel (%) | O101: Sand (%) | P101: Silt/Clay (%)
K103: Area i | L103: =IF(L89="","",L89*'PR details'!$G4) ->  | N103: =IF(N89="","",N89*'PR details'!$G4) ->  | O103: =IF(O89="","",O89*'PR details'!$G4) ->  | P103: =IF(P89="","",P89*'PR details'!$G4) -> 
K104: Area ii | L104: =IF(L90="","",L90*'PR details'!$G5) ->  | N104: =IF(N90="","",N90*'PR details'!$G5) ->  | O104: =IF(O90="","",O90*'PR details'!$G5) ->  | P104: =IF(P90="","",P90*'PR details'!$G5) -> 
K105: Area iii | L105: =IF(L91="","",L91*'PR details'!$G6) ->  | N105: =IF(N91="","",N91*'PR details'!$G6) ->  | O105: =IF(O91="","",O91*'PR details'!$G6) ->  | P105: =IF(P91="","",P91*'PR details'!$G6) -> 
K106: Area iv | L106: =IF(L92="","",L92*'PR details'!$G7) ->  | N106: =IF(N92="","",N92*'PR details'!$G7) ->  | O106: =IF(O92="","",O92*'PR details'!$G7) ->  | P106: =IF(P92="","",P92*'PR details'!$G7) -> 
K107: Area v | L107: =IF(L93="","",L93*'PR details'!$G8) ->  | N107: =IF(N93="","",N93*'PR details'!$G8) ->  | O107: =IF(O93="","",O93*'PR details'!$G8) ->  | P107: =IF(P93="","",P93*'PR details'!$G8) -> 
K108: Area vi | L108: =IF(L94="","",L94*'PR details'!$G9) ->  | N108: =IF(N94="","",N94*'PR details'!$G9) ->  | O108: =IF(O94="","",O94*'PR details'!$G9) ->  | P108: =IF(P94="","",P94*'PR details'!$G9) -> 
G112: PR average
L114: Particle size summary statistics
L115: Total solids (%) | N115: Gravel (%) | O115: Sand (%) | P115: Silt/Clay (%)
L117: =IF(COUNT(L103:L108)<1,"",SUM(L103:L108)) ->  | N117: =IF(COUNT(N103:N108)<1,"",SUM(N103:N108)) ->  | O117: =IF(COUNT(O103:O108)<1,"",SUM(O103:O108)) ->  | P117: =IF(COUNT(P103:P108)<1,"",SUM(P103:P108)) -> 

Sheet PSA charts (hidden)
B578: LSN | C578: 45000 | D578: 31500 | E578: 22400 | F578: 16000 | G578: 11200 | H578: 8000 | I578: 5600 | J578: 4000 | K578: 2800 | L578: 2000 | M578: 1400 | N578: 1000 | O578: 707 | P578: 500 | Q578: 353.6 | R578: 250 | S578: 176.8 | T578: 125 | U578: 88.39 | V578: 63 | W578: 44.2 | X578: 31.3 | Y578: 22.1 | Z578: 15.6 | AA578: 11 | AB578: 7.8 | AC578: 5.5 | AD578: 3.9 | AE578: 2.75 | AF578: 1.95 | AG578: 1.38 | AH578: 0.98 | AI578: 0.69 | AJ578: 0.49 | AK578: 0.34 | AL578: 0.24 | AM578: 0.17 | AN578: 0.12 | AO578: 0.09 | AP578: 0.06 | AQ578: 0.04 | AR578: 0
A579: x-axis (phi) | C579: -5.5 | D579: -5 | E579: -4.5 | F579: -4 | G579: -3.5 | H579: -3 | I579: -2.5 | J579: -2 | K579: -1.5 | L579: -1 | M579: -0.5 | N579: 0 | O579: 0.5 | P579: 1 | Q579: 1.5 | R579: 2 | S579: 2.5 | T579: 3 | U579: 3.5 | V579: 4 | W579: 4.5 | X579: 5 | Y579: 5.5 | Z579: 6 | AA579: 6.5 | AB579: 7 | AC579: 7.5 | AD579: 8 | AE579: 8.5 | AF579: 9 | AG579: 9.5 | AH579: 10 | AI579: 10.5 | AJ579: 11 | AK579: 11.5 | AL579: 12 | AM579: 12.5 | AN579: 13 | AO579: 13.5 | AP579: 14 | AQ579: 14.5 | AR579: >14.5
AT580: Area | AW580: -5.5 | AX580: -5 | AY580: -4.5 | AZ580: -4 | BA580: -3.5 | BB580: -3 | BC580: -2.5 | BD580: -2 | BE580: -1.5 | BF580: -1 | BG580: -0.5 | BH580: 0 | BI580: 0.5 | BJ580: 1 | BK580: 1.5 | BL580: 2 | BM580: 2.5 | BN580: 3 | BO580: 3.5 | BP580: 4 | BQ580: 4.5 | BR580: 5 | BS580: 5.5 | BT580: 6 | BU580: 6.5 | BV580: 7 | BW580: 7.5 | BX580: 8 | BY580: 8.5 | BZ580: 9 | CA580: 9.5 | CB580: 10 | CC580: 10.5 | CD580: 11 | CE580: 11.5 | CF580: 12 | CG580: 12.5 | CH580: 13 | CI580: 13.5 | CJ580: 14 | CK580: 14.5 | CL580: >14.5
A581: y-axis | B581: =IF('Physical Data'!J9="","",'Physical Data'!J9) -> 1 | C581: ='Physical Stats'!P9 -> 0 | D581: ='Physical Stats'!Q9 -> 0 | E581: ='Physical Stats'!R9 -> 0 | F581: ='Physical Stats'!S9 -> 0 | G581: ='Physical Stats'!T9 -> 0 | H581: ='Physical Stats'!U9 -> 0 | I581: ='Physical Stats'!V9 -> 0 | J581: ='Physical Stats'!W9 -> 0 | K581: ='Physical Stats'!X9 -> 0 | L581: ='Physical Stats'!Y9 -> 0 | M581: ='Physical Stats'!Z9 -> 0 | N581: ='Physical Stats'!AA9 -> 0 | O581: ='Physical Stats'!AB9 -> 0 | P581: ='Physical Stats'!AC9 -> 0 | Q581: ='Physical Stats'!AD9 -> 0 | R581: ='Physical Stats'!AE9 -> 0.1676 | S581: ='Physical Stats'!AF9 -> 3.0241 | T581: ='Physical Stats'!AG9 -> 6.97793334 | U581: ='Physical Stats'!AH9 -> 8.98783333 | V581: ='Physical Stats'!AI9 -> 10.12846667 | W581: ='Physical Stats'!AJ9 -> 11.08736666 | X581: ='Physical Stats'!AK9 -> 11.51853334 | Y581: ='Physical Stats'!AL9 -> 10.64116666 | Z581: ='Physical Stats'!AM9 -> 9.82493334 | AA581: ='Physical Stats'!AN9 -> 8.23786666 | AB581: ='Physical Stats'!AO9 -> 6.08516667 | AC581: ='Physical Stats'!AP9 -> 4.35620667 | AD581: ='Physical Stats'!AQ9 -> 2.84871333 | AE581: ='Physical Stats'!AR9 -> 1.77124 | AF581: ='Physical Stats'!AS9 -> 1.07895667 | AG581: ='Physical Stats'!AT9 -> 0.71486666 | AH581: ='Physical Stats'!AU9 -> 0.54298 | AI581: ='Physical Stats'!AV9 -> 0.45941334 | AJ581: ='Physical Stats'!AW9 -> 0.40604333 | AK581: ='Physical Stats'!AX9 -> 0.35290233 | AL581: ='Physical Stats'!AY9 -> 0.28928934 | AM581: ='Physical Stats'!AZ9 -> 0.21324333 | AN581: ='Physical Stats'!BA9 -> 0.15207367 | AO581: ='Physical Stats'!BB9 -> 0.0920559 | AP581: ='Physical Stats'!BC9 -> 0.03661437 | AQ581: ='Physical Stats'!BD9 -> 0.00443329 | AR581: ='Physical Stats'!BE9 -> 0 | AT581: ='Physical Stats'!I9 ->  | AV581: Area i | AW581: =IF(COUNTIF($AT$581:$AT$610,"Area i")<1,"",AVERAGEIF($AT$581:$AT$610,"Area i",C581:C610)) -> 
B582: =IF('Physical Data'!J10="","",'Physical Data'!J10) -> 2 | C582: ='Physical Stats'!P10 -> 0 | D582: ='Physical Stats'!Q10 -> 0 | E582: ='Physical Stats'!R10 -> 0 | F582: ='Physical Stats'!S10 -> 0 | G582: ='Physical Stats'!T10 -> 0 | H582: ='Physical Stats'!U10 -> 0 | I582: ='Physical Stats'!V10 -> 0 | J582: ='Physical Stats'!W10 -> 0 | K582: ='Physical Stats'!X10 -> 0 | L582: ='Physical Stats'!Y10 -> 0 | M582: ='Physical Stats'!Z10 -> 0 | N582: ='Physical Stats'!AA10 -> 0 | O582: ='Physical Stats'!AB10 -> 0 | P582: ='Physical Stats'!AC10 -> 0 | Q582: ='Physical Stats'!AD10 -> 0 | R582: ='Physical Stats'!AE10 -> 0.0776 | S582: ='Physical Stats'!AF10 -> 2.06643334 | T582: ='Physical Stats'!AG10 -> 4.77583333 | U582: ='Physical Stats'!AH10 -> 6.12786667 | V582: ='Physical Stats'!AI10 -> 7.11536666 | W582: ='Physical Stats'!AJ10 -> 8.18236667 | X582: ='Physical Stats'!AK10 -> 9.208 | Y582: ='Physical Stats'!AL10 -> 9.2726 | Z582: ='Physical Stats'!AM10 -> 10.25826667 | AA582: ='Physical Stats'!AN10 -> 10.14316666 | AB582: ='Physical Stats'!AO10 -> 8.60996667 | AC582: ='Physical Stats'!AP10 -> 6.9942 | AD582: ='Physical Stats'!AQ10 -> 5.1111 | AE582: ='Physical Stats'!AR10 -> 3.42412333 | AF582: ='Physical Stats'!AS10 -> 2.13925 | AG582: ='Physical Stats'!AT10 -> 1.3947 | AH582: ='Physical Stats'!AU10 -> 1.03028 | AI582: ='Physical Stats'!AV10 -> 0.87906334 | AJ582: ='Physical Stats'!AW10 -> 0.81655 | AK582: ='Physical Stats'!AX10 -> 0.74999333 | AL582: ='Physical Stats'!AY10 -> 0.62811067 | AM582: ='Physical Stats'!AZ10 -> 0.448748 | AN582: ='Physical Stats'!BA10 -> 0.303433 | AO582: ='Physical Stats'!BB10 -> 0.17257943 | AP582: ='Physical Stats'!BC10 -> 0.06322343 | AQ582: ='Physical Stats'!BD10 -> 0.00717689 | AR582: ='Physical Stats'!BE10 -> 0 | AT582: ='Physical Stats'!I10 ->  | AV582: Area ii | AW582: =IF(COUNTIF($AT$581:$AT$610,"Area ii")<1,"",AVERAGEIF($AT$581:$AT$610,"Area ii",C581:C610)) -> 
B583: =IF('Physical Data'!J11="","",'Physical Data'!J11) -> 3 | C583: ='Physical Stats'!P11 -> 0 | D583: ='Physical Stats'!Q11 -> 0 | E583: ='Physical Stats'!R11 -> 0 | F583: ='Physical Stats'!S11 -> 0 | G583: ='Physical Stats'!T11 -> 0 | H583: ='Physical Stats'!U11 -> 0 | I583: ='Physical Stats'!V11 -> 0 | J583: ='Physical Stats'!W11 -> 0 | K583: ='Physical Stats'!X11 -> 0 | L583: ='Physical Stats'!Y11 -> 0 | M583: ='Physical Stats'!Z11 -> 0 | N583: ='Physical Stats'!AA11 -> 0 | O583: ='Physical Stats'!AB11 -> 0 | P583: ='Physical Stats'!AC11 -> 0 | Q583: ='Physical Stats'!AD11 -> 0 | R583: ='Physical Stats'!AE11 -> 0.078 | S583: ='Physical Stats'!AF11 -> 2.5728 | T583: ='Physical Stats'!AG11 -> 6.04416667 | U583: ='Physical Stats'!AH11 -> 6.43873333 | V583: ='Physical Stats'!AI11 -> 7.23006667 | W583: ='Physical Stats'!AJ11 -> 8.16066667 | X583: ='Physical Stats'!AK11 -> 8.63533333 | Y583: ='Physical Stats'!AL11 -> 8.33253333 | Z583: ='Physical Stats'!AM11 -> 8.8059 | AA583: ='Physical Stats'!AN11 -> 8.66643334 | AB583: ='Physical Stats'!AO11 -> 7.39126666 | AC583: ='Physical Stats'!AP11 -> 6.37993334 | AD583: ='Physical Stats'!AQ11 -> 5.1795 | AE583: ='Physical Stats'!AR11 -> 3.9779 | AF583: ='Physical Stats'!AS11 -> 2.89836666 | AG583: ='Physical Stats'!AT11 -> 2.10588 | AH583: ='Physical Stats'!AU11 -> 1.55802334 | AI583: ='Physical Stats'!AV11 -> 1.27285333 | AJ583: ='Physical Stats'!AW11 -> 1.18279 | AK583: ='Physical Stats'!AX11 -> 1.11058667 | AL583: ='Physical Stats'!AY11 -> 0.90677733 | AM583: ='Physical Stats'!AZ11 -> 0.57572667 | AN583: ='Physical Stats'!BA11 -> 0.31700366 | AO583: ='Physical Stats'!BB11 -> 0.13687764 | AP583: ='Physical Stats'!BC11 -> 0.03791191 | AQ583: ='Physical Stats'!BD11 -> 0.00396864 | AR583: ='Physical Stats'!BE11 -> 0 | AT583: ='Physical Stats'!I11 ->  | AV583: Area iii | AW583: =IF(COUNTIF($AT$581:$AT$610,"Area iii")<1,"",AVERAGEIF($AT$581:$AT$610,"Area iii",C581:C610)) -> 
B584: =IF('Physical Data'!J12="","",'Physical Data'!J12) -> 4 | C584: ='Physical Stats'!P12 -> 0 | D584: ='Physical Stats'!Q12 -> 0 | E584: ='Physical Stats'!R12 -> 0 | F584: ='Physical Stats'!S12 -> 0 | G584: ='Physical Stats'!T12 -> 0 | H584: ='Physical Stats'!U12 -> 0 | I584: ='Physical Stats'!V12 -> 0 | J584: ='Physical Stats'!W12 -> 0 | K584: ='Physical Stats'!X12 -> 0 | L584: ='Physical Stats'!Y12 -> 0 | M584: ='Physical Stats'!Z12 -> 0 | N584: ='Physical Stats'!AA12 -> 0 | O584: ='Physical Stats'!AB12 -> 0 | P584: ='Physical Stats'!AC12 -> 0 | Q584: ='Physical Stats'!AD12 -> 0 | R584: ='Physical Stats'!AE12 -> 0.03243334 | S584: ='Physical Stats'!AF12 -> 1.67433333 | T584: ='Physical Stats'!AG12 -> 3.86063333 | U584: ='Physical Stats'!AH12 -> 4.4101 | V584: ='Physical Stats'!AI12 -> 5.12606667 | W584: ='Physical Stats'!AJ12 -> 6.58116667 | X584: ='Physical Stats'!AK12 -> 8.1188 | Y584: ='Physical Stats'!AL12 -> 8.72563333 | Z584: ='Physical Stats'!AM12 -> 10.65456667 | AA584: ='Physical Stats'!AN12 -> 11.2653 | AB584: ='Physical Stats'!AO12 -> 9.9837 | AC584: ='Physical Stats'!AP12 -> 8.36753333 | AD584: ='Physical Stats'!AQ12 -> 6.25746667 | AE584: ='Physical Stats'!AR12 -> 4.2537 | AF584: ='Physical Stats'!AS12 -> 2.67691333 | AG584: ='Physical Stats'!AT12 -> 1.75023333 | AH584: ='Physical Stats'!AU12 -> 1.29004 | AI584: ='Physical Stats'!AV12 -> 1.08624334 | AJ584: ='Physical Stats'!AW12 -> 0.98856666 | AK584: ='Physical Stats'!AX12 -> 0.89399667 | AL584: ='Physical Stats'!AY12 -> 0.74976 | AM584: ='Physical Stats'!AZ12 -> 0.54891433 | AN584: ='Physical Stats'!BA12 -> 0.38204934 | AO584: ='Physical Stats'!BB12 -> 0.22467846 | AP584: ='Physical Stats'!BC12 -> 0.08681123 | AQ584: ='Physical Stats'!BD12 -> 0.0103574 | AR584: ='Physical Stats'!BE12 -> 0 | AT584: ='Physical Stats'!I12 ->  | AV584: Area iv | AW584: =IF(COUNTIF($AT$581:$AT$610,"Area iv")<1,"",AVERAGEIF($AT$581:$AT$610,"Area iv",C581:C610)) -> 
B585: =IF('Physical Data'!J13="","",'Physical Data'!J13) -> 5 | C585: ='Physical Stats'!P13 -> 0 | D585: ='Physical Stats'!Q13 -> 0 | E585: ='Physical Stats'!R13 -> 0 | F585: ='Physical Stats'!S13 -> 0 | G585: ='Physical Stats'!T13 -> 0 | H585: ='Physical Stats'!U13 -> 0 | I585: ='Physical Stats'!V13 -> 0 | J585: ='Physical Stats'!W13 -> 0 | K585: ='Physical Stats'!X13 -> 0 | L585: ='Physical Stats'!Y13 -> 0 | M585: ='Physical Stats'!Z13 -> 0 | N585: ='Physical Stats'!AA13 -> 0 | O585: ='Physical Stats'!AB13 -> 0 | P585: ='Physical Stats'!AC13 -> 0 | Q585: ='Physical Stats'!AD13 -> 0 | R585: ='Physical Stats'!AE13 -> 0.0248 | S585: ='Physical Stats'!AF13 -> 1.576 | T585: ='Physical Stats'!AG13 -> 5.04263334 | U585: ='Physical Stats'!AH13 -> 4.98723333 | V585: ='Physical Stats'!AI13 -> 5.9394 | W585: ='Physical Stats'!AJ13 -> 6.17733333 | X585: ='Physical Stats'!AK13 -> 7.87836667 | Y585: ='Physical Stats'!AL13 -> 8.47996667 | Z585: ='Physical Stats'!AM13 -> 9.83483333 | AA585: ='Physical Stats'!AN13 -> 10.66946667 | AB585: ='Physical Stats'!AO13 -> 9.64163333 | AC585: ='Physical Stats'!AP13 -> 8.18116667 | AD585: ='Physical Stats'!AQ13 -> 6.1902 | AE585: ='Physical Stats'!AR13 -> 4.2767 | AF585: ='Physical Stats'!AS13 -> 2.75549 | AG585: ='Physical Stats'!AT13 -> 1.84109 | AH585: ='Physical Stats'!AU13 -> 1.36258666 | AI585: ='Physical Stats'!AV13 -> 1.1387 | AJ585: ='Physical Stats'!AW13 -> 1.03279 | AK585: ='Physical Stats'!AX13 -> 0.93432 | AL585: ='Physical Stats'!AY13 -> 0.77928667 | AM585: ='Physical Stats'!AZ13 -> 0.56129867 | AN585: ='Physical Stats'!BA13 -> 0.38172733 | AO585: ='Physical Stats'!BB13 -> 0.2194223 | AP585: ='Physical Stats'!BC13 -> 0.08357095 | AQ585: ='Physical Stats'!BD13 -> 0.00998166 | AR585: ='Physical Stats'!BE13 -> 0 | AT585: ='Physical Stats'!I13 ->  | AV585: Area v | AW585: =IF(COUNTIF($AT$581:$AT$610,"Area v")<1,"",AVERAGEIF($AT$581:$AT$610,"Area v",C581:C610)) -> 
B586: =IF('Physical Data'!J14="","",'Physical Data'!J14) -> 6 | C586: ='Physical Stats'!P14 -> 0 | D586: ='Physical Stats'!Q14 -> 0 | E586: ='Physical Stats'!R14 -> 0 | F586: ='Physical Stats'!S14 -> 0 | G586: ='Physical Stats'!T14 -> 0 | H586: ='Physical Stats'!U14 -> 0 | I586: ='Physical Stats'!V14 -> 0 | J586: ='Physical Stats'!W14 -> 0 | K586: ='Physical Stats'!X14 -> 0 | L586: ='Physical Stats'!Y14 -> 0 | M586: ='Physical Stats'!Z14 -> 0 | N586: ='Physical Stats'!AA14 -> 0 | O586: ='Physical Stats'!AB14 -> 0 | P586: ='Physical Stats'!AC14 -> 0 | Q586: ='Physical Stats'!AD14 -> 0 | R586: ='Physical Stats'!AE14 -> 0.09573334 | S586: ='Physical Stats'!AF14 -> 2.93056666 | T586: ='Physical Stats'!AG14 -> 5.4682 | U586: ='Physical Stats'!AH14 -> 4.54666667 | V586: ='Physical Stats'!AI14 -> 5.52173333 | W586: ='Physical Stats'!AJ14 -> 5.9134 | X586: ='Physical Stats'!AK14 -> 7.16756667 | Y586: ='Physical Stats'!AL14 -> 7.38026667 | Z586: ='Physical Stats'!AM14 -> 8.7346 | AA586: ='Physical Stats'!AN14 -> 9.13656666 | AB586: ='Physical Stats'!AO14 -> 8.12833334 | AC586: ='Physical Stats'!AP14 -> 7.29413333 | AD586: ='Physical Stats'!AQ14 -> 6.07643333 | AE586: ='Physical Stats'!AR14 -> 4.73726667 | AF586: ='Physical Stats'!AS14 -> 3.5656 | AG586: ='Physical Stats'!AT14 -> 2.75696667 | AH586: ='Physical Stats'!AU14 -> 2.18354333 | AI586: ='Physical Stats'!AV14 -> 1.87148333 | AJ586: ='Physical Stats'!AW14 -> 1.77928667 | AK586: ='Physical Stats'!AX14 -> 1.68498667 | AL586: ='Physical Stats'!AY14 -> 1.38212666 | AM586: ='Physical Stats'!AZ14 -> 0.87775834 | AN586: ='Physical Stats'!BA14 -> 0.48737533 | AO586: ='Physical Stats'!BB14 -> 0.21365423 | AP586: ='Physical Stats'!BC14 -> 0.05963785 | AQ586: ='Physical Stats'!BD14 -> 0.00611289 | AR586: ='Physical Stats'!BE14 -> 0 | AT586: ='Physical Stats'!I14 ->  | AV586: Area vi | AW586: =IF(COUNTIF($AT$581:$AT$610,"Area vi")<1,"",AVERAGEIF($AT$581:$AT$610,"Area vi",C581:C610)) -> 
B587: =IF('Physical Data'!J15="","",'Physical Data'!J15) -> 7 | C587: ='Physical Stats'!P15 -> 0 | D587: ='Physical Stats'!Q15 -> 0 | E587: ='Physical Stats'!R15 -> 0 | F587: ='Physical Stats'!S15 -> 0 | G587: ='Physical Stats'!T15 -> 0 | H587: ='Physical Stats'!U15 -> 0 | I587: ='Physical Stats'!V15 -> 0 | J587: ='Physical Stats'!W15 -> 0 | K587: ='Physical Stats'!X15 -> 0 | L587: ='Physical Stats'!Y15 -> 0 | M587: ='Physical Stats'!Z15 -> 0 | N587: ='Physical Stats'!AA15 -> 0 | O587: ='Physical Stats'!AB15 -> 0 | P587: ='Physical Stats'!AC15 -> 0 | Q587: ='Physical Stats'!AD15 -> 0 | R587: ='Physical Stats'!AE15 -> 0 | S587: ='Physical Stats'!AF15 -> 0.03336667 | T587: ='Physical Stats'!AG15 -> 1.65803333 | U587: ='Physical Stats'!AH15 -> 3.7448 | V587: ='Physical Stats'!AI15 -> 4.232 | W587: ='Physical Stats'!AJ15 -> 4.9473 | X587: ='Physical Stats'!AK15 -> 7.14536667 | Y587: ='Physical Stats'!AL15 -> 8.05566667 | Z587: ='Physical Stats'!AM15 -> 10.43953333 | AA587: ='Physical Stats'!AN15 -> 12.05973333 | AB587: ='Physical Stats'!AO15 -> 11.34573334 | AC587: ='Physical Stats'!AP15 -> 9.86776666 | AD587: ='Physical Stats'!AQ15 -> 7.57873334 | AE587: ='Physical Stats'!AR15 -> 5.2658 | AF587: ='Physical Stats'!AS15 -> 3.37863333 | AG587: ='Physical Stats'!AT15 -> 2.23432667 | AH587: ='Physical Stats'!AU15 -> 1.64559 | AI587: ='Physical Stats'!AV15 -> 1.38724333 | AJ587: ='Physical Stats'!AW15 -> 1.27780333 | AK587: ='Physical Stats'!AX15 -> 1.17039 | AL587: ='Physical Stats'!AY15 -> 0.98008667 | AM587: ='Physical Stats'!AZ15 -> 0.701044 | AN587: ='Physical Stats'!BA15 -> 0.47187433 | AO587: ='Physical Stats'!BB15 -> 0.26766534 | AP587: ='Physical Stats'!BC15 -> 0.09981446 | AQ587: ='Physical Stats'!BD15 -> 0.01169229 | AR587: ='Physical Stats'!BE15 -> 0 | AT587: ='Physical Stats'!I15 -> 
B588: =IF('Physical Data'!J16="","",'Physical Data'!J16) -> 8 | C588: ='Physical Stats'!P16 -> 0 | D588: ='Physical Stats'!Q16 -> 0 | E588: ='Physical Stats'!R16 -> 0 | F588: ='Physical Stats'!S16 -> 0 | G588: ='Physical Stats'!T16 -> 0 | H588: ='Physical Stats'!U16 -> 0 | I588: ='Physical Stats'!V16 -> 0 | J588: ='Physical Stats'!W16 -> 0 | K588: ='Physical Stats'!X16 -> 0 | L588: ='Physical Stats'!Y16 -> 0 | M588: ='Physical Stats'!Z16 -> 0 | N588: ='Physical Stats'!AA16 -> 0 | O588: ='Physical Stats'!AB16 -> 0 | P588: ='Physical Stats'!AC16 -> 0 | Q588: ='Physical Stats'!AD16 -> 0.00173334 | R588: ='Physical Stats'!AE16 -> 1.1724 | S588: ='Physical Stats'!AF16 -> 5.594 | T588: ='Physical Stats'!AG16 -> 4.8885 | U588: ='Physical Stats'!AH16 -> 4.50883333 | V588: ='Physical Stats'!AI16 -> 4.78726667 | W588: ='Physical Stats'!AJ16 -> 5.3619 | X588: ='Physical Stats'!AK16 -> 6.67213333 | Y588: ='Physical Stats'!AL16 -> 7.05783333 | Z588: ='Physical Stats'!AM16 -> 8.75533334 | AA588: ='Physical Stats'!AN16 -> 9.47426666 | AB588: ='Physical Stats'!AO16 -> 8.5541 | AC588: ='Physical Stats'!AP16 -> 7.55693334 | AD588: ='Physical Stats'!AQ16 -> 6.09303333 | AE588: ='Physical Stats'!AR16 -> 4.55996667 | AF588: ='Physical Stats'!AS16 -> 3.30083333 | AG588: ='Physical Stats'!AT16 -> 2.5143 | AH588: ='Physical Stats'!AU16 -> 2.00298 | AI588: ='Physical Stats'!AV16 -> 1.68266333 | AJ588: ='Physical Stats'!AW16 -> 1.50825 | AK588: ='Physical Stats'!AX16 -> 1.35054334 | AL588: ='Physical Stats'!AY16 -> 1.09408 | AM588: ='Physical Stats'!AZ16 -> 0.732491 | AN588: ='Physical Stats'!BA16 -> 0.453628 | AO588: ='Physical Stats'!BB16 -> 0.23411826 | AP588: ='Physical Stats'!BC16 -> 0.07908761 | AQ588: ='Physical Stats'!BD16 -> 0.00878959 | AR588: ='Physical Stats'!BE16 -> 0 | AT588: ='Physical Stats'!I16 -> 
B589: =IF('Physical Data'!J17="","",'Physical Data'!J17) -> 9 | C589: ='Physical Stats'!P17 -> 0 | D589: ='Physical Stats'!Q17 -> 0 | E589: ='Physical Stats'!R17 -> 0 | F589: ='Physical Stats'!S17 -> 0 | G589: ='Physical Stats'!T17 -> 0 | H589: ='Physical Stats'!U17 -> 0 | I589: ='Physical Stats'!V17 -> 0 | J589: ='Physical Stats'!W17 -> 0 | K589: ='Physical Stats'!X17 -> 0 | L589: ='Physical Stats'!Y17 -> 0 | M589: ='Physical Stats'!Z17 -> 0 | N589: ='Physical Stats'!AA17 -> 0 | O589: ='Physical Stats'!AB17 -> 0 | P589: ='Physical Stats'!AC17 -> 0 | Q589: ='Physical Stats'!AD17 -> 0 | R589: ='Physical Stats'!AE17 -> 0 | S589: ='Physical Stats'!AF17 -> 0 | T589: ='Physical Stats'!AG17 -> 0.08843334 | U589: ='Physical Stats'!AH17 -> 1.76716666 | V589: ='Physical Stats'!AI17 -> 3.7853 | W589: ='Physical Stats'!AJ17 -> 5.6314 | X589: ='Physical Stats'!AK17 -> 6.72646667 | Y589: ='Physical Stats'!AL17 -> 7.24953333 | Z589: ='Physical Stats'!AM17 -> 9.51096667 | AA589: ='Physical Stats'!AN17 -> 10.51966667 | AB589: ='Physical Stats'!AO17 -> 9.51613333 | AC589: ='Physical Stats'!AP17 -> 8.4251 | AD589: ='Physical Stats'!AQ17 -> 6.85833333 | AE589: ='Physical Stats'!AR17 -> 5.30673334 | AF589: ='Physical Stats'!AS17 -> 4.2322 | AG589: ='Physical Stats'!AT17 -> 3.74093333 | AH589: ='Physical Stats'!AU17 -> 3.40403333 | AI589: ='Physical Stats'!AV17 -> 3.04732334 | AJ589: ='Physical Stats'!AW17 -> 2.72511333 | AK589: ='Physical Stats'!AX17 -> 2.38477333 | AL589: ='Physical Stats'!AY17 -> 1.94850334 | AM589: ='Physical Stats'!AZ17 -> 1.39334 | AN589: ='Physical Stats'!BA17 -> 0.95548133 | AO589: ='Physical Stats'!BB17 -> 0.55322633 | AP589: ='Physical Stats'!BC17 -> 0.2062179 | AQ589: ='Physical Stats'!BD17 -> 0.02361482 | AR589: ='Physical Stats'!BE17 -> 0 | AT589: ='Physical Stats'!I17 -> 
B590: =IF('Physical Data'!J18="","",'Physical Data'!J18) -> 10 | C590: ='Physical Stats'!P18 -> 0 | D590: ='Physical Stats'!Q18 -> 0 | E590: ='Physical Stats'!R18 -> 0 | F590: ='Physical Stats'!S18 -> 0 | G590: ='Physical Stats'!T18 -> 0 | H590: ='Physical Stats'!U18 -> 0 | I590: ='Physical Stats'!V18 -> 0.046001 | J590: ='Physical Stats'!W18 -> 0.386411 | K590: ='Physical Stats'!X18 -> 0.807323 | L590: ='Physical Stats'!Y18 -> 0.391011 | M590: ='Physical Stats'!Z18 -> 0.170205 | N590: ='Physical Stats'!AA18 -> 0.144904 | O590: ='Physical Stats'!AB18 -> 0 | P590: ='Physical Stats'!AC18 -> 0 | Q590: ='Physical Stats'!AD18 -> 0 | R590: ='Physical Stats'!AE18 -> 0 | S590: ='Physical Stats'!AF18 -> 0 | T590: ='Physical Stats'!AG18 -> 0 | U590: ='Physical Stats'!AH18 -> 0.140871 | V590: ='Physical Stats'!AI18 -> 3.56855 | W590: ='Physical Stats'!AJ18 -> 7.242279 | X590: ='Physical Stats'!AK18 -> 7.346151 | Y590: ='Physical Stats'!AL18 -> 7.703232 | Z590: ='Physical Stats'!AM18 -> 9.755276 | AA590: ='Physical Stats'!AN18 -> 10.442374 | AB590: ='Physical Stats'!AO18 -> 9.377506 | AC590: ='Physical Stats'!AP18 -> 8.283386 | AD590: ='Physical Stats'!AQ18 -> 6.715728 | AE590: ='Physical Stats'!AR18 -> 5.148921 | AF590: ='Physical Stats'!AS18 -> 4.025547 | AG590: ='Physical Stats'!AT18 -> 3.477948 | AH590: ='Physical Stats'!AU18 -> 3.116847 | AI590: ='Physical Stats'!AV18 -> 2.754838 | AJ590: ='Physical Stats'!AW18 -> 2.424271 | AK590: ='Physical Stats'!AX18 -> 2.087367 | AL590: ='Physical Stats'!AY18 -> 1.69048 | AM590: ='Physical Stats'!AZ18 -> 1.213286 | AN590: ='Physical Stats'!BA18 -> 0.838305 | AO590: ='Physical Stats'!BB18 -> 0.491061 | AP590: ='Physical Stats'!BC18 -> 0.187798 | AQ590: ='Physical Stats'!BD18 -> 0.022117 | AR590: ='Physical Stats'!BE18 -> 0 | AT590: ='Physical Stats'!I18 -> 
B591: =IF('Physical Data'!J19="","",'Physical Data'!J19) -> 11 | C591: ='Physical Stats'!P19 -> 0 | D591: ='Physical Stats'!Q19 -> 0 | E591: ='Physical Stats'!R19 -> 0 | F591: ='Physical Stats'!S19 -> 0 | G591: ='Physical Stats'!T19 -> 0 | H591: ='Physical Stats'!U19 -> 0 | I591: ='Physical Stats'!V19 -> 0 | J591: ='Physical Stats'!W19 -> 0 | K591: ='Physical Stats'!X19 -> 0 | L591: ='Physical Stats'!Y19 -> 0 | M591: ='Physical Stats'!Z19 -> 0 | N591: ='Physical Stats'!AA19 -> 0 | O591: ='Physical Stats'!AB19 -> 0 | P591: ='Physical Stats'!AC19 -> 0 | Q591: ='Physical Stats'!AD19 -> 0 | R591: ='Physical Stats'!AE19 -> 0 | S591: ='Physical Stats'!AF19 -> 0 | T591: ='Physical Stats'!AG19 -> 0.0389 | U591: ='Physical Stats'!AH19 -> 2.81246667 | V591: ='Physical Stats'!AI19 -> 6.52426667 | W591: ='Physical Stats'!AJ19 -> 7.37613333 | X591: ='Physical Stats'!AK19 -> 8.2648 | Y591: ='Physical Stats'!AL19 -> 8.4454 | Z591: ='Physical Stats'!AM19 -> 9.78426667 | AA591: ='Physical Stats'!AN19 -> 9.8578 | AB591: ='Physical Stats'!AO19 -> 8.67656666 | AC591: ='Physical Stats'!AP19 -> 7.7244 | AD591: ='Physical Stats'!AQ19 -> 6.42396667 | AE591: ='Physical Stats'!AR19 -> 5.04013333 | AF591: ='Physical Stats'!AS19 -> 3.829 | AG591: ='Physical Stats'!AT19 -> 3.03276667 | AH591: ='Physical Stats'!AU19 -> 2.50393 | AI591: ='Physical Stats'!AV19 -> 2.14839667 | AJ591: ='Physical Stats'!AW19 -> 1.92188666 | AK591: ='Physical Stats'!AX19 -> 1.71552334 | AL591: ='Physical Stats'!AY19 -> 1.43835 | AM591: ='Physical Stats'!AZ19 -> 1.06116333 | AN591: ='Physical Stats'!BA19 -> 0.74533167 | AO591: ='Physical Stats'!BB19 -> 0.442054 | AP591: ='Physical Stats'!BC19 -> 0.17192533 | AQ591: ='Physical Stats'!BD19 -> 0.02056722 | AR591: ='Physical Stats'!BE19 -> 0 | AT591: ='Physical Stats'!I19 -> 
B592: =IF('Physical Data'!J20="","",'Physical Data'!J20) -> 12 | C592: ='Physical Stats'!P20 -> 0 | D592: ='Physical Stats'!Q20 -> 0 | E592: ='Physical Stats'!R20 -> 0 | F592: ='Physical Stats'!S20 -> 0 | G592: ='Physical Stats'!T20 -> 0 | H592: ='Physical Stats'!U20 -> 0 | I592: ='Physical Stats'!V20 -> 0 | J592: ='Physical Stats'!W20 -> 0 | K592: ='Physical Stats'!X20 -> 0 | L592: ='Physical Stats'!Y20 -> 0 | M592: ='Physical Stats'!Z20 -> 0 | N592: ='Physical Stats'!AA20 -> 0 | O592: ='Physical Stats'!AB20 -> 0 | P592: ='Physical Stats'!AC20 -> 0 | Q592: ='Physical Stats'!AD20 -> 0 | R592: ='Physical Stats'!AE20 -> 0 | S592: ='Physical Stats'!AF20 -> 0.19853334 | T592: ='Physical Stats'!AG20 -> 2.6532 | U592: ='Physical Stats'!AH20 -> 3.40913333 | V592: ='Physical Stats'!AI20 -> 4.49706667 | W592: ='Physical Stats'!AJ20 -> 6.0753 | X592: ='Physical Stats'!AK20 -> 7.64176666 | Y592: ='Physical Stats'!AL20 -> 8.0198 | Z592: ='Physical Stats'!AM20 -> 9.54983334 | AA592: ='Physical Stats'!AN20 -> 9.71146666 | AB592: ='Physical Stats'!AO20 -> 8.46163334 | AC592: ='Physical Stats'!AP20 -> 7.61946666 | AD592: ='Physical Stats'!AQ20 -> 6.42723334 | AE592: ='Physical Stats'!AR20 -> 5.0699 | AF592: ='Physical Stats'!AS20 -> 3.91686666 | AG592: ='Physical Stats'!AT20 -> 3.202 | AH592: ='Physical Stats'!AU20 -> 2.70186667 | AI592: ='Physical Stats'!AV20 -> 2.36423667 | AJ592: ='Physical Stats'!AW20 -> 2.18638666 | AK592: ='Physical Stats'!AX20 -> 2.01425 | AL592: ='Physical Stats'!AY20 -> 1.69145334 | AM592: ='Physical Stats'!AZ20 -> 1.19296 | AN592: ='Physical Stats'!BA20 -> 0.78819766 | AO592: ='Physical Stats'!BB20 -> 0.43582067 | AP592: ='Physical Stats'!BC20 -> 0.15447067 | AQ592: ='Physical Stats'!BD20 -> 0.01715303 | AR592: ='Physical Stats'!BE20 -> 0 | AT592: ='Physical Stats'!I20 -> 
B593: =IF('Physical Data'!J21="","",'Physical Data'!J21) -> 13 | C593: ='Physical Stats'!P21 -> 0 | D593: ='Physical Stats'!Q21 -> 0 | E593: ='Physical Stats'!R21 -> 0 | F593: ='Physical Stats'!S21 -> 0 | G593: ='Physical Stats'!T21 -> 0 | H593: ='Physical Stats'!U21 -> 0 | I593: ='Physical Stats'!V21 -> 0 | J593: ='Physical Stats'!W21 -> 0 | K593: ='Physical Stats'!X21 -> 0 | L593: ='Physical Stats'!Y21 -> 0 | M593: ='Physical Stats'!Z21 -> 0 | N593: ='Physical Stats'!AA21 -> 0 | O593: ='Physical Stats'!AB21 -> 0 | P593: ='Physical Stats'!AC21 -> 0 | Q593: ='Physical Stats'!AD21 -> 0 | R593: ='Physical Stats'!AE21 -> 0 | S593: ='Physical Stats'!AF21 -> 0.0699 | T593: ='Physical Stats'!AG21 -> 3.27143334 | U593: ='Physical Stats'!AH21 -> 5.07506666 | V593: ='Physical Stats'!AI21 -> 5.2807 | W593: ='Physical Stats'!AJ21 -> 5.99653334 | X593: ='Physical Stats'!AK21 -> 7.49626666 | Y593: ='Physical Stats'!AL21 -> 8.01216667 | Z593: ='Physical Stats'!AM21 -> 9.74593333 | AA593: ='Physical Stats'!AN21 -> 10.5159 | AB593: ='Physical Stats'!AO21 -> 9.7101 | AC593: ='Physical Stats'!AP21 -> 8.5975 | AD593: ='Physical Stats'!AQ21 -> 6.80956667 | AE593: ='Physical Stats'!AR21 -> 4.90693333 | AF593: ='Physical Stats'!AS21 -> 3.3136 | AG593: ='Physical Stats'!AT21 -> 2.35599334 | AH593: ='Physical Stats'!AU21 -> 1.85295666 | AI593: ='Physical Stats'!AV21 -> 1.58342 | AJ593: ='Physical Stats'!AW21 -> 1.41208667 | AK593: ='Physical Stats'!AX21 -> 1.24285 | AL593: ='Physical Stats'!AY21 -> 1.0257 | AM593: ='Physical Stats'!AZ21 -> 0.75003567 | AN593: ='Physical Stats'!BA21 -> 0.52621866 | AO593: ='Physical Stats'!BB21 -> 0.3127 | AP593: ='Physical Stats'!BC21 -> 0.1218599 | AQ593: ='Physical Stats'!BD21 -> 0.01457546 | AR593: ='Physical Stats'!BE21 -> 0 | AT593: ='Physical Stats'!I21 -> 
B594: =IF('Physical Data'!J22="","",'Physical Data'!J22) -> 15 | C594: ='Physical Stats'!P22 -> 0 | D594: ='Physical Stats'!Q22 -> 0 | E594: ='Physical Stats'!R22 -> 0 | F594: ='Physical Stats'!S22 -> 0 | G594: ='Physical Stats'!T22 -> 0 | H594: ='Physical Stats'!U22 -> 0 | I594: ='Physical Stats'!V22 -> 0 | J594: ='Physical Stats'!W22 -> 0 | K594: ='Physical Stats'!X22 -> 0 | L594: ='Physical Stats'!Y22 -> 0 | M594: ='Physical Stats'!Z22 -> 0 | N594: ='Physical Stats'!AA22 -> 0 | O594: ='Physical Stats'!AB22 -> 0 | P594: ='Physical Stats'!AC22 -> 0 | Q594: ='Physical Stats'!AD22 -> 0.00313334 | R594: ='Physical Stats'!AE22 -> 1.79583333 | S594: ='Physical Stats'!AF22 -> 7.9363 | T594: ='Physical Stats'!AG22 -> 6.45453333 | U594: ='Physical Stats'!AH22 -> 4.8798 | V594: ='Physical Stats'!AI22 -> 5.43713334 | W594: ='Physical Stats'!AJ22 -> 5.8387 | X594: ='Physical Stats'!AK22 -> 6.90343333 | Y594: ='Physical Stats'!AL22 -> 6.714 | Z594: ='Physical Stats'!AM22 -> 7.62183333 | AA594: ='Physical Stats'!AN22 -> 8.0168 | AB594: ='Physical Stats'!AO22 -> 7.24506667 | AC594: ='Physical Stats'!AP22 -> 6.45563333 | AD594: ='Physical Stats'!AQ22 -> 5.28743334 | AE594: ='Physical Stats'!AR22 -> 3.99736666 | AF594: ='Physical Stats'!AS22 -> 2.7243 | AG594: ='Physical Stats'!AT22 -> 1.73983334 | AH594: ='Physical Stats'!AU22 -> 1.32805333 | AI594: ='Physical Stats'!AV22 -> 1.70667 | AJ594: ='Physical Stats'!AW22 -> 2.45996 | AK594: ='Physical Stats'!AX22 -> 2.71927333 | AL594: ='Physical Stats'!AY22 -> 1.932088 | AM594: ='Physical Stats'!AZ22 -> 0.70824704 | AN594: ='Physical Stats'!BA22 -> 0.09434801 | AO594: ='Physical Stats'!BB22 -> 0.00022695 | AP594: ='Physical Stats'!BC22 -> 0 | AQ594: ='Physical Stats'!BD22 -> 0 | AR594: ='Physical Stats'!BE22 -> 0 | AT594: ='Physical Stats'!I22 -> 
B595: =IF('Physical Data'!J23="","",'Physical Data'!J23) -> 17 | C595: ='Physical Stats'!P23 -> 0 | D595: ='Physical Stats'!Q23 -> 0 | E595: ='Physical Stats'!R23 -> 0 | F595: ='Physical Stats'!S23 -> 0 | G595: ='Physical Stats'!T23 -> 0 | H595: ='Physical Stats'!U23 -> 0.479658 | I595: ='Physical Stats'!V23 -> 0.034884 | J595: ='Physical Stats'!W23 -> 0.313958 | K595: ='Physical Stats'!X23 -> 0.237649 | L595: ='Physical Stats'!Y23 -> 0.259451 | M595: ='Physical Stats'!Z23 -> 0.318319 | N595: ='Physical Stats'!AA23 -> 0.268173 | O595: ='Physical Stats'!AB23 -> 0 | P595: ='Physical Stats'!AC23 -> 0 | Q595: ='Physical Stats'!AD23 -> 3.2e-05 | R595: ='Physical Stats'!AE23 -> 0.181985 | S595: ='Physical Stats'!AF23 -> 2.366927 | T595: ='Physical Stats'!AG23 -> 4.691022 | U595: ='Physical Stats'!AH23 -> 6.225378 | V595: ='Physical Stats'!AI23 -> 7.110491 | W595: ='Physical Stats'!AJ23 -> 7.954243 | X595: ='Physical Stats'!AK23 -> 8.954478 | Y595: ='Physical Stats'!AL23 -> 8.288984 | Z595: ='Physical Stats'!AM23 -> 8.503175 | AA595: ='Physical Stats'!AN23 -> 8.445957 | AB595: ='Physical Stats'!AO23 -> 7.540442 | AC595: ='Physical Stats'!AP23 -> 6.620541 | AD595: ='Physical Stats'!AQ23 -> 5.288311 | AE595: ='Physical Stats'!AR23 -> 3.891245 | AF595: ='Physical Stats'!AS23 -> 2.693801 | AG595: ='Physical Stats'!AT23 -> 1.948039 | AH595: ='Physical Stats'!AU23 -> 1.540677 | AI595: ='Physical Stats'!AV23 -> 1.312975 | AJ595: ='Physical Stats'!AW23 -> 1.163882 | AK595: ='Physical Stats'!AX23 -> 1.021553 | AL595: ='Physical Stats'!AY23 -> 0.849892 | AM595: ='Physical Stats'!AZ23 -> 0.634825 | AN595: ='Physical Stats'!BA23 -> 0.457544 | AO595: ='Physical Stats'!BB23 -> 0.278479 | AP595: ='Physical Stats'!BC23 -> 0.109918 | AQ595: ='Physical Stats'!BD23 -> 0.013106 | AR595: ='Physical Stats'!BE23 -> 0 | AT595: ='Physical Stats'!I23 -> 
B596: =IF('Physical Data'!J24="","",'Physical Data'!J24) -> 18 | C596: ='Physical Stats'!P24 -> 0 | D596: ='Physical Stats'!Q24 -> 0 | E596: ='Physical Stats'!R24 -> 0 | F596: ='Physical Stats'!S24 -> 0 | G596: ='Physical Stats'!T24 -> 0 | H596: ='Physical Stats'!U24 -> 0 | I596: ='Physical Stats'!V24 -> 0 | J596: ='Physical Stats'!W24 -> 0.023036 | K596: ='Physical Stats'!X24 -> 0.146851 | L596: ='Physical Stats'!Y24 -> 0.210199 | M596: ='Physical Stats'!Z24 -> 0.135334 | N596: ='Physical Stats'!AA24 -> 0.109419 | O596: ='Physical Stats'!AB24 -> 0 | P596: ='Physical Stats'!AC24 -> 0 | Q596: ='Physical Stats'!AD24 -> 0 | R596: ='Physical Stats'!AE24 -> 0.195968 | S596: ='Physical Stats'!AF24 -> 3.001031 | T596: ='Physical Stats'!AG24 -> 5.193743 | U596: ='Physical Stats'!AH24 -> 6.065296 | V596: ='Physical Stats'!AI24 -> 7.693493 | W596: ='Physical Stats'!AJ24 -> 8.274704 | X596: ='Physical Stats'!AK24 -> 9.400625 | Y596: ='Physical Stats'!AL24 -> 8.918192 | Z596: ='Physical Stats'!AM24 -> 9.080239 | AA596: ='Physical Stats'!AN24 -> 9.023331 | AB596: ='Physical Stats'!AO24 -> 7.880583 | AC596: ='Physical Stats'!AP24 -> 6.617193 | AD596: ='Physical Stats'!AQ24 -> 5.005792 | AE596: ='Physical Stats'!AR24 -> 3.470323 | AF596: ='Physical Stats'!AS24 -> 2.249079 | AG596: ='Physical Stats'!AT24 -> 1.535959 | AH596: ='Physical Stats'!AU24 -> 1.186646 | AI596: ='Physical Stats'!AV24 -> 1.014643 | AJ596: ='Physical Stats'!AW24 -> 0.904188 | AK596: ='Physical Stats'!AX24 -> 0.794372 | AL596: ='Physical Stats'!AY24 -> 0.663809 | AM596: ='Physical Stats'!AZ24 -> 0.503491 | AN596: ='Physical Stats'!BA24 -> 0.369389 | AO596: ='Physical Stats'!BB24 -> 0.229016 | AP596: ='Physical Stats'!BC24 -> 0.092753 | AQ596: ='Physical Stats'!BD24 -> 0.011299 | AR596: ='Physical Stats'!BE24 -> 0 | AT596: ='Physical Stats'!I24 -> 
B597: =IF('Physical Data'!J25="","",'Physical Data'!J25) -> 19 | C597: ='Physical Stats'!P25 -> 0 | D597: ='Physical Stats'!Q25 -> 0 | E597: ='Physical Stats'!R25 -> 0 | F597: ='Physical Stats'!S25 -> 0 | G597: ='Physical Stats'!T25 -> 0 | H597: ='Physical Stats'!U25 -> 0 | I597: ='Physical Stats'!V25 -> 0 | J597: ='Physical Stats'!W25 -> 0 | K597: ='Physical Stats'!X25 -> 0 | L597: ='Physical Stats'!Y25 -> 0 | M597: ='Physical Stats'!Z25 -> 0 | N597: ='Physical Stats'!AA25 -> 0 | O597: ='Physical Stats'!AB25 -> 0.00016667 | P597: ='Physical Stats'!AC25 -> 0.2021 | Q597: ='Physical Stats'!AD25 -> 0.7726 | R597: ='Physical Stats'!AE25 -> 0.95216667 | S597: ='Physical Stats'!AF25 -> 4.1844 | T597: ='Physical Stats'!AG25 -> 7.71463333 | U597: ='Physical Stats'!AH25 -> 8.8366 | V597: ='Physical Stats'!AI25 -> 8.21653333 | W597: ='Physical Stats'!AJ25 -> 7.76666667 | X597: ='Physical Stats'!AK25 -> 8.16216667 | Y597: ='Physical Stats'!AL25 -> 7.0592 | Z597: ='Physical Stats'!AM25 -> 7.1105 | AA597: ='Physical Stats'!AN25 -> 6.65393333 | AB597: ='Physical Stats'!AO25 -> 5.719 | AC597: ='Physical Stats'!AP25 -> 5.2377 | AD597: ='Physical Stats'!AQ25 -> 4.511 | AE597: ='Physical Stats'!AR25 -> 3.58526667 | AF597: ='Physical Stats'!AS25 -> 2.71086666 | AG597: ='Physical Stats'!AT25 -> 2.13586667 | AH597: ='Physical Stats'!AU25 -> 1.75725667 | AI597: ='Physical Stats'!AV25 -> 1.50896 | AJ597: ='Physical Stats'!AW25 -> 1.36066333 | AK597: ='Physical Stats'!AX25 -> 1.22305667 | AL597: ='Physical Stats'!AY25 -> 1.01626 | AM597: ='Physical Stats'!AZ25 -> 0.72409133 | AN597: ='Physical Stats'!BA25 -> 0.48836267 | AO597: ='Physical Stats'!BB25 -> 0.277047 | AP597: ='Physical Stats'!BC25 -> 0.1014028 | AQ597: ='Physical Stats'!BD25 -> 0.01152981 | AR597: ='Physical Stats'!BE25 -> 0 | AT597: ='Physical Stats'!I25 -> 
B598: =IF('Physical Data'!J26="","",'Physical Data'!J26) -> 20 | C598: ='Physical Stats'!P26 -> 0 | D598: ='Physical Stats'!Q26 -> 0 | E598: ='Physical Stats'!R26 -> 0 | F598: ='Physical Stats'!S26 -> 0 | G598: ='Physical Stats'!T26 -> 0 | H598: ='Physical Stats'!U26 -> 0 | I598: ='Physical Stats'!V26 -> 0 | J598: ='Physical Stats'!W26 -> 0 | K598: ='Physical Stats'!X26 -> 0 | L598: ='Physical Stats'!Y26 -> 0 | M598: ='Physical Stats'!Z26 -> 0 | N598: ='Physical Stats'!AA26 -> 0 | O598: ='Physical Stats'!AB26 -> 0 | P598: ='Physical Stats'!AC26 -> 0 | Q598: ='Physical Stats'!AD26 -> 0 | R598: ='Physical Stats'!AE26 -> 0.0443 | S598: ='Physical Stats'!AF26 -> 1.5614 | T598: ='Physical Stats'!AG26 -> 4.7158 | U598: ='Physical Stats'!AH26 -> 6.677 | V598: ='Physical Stats'!AI26 -> 7.6255 | W598: ='Physical Stats'!AJ26 -> 9.04076667 | X598: ='Physical Stats'!AK26 -> 9.53616667 | Y598: ='Physical Stats'!AL26 -> 8.6253 | Z598: ='Physical Stats'!AM26 -> 8.45376666 | AA598: ='Physical Stats'!AN26 -> 7.6611 | AB598: ='Physical Stats'!AO26 -> 6.52013334 | AC598: ='Physical Stats'!AP26 -> 5.92013333 | AD598: ='Physical Stats'!AQ26 -> 5.08576667 | AE598: ='Physical Stats'!AR26 -> 4.06176666 | AF598: ='Physical Stats'!AS26 -> 3.05916667 | AG598: ='Physical Stats'!AT26 -> 2.35673 | AH598: ='Physical Stats'!AU26 -> 1.89213333 | AI598: ='Physical Stats'!AV26 -> 1.6047 | AJ598: ='Physical Stats'!AW26 -> 1.44155667 | AK598: ='Physical Stats'!AX26 -> 1.29596333 | AL598: ='Physical Stats'!AY26 -> 1.08125334 | AM598: ='Physical Stats'!AZ26 -> 0.778121 | AN598: ='Physical Stats'!BA26 -> 0.53048766 | AO598: ='Physical Stats'!BB26 -> 0.304517 | AP598: ='Physical Stats'!BC26 -> 0.11338034 | AQ598: ='Physical Stats'!BD26 -> 0.01308727 | AR598: ='Physical Stats'!BE26 -> 0 | AT598: ='Physical Stats'!I26 -> 
B599: =IF('Physical Data'!J27="","",'Physical Data'!J27) -> 21 | C599: ='Physical Stats'!P27 -> 0 | D599: ='Physical Stats'!Q27 -> 0 | E599: ='Physical Stats'!R27 -> 0 | F599: ='Physical Stats'!S27 -> 0 | G599: ='Physical Stats'!T27 -> 0.219597 | H599: ='Physical Stats'!U27 -> 0.083295 | I599: ='Physical Stats'!V27 -> 0.33823 | J599: ='Physical Stats'!W27 -> 0.191832 | K599: ='Physical Stats'!X27 -> 0.181736 | L599: ='Physical Stats'!Y27 -> 0.15397 | M599: ='Physical Stats'!Z27 -> 0.171639 | N599: ='Physical Stats'!AA27 -> 0.133778 | O599: ='Physical Stats'!AB27 -> 0 | P599: ='Physical Stats'!AC27 -> 0 | Q599: ='Physical Stats'!AD27 -> 0.00023 | R599: ='Physical Stats'!AE27 -> 0.291407 | S599: ='Physical Stats'!AF27 -> 2.299497 | T599: ='Physical Stats'!AG27 -> 4.470515 | U599: ='Physical Stats'!AH27 -> 6.350587 | V599: ='Physical Stats'!AI27 -> 6.793986 | W599: ='Physical Stats'!AJ27 -> 7.703545 | X599: ='Physical Stats'!AK27 -> 8.385541 | Y599: ='Physical Stats'!AL27 -> 7.950517 | Z599: ='Physical Stats'!AM27 -> 8.705619 | AA599: ='Physical Stats'!AN27 -> 8.852357 | AB599: ='Physical Stats'!AO27 -> 7.956461 | AC599: ='Physical Stats'!AP27 -> 7.002631 | AD599: ='Physical Stats'!AQ27 -> 5.57637 | AE599: ='Physical Stats'!AR27 -> 4.058283 | AF599: ='Physical Stats'!AS27 -> 2.765984 | AG599: ='Physical Stats'!AT27 -> 1.971533 | AH599: ='Physical Stats'!AU27 -> 1.540174 | AI599: ='Physical Stats'!AV27 -> 1.307003 | AJ599: ='Physical Stats'!AW27 -> 1.166737 | AK599: ='Physical Stats'!AX27 -> 1.035258 | AL599: ='Physical Stats'!AY27 -> 0.863829 | AM599: ='Physical Stats'!AZ27 -> 0.638134 | AN599: ='Physical Stats'!BA27 -> 0.452371 | AO599: ='Physical Stats'!BB27 -> 0.270503 | AP599: ='Physical Stats'!BC27 -> 0.104566 | AQ599: ='Physical Stats'!BD27 -> 0.012283 | AR599: ='Physical Stats'!BE27 -> 0 | AT599: ='Physical Stats'!I27 -> 
B600: =IF('Physical Data'!J28="","",'Physical Data'!J28) -> 22 | C600: ='Physical Stats'!P28 -> 0 | D600: ='Physical Stats'!Q28 -> 0 | E600: ='Physical Stats'!R28 -> 0 | F600: ='Physical Stats'!S28 -> 0 | G600: ='Physical Stats'!T28 -> 0 | H600: ='Physical Stats'!U28 -> 0 | I600: ='Physical Stats'!V28 -> 0.14949 | J600: ='Physical Stats'!W28 -> 0 | K600: ='Physical Stats'!X28 -> 0.035174 | L600: ='Physical Stats'!Y28 -> 0.043968 | M600: ='Physical Stats'!Z28 -> 0.052761 | N600: ='Physical Stats'!AA28 -> 0.074745 | O600: ='Physical Stats'!AB28 -> 0 | P600: ='Physical Stats'!AC28 -> 0 | Q600: ='Physical Stats'!AD28 -> 0 | R600: ='Physical Stats'!AE28 -> 0.081309 | S600: ='Physical Stats'!AF28 -> 2.411414 | T600: ='Physical Stats'!AG28 -> 5.36715 | U600: ='Physical Stats'!AH28 -> 5.891443 | V600: ='Physical Stats'!AI28 -> 7.309973 | W600: ='Physical Stats'!AJ28 -> 8.091647 | X600: ='Physical Stats'!AK28 -> 8.558112 | Y600: ='Physical Stats'!AL28 -> 8.058067 | Z600: ='Physical Stats'!AM28 -> 8.583754 | AA600: ='Physical Stats'!AN28 -> 8.724849 | AB600: ='Physical Stats'!AO28 -> 7.928396 | AC600: ='Physical Stats'!AP28 -> 6.986263 | AD600: ='Physical Stats'!AQ28 -> 5.529604 | AE600: ='Physical Stats'!AR28 -> 3.987548 | AF600: ='Physical Stats'!AS28 -> 2.693613 | AG600: ='Physical Stats'!AT28 -> 1.923861 | AH600: ='Physical Stats'!AU28 -> 1.53329 | AI600: ='Physical Stats'!AV28 -> 1.32698 | AJ600: ='Physical Stats'!AW28 -> 1.189316 | AK600: ='Physical Stats'!AX28 -> 1.049263 | AL600: ='Physical Stats'!AY28 -> 0.875013 | AM600: ='Physical Stats'!AZ28 -> 0.654734 | AN600: ='Physical Stats'!BA28 -> 0.473386 | AO600: ='Physical Stats'!BB28 -> 0.288501 | AP600: ='Physical Stats'!BC28 -> 0.113057 | AQ600: ='Physical Stats'!BD28 -> 0.013314 | AR600: ='Physical Stats'!BE28 -> 0 | AT600: ='Physical Stats'!I28 -> 
B601: =IF('Physical Data'!J29="","",'Physical Data'!J29) -> 23 | C601: ='Physical Stats'!P29 -> 0 | D601: ='Physical Stats'!Q29 -> 0 | E601: ='Physical Stats'!R29 -> 0 | F601: ='Physical Stats'!S29 -> 0 | G601: ='Physical Stats'!T29 -> 0 | H601: ='Physical Stats'!U29 -> 0.223891 | I601: ='Physical Stats'!V29 -> 0.250323 | J601: ='Physical Stats'!W29 -> 0.199014 | K601: ='Physical Stats'!X29 -> 0.377816 | L601: ='Physical Stats'!Y29 -> 0.34983 | M601: ='Physical Stats'!Z29 -> 0.42757 | N601: ='Physical Stats'!AA29 -> 0.321843 | O601: ='Physical Stats'!AB29 -> 0 | P601: ='Physical Stats'!AC29 -> 0 | Q601: ='Physical Stats'!AD29 -> 0 | R601: ='Physical Stats'!AE29 -> 0 | S601: ='Physical Stats'!AF29 -> 0 | T601: ='Physical Stats'!AG29 -> 0 | U601: ='Physical Stats'!AH29 -> 0 | V601: ='Physical Stats'!AI29 -> 0.255486 | W601: ='Physical Stats'!AJ29 -> 5.100025 | X601: ='Physical Stats'!AK29 -> 5.602711 | Y601: ='Physical Stats'!AL29 -> 5.773263 | Z601: ='Physical Stats'!AM29 -> 8.227138 | AA601: ='Physical Stats'!AN29 -> 8.803832 | AB601: ='Physical Stats'!AO29 -> 8.350135 | AC601: ='Physical Stats'!AP29 -> 8.192044 | AD601: ='Physical Stats'!AQ29 -> 7.37004 | AE601: ='Physical Stats'!AR29 -> 6.142939 | AF601: ='Physical Stats'!AS29 -> 5.257106 | AG601: ='Physical Stats'!AT29 -> 4.818739 | AH601: ='Physical Stats'!AU29 -> 4.365761 | AI601: ='Physical Stats'!AV29 -> 4.143935 | AJ601: ='Physical Stats'!AW29 -> 4.28161 | AK601: ='Physical Stats'!AX29 -> 4.260824 | AL601: ='Physical Stats'!AY29 -> 3.504165 | AM601: ='Physical Stats'!AZ29 -> 2.079186 | AN601: ='Physical Stats'!BA29 -> 0.981409 | AO601: ='Physical Stats'!BB29 -> 0.300311 | AP601: ='Physical Stats'!BC29 -> 0.036912 | AQ601: ='Physical Stats'!BD29 -> 0.00214 | AR601: ='Physical Stats'!BE29 -> 0 | AT601: ='Physical Stats'!I29 -> 
B602: =IF('Physical Data'!J30="","",'Physical Data'!J30) -> 24 | C602: ='Physical Stats'!P30 -> 0 | D602: ='Physical Stats'!Q30 -> 0 | E602: ='Physical Stats'!R30 -> 0 | F602: ='Physical Stats'!S30 -> 0 | G602: ='Physical Stats'!T30 -> 0 | H602: ='Physical Stats'!U30 -> 0.001449 | I602: ='Physical Stats'!V30 -> 0 | J602: ='Physical Stats'!W30 -> 0.011596 | K602: ='Physical Stats'!X30 -> 0.063777 | L602: ='Physical Stats'!Y30 -> 0.049283 | M602: ='Physical Stats'!Z30 -> 0.086969 | N602: ='Physical Stats'!AA30 -> 0.131903 | O602: ='Physical Stats'!AB30 -> 0.382377 | P602: ='Physical Stats'!AC30 -> 4.156825 | Q602: ='Physical Stats'!AD30 -> 4.463564 | R602: ='Physical Stats'!AE30 -> 3.065433 | S602: ='Physical Stats'!AF30 -> 13.716866 | T602: ='Physical Stats'!AG30 -> 20.520207 | U602: ='Physical Stats'!AH30 -> 11.948548 | V602: ='Physical Stats'!AI30 -> 5.327777 | W602: ='Physical Stats'!AJ30 -> 4.249605 | X602: ='Physical Stats'!AK30 -> 4.158753 | Y602: ='Physical Stats'!AL30 -> 3.813313 | Z602: ='Physical Stats'!AM30 -> 4.114006 | AA602: ='Physical Stats'!AN30 -> 4.358993 | AB602: ='Physical Stats'!AO30 -> 3.896891 | AC602: ='Physical Stats'!AP30 -> 3.218149 | AD602: ='Physical Stats'!AQ30 -> 2.343592 | AE602: ='Physical Stats'!AR30 -> 1.55384 | AF602: ='Physical Stats'!AS30 -> 0.976264 | AG602: ='Physical Stats'!AT30 -> 0.67265 | AH602: ='Physical Stats'!AU30 -> 0.543175 | AI602: ='Physical Stats'!AV30 -> 0.480213 | AJ602: ='Physical Stats'!AW30 -> 0.429747 | AK602: ='Physical Stats'!AX30 -> 0.373197 | AL602: ='Physical Stats'!AY30 -> 0.309948 | AM602: ='Physical Stats'!AZ30 -> 0.237872 | AN602: ='Physical Stats'!BA30 -> 0.177779 | AO602: ='Physical Stats'!BB30 -> 0.112506 | AP602: ='Physical Stats'!BC30 -> 0.047046 | AQ602: ='Physical Stats'!BD30 -> 0.005884 | AR602: ='Physical Stats'!BE30 -> 0 | AT602: ='Physical Stats'!I30 -> 
B603: =IF('Physical Data'!J31="","",'Physical Data'!J31) -> 25 | C603: ='Physical Stats'!P31 -> 0 | D603: ='Physical Stats'!Q31 -> 0 | E603: ='Physical Stats'!R31 -> 0 | F603: ='Physical Stats'!S31 -> 0 | G603: ='Physical Stats'!T31 -> 0 | H603: ='Physical Stats'!U31 -> 0 | I603: ='Physical Stats'!V31 -> 0 | J603: ='Physical Stats'!W31 -> 0 | K603: ='Physical Stats'!X31 -> 0 | L603: ='Physical Stats'!Y31 -> 0 | M603: ='Physical Stats'!Z31 -> 0 | N603: ='Physical Stats'!AA31 -> 0.00036667 | O603: ='Physical Stats'!AB31 -> 0.3837 | P603: ='Physical Stats'!AC31 -> 4.1712 | Q603: ='Physical Stats'!AD31 -> 4.479 | R603: ='Physical Stats'!AE31 -> 3.07603333 | S603: ='Physical Stats'!AF31 -> 13.7643 | T603: ='Physical Stats'!AG31 -> 20.59116667 | U603: ='Physical Stats'!AH31 -> 11.98986667 | V603: ='Physical Stats'!AI31 -> 5.3462 | W603: ='Physical Stats'!AJ31 -> 4.2643 | X603: ='Physical Stats'!AK31 -> 4.17313333 | Y603: ='Physical Stats'!AL31 -> 3.8265 | Z603: ='Physical Stats'!AM31 -> 4.12823333 | AA603: ='Physical Stats'!AN31 -> 4.37406667 | AB603: ='Physical Stats'!AO31 -> 3.91036667 | AC603: ='Physical Stats'!AP31 -> 3.22927666 | AD603: ='Physical Stats'!AQ31 -> 2.35169667 | AE603: ='Physical Stats'!AR31 -> 1.55921333 | AF603: ='Physical Stats'!AS31 -> 0.97964 | AG603: ='Physical Stats'!AT31 -> 0.67497667 | AH603: ='Physical Stats'!AU31 -> 0.54505333 | AI603: ='Physical Stats'!AV31 -> 0.48187334 | AJ603: ='Physical Stats'!AW31 -> 0.43123333 | AK603: ='Physical Stats'!AX31 -> 0.37448767 | AL603: ='Physical Stats'!AY31 -> 0.31102 | AM603: ='Physical Stats'!AZ31 -> 0.23869366 | AN603: ='Physical Stats'!BA31 -> 0.17839334 | AO603: ='Physical Stats'!BB31 -> 0.11289466 | AP603: ='Physical Stats'!BC31 -> 0.04720899 | AQ603: ='Physical Stats'!BD31 -> 0.00590358 | AR603: ='Physical Stats'!BE31 -> 0 | AT603: ='Physical Stats'!I31 -> 
B604: =IF('Physical Data'!J32="","",'Physical Data'!J32) ->  | C604: ='Physical Stats'!P32 ->  | D604: ='Physical Stats'!Q32 ->  | E604: ='Physical Stats'!R32 ->  | F604: ='Physical Stats'!S32 ->  | G604: ='Physical Stats'!T32 ->  | H604: ='Physical Stats'!U32 ->  | I604: ='Physical Stats'!V32 ->  | J604: ='Physical Stats'!W32 ->  | K604: ='Physical Stats'!X32 ->  | L604: ='Physical Stats'!Y32 ->  | M604: ='Physical Stats'!Z32 ->  | N604: ='Physical Stats'!AA32 ->  | O604: ='Physical Stats'!AB32 ->  | P604: ='Physical Stats'!AC32 ->  | Q604: ='Physical Stats'!AD32 ->  | R604: ='Physical Stats'!AE32 ->  | S604: ='Physical Stats'!AF32 ->  | T604: ='Physical Stats'!AG32 ->  | U604: ='Physical Stats'!AH32 ->  | V604: ='Physical Stats'!AI32 ->  | W604: ='Physical Stats'!AJ32 ->  | X604: ='Physical Stats'!AK32 ->  | Y604: ='Physical Stats'!AL32 ->  | Z604: ='Physical Stats'!AM32 ->  | AA604: ='Physical Stats'!AN32 ->  | AB604: ='Physical Stats'!AO32 ->  | AC604: ='Physical Stats'!AP32 ->  | AD604: ='Physical Stats'!AQ32 ->  | AE604: ='Physical Stats'!AR32 ->  | AF604: ='Physical Stats'!AS32 ->  | AG604: ='Physical Stats'!AT32 ->  | AH604: ='Physical Stats'!AU32 ->  | AI604: ='Physical Stats'!AV32 ->  | AJ604: ='Physical Stats'!AW32 ->  | AK604: ='Physical Stats'!AX32 ->  | AL604: ='Physical Stats'!AY32 ->  | AM604: ='Physical Stats'!AZ32 ->  | AN604: ='Physical Stats'!BA32 ->  | AO604: ='Physical Stats'!BB32 ->  | AP604: ='Physical Stats'!BC32 ->  | AQ604: ='Physical Stats'!BD32 ->  | AR604: ='Physical Stats'!BE32 ->  | AT604: ='Physical Stats'!I32 -> 
B605: =IF('Physical Data'!J33="","",'Physical Data'!J33) ->  | C605: ='Physical Stats'!P33 ->  | D605: ='Physical Stats'!Q33 ->  | E605: ='Physical Stats'!R33 ->  | F605: ='Physical Stats'!S33 ->  | G605: ='Physical Stats'!T33 ->  | H605: ='Physical Stats'!U33 ->  | I605: ='Physical Stats'!V33 ->  | J605: ='Physical Stats'!W33 ->  | K605: ='Physical Stats'!X33 ->  | L605: ='Physical Stats'!Y33 ->  | M605: ='Physical Stats'!Z33 ->  | N605: ='Physical Stats'!AA33 ->  | O605: ='Physical Stats'!AB33 ->  | P605: ='Physical Stats'!AC33 ->  | Q605: ='Physical Stats'!AD33 ->  | R605: ='Physical Stats'!AE33 ->  | S605: ='Physical Stats'!AF33 ->  | T605: ='Physical Stats'!AG33 ->  | U605: ='Physical Stats'!AH33 ->  | V605: ='Physical Stats'!AI33 ->  | W605: ='Physical Stats'!AJ33 ->  | X605: ='Physical Stats'!AK33 ->  | Y605: ='Physical Stats'!AL33 ->  | Z605: ='Physical Stats'!AM33 ->  | AA605: ='Physical Stats'!AN33 ->  | AB605: ='Physical Stats'!AO33 ->  | AC605: ='Physical Stats'!AP33 ->  | AD605: ='Physical Stats'!AQ33 ->  | AE605: ='Physical Stats'!AR33 ->  | AF605: ='Physical Stats'!AS33 ->  | AG605: ='Physical Stats'!AT33 ->  | AH605: ='Physical Stats'!AU33 ->  | AI605: ='Physical Stats'!AV33 ->  | AJ605: ='Physical Stats'!AW33 ->  | AK605: ='Physical Stats'!AX33 ->  | AL605: ='Physical Stats'!AY33 ->  | AM605: ='Physical Stats'!AZ33 ->  | AN605: ='Physical Stats'!BA33 ->  | AO605: ='Physical Stats'!BB33 ->  | AP605: ='Physical Stats'!BC33 ->  | AQ605: ='Physical Stats'!BD33 ->  | AR605: ='Physical Stats'!BE33 ->  | AT605: ='Physical Stats'!I33 -> 
B606: =IF('Physical Data'!J34="","",'Physical Data'!J34) ->  | C606: ='Physical Stats'!P34 ->  | D606: ='Physical Stats'!Q34 ->  | E606: ='Physical Stats'!R34 ->  | F606: ='Physical Stats'!S34 ->  | G606: ='Physical Stats'!T34 ->  | H606: ='Physical Stats'!U34 ->  | I606: ='Physical Stats'!V34 ->  | J606: ='Physical Stats'!W34 ->  | K606: ='Physical Stats'!X34 ->  | L606: ='Physical Stats'!Y34 ->  | M606: ='Physical Stats'!Z34 ->  | N606: ='Physical Stats'!AA34 ->  | O606: ='Physical Stats'!AB34 ->  | P606: ='Physical Stats'!AC34 ->  | Q606: ='Physical Stats'!AD34 ->  | R606: ='Physical Stats'!AE34 ->  | S606: ='Physical Stats'!AF34 ->  | T606: ='Physical Stats'!AG34 ->  | U606: ='Physical Stats'!AH34 ->  | V606: ='Physical Stats'!AI34 ->  | W606: ='Physical Stats'!AJ34 ->  | X606: ='Physical Stats'!AK34 ->  | Y606: ='Physical Stats'!AL34 ->  | Z606: ='Physical Stats'!AM34 ->  | AA606: ='Physical Stats'!AN34 ->  | AB606: ='Physical Stats'!AO34 ->  | AC606: ='Physical Stats'!AP34 ->  | AD606: ='Physical Stats'!AQ34 ->  | AE606: ='Physical Stats'!AR34 ->  | AF606: ='Physical Stats'!AS34 ->  | AG606: ='Physical Stats'!AT34 ->  | AH606: ='Physical Stats'!AU34 ->  | AI606: ='Physical Stats'!AV34 ->  | AJ606: ='Physical Stats'!AW34 ->  | AK606: ='Physical Stats'!AX34 ->  | AL606: ='Physical Stats'!AY34 ->  | AM606: ='Physical Stats'!AZ34 ->  | AN606: ='Physical Stats'!BA34 ->  | AO606: ='Physical Stats'!BB34 ->  | AP606: ='Physical Stats'!BC34 ->  | AQ606: ='Physical Stats'!BD34 ->  | AR606: ='Physical Stats'!BE34 ->  | AT606: ='Physical Stats'!I34 -> 
B607: =IF('Physical Data'!J35="","",'Physical Data'!J35) ->  | C607: ='Physical Stats'!P35 ->  | D607: ='Physical Stats'!Q35 ->  | E607: ='Physical Stats'!R35 ->  | F607: ='Physical Stats'!S35 ->  | G607: ='Physical Stats'!T35 ->  | H607: ='Physical Stats'!U35 ->  | I607: ='Physical Stats'!V35 ->  | J607: ='Physical Stats'!W35 ->  | K607: ='Physical Stats'!X35 ->  | L607: ='Physical Stats'!Y35 ->  | M607: ='Physical Stats'!Z35 ->  | N607: ='Physical Stats'!AA35 ->  | O607: ='Physical Stats'!AB35 ->  | P607: ='Physical Stats'!AC35 ->  | Q607: ='Physical Stats'!AD35 ->  | R607: ='Physical Stats'!AE35 ->  | S607: ='Physical Stats'!AF35 ->  | T607: ='Physical Stats'!AG35 ->  | U607: ='Physical Stats'!AH35 ->  | V607: ='Physical Stats'!AI35 ->  | W607: ='Physical Stats'!AJ35 ->  | X607: ='Physical Stats'!AK35 ->  | Y607: ='Physical Stats'!AL35 ->  | Z607: ='Physical Stats'!AM35 ->  | AA607: ='Physical Stats'!AN35 ->  | AB607: ='Physical Stats'!AO35 ->  | AC607: ='Physical Stats'!AP35 ->  | AD607: ='Physical Stats'!AQ35 ->  | AE607: ='Physical Stats'!AR35 ->  | AF607: ='Physical Stats'!AS35 ->  | AG607: ='Physical Stats'!AT35 ->  | AH607: ='Physical Stats'!AU35 ->  | AI607: ='Physical Stats'!AV35 ->  | AJ607: ='Physical Stats'!AW35 ->  | AK607: ='Physical Stats'!AX35 ->  | AL607: ='Physical Stats'!AY35 ->  | AM607: ='Physical Stats'!AZ35 ->  | AN607: ='Physical Stats'!BA35 ->  | AO607: ='Physical Stats'!BB35 ->  | AP607: ='Physical Stats'!BC35 ->  | AQ607: ='Physical Stats'!BD35 ->  | AR607: ='Physical Stats'!BE35 ->  | AT607: ='Physical Stats'!I35 -> 
B608: =IF('Physical Data'!J36="","",'Physical Data'!J36) ->  | C608: ='Physical Stats'!P36 ->  | D608: ='Physical Stats'!Q36 ->  | E608: ='Physical Stats'!R36 ->  | F608: ='Physical Stats'!S36 ->  | G608: ='Physical Stats'!T36 ->  | H608: ='Physical Stats'!U36 ->  | I608: ='Physical Stats'!V36 ->  | J608: ='Physical Stats'!W36 ->  | K608: ='Physical Stats'!X36 ->  | L608: ='Physical Stats'!Y36 ->  | M608: ='Physical Stats'!Z36 ->  | N608: ='Physical Stats'!AA36 ->  | O608: ='Physical Stats'!AB36 ->  | P608: ='Physical Stats'!AC36 ->  | Q608: ='Physical Stats'!AD36 ->  | R608: ='Physical Stats'!AE36 ->  | S608: ='Physical Stats'!AF36 ->  | T608: ='Physical Stats'!AG36 ->  | U608: ='Physical Stats'!AH36 ->  | V608: ='Physical Stats'!AI36 ->  | W608: ='Physical Stats'!AJ36 ->  | X608: ='Physical Stats'!AK36 ->  | Y608: ='Physical Stats'!AL36 ->  | Z608: ='Physical Stats'!AM36 ->  | AA608: ='Physical Stats'!AN36 ->  | AB608: ='Physical Stats'!AO36 ->  | AC608: ='Physical Stats'!AP36 ->  | AD608: ='Physical Stats'!AQ36 ->  | AE608: ='Physical Stats'!AR36 ->  | AF608: ='Physical Stats'!AS36 ->  | AG608: ='Physical Stats'!AT36 ->  | AH608: ='Physical Stats'!AU36 ->  | AI608: ='Physical Stats'!AV36 ->  | AJ608: ='Physical Stats'!AW36 ->  | AK608: ='Physical Stats'!AX36 ->  | AL608: ='Physical Stats'!AY36 ->  | AM608: ='Physical Stats'!AZ36 ->  | AN608: ='Physical Stats'!BA36 ->  | AO608: ='Physical Stats'!BB36 ->  | AP608: ='Physical Stats'!BC36 ->  | AQ608: ='Physical Stats'!BD36 ->  | AR608: ='Physical Stats'!BE36 ->  | AT608: ='Physical Stats'!I36 -> 
B609: =IF('Physical Data'!J37="","",'Physical Data'!J37) ->  | C609: ='Physical Stats'!P37 ->  | D609: ='Physical Stats'!Q37 ->  | E609: ='Physical Stats'!R37 ->  | F609: ='Physical Stats'!S37 ->  | G609: ='Physical Stats'!T37 ->  | H609: ='Physical Stats'!U37 ->  | I609: ='Physical Stats'!V37 ->  | J609: ='Physical Stats'!W37 ->  | K609: ='Physical Stats'!X37 ->  | L609: ='Physical Stats'!Y37 ->  | M609: ='Physical Stats'!Z37 ->  | N609: ='Physical Stats'!AA37 ->  | O609: ='Physical Stats'!AB37 ->  | P609: ='Physical Stats'!AC37 ->  | Q609: ='Physical Stats'!AD37 ->  | R609: ='Physical Stats'!AE37 ->  | S609: ='Physical Stats'!AF37 ->  | T609: ='Physical Stats'!AG37 ->  | U609: ='Physical Stats'!AH37 ->  | V609: ='Physical Stats'!AI37 ->  | W609: ='Physical Stats'!AJ37 ->  | X609: ='Physical Stats'!AK37 ->  | Y609: ='Physical Stats'!AL37 ->  | Z609: ='Physical Stats'!AM37 ->  | AA609: ='Physical Stats'!AN37 ->  | AB609: ='Physical Stats'!AO37 ->  | AC609: ='Physical Stats'!AP37 ->  | AD609: ='Physical Stats'!AQ37 ->  | AE609: ='Physical Stats'!AR37 ->  | AF609: ='Physical Stats'!AS37 ->  | AG609: ='Physical Stats'!AT37 ->  | AH609: ='Physical Stats'!AU37 ->  | AI609: ='Physical Stats'!AV37 ->  | AJ609: ='Physical Stats'!AW37 ->  | AK609: ='Physical Stats'!AX37 ->  | AL609: ='Physical Stats'!AY37 ->  | AM609: ='Physical Stats'!AZ37 ->  | AN609: ='Physical Stats'!BA37 ->  | AO609: ='Physical Stats'!BB37 ->  | AP609: ='Physical Stats'!BC37 ->  | AQ609: ='Physical Stats'!BD37 ->  | AR609: ='Physical Stats'!BE37 ->  | AT609: ='Physical Stats'!I37 -> 
B610: =IF('Physical Data'!J38="","",'Physical Data'!J38) ->  | C610: ='Physical Stats'!P38 ->  | D610: ='Physical Stats'!Q38 ->  | E610: ='Physical Stats'!R38 ->  | F610: ='Physical Stats'!S38 ->  | G610: ='Physical Stats'!T38 ->  | H610: ='Physical Stats'!U38 ->  | I610: ='Physical Stats'!V38 ->  | J610: ='Physical Stats'!W38 ->  | K610: ='Physical Stats'!X38 ->  | L610: ='Physical Stats'!Y38 ->  | M610: ='Physical Stats'!Z38 ->  | N610: ='Physical Stats'!AA38 ->  | O610: ='Physical Stats'!AB38 ->  | P610: ='Physical Stats'!AC38 ->  | Q610: ='Physical Stats'!AD38 ->  | R610: ='Physical Stats'!AE38 ->  | S610: ='Physical Stats'!AF38 ->  | T610: ='Physical Stats'!AG38 ->  | U610: ='Physical Stats'!AH38 ->  | V610: ='Physical Stats'!AI38 ->  | W610: ='Physical Stats'!AJ38 ->  | X610: ='Physical Stats'!AK38 ->  | Y610: ='Physical Stats'!AL38 ->  | Z610: ='Physical Stats'!AM38 ->  | AA610: ='Physical Stats'!AN38 ->  | AB610: ='Physical Stats'!AO38 ->  | AC610: ='Physical Stats'!AP38 ->  | AD610: ='Physical Stats'!AQ38 ->  | AE610: ='Physical Stats'!AR38 ->  | AF610: ='Physical Stats'!AS38 ->  | AG610: ='Physical Stats'!AT38 ->  | AH610: ='Physical Stats'!AU38 ->  | AI610: ='Physical Stats'!AV38 ->  | AJ610: ='Physical Stats'!AW38 ->  | AK610: ='Physical Stats'!AX38 ->  | AL610: ='Physical Stats'!AY38 ->  | AM610: ='Physical Stats'!AZ38 ->  | AN610: ='Physical Stats'!BA38 ->  | AO610: ='Physical Stats'!BB38 ->  | AP610: ='Physical Stats'!BC38 ->  | AQ610: ='Physical Stats'!BD38 ->  | AR610: ='Physical Stats'!BE38 ->  | AT610: ='Physical Stats'!I38 -> 

Sheet Exempt Samples (hidden)
B2: Exempt samples calculations
H4: Exempt samples complete summary
B6: Analysis information: | H6: Laboratory sample number | I6: Dredge Area | J6: Sample ID(s) | K6: Excluded (y if yes) | L6: Visual appearance | M6: Exempt from chemical analysis | N6: Conversion to biniomial (hidden column)
C8: Applicant: | D8: =IF('Application info'!E16="","",'Application info'!E16) -> PD Ports
C9: Application number: | D9: =IF('Application info'!E17="","",'Application info'!E17) ->  | H9: =IF('Physical Data'!H9="","",'Physical Data'!H9) -> MAR02481.001 | I9: =IF('Physical Data'!I9="","",'Physical Data'!I9) ->  | J9: =IF('Physical Data'!J9="","",'Physical Data'!J9) -> 1 | K9: =IF('Physical Stats'!K9="","",'Physical Stats'!K9) ->  | L9: =IF('Physical Data'!K9="","",'Physical Data'!K9) -> Black Mud with an Anoxic Odour. | M9: =IF('Physical Data'!L9="","",'Physical Data'!L9) ->  | N9: =IF(M9="y",1,0) -> 0
C10: Application title: | D10: =IF('Application info'!E18="","",'Application info'!E18) -> Mid licence sampling - year 9 | H10: =IF('Physical Data'!H10="","",'Physical Data'!H10) -> MAR02481.002 | I10: =IF('Physical Data'!I10="","",'Physical Data'!I10) ->  | J10: =IF('Physical Data'!J10="","",'Physical Data'!J10) -> 2 | K10: =IF('Physical Stats'!K10="","",'Physical Stats'!K10) ->  | L10: =IF('Physical Data'!K10="","",'Physical Data'!K10) -> Black Mud with an Anoxic Odour. | M10: =IF('Physical Data'!L10="","",'Physical Data'!L10) ->  | N10: 0
C11: Date sampled: | D11: =IF('Application info'!E19="","",'Application info'!E19) ->  | H11: =IF('Physical Data'!H11="","",'Physical Data'!H11) -> MAR02481.003 | I11: =IF('Physical Data'!I11="","",'Physical Data'!I11) ->  | J11: =IF('Physical Data'!J11="","",'Physical Data'!J11) -> 3 | K11: =IF('Physical Stats'!K11="","",'Physical Stats'!K11) ->  | L11: =IF('Physical Data'!K11="","",'Physical Data'!K11) -> Black Mud with an Anoxic Odour. | M11: =IF('Physical Data'!L11="","",'Physical Data'!L11) ->  | N11: =IF(M11="y",1,0) -> 0
C12: Sampling location: | D12: =IF('Application info'!E20="","",'Application info'!E20) ->  | H12: =IF('Physical Data'!H12="","",'Physical Data'!H12) -> MAR02481.004 | I12: =IF('Physical Data'!I12="","",'Physical Data'!I12) ->  | J12: =IF('Physical Data'!J12="","",'Physical Data'!J12) -> 4 | K12: =IF('Physical Stats'!K12="","",'Physical Stats'!K12) ->  | L12: =IF('Physical Data'!K12="","",'Physical Data'!K12) -> Black Mud with an Anoxic Odour. | M12: =IF('Physical Data'!L12="","",'Physical Data'!L12) ->  | N12: =IF(M12="y",1,0) -> 0
H13: =IF('Physical Data'!H13="","",'Physical Data'!H13) -> MAR02481.005 | I13: =IF('Physical Data'!I13="","",'Physical Data'!I13) ->  | J13: =IF('Physical Data'!J13="","",'Physical Data'!J13) -> 5 | K13: =IF('Physical Stats'!K13="","",'Physical Stats'!K13) ->  | L13: =IF('Physical Data'!K13="","",'Physical Data'!K13) -> Black Mud with an Anoxic Odour. | M13: =IF('Physical Data'!L13="","",'Physical Data'!L13) ->  | N13: 0
C14: Laboratory/contractor: | D14: =IF('Physical Data'!D15="","",'Physical Data'!D15) -> Ocean Ecology Ltd | H14: =IF('Physical Data'!H14="","",'Physical Data'!H14) -> MAR02481.006 | I14: =IF('Physical Data'!I14="","",'Physical Data'!I14) ->  | J14: =IF('Physical Data'!J14="","",'Physical Data'!J14) -> 6 | K14: =IF('Physical Stats'!K14="","",'Physical Stats'!K14) ->  | L14: =IF('Physical Data'!K14="","",'Physical Data'!K14) -> Black Mud with an Anoxic Odour. | M14: =IF('Physical Data'!L14="","",'Physical Data'!L14) ->  | N14: 0
C15: Date of analysis: | D15: =IF('Physical Data'!D16="","",'Physical Data'!D16) -> 2024-10-25 | H15: =IF('Physical Data'!H15="","",'Physical Data'!H15) -> MAR02481.007 | I15: =IF('Physical Data'!I15="","",'Physical Data'!I15) ->  | J15: =IF('Physical Data'!J15="","",'Physical Data'!J15) -> 7 | K15: =IF('Physical Stats'!K15="","",'Physical Stats'!K15) ->  | L15: =IF('Physical Data'!K15="","",'Physical Data'!K15) -> Black Mud with an Anoxic Odour. | M15: =IF('Physical Data'!L15="","",'Physical Data'!L15) ->  | N15: 0
H16: =IF('Physical Data'!H16="","",'Physical Data'!H16) -> MAR02481.008 | I16: =IF('Physical Data'!I16="","",'Physical Data'!I16) ->  | J16: =IF('Physical Data'!J16="","",'Physical Data'!J16) -> 8 | K16: =IF('Physical Stats'!K16="","",'Physical Stats'!K16) ->  | L16: =IF('Physical Data'!K16="","",'Physical Data'!K16) -> Black Mud with an Anoxic Odour. | M16: =IF('Physical Data'!L16="","",'Physical Data'!L16) ->  | N16: 0
H17: =IF('Physical Data'!H17="","",'Physical Data'!H17) -> MAR02481.009 | I17: =IF('Physical Data'!I17="","",'Physical Data'!I17) ->  | J17: =IF('Physical Data'!J17="","",'Physical Data'!J17) -> 9 | K17: =IF('Physical Stats'!K17="","",'Physical Stats'!K17) ->  | L17: =IF('Physical Data'!K17="","",'Physical Data'!K17) -> Black Mud with an Anoxic Odour. | M17: =IF('Physical Data'!L17="","",'Physical Data'!L17) ->  | N17: 0
H18: =IF('Physical Data'!H18="","",'Physical Data'!H18) -> MAR02481.010 | I18: =IF('Physical Data'!I18="","",'Physical Data'!I18) ->  | J18: =IF('Physical Data'!J18="","",'Physical Data'!J18) -> 10 | K18: =IF('Physical Stats'!K18="","",'Physical Stats'!K18) ->  | L18: =IF('Physical Data'!K18="","",'Physical Data'!K18) -> Black Mud with Organic Matter and Shell Fragments and an Anoxic Odour. | M18: =IF('Physical Data'!L18="","",'Physical Data'!L18) ->  | N18: 0
H19: =IF('Physical Data'!H19="","",'Physical Data'!H19) -> MAR02481.011 | I19: =IF('Physical Data'!I19="","",'Physical Data'!I19) ->  | J19: =IF('Physical Data'!J19="","",'Physical Data'!J19) -> 11 | K19: =IF('Physical Stats'!K19="","",'Physical Stats'!K19) ->  | L19: =IF('Physical Data'!K19="","",'Physical Data'!K19) -> Black Mud with an Anoxic Odour. | M19: =IF('Physical Data'!L19="","",'Physical Data'!L19) ->  | N19: 0
H20: =IF('Physical Data'!H20="","",'Physical Data'!H20) -> MAR02481.012 | I20: =IF('Physical Data'!I20="","",'Physical Data'!I20) ->  | J20: =IF('Physical Data'!J20="","",'Physical Data'!J20) -> 12 | K20: =IF('Physical Stats'!K20="","",'Physical Stats'!K20) ->  | L20: =IF('Physical Data'!K20="","",'Physical Data'!K20) -> Black Mud with an Anoxic Odour. | M20: =IF('Physical Data'!L20="","",'Physical Data'!L20) ->  | N20: 0
H21: =IF('Physical Data'!H21="","",'Physical Data'!H21) -> MAR02481.013 | I21: =IF('Physical Data'!I21="","",'Physical Data'!I21) ->  | J21: =IF('Physical Data'!J21="","",'Physical Data'!J21) -> 13 | K21: =IF('Physical Stats'!K21="","",'Physical Stats'!K21) ->  | L21: =IF('Physical Data'!K21="","",'Physical Data'!K21) -> Black Mud with an Anoxic Odour. | M21: =IF('Physical Data'!L21="","",'Physical Data'!L21) ->  | N21: 0
H22: =IF('Physical Data'!H22="","",'Physical Data'!H22) -> MAR02481.014 | I22: =IF('Physical Data'!I22="","",'Physical Data'!I22) ->  | J22: =IF('Physical Data'!J22="","",'Physical Data'!J22) -> 15 | K22: =IF('Physical Stats'!K22="","",'Physical Stats'!K22) ->  | L22: =IF('Physical Data'!K22="","",'Physical Data'!K22) -> Black Mud with Organic Matter and Shell Fragments and an Anoxic Odour. | M22: =IF('Physical Data'!L22="","",'Physical Data'!L22) ->  | N22: 0
H23: =IF('Physical Data'!H23="","",'Physical Data'!H23) -> MAR02481.015 | I23: =IF('Physical Data'!I23="","",'Physical Data'!I23) ->  | J23: =IF('Physical Data'!J23="","",'Physical Data'!J23) -> 17 | K23: =IF('Physical Stats'!K23="","",'Physical Stats'!K23) ->  | L23: =IF('Physical Data'!K23="","",'Physical Data'!K23) -> Black Mud with an Anoxic Odour. | M23: =IF('Physical Data'!L23="","",'Physical Data'!L23) ->  | N23: 0
H24: =IF('Physical Data'!H24="","",'Physical Data'!H24) -> MAR02481.016 | I24: =IF('Physical Data'!I24="","",'Physical Data'!I24) ->  | J24: =IF('Physical Data'!J24="","",'Physical Data'!J24) -> 18 | K24: =IF('Physical Stats'!K24="","",'Physical Stats'!K24) ->  | L24: =IF('Physical Data'!K24="","",'Physical Data'!K24) -> Black Mud with Organic Matter and Shell Fragments and an Anoxic Odour. | M24: =IF('Physical Data'!L24="","",'Physical Data'!L24) ->  | N24: 0
H25: =IF('Physical Data'!H25="","",'Physical Data'!H25) -> MAR02481.017 | I25: =IF('Physical Data'!I25="","",'Physical Data'!I25) ->  | J25: =IF('Physical Data'!J25="","",'Physical Data'!J25) -> 19 | K25: =IF('Physical Stats'!K25="","",'Physical Stats'!K25) ->  | L25: =IF('Physical Data'!K25="","",'Physical Data'!K25) -> Black Mud with an Anoxic Odour. | M25: =IF('Physical Data'!L25="","",'Physical Data'!L25) ->  | N25: 0
H26: =IF('Physical Data'!H26="","",'Physical Data'!H26) -> MAR02481.018 | I26: =IF('Physical Data'!I26="","",'Physical Data'!I26) ->  | J26: =IF('Physical Data'!J26="","",'Physical Data'!J26) -> 20 | K26: =IF('Physical Stats'!K26="","",'Physical Stats'!K26) ->  | L26: =IF('Physical Data'!K26="","",'Physical Data'!K26) -> Black Mud with an Anoxic Odour. | M26: =IF('Physical Data'!L26="","",'Physical Data'!L26) ->  | N26: 0
H27: =IF('Physical Data'!H27="","",'Physical Data'!H27) -> MAR02481.019 | I27: =IF('Physical Data'!I27="","",'Physical Data'!I27) ->  | J27: =IF('Physical Data'!J27="","",'Physical Data'!J27) -> 21 | K27: =IF('Physical Stats'!K27="","",'Physical Stats'!K27) ->  | L27: =IF('Physical Data'!K27="","",'Physical Data'!K27) -> Black Mud with Shell Fragments and an Anoxic Odour. | M27: =IF('Physical Data'!L27="","",'Physical Data'!L27) ->  | N27: 0
H28: =IF('Physical Data'!H28="","",'Physical Data'!H28) -> MAR02481.020 | I28: =IF('Physical Data'!I28="","",'Physical Data'!I28) ->  | J28: =IF('Physical Data'!J28="","",'Physical Data'!J28) -> 22 | K28: =IF('Physical Stats'!K28="","",'Physical Stats'!K28) ->  | L28: =IF('Physical Data'!K28="","",'Physical Data'!K28) -> Black Mud with Shell Fragments and an Anoxic Odour. | M28: =IF('Physical Data'!L28="","",'Physical Data'!L28) ->  | N28: 0
H29: =IF('Physical Data'!H29="","",'Physical Data'!H29) -> MAR02481.021 | I29: =IF('Physical Data'!I29="","",'Physical Data'!I29) ->  | J29: =IF('Physical Data'!J29="","",'Physical Data'!J29) -> 23 | K29: =IF('Physical Stats'!K29="","",'Physical Stats'!K29) ->  | L29: =IF('Physical Data'!K29="","",'Physical Data'!K29) -> Black Mud with Shell Fragments and an Anoxic Odour. | M29: =IF('Physical Data'!L29="","",'Physical Data'!L29) ->  | N29: 0
H30: =IF('Physical Data'!H30="","",'Physical Data'!H30) -> MAR02481.022 | I30: =IF('Physical Data'!I30="","",'Physical Data'!I30) ->  | J30: =IF('Physical Data'!J30="","",'Physical Data'!J30) -> 24 | K30: =IF('Physical Stats'!K30="","",'Physical Stats'!K30) ->  | L30: =IF('Physical Data'!K30="","",'Physical Data'!K30) -> Odourless Black Mud . | M30: =IF('Physical Data'!L30="","",'Physical Data'!L30) ->  | N30: 0
H31: =IF('Physical Data'!H31="","",'Physical Data'!H31) -> MAR02481.023 | I31: =IF('Physical Data'!I31="","",'Physical Data'!I31) ->  | J31: =IF('Physical Data'!J31="","",'Physical Data'!J31) -> 25 | K31: =IF('Physical Stats'!K31="","",'Physical Stats'!K31) ->  | L31: =IF('Physical Data'!K31="","",'Physical Data'!K31) -> Odourless Black Mud . | M31: =IF('Physical Data'!L31="","",'Physical Data'!L31) ->  | N31: 0
H32: =IF('Physical Data'!H32="","",'Physical Data'!H32) ->  | I32: =IF('Physical Data'!I32="","",'Physical Data'!I32) ->  | J32: =IF('Physical Data'!J32="","",'Physical Data'!J32) ->  | K32: =IF('Physical Stats'!K32="","",'Physical Stats'!K32) ->  | L32: =IF('Physical Data'!K32="","",'Physical Data'!K32) ->  | M32: =IF('Physical Data'!L32="","",'Physical Data'!L32) ->  | N32: 0
H33: =IF('Physical Data'!H33="","",'Physical Data'!H33) ->  | I33: =IF('Physical Data'!I33="","",'Physical Data'!I33) ->  | J33: =IF('Physical Data'!J33="","",'Physical Data'!J33) ->  | K33: =IF('Physical Stats'!K33="","",'Physical Stats'!K33) ->  | L33: =IF('Physical Data'!K33="","",'Physical Data'!K33) ->  | M33: =IF('Physical Data'!L33="","",'Physical Data'!L33) ->  | N33: 0
H34: =IF('Physical Data'!H34="","",'Physical Data'!H34) ->  | I34: =IF('Physical Data'!I34="","",'Physical Data'!I34) ->  | J34: =IF('Physical Data'!J34="","",'Physical Data'!J34) ->  | K34: =IF('Physical Stats'!K34="","",'Physical Stats'!K34) ->  | L34: =IF('Physical Data'!K34="","",'Physical Data'!K34) ->  | M34: =IF('Physical Data'!L34="","",'Physical Data'!L34) ->  | N34: 0
H35: =IF('Physical Data'!H35="","",'Physical Data'!H35) ->  | I35: =IF('Physical Data'!I35="","",'Physical Data'!I35) ->  | J35: =IF('Physical Data'!J35="","",'Physical Data'!J35) ->  | K35: =IF('Physical Stats'!K35="","",'Physical Stats'!K35) ->  | L35: =IF('Physical Data'!K35="","",'Physical Data'!K35) ->  | M35: =IF('Physical Data'!L35="","",'Physical Data'!L35) ->  | N35: 0
H36: =IF('Physical Data'!H36="","",'Physical Data'!H36) ->  | I36: =IF('Physical Data'!I36="","",'Physical Data'!I36) ->  | J36: =IF('Physical Data'!J36="","",'Physical Data'!J36) ->  | K36: =IF('Physical Stats'!K36="","",'Physical Stats'!K36) ->  | L36: =IF('Physical Data'!K36="","",'Physical Data'!K36) ->  | M36: =IF('Physical Data'!L36="","",'Physical Data'!L36) ->  | N36: 0
H37: =IF('Physical Data'!H37="","",'Physical Data'!H37) ->  | I37: =IF('Physical Data'!I37="","",'Physical Data'!I37) ->  | J37: =IF('Physical Data'!J37="","",'Physical Data'!J37) ->  | K37: =IF('Physical Stats'!K37="","",'Physical Stats'!K37) ->  | L37: =IF('Physical Data'!K37="","",'Physical Data'!K37) ->  | M37: =IF('Physical Data'!L37="","",'Physical Data'!L37) ->  | N37: 0
H38: =IF('Physical Data'!H38="","",'Physical Data'!H38) ->  | I38: =IF('Physical Data'!I38="","",'Physical Data'!I38) ->  | J38: =IF('Physical Data'!J38="","",'Physical Data'!J38) ->  | K38: =IF('Physical Stats'!K38="","",'Physical Stats'!K38) ->  | L38: =IF('Physical Data'!K38="","",'Physical Data'!K38) ->  | M38: =IF('Physical Data'!L38="","",'Physical Data'!L38) ->  | N38: 0
G42: Total samples and tonnages exempt
H44: Dredge Area | I44: Total number tested samples | J44: Number exempt samples | K44: Dredge area tonnages | L44: Proportion exempt samples | M44: Tonnage for OSPAR exempt samples reporting
H47: Area i | I47: =IF(COUNTIF($I$9:$I$38, "Area i")<1,"",COUNTIF($I$9:$I$38, "Area i")) ->  | J47: =IF(I47="","",SUMIF($I$9:$I$38, "Area i", $N$9:$N$38)) ->  | K47: =IF('Application info'!D26="","",'Application info'!D26) ->  | L47: =IFERROR(J47/I47,"") ->  | M47: =IF(L47="","",IF(L47>0.5,K47,0)) -> 
H48: Area ii | I48: =IF(COUNTIF($I$9:$I$38, "Area ii")<1,"",COUNTIF($I$9:$I$38, "Area ii")) ->  | J48: =IF(I48="","",SUMIF($I$9:$I$38, "Area ii", $N$9:$N$38)) ->  | K48: =IF('Application info'!D27="","",'Application info'!D27) ->  | L48: =IFERROR(J48/I48,"") -> 
H49: Area iii | I49: =IF(COUNTIF($I$9:$I$38, "Area iii")<1,"",COUNTIF($I$9:$I$38, "Area iii")) ->  | J49: =IF(I49="","",SUMIF($I$9:$I$38, "Area iii", $N$9:$N$38)) ->  | K49: =IF('Application info'!D28="","",'Application info'!D28) -> 
H50: Area iv | I50: =IF(COUNTIF($I$9:$I$38, "Area iv")<1,"",COUNTIF($I$9:$I$38, "Area iv")) ->  | J50: =IF(I50="","",SUMIF($I$9:$I$38, "Area iv", $N$9:$N$38)) ->  | K50: =IF('Application info'!D29="","",'Application info'!D29) -> 
H51: Area v | I51: =IF(COUNTIF($I$9:$I$38, "Area v")<1,"",COUNTIF($I$9:$I$38, "Area v")) ->  | J51: =IF(I51="","",SUMIF($I$9:$I$38, "Area v", $N$9:$N$38)) ->  | K51: =IF('Application info'!D30="","",'Application info'!D30) -> 
H52: Area vi | I52: =IF(COUNTIF($I$9:$I$38, "Area vi")<1,"",COUNTIF($I$9:$I$38, "Area vi")) ->  | J52: =IF(I52="","",SUMIF($I$9:$I$38, "Area vi", $N$9:$N$38)) ->  | K52: =IF('Application info'!D31="","",'Application info'!D31) ->  | M52: =IF(L52="","",IF(L52>0.5,K52,0)) -> 
I54: Total exempt samples: | J54: =SUM(J47:J52) -> 0 | L54: Total exempt tonnages: | M54: =SUM(M47:M52) -> 0

Sheet Trace metal data
B2: Trace metal data
B4: Instructions: | H4: Determinand analysis outputs:
B5: 1. Record the laboratory/contractor responsible for trace metal analysis
B6: 2. Record the date the samples were analysed. | H6: Laboratory sample number | I6: Dredge Area | J6: Sample ID(s) | K6: Total solids (%) | L6: Metals as mg/kg dry weight
B7: 3. Enter full dataset for each sample in the analysis results table | L7: Arsenic (As) | M7: Cadmium (Cd) | N7: Chromium (Cr) | O7: Copper (Cu) | P7: Mercury (Hg) | Q7: Nickel (Ni) | R7: Lead (Pb) | S7: Zinc (Zn)
B8: 4. Trace metal analysis results should be reported in mg/kg (ppm) dry weight | H8: MAR02481.001 | J8: 1 | K8: 29.1 | L8: 12.3 | M8: 1.1 | N8: 136 | O8: 49.7 | P8: 0.3 | Q8: 34.2 | R8: 310 | S8: 352
B9: 5. Enter methdological limit of detection for each trace metal prior to inputting raw data | H9: MAR02481.002 | J9: 2 | K9: 27.9 | L9: 11.4 | M9: 1.05 | N9: 122 | O9: 47.1 | P9: 0.29 | Q9: 34 | R9: 280 | S9: 333
B10: 6. Where analysis outputs are less than the limits of detection please enter text "<LOD" | H10: MAR02481.003 | J10: 3 | K10: 31.7 | L10: 13.1 | M10: 0.92 | N10: 93.6 | O10: 55.8 | P10: 0.41 | Q10: 35 | R10: 238 | S10: 313
B11: 7. Where copying and pasting entries please use paste values only | H11: MAR02481.004 | J11: 4 | K11: 32.5 | L11: 17.7 | M11: 0.86 | N11: 95.6 | O11: 68.7 | P11: 0.58 | Q11: 35.2 | R11: 227 | S11: 297
B12: 8. Where entering multiple Sample IDs please use the pop-up form | H12: MAR02481.005 | J12: 5 | K12: 46.4 | L12: 16.4 | M12: 0.77 | N12: 79.7 | O12: 85.9 | P12: 0.56 | Q12: 34.4 | R12: 205 | S12: 301
C13: IDs should be separated by a comma | H13: MAR02481.006 | J13: 6 | K13: 41.4 | L13: 17.4 | M13: 0.83 | N13: 92 | O13: 70.9 | P13: 0.64 | Q13: 34.8 | R13: 216 | S13: 287
H14: MAR02481.007 | J14: 7 | K14: 37.1 | L14: 17.3 | M14: 0.57 | N14: 76.4 | O14: 57.9 | P14: 0.4 | Q14: 34.1 | R14: 174 | S14: 244
H15: MAR02481.008 | J15: 8 | K15: 46.6 | L15: 15.7 | M15: 0.58 | N15: 74 | O15: 66 | P15: 0.46 | Q15: 33.2 | R15: 147 | S15: 260
H16: MAR02481.009 | J16: 9 | K16: 60.8 | L16: 11.7 | M16: 0.24 | N16: 46.1 | O16: 48.7 | P16: 0.19 | Q16: 36.1 | R16: 56.8 | S16: 126
B17: Analysis information: | H17: MAR02481.010 | J17: 10 | K17: 45.8 | L17: 21.7 | M17: 0.32 | N17: 59 | O17: 54.6 | P17: 0.36 | Q17: 33.1 | R17: 106 | S17: 186
H18: MAR02481.011 | J18: 11 | K18: 47.8 | L18: 24.9 | M18: 0.81 | N18: 81.2 | O18: 91.8 | P18: 0.79 | Q18: 35.4 | R18: 169 | S18: 302
C19: Laboratory/contractor: | D19: SOCOTEC | H19: MAR02481.012 | J19: 12 | K19: 44.4 | L19: 20.2 | M19: 0.44 | N19: 63.5 | O19: 63.4 | P19: 0.47 | Q19: 33.1 | R19: 112 | S19: 201
C20: Date of analysis: | D20: 2024-10-24 | H20: MAR02481.013 | J20: 13 | K20: 49 | L20: 19.6 | M20: 0.45 | N20: 55.5 | O20: 58.7 | P20: 0.4 | Q20: 31.8 | R20: 102 | S20: 202
H21: MAR02481.014 | J21: 15 | K21: 63.5 | L21: 19.7 | M21: 0.3 | N21: 47.2 | O21: 42 | P21: 0.36 | Q21: 29.1 | R21: 87.9 | S21: 151
H22: MAR02481.015 | J22: 17 | K22: 48.9 | L22: 26.4 | M22: 0.14 | N22: 43.9 | O22: 37.5 | P22: 0.29 | Q22: 28.4 | R22: 89 | S22: 136
H23: MAR02481.016 | J23: 18 | K23: 52.5 | L23: 27.6 | M23: 0.15 | N23: 41.8 | O23: 34.7 | P23: 0.28 | Q23: 28.3 | R23: 88.4 | S23: 133
C24: Dredge Areas | H24: MAR02481.017 | J24: 19 | K24: 48 | L24: 27.9 | M24: 0.14 | N24: 41.4 | O24: 34.7 | P24: 0.29 | Q24: 27.9 | R24: 79.9 | S24: 130
C25: ='Application info'!$C$26 -> Area i | H25: MAR02481.018 | J25: 20 | K25: 51.6 | L25: 30.9 | M25: 0.14 | N25: 43.1 | O25: 40 | P25: 0.3 | Q25: 30.5 | R25: 93.9 | S25: 142
C26: ='Application info'!$C$27 -> Area ii | H26: MAR02481.019 | J26: 21 | K26: 55.8 | L26: 22.4 | M26: 0.19 | N26: 48.2 | O26: 44.8 | P26: 0.3 | Q26: 30.6 | R26: 97.4 | S26: 163
C27: ='Application info'!$C$28 -> Area iii | H27: MAR02481.020 | J27: 22 | K27: 44 | L27: 21 | M27: 0.06 | N27: 26.9 | O27: 23.3 | P27: 0.16 | Q27: 20.3 | R27: 50.5 | S27: 90.5
C28: ='Application info'!$C$29 -> Area iv | H28: MAR02481.021 | J28: 23 | K28: 58.8 | L28: 19.8 | M28: <LOD | N28: 17.2 | O28: 15.3 | P28: 0.09 | Q28: 15.2 | R28: 40.5 | S28: 69
C29: ='Application info'!$C$30 -> Area v | H29: MAR02481.022 | J29: 24 | K29: 66.1 | L29: 22.1 | M29: 0.35 | N29: 60.7 | O29: 56.2 | P29: 0.37 | Q29: 34 | R29: 116 | S29: 189
C30: ='Application info'!$C$31 -> Area vi | H30: MAR02481.023 | J30: 25 | K30: 63.1 | L30: 23.9 | M30: 0.18 | N30: 44.1 | O30: 37.2 | P30: 0.29 | Q30: 29.5 | R30: 76.5 | S30: 134
H38: Limits of detection (mg/kg dry weight): | L38: 0.5 | M38: 0.04 | N38: 0.5 | O38: 0.5 | P38: 0.01 | Q38: 0.5 | R38: 0.5 | S38: 2

Sheet Metals Calcs (hidden)
B2: Trace metal summary information
B4: Analysis information: | H4: determinand analysis outputs - adjusted for limits of detection:
C6: Applicant: | D6: =IF('Application info'!E16="","",'Application info'!E16) -> PD Ports | H6: Laboratory sample number | I6: Dredge Area | J6: Excluded (y if yes) | K6: Sample ID(s) | L6: Metals as mg/kg dry weight
C7: Application number: | D7: =IF('Application info'!E17="","",'Application info'!E17) ->  | L7: Arsenic (As) | M7: Cadmium (Cd) | N7: Chromium (Cr) | O7: Copper (Cu) | P7: Mercury (Hg) | Q7: Nickel (Ni) | R7: Lead (Pb) | S7: Zinc (Zn)
C8: Application title: | D8: =IF('Application info'!E18="","",'Application info'!E18) -> Mid licence sampling - year 9 | H8: =IF('Trace metal data'!H8="","",'Trace metal data'!H8) -> MAR02481.001 | I8: =IF('Trace metal data'!I8="","",'Trace metal data'!I8) ->  | J8: =IFERROR(IF(K8="","",(IF(VLOOKUP(K8,'Application info'!$K$8:$L$37,2,0)="y","y",""))),"Manual entry required") ->  | K8: =IF('Trace metal data'!J8="","",'Trace metal data'!J8) -> 1 | L8: =IF('Trace metal data'!L8="","",IF(ISNUMBER('Trace metal data'!L8)=TRUE, IF('Trace metal data'!L8<'Trace metal data'!L$38, "ERROR", 'Trace metal data'!L8), IF('Trace metal data'!L8="<LOD",'Trace metal data'!L$38, "ERROR"))) -> 12.3 | M8: =IF('Trace metal data'!M8="","",IF(ISNUMBER('Trace metal data'!M8)=TRUE, IF('Trace metal data'!M8<'Trace metal data'!M$38, "ERROR", 'Trace metal data'!M8), IF('Trace metal data'!M8="<LOD",'Trace metal data'!M$38, "ERROR"))) -> 1.1 | N8: =IF('Trace metal data'!N8="","",IF(ISNUMBER('Trace metal data'!N8)=TRUE, IF('Trace metal data'!N8<'Trace metal data'!N$38, "ERROR", 'Trace metal data'!N8), IF('Trace metal data'!N8="<LOD",'Trace metal data'!N$38, "ERROR"))) -> 136 | O8: =IF('Trace metal data'!O8="","",IF(ISNUMBER('Trace metal data'!O8)=TRUE, IF('Trace metal data'!O8<'Trace metal data'!O$38, "ERROR", 'Trace metal data'!O8), IF('Trace metal data'!O8="<LOD",'Trace metal data'!O$38, "ERROR"))) -> 49.7 | P8: =IF('Trace metal data'!P8="","",IF(ISNUMBER('Trace metal data'!P8)=TRUE, IF('Trace metal data'!P8<'Trace metal data'!P$38, "ERROR", 'Trace metal data'!P8), IF('Trace metal data'!P8="<LOD",'Trace metal data'!P$38, "ERROR"))) -> 0.3 | Q8: =IF('Trace metal data'!Q8="","",IF(ISNUMBER('Trace metal data'!Q8)=TRUE, IF('Trace metal data'!Q8<'Trace metal data'!Q$38, "ERROR", 'Trace metal data'!Q8), IF('Trace metal data'!Q8="<LOD",'Trace metal data'!Q$38, "ERROR"))) -> 34.2 | R8: =IF('Trace metal data'!R8="","",IF(ISNUMBER('Trace metal data'!R8)=TRUE, IF('Trace metal data'!R8<'Trace metal data'!R$38, "ERROR", 'Trace metal data'!R8), IF('Trace metal data'!R8="<LOD",'Trace metal data'!R$38, "ERROR"))) -> 310 | S8: =IF('Trace metal data'!S8="","",IF(ISNUMBER('Trace metal data'!S8)=TRUE, IF('Trace metal data'!S8<'Trace metal data'!S$38, "ERROR", 'Trace metal data'!S8), IF('Trace metal data'!S8="<LOD",'Trace metal data'!S$38, "ERROR"))) -> 352
C9: Date sampled: | D9: =IF('Application info'!E19="","",'Application info'!E19) ->  | H9: =IF('Trace metal data'!H9="","",'Trace metal data'!H9) -> MAR02481.002 | I9: =IF('Trace metal data'!I9="","",'Trace metal data'!I9) ->  | J9: =IFERROR(IF(K9="","",(IF(VLOOKUP(K9,'Application info'!$K$8:$L$37,2,0)="y","y",""))),"Manual entry required") ->  | K9: =IF('Trace metal data'!J9="","",'Trace metal data'!J9) -> 2 | L9: =IF('Trace metal data'!L9="","",IF(ISNUMBER('Trace metal data'!L9)=TRUE, IF('Trace metal data'!L9<'Trace metal data'!L$38, "ERROR", 'Trace metal data'!L9), IF('Trace metal data'!L9="<LOD",'Trace metal data'!L$38, "ERROR"))) -> 11.4 | M9: =IF('Trace metal data'!M9="","",IF(ISNUMBER('Trace metal data'!M9)=TRUE, IF('Trace metal data'!M9<'Trace metal data'!M$38, "ERROR", 'Trace metal data'!M9), IF('Trace metal data'!M9="<LOD",'Trace metal data'!M$38, "ERROR"))) -> 1.05 | N9: =IF('Trace metal data'!N9="","",IF(ISNUMBER('Trace metal data'!N9)=TRUE, IF('Trace metal data'!N9<'Trace metal data'!N$38, "ERROR", 'Trace metal data'!N9), IF('Trace metal data'!N9="<LOD",'Trace metal data'!N$38, "ERROR"))) -> 122 | O9: =IF('Trace metal data'!O9="","",IF(ISNUMBER('Trace metal data'!O9)=TRUE, IF('Trace metal data'!O9<'Trace metal data'!O$38, "ERROR", 'Trace metal data'!O9), IF('Trace metal data'!O9="<LOD",'Trace metal data'!O$38, "ERROR"))) -> 47.1 | P9: =IF('Trace metal data'!P9="","",IF(ISNUMBER('Trace metal data'!P9)=TRUE, IF('Trace metal data'!P9<'Trace metal data'!P$38, "ERROR", 'Trace metal data'!P9), IF('Trace metal data'!P9="<LOD",'Trace metal data'!P$38, "ERROR"))) -> 0.29 | Q9: =IF('Trace metal data'!Q9="","",IF(ISNUMBER('Trace metal data'!Q9)=TRUE, IF('Trace metal data'!Q9<'Trace metal data'!Q$38, "ERROR", 'Trace metal data'!Q9), IF('Trace metal data'!Q9="<LOD",'Trace metal data'!Q$38, "ERROR"))) -> 34 | R9: =IF('Trace metal data'!R9="","",IF(ISNUMBER('Trace metal data'!R9)=TRUE, IF('Trace metal data'!R9<'Trace metal data'!R$38, "ERROR", 'Trace metal data'!R9), IF('Trace metal data'!R9="<LOD",'Trace metal data'!R$38, "ERROR"))) -> 280 | S9: =IF('Trace metal data'!S9="","",IF(ISNUMBER('Trace metal data'!S9)=TRUE, IF('Trace metal data'!S9<'Trace metal data'!S$38, "ERROR", 'Trace metal data'!S9), IF('Trace metal data'!S9="<LOD",'Trace metal data'!S$38, "ERROR"))) -> 333
C10: Sampling location: | D10: =IF('Application info'!E20="","",'Application info'!E20) ->  | H10: =IF('Trace metal data'!H10="","",'Trace metal data'!H10) -> MAR02481.003 | I10: =IF('Trace metal data'!I10="","",'Trace metal data'!I10) ->  | J10: =IFERROR(IF(K10="","",(IF(VLOOKUP(K10,'Application info'!$K$8:$L$37,2,0)="y","y",""))),"Manual entry required") ->  | K10: =IF('Trace metal data'!J10="","",'Trace metal data'!J10) -> 3 | L10: =IF('Trace metal data'!L10="","",IF(ISNUMBER('Trace metal data'!L10)=TRUE, IF('Trace metal data'!L10<'Trace metal data'!L$38, "ERROR", 'Trace metal data'!L10), IF('Trace metal data'!L10="<LOD",'Trace metal data'!L$38, "ERROR"))) -> 13.1 | M10: =IF('Trace metal data'!M10="","",IF(ISNUMBER('Trace metal data'!M10)=TRUE, IF('Trace metal data'!M10<'Trace metal data'!M$38, "ERROR", 'Trace metal data'!M10), IF('Trace metal data'!M10="<LOD",'Trace metal data'!M$38, "ERROR"))) -> 0.92 | N10: =IF('Trace metal data'!N10="","",IF(ISNUMBER('Trace metal data'!N10)=TRUE, IF('Trace metal data'!N10<'Trace metal data'!N$38, "ERROR", 'Trace metal data'!N10), IF('Trace metal data'!N10="<LOD",'Trace metal data'!N$38, "ERROR"))) -> 93.6 | O10: =IF('Trace metal data'!O10="","",IF(ISNUMBER('Trace metal data'!O10)=TRUE, IF('Trace metal data'!O10<'Trace metal data'!O$38, "ERROR", 'Trace metal data'!O10), IF('Trace metal data'!O10="<LOD",'Trace metal data'!O$38, "ERROR"))) -> 55.8 | P10: =IF('Trace metal data'!P10="","",IF(ISNUMBER('Trace metal data'!P10)=TRUE, IF('Trace metal data'!P10<'Trace metal data'!P$38, "ERROR", 'Trace metal data'!P10), IF('Trace metal data'!P10="<LOD",'Trace metal data'!P$38, "ERROR"))) -> 0.41 | Q10: =IF('Trace metal data'!Q10="","",IF(ISNUMBER('Trace metal data'!Q10)=TRUE, IF('Trace metal data'!Q10<'Trace metal data'!Q$38, "ERROR", 'Trace metal data'!Q10), IF('Trace metal data'!Q10="<LOD",'Trace metal data'!Q$38, "ERROR"))) -> 35 | R10: =IF('Trace metal data'!R10="","",IF(ISNUMBER('Trace metal data'!R10)=TRUE, IF('Trace metal data'!R10<'Trace metal data'!R$38, "ERROR", 'Trace metal data'!R10), IF('Trace metal data'!R10="<LOD",'Trace metal data'!R$38, "ERROR"))) -> 238 | S10: =IF('Trace metal data'!S10="","",IF(ISNUMBER('Trace metal data'!S10)=TRUE, IF('Trace metal data'!S10<'Trace metal data'!S$38, "ERROR", 'Trace metal data'!S10), IF('Trace metal data'!S10="<LOD",'Trace metal data'!S$38, "ERROR"))) -> 313
H11: =IF('Trace metal data'!H11="","",'Trace metal data'!H11) -> MAR02481.004 | I11: =IF('Trace metal data'!I11="","",'Trace metal data'!I11) ->  | J11: =IFERROR(IF(K11="","",(IF(VLOOKUP(K11,'Application info'!$K$8:$L$37,2,0)="y","y",""))),"Manual entry required") ->  | K11: =IF('Trace metal data'!J11="","",'Trace metal data'!J11) -> 4 | L11: =IF('Trace metal data'!L11="","",IF(ISNUMBER('Trace metal data'!L11)=TRUE, IF('Trace metal data'!L11<'Trace metal data'!L$38, "ERROR", 'Trace metal data'!L11), IF('Trace metal data'!L11="<LOD",'Trace metal data'!L$38, "ERROR"))) -> 17.7 | M11: =IF('Trace metal data'!M11="","",IF(ISNUMBER('Trace metal data'!M11)=TRUE, IF('Trace metal data'!M11<'Trace metal data'!M$38, "ERROR", 'Trace metal data'!M11), IF('Trace metal data'!M11="<LOD",'Trace metal data'!M$38, "ERROR"))) -> 0.86 | N11: =IF('Trace metal data'!N11="","",IF(ISNUMBER('Trace metal data'!N11)=TRUE, IF('Trace metal data'!N11<'Trace metal data'!N$38, "ERROR", 'Trace metal data'!N11), IF('Trace metal data'!N11="<LOD",'Trace metal data'!N$38, "ERROR"))) -> 95.6 | O11: =IF('Trace metal data'!O11="","",IF(ISNUMBER('Trace metal data'!O11)=TRUE, IF('Trace metal data'!O11<'Trace metal data'!O$38, "ERROR", 'Trace metal data'!O11), IF('Trace metal data'!O11="<LOD",'Trace metal data'!O$38, "ERROR"))) -> 68.7 | P11: =IF('Trace metal data'!P11="","",IF(ISNUMBER('Trace metal data'!P11)=TRUE, IF('Trace metal data'!P11<'Trace metal data'!P$38, "ERROR", 'Trace metal data'!P11), IF('Trace metal data'!P11="<LOD",'Trace metal data'!P$38, "ERROR"))) -> 0.58 | Q11: =IF('Trace metal data'!Q11="","",IF(ISNUMBER('Trace metal data'!Q11)=TRUE, IF('Trace metal data'!Q11<'Trace metal data'!Q$38, "ERROR", 'Trace metal data'!Q11), IF('Trace metal data'!Q11="<LOD",'Trace metal data'!Q$38, "ERROR"))) -> 35.2 | R11: =IF('Trace metal data'!R11="","",IF(ISNUMBER('Trace metal data'!R11)=TRUE, IF('Trace metal data'!R11<'Trace metal data'!R$38, "ERROR", 'Trace metal data'!R11), IF('Trace metal data'!R11="<LOD",'Trace metal data'!R$38, "ERROR"))) -> 227 | S11: =IF('Trace metal data'!S11="","",IF(ISNUMBER('Trace metal data'!S11)=TRUE, IF('Trace metal data'!S11<'Trace metal data'!S$38, "ERROR", 'Trace metal data'!S11), IF('Trace metal data'!S11="<LOD",'Trace metal data'!S$38, "ERROR"))) -> 297
C12: Laboratory/contractor: | D12: =IF('Trace metal data'!D19="","",'Trace metal data'!D19) -> SOCOTEC | H12: =IF('Trace metal data'!H12="","",'Trace metal data'!H12) -> MAR02481.005 | I12: =IF('Trace metal data'!I12="","",'Trace metal data'!I12) ->  | J12: =IFERROR(IF(K12="","",(IF(VLOOKUP(K12,'Application info'!$K$8:$L$37,2,0)="y","y",""))),"Manual entry required") ->  | K12: =IF('Trace metal data'!J12="","",'Trace metal data'!J12) -> 5 | L12: =IF('Trace metal data'!L12="","",IF(ISNUMBER('Trace metal data'!L12)=TRUE, IF('Trace metal data'!L12<'Trace metal data'!L$38, "ERROR", 'Trace metal data'!L12), IF('Trace metal data'!L12="<LOD",'Trace metal data'!L$38, "ERROR"))) -> 16.4 | M12: =IF('Trace metal data'!M12="","",IF(ISNUMBER('Trace metal data'!M12)=TRUE, IF('Trace metal data'!M12<'Trace metal data'!M$38, "ERROR", 'Trace metal data'!M12), IF('Trace metal data'!M12="<LOD",'Trace metal data'!M$38, "ERROR"))) -> 0.77 | N12: =IF('Trace metal data'!N12="","",IF(ISNUMBER('Trace metal data'!N12)=TRUE, IF('Trace metal data'!N12<'Trace metal data'!N$38, "ERROR", 'Trace metal data'!N12), IF('Trace metal data'!N12="<LOD",'Trace metal data'!N$38, "ERROR"))) -> 79.7 | O12: =IF('Trace metal data'!O12="","",IF(ISNUMBER('Trace metal data'!O12)=TRUE, IF('Trace metal data'!O12<'Trace metal data'!O$38, "ERROR", 'Trace metal data'!O12), IF('Trace metal data'!O12="<LOD",'Trace metal data'!O$38, "ERROR"))) -> 85.9 | P12: =IF('Trace metal data'!P12="","",IF(ISNUMBER('Trace metal data'!P12)=TRUE, IF('Trace metal data'!P12<'Trace metal data'!P$38, "ERROR", 'Trace metal data'!P12), IF('Trace metal data'!P12="<LOD",'Trace metal data'!P$38, "ERROR"))) -> 0.56 | Q12: =IF('Trace metal data'!Q12="","",IF(ISNUMBER('Trace metal data'!Q12)=TRUE, IF('Trace metal data'!Q12<'Trace metal data'!Q$38, "ERROR", 'Trace metal data'!Q12), IF('Trace metal data'!Q12="<LOD",'Trace metal data'!Q$38, "ERROR"))) -> 34.4 | R12: =IF('Trace metal data'!R12="","",IF(ISNUMBER('Trace metal data'!R12)=TRUE, IF('Trace metal data'!R12<'Trace metal data'!R$38, "ERROR", 'Trace metal data'!R12), IF('Trace metal data'!R12="<LOD",'Trace metal data'!R$38, "ERROR"))) -> 205 | S12: =IF('Trace metal data'!S12="","",IF(ISNUMBER('Trace metal data'!S12)=TRUE, IF('Trace metal data'!S12<'Trace metal data'!S$38, "ERROR", 'Trace metal data'!S12), IF('Trace metal data'!S12="<LOD",'Trace metal data'!S$38, "ERROR"))) -> 301
C13: Date of analysis: | D13: =IF('Trace metal data'!D20="","",'Trace metal data'!D20) -> 2024-10-24 | H13: =IF('Trace metal data'!H13="","",'Trace metal data'!H13) -> MAR02481.006 | I13: =IF('Trace metal data'!I13="","",'Trace metal data'!I13) ->  | J13: =IFERROR(IF(K13="","",(IF(VLOOKUP(K13,'Application info'!$K$8:$L$37,2,0)="y","y",""))),"Manual entry required") ->  | K13: =IF('Trace metal data'!J13="","",'Trace metal data'!J13) -> 6 | L13: =IF('Trace metal data'!L13="","",IF(ISNUMBER('Trace metal data'!L13)=TRUE, IF('Trace metal data'!L13<'Trace metal data'!L$38, "ERROR", 'Trace metal data'!L13), IF('Trace metal data'!L13="<LOD",'Trace metal data'!L$38, "ERROR"))) -> 17.4 | M13: =IF('Trace metal data'!M13="","",IF(ISNUMBER('Trace metal data'!M13)=TRUE, IF('Trace metal data'!M13<'Trace metal data'!M$38, "ERROR", 'Trace metal data'!M13), IF('Trace metal data'!M13="<LOD",'Trace metal data'!M$38, "ERROR"))) -> 0.83 | N13: =IF('Trace metal data'!N13="","",IF(ISNUMBER('Trace metal data'!N13)=TRUE, IF('Trace metal data'!N13<'Trace metal data'!N$38, "ERROR", 'Trace metal data'!N13), IF('Trace metal data'!N13="<LOD",'Trace metal data'!N$38, "ERROR"))) -> 92 | O13: =IF('Trace metal data'!O13="","",IF(ISNUMBER('Trace metal data'!O13)=TRUE, IF('Trace metal data'!O13<'Trace metal data'!O$38, "ERROR", 'Trace metal data'!O13), IF('Trace metal data'!O13="<LOD",'Trace metal data'!O$38, "ERROR"))) -> 70.9 | P13: =IF('Trace metal data'!P13="","",IF(ISNUMBER('Trace metal data'!P13)=TRUE, IF('Trace metal data'!P13<'Trace metal data'!P$38, "ERROR", 'Trace metal data'!P13), IF('Trace metal data'!P13="<LOD",'Trace metal data'!P$38, "ERROR"))) -> 0.64 | Q13: =IF('Trace metal data'!Q13="","",IF(ISNUMBER('Trace metal data'!Q13)=TRUE, IF('Trace metal data'!Q13<'Trace metal data'!Q$38, "ERROR", 'Trace metal data'!Q13), IF('Trace metal data'!Q13="<LOD",'Trace metal data'!Q$38, "ERROR"))) -> 34.8 | R13: =IF('Trace metal data'!R13="","",IF(ISNUMBER('Trace metal data'!R13)=TRUE, IF('Trace metal data'!R13<'Trace metal data'!R$38, "ERROR", 'Trace metal data'!R13), IF('Trace metal data'!R13="<LOD",'Trace metal data'!R$38, "ERROR"))) -> 216 | S13: =IF('Trace metal data'!S13="","",IF(ISNUMBER('Trace metal data'!S13)=TRUE, IF('Trace metal data'!S13<'Trace metal data'!S$38, "ERROR", 'Trace metal data'!S13), IF('Trace metal data'!S13="<LOD",'Trace metal data'!S$38, "ERROR"))) -> 287
H14: =IF('Trace metal data'!H14="","",'Trace metal data'!H14) -> MAR02481.007 | I14: =IF('Trace metal data'!I14="","",'Trace metal data'!I14) ->  | J14: =IFERROR(IF(K14="","",(IF(VLOOKUP(K14,'Application info'!$K$8:$L$37,2,0)="y","y",""))),"Manual entry required") ->  | K14: =IF('Trace metal data'!J14="","",'Trace metal data'!J14) -> 7 | L14: =IF('Trace metal data'!L14="","",IF(ISNUMBER('Trace metal data'!L14)=TRUE, IF('Trace metal data'!L14<'Trace metal data'!L$38, "ERROR", 'Trace metal data'!L14), IF('Trace metal data'!L14="<LOD",'Trace metal data'!L$38, "ERROR"))) -> 17.3 | M14: =IF('Trace metal data'!M14="","",IF(ISNUMBER('Trace metal data'!M14)=TRUE, IF('Trace metal data'!M14<'Trace metal data'!M$38, "ERROR", 'Trace metal data'!M14), IF('Trace metal data'!M14="<LOD",'Trace metal data'!M$38, "ERROR"))) -> 0.57 | N14: =IF('Trace metal data'!N14="","",IF(ISNUMBER('Trace metal data'!N14)=TRUE, IF('Trace metal data'!N14<'Trace metal data'!N$38, "ERROR", 'Trace metal data'!N14), IF('Trace metal data'!N14="<LOD",'Trace metal data'!N$38, "ERROR"))) -> 76.4 | O14: =IF('Trace metal data'!O14="","",IF(ISNUMBER('Trace metal data'!O14)=TRUE, IF('Trace metal data'!O14<'Trace metal data'!O$38, "ERROR", 'Trace metal data'!O14), IF('Trace metal data'!O14="<LOD",'Trace metal data'!O$38, "ERROR"))) -> 57.9 | P14: =IF('Trace metal data'!P14="","",IF(ISNUMBER('Trace metal data'!P14)=TRUE, IF('Trace metal data'!P14<'Trace metal data'!P$38, "ERROR", 'Trace metal data'!P14), IF('Trace metal data'!P14="<LOD",'Trace metal data'!P$38, "ERROR"))) -> 0.4 | Q14: =IF('Trace metal data'!Q14="","",IF(ISNUMBER('Trace metal data'!Q14)=TRUE, IF('Trace metal data'!Q14<'Trace metal data'!Q$38, "ERROR", 'Trace metal data'!Q14), IF('Trace metal data'!Q14="<LOD",'Trace metal data'!Q$38, "ERROR"))) -> 34.1 | R14: =IF('Trace metal data'!R14="","",IF(ISNUMBER('Trace metal data'!R14)=TRUE, IF('Trace metal data'!R14<'Trace metal data'!R$38, "ERROR", 'Trace metal data'!R14), IF('Trace metal data'!R14="<LOD",'Trace metal data'!R$38, "ERROR"))) -> 174 | S14: =IF('Trace metal data'!S14="","",IF(ISNUMBER('Trace metal data'!S14)=TRUE, IF('Trace metal data'!S14<'Trace metal data'!S$38, "ERROR", 'Trace metal data'!S14), IF('Trace metal data'!S14="<LOD",'Trace metal data'!S$38, "ERROR"))) -> 244
H15: =IF('Trace metal data'!H15="","",'Trace metal data'!H15) -> MAR02481.008 | I15: =IF('Trace metal data'!I15="","",'Trace metal data'!I15) ->  | J15: =IFERROR(IF(K15="","",(IF(VLOOKUP(K15,'Application info'!$K$8:$L$37,2,0)="y","y",""))),"Manual entry required") ->  | K15: =IF('Trace metal data'!J15="","",'Trace metal data'!J15) -> 8 | L15: =IF('Trace metal data'!L15="","",IF(ISNUMBER('Trace metal data'!L15)=TRUE, IF('Trace metal data'!L15<'Trace metal data'!L$38, "ERROR", 'Trace metal data'!L15), IF('Trace metal data'!L15="<LOD",'Trace metal data'!L$38, "ERROR"))) -> 15.7 | M15: =IF('Trace metal data'!M15="","",IF(ISNUMBER('Trace metal data'!M15)=TRUE, IF('Trace metal data'!M15<'Trace metal data'!M$38, "ERROR", 'Trace metal data'!M15), IF('Trace metal data'!M15="<LOD",'Trace metal data'!M$38, "ERROR"))) -> 0.58 | N15: =IF('Trace metal data'!N15="","",IF(ISNUMBER('Trace metal data'!N15)=TRUE, IF('Trace metal data'!N15<'Trace metal data'!N$38, "ERROR", 'Trace metal data'!N15), IF('Trace metal data'!N15="<LOD",'Trace metal data'!N$38, "ERROR"))) -> 74 | O15: =IF('Trace metal data'!O15="","",IF(ISNUMBER('Trace metal data'!O15)=TRUE, IF('Trace metal data'!O15<'Trace metal data'!O$38, "ERROR", 'Trace metal data'!O15), IF('Trace metal data'!O15="<LOD",'Trace metal data'!O$38, "ERROR"))) -> 66 | P15: =IF('Trace metal data'!P15="","",IF(ISNUMBER('Trace metal data'!P15)=TRUE, IF('Trace metal data'!P15<'Trace metal data'!P$38, "ERROR", 'Trace metal data'!P15), IF('Trace metal data'!P15="<LOD",'Trace metal data'!P$38, "ERROR"))) -> 0.46 | Q15: =IF('Trace metal data'!Q15="","",IF(ISNUMBER('Trace metal data'!Q15)=TRUE, IF('Trace metal data'!Q15<'Trace metal data'!Q$38, "ERROR", 'Trace metal data'!Q15), IF('Trace metal data'!Q15="<LOD",'Trace metal data'!Q$38, "ERROR"))) -> 33.2 | R15: =IF('Trace metal data'!R15="","",IF(ISNUMBER('Trace metal data'!R15)=TRUE, IF('Trace metal data'!R15<'Trace metal data'!R$38, "ERROR", 'Trace metal data'!R15), IF('Trace metal data'!R15="<LOD",'Trace metal data'!R$38, "ERROR"))) -> 147 | S15: =IF('Trace metal data'!S15="","",IF(ISNUMBER('Trace metal data'!S15)=TRUE, IF('Trace metal data'!S15<'Trace metal data'!S$38, "ERROR", 'Trace metal data'!S15), IF('Trace metal data'!S15="<LOD",'Trace metal data'!S$38, "ERROR"))) -> 260
H16: =IF('Trace metal data'!H16="","",'Trace metal data'!H16) -> MAR02481.009 | I16: =IF('Trace metal data'!I16="","",'Trace metal data'!I16) ->  | J16: =IFERROR(IF(K16="","",(IF(VLOOKUP(K16,'Application info'!$K$8:$L$37,2,0)="y","y",""))),"Manual entry required") ->  | K16: =IF('Trace metal data'!J16="","",'Trace metal data'!J16) -> 9 | L16: =IF('Trace metal data'!L16="","",IF(ISNUMBER('Trace metal data'!L16)=TRUE, IF('Trace metal data'!L16<'Trace metal data'!L$38, "ERROR", 'Trace metal data'!L16), IF('Trace metal data'!L16="<LOD",'Trace metal data'!L$38, "ERROR"))) -> 11.7 | M16: =IF('Trace metal data'!M16="","",IF(ISNUMBER('Trace metal data'!M16)=TRUE, IF('Trace metal data'!M16<'Trace metal data'!M$38, "ERROR", 'Trace metal data'!M16), IF('Trace metal data'!M16="<LOD",'Trace metal data'!M$38, "ERROR"))) -> 0.24 | N16: =IF('Trace metal data'!N16="","",IF(ISNUMBER('Trace metal data'!N16)=TRUE, IF('Trace metal data'!N16<'Trace metal data'!N$38, "ERROR", 'Trace metal data'!N16), IF('Trace metal data'!N16="<LOD",'Trace metal data'!N$38, "ERROR"))) -> 46.1 | O16: =IF('Trace metal data'!O16="","",IF(ISNUMBER('Trace metal data'!O16)=TRUE, IF('Trace metal data'!O16<'Trace metal data'!O$38, "ERROR", 'Trace metal data'!O16), IF('Trace metal data'!O16="<LOD",'Trace metal data'!O$38, "ERROR"))) -> 48.7 | P16: =IF('Trace metal data'!P16="","",IF(ISNUMBER('Trace metal data'!P16)=TRUE, IF('Trace metal data'!P16<'Trace metal data'!P$38, "ERROR", 'Trace metal data'!P16), IF('Trace metal data'!P16="<LOD",'Trace metal data'!P$38, "ERROR"))) -> 0.19 | Q16: =IF('Trace metal data'!Q16="","",IF(ISNUMBER('Trace metal data'!Q16)=TRUE, IF('Trace metal data'!Q16<'Trace metal data'!Q$38, "ERROR", 'Trace metal data'!Q16), IF('Trace metal data'!Q16="<LOD",'Trace metal data'!Q$38, "ERROR"))) -> 36.1 | R16: =IF('Trace metal data'!R16="","",IF(ISNUMBER('Trace metal data'!R16)=TRUE, IF('Trace metal data'!R16<'Trace metal data'!R$38, "ERROR", 'Trace metal data'!R16), IF('Trace metal data'!R16="<LOD",'Trace metal data'!R$38, "ERROR"))) -> 56.8 | S16: =IF('Trace metal data'!S16="","",IF(ISNUMBER('Trace metal data'!S16)=TRUE, IF('Trace metal data'!S16<'Trace metal data'!S$38, "ERROR", 'Trace metal data'!S16), IF('Trace metal data'!S16="<LOD",'Trace metal data'!S$38, "ERROR"))) -> 126
H17: =IF('Trace metal data'!H17="","",'Trace metal data'!H17) -> MAR02481.010 | I17: =IF('Trace metal data'!I17="","",'Trace metal data'!I17) ->  | J17: =IFERROR(IF(K17="","",(IF(VLOOKUP(K17,'Application info'!$K$8:$L$37,2,0)="y","y",""))),"Manual entry required") ->  | K17: =IF('Trace metal data'!J17="","",'Trace metal data'!J17) -> 10 | L17: =IF('Trace metal data'!L17="","",IF(ISNUMBER('Trace metal data'!L17)=TRUE, IF('Trace metal data'!L17<'Trace metal data'!L$38, "ERROR", 'Trace metal data'!L17), IF('Trace metal data'!L17="<LOD",'Trace metal data'!L$38, "ERROR"))) -> 21.7 | M17: =IF('Trace metal data'!M17="","",IF(ISNUMBER('Trace metal data'!M17)=TRUE, IF('Trace metal data'!M17<'Trace metal data'!M$38, "ERROR", 'Trace metal data'!M17), IF('Trace metal data'!M17="<LOD",'Trace metal data'!M$38, "ERROR"))) -> 0.32 | N17: =IF('Trace metal data'!N17="","",IF(ISNUMBER('Trace metal data'!N17)=TRUE, IF('Trace metal data'!N17<'Trace metal data'!N$38, "ERROR", 'Trace metal data'!N17), IF('Trace metal data'!N17="<LOD",'Trace metal data'!N$38, "ERROR"))) -> 59 | O17: =IF('Trace metal data'!O17="","",IF(ISNUMBER('Trace metal data'!O17)=TRUE, IF('Trace metal data'!O17<'Trace metal data'!O$38, "ERROR", 'Trace metal data'!O17), IF('Trace metal data'!O17="<LOD",'Trace metal data'!O$38, "ERROR"))) -> 54.6 | P17: =IF('Trace metal data'!P17="","",IF(ISNUMBER('Trace metal data'!P17)=TRUE, IF('Trace metal data'!P17<'Trace metal data'!P$38, "ERROR", 'Trace metal data'!P17), IF('Trace metal data'!P17="<LOD",'Trace metal data'!P$38, "ERROR"))) -> 0.36 | Q17: =IF('Trace metal data'!Q17="","",IF(ISNUMBER('Trace metal data'!Q17)=TRUE, IF('Trace metal data'!Q17<'Trace metal data'!Q$38, "ERROR", 'Trace metal data'!Q17), IF('Trace metal data'!Q17="<LOD",'Trace metal data'!Q$38, "ERROR"))) -> 33.1 | R17: =IF('Trace metal data'!R17="","",IF(ISNUMBER('Trace metal data'!R17)=TRUE, IF('Trace metal data'!R17<'Trace metal data'!R$38, "ERROR", 'Trace metal data'!R17), IF('Trace metal data'!R17="<LOD",'Trace metal data'!R$38, "ERROR"))) -> 106 | S17: =IF('Trace metal data'!S17="","",IF(ISNUMBER('Trace metal data'!S17)=TRUE, IF('Trace metal data'!S17<'Trace metal data'!S$38, "ERROR", 'Trace metal data'!S17), IF('Trace metal data'!S17="<LOD",'Trace metal data'!S$38, "ERROR"))) -> 186
H18: =IF('Trace metal data'!H18="","",'Trace metal data'!H18) -> MAR02481.011 | I18: =IF('Trace metal data'!I18="","",'Trace metal data'!I18) ->  | J18: =IFERROR(IF(K18="","",(IF(VLOOKUP(K18,'Application info'!$K$8:$L$37,2,0)="y","y",""))),"Manual entry required") ->  | K18: =IF('Trace metal data'!J18="","",'Trace metal data'!J18) -> 11 | L18: =IF('Trace metal data'!L18="","",IF(ISNUMBER('Trace metal data'!L18)=TRUE, IF('Trace metal data'!L18<'Trace metal data'!L$38, "ERROR", 'Trace metal data'!L18), IF('Trace metal data'!L18="<LOD",'Trace metal data'!L$38, "ERROR"))) -> 24.9 | M18: =IF('Trace metal data'!M18="","",IF(ISNUMBER('Trace metal data'!M18)=TRUE, IF('Trace metal data'!M18<'Trace metal data'!M$38, "ERROR", 'Trace metal data'!M18), IF('Trace metal data'!M18="<LOD",'Trace metal data'!M$38, "ERROR"))) -> 0.81 | N18: =IF('Trace metal data'!N18="","",IF(ISNUMBER('Trace metal data'!N18)=TRUE, IF('Trace metal data'!N18<'Trace metal data'!N$38, "ERROR", 'Trace metal data'!N18), IF('Trace metal data'!N18="<LOD",'Trace metal data'!N$38, "ERROR"))) -> 81.2 | O18: =IF('Trace metal data'!O18="","",IF(ISNUMBER('Trace metal data'!O18)=TRUE, IF('Trace metal data'!O18<'Trace metal data'!O$38, "ERROR", 'Trace metal data'!O18), IF('Trace metal data'!O18="<LOD",'Trace metal data'!O$38, "ERROR"))) -> 91.8 | P18: =IF('Trace metal data'!P18="","",IF(ISNUMBER('Trace metal data'!P18)=TRUE, IF('Trace metal data'!P18<'Trace metal data'!P$38, "ERROR", 'Trace metal data'!P18), IF('Trace metal data'!P18="<LOD",'Trace metal data'!P$38, "ERROR"))) -> 0.79 | Q18: =IF('Trace metal data'!Q18="","",IF(ISNUMBER('Trace metal data'!Q18)=TRUE, IF('Trace metal data'!Q18<'Trace metal data'!Q$38, "ERROR", 'Trace metal data'!Q18), IF('Trace metal data'!Q18="<LOD",'Trace metal data'!Q$38, "ERROR"))) -> 35.4 | R18: =IF('Trace metal data'!R18="","",IF(ISNUMBER('Trace metal data'!R18)=TRUE, IF('Trace metal data'!R18<'Trace metal data'!R$38, "ERROR", 'Trace metal data'!R18), IF('Trace metal data'!R18="<LOD",'Trace metal data'!R$38, "ERROR"))) -> 169 | S18: =IF('Trace metal data'!S18="","",IF(ISNUMBER('Trace metal data'!S18)=TRUE, IF('Trace metal data'!S18<'Trace metal data'!S$38, "ERROR", 'Trace metal data'!S18), IF('Trace metal data'!S18="<LOD",'Trace metal data'!S$38, "ERROR"))) -> 302
H19: =IF('Trace metal data'!H19="","",'Trace metal data'!H19) -> MAR02481.012 | I19: =IF('Trace metal data'!I19="","",'Trace metal data'!I19) ->  | J19: =IFERROR(IF(K19="","",(IF(VLOOKUP(K19,'Application info'!$K$8:$L$37,2,0)="y","y",""))),"Manual entry required") ->  | K19: =IF('Trace metal data'!J19="","",'Trace metal data'!J19) -> 12 | L19: =IF('Trace metal data'!L19="","",IF(ISNUMBER('Trace metal data'!L19)=TRUE, IF('Trace metal data'!L19<'Trace metal data'!L$38, "ERROR", 'Trace metal data'!L19), IF('Trace metal data'!L19="<LOD",'Trace metal data'!L$38, "ERROR"))) -> 20.2 | M19: =IF('Trace metal data'!M19="","",IF(ISNUMBER('Trace metal data'!M19)=TRUE, IF('Trace metal data'!M19<'Trace metal data'!M$38, "ERROR", 'Trace metal data'!M19), IF('Trace metal data'!M19="<LOD",'Trace metal data'!M$38, "ERROR"))) -> 0.44 | N19: =IF('Trace metal data'!N19="","",IF(ISNUMBER('Trace metal data'!N19)=TRUE, IF('Trace metal data'!N19<'Trace metal data'!N$38, "ERROR", 'Trace metal data'!N19), IF('Trace metal data'!N19="<LOD",'Trace metal data'!N$38, "ERROR"))) -> 63.5 | O19: =IF('Trace metal data'!O19="","",IF(ISNUMBER('Trace metal data'!O19)=TRUE, IF('Trace metal data'!O19<'Trace metal data'!O$38, "ERROR", 'Trace metal data'!O19), IF('Trace metal data'!O19="<LOD",'Trace metal data'!O$38, "ERROR"))) -> 63.4 | P19: =IF('Trace metal data'!P19="","",IF(ISNUMBER('Trace metal data'!P19)=TRUE, IF('Trace metal data'!P19<'Trace metal data'!P$38, "ERROR", 'Trace metal data'!P19), IF('Trace metal data'!P19="<LOD",'Trace metal data'!P$38, "ERROR"))) -> 0.47 | Q19: =IF('Trace metal data'!Q19="","",IF(ISNUMBER('Trace metal data'!Q19)=TRUE, IF('Trace metal data'!Q19<'Trace metal data'!Q$38, "ERROR", 'Trace metal data'!Q19), IF('Trace metal data'!Q19="<LOD",'Trace metal data'!Q$38, "ERROR"))) -> 33.1 | R19: =IF('Trace metal data'!R19="","",IF(ISNUMBER('Trace metal data'!R19)=TRUE, IF('Trace metal data'!R19<'Trace metal data'!R$38, "ERROR", 'Trace metal data'!R19), IF('Trace metal data'!R19="<LOD",'Trace metal data'!R$38, "ERROR"))) -> 112 | S19: =IF('Trace metal data'!S19="","",IF(ISNUMBER('Trace metal data'!S19)=TRUE, IF('Trace metal data'!S19<'Trace metal data'!S$38, "ERROR", 'Trace metal data'!S19), IF('Trace metal data'!S19="<LOD",'Trace metal data'!S$38, "ERROR"))) -> 201
H20: =IF('Trace metal data'!H20="","",'Trace metal data'!H20) -> MAR02481.013 | I20: =IF('Trace metal data'!I20="","",'Trace metal data'!I20) ->  | J20: =IFERROR(IF(K20="","",(IF(VLOOKUP(K20,'Application info'!$K$8:$L$37,2,0)="y","y",""))),"Manual entry required") ->  | K20: =IF('Trace metal data'!J20="","",'Trace metal data'!J20) -> 13 | L20: =IF('Trace metal data'!L20="","",IF(ISNUMBER('Trace metal data'!L20)=TRUE, IF('Trace metal data'!L20<'Trace metal data'!L$38, "ERROR", 'Trace metal data'!L20), IF('Trace metal data'!L20="<LOD",'Trace metal data'!L$38, "ERROR"))) -> 19.6 | M20: =IF('Trace metal data'!M20="","",IF(ISNUMBER('Trace metal data'!M20)=TRUE, IF('Trace metal data'!M20<'Trace metal data'!M$38, "ERROR", 'Trace metal data'!M20), IF('Trace metal data'!M20="<LOD",'Trace metal data'!M$38, "ERROR"))) -> 0.45 | N20: =IF('Trace metal data'!N20="","",IF(ISNUMBER('Trace metal data'!N20)=TRUE, IF('Trace metal data'!N20<'Trace metal data'!N$38, "ERROR", 'Trace metal data'!N20), IF('Trace metal data'!N20="<LOD",'Trace metal data'!N$38, "ERROR"))) -> 55.5 | O20: =IF('Trace metal data'!O20="","",IF(ISNUMBER('Trace metal data'!O20)=TRUE, IF('Trace metal data'!O20<'Trace metal data'!O$38, "ERROR", 'Trace metal data'!O20), IF('Trace metal data'!O20="<LOD",'Trace metal data'!O$38, "ERROR"))) -> 58.7 | P20: =IF('Trace metal data'!P20="","",IF(ISNUMBER('Trace metal data'!P20)=TRUE, IF('Trace metal data'!P20<'Trace metal data'!P$38, "ERROR", 'Trace metal data'!P20), IF('Trace metal data'!P20="<LOD",'Trace metal data'!P$38, "ERROR"))) -> 0.4 | Q20: =IF('Trace metal data'!Q20="","",IF(ISNUMBER('Trace metal data'!Q20)=TRUE, IF('Trace metal data'!Q20<'Trace metal data'!Q$38, "ERROR", 'Trace metal data'!Q20), IF('Trace metal data'!Q20="<LOD",'Trace metal data'!Q$38, "ERROR"))) -> 31.8 | R20: =IF('Trace metal data'!R20="","",IF(ISNUMBER('Trace metal data'!R20)=TRUE, IF('Trace metal data'!R20<'Trace metal data'!R$38, "ERROR", 'Trace metal data'!R20), IF('Trace metal data'!R20="<LOD",'Trace metal data'!R$38, "ERROR"))) -> 102 | S20: =IF('Trace metal data'!S20="","",IF(ISNUMBER('Trace metal data'!S20)=TRUE, IF('Trace metal data'!S20<'Trace metal data'!S$38, "ERROR", 'Trace metal data'!S20), IF('Trace metal data'!S20="<LOD",'Trace metal data'!S$38, "ERROR"))) -> 202
H21: =IF('Trace metal data'!H21="","",'Trace metal data'!H21) -> MAR02481.014 | I21: =IF('Trace metal data'!I21="","",'Trace metal data'!I21) ->  | J21: =IFERROR(IF(K21="","",(IF(VLOOKUP(K21,'Application info'!$K$8:$L$37,2,0)="y","y",""))),"Manual entry required") ->  | K21: =IF('Trace metal data'!J21="","",'Trace metal data'!J21) -> 15 | L21: =IF('Trace metal data'!L21="","",IF(ISNUMBER('Trace metal data'!L21)=TRUE, IF('Trace metal data'!L21<'Trace metal data'!L$38, "ERROR", 'Trace metal data'!L21), IF('Trace metal data'!L21="<LOD",'Trace metal data'!L$38, "ERROR"))) -> 19.7 | M21: =IF('Trace metal data'!M21="","",IF(ISNUMBER('Trace metal data'!M21)=TRUE, IF('Trace metal data'!M21<'Trace metal data'!M$38, "ERROR", 'Trace metal data'!M21), IF('Trace metal data'!M21="<LOD",'Trace metal data'!M$38, "ERROR"))) -> 0.3 | N21: =IF('Trace metal data'!N21="","",IF(ISNUMBER('Trace metal data'!N21)=TRUE, IF('Trace metal data'!N21<'Trace metal data'!N$38, "ERROR", 'Trace metal data'!N21), IF('Trace metal data'!N21="<LOD",'Trace metal data'!N$38, "ERROR"))) -> 47.2 | O21: =IF('Trace metal data'!O21="","",IF(ISNUMBER('Trace metal data'!O21)=TRUE, IF('Trace metal data'!O21<'Trace metal data'!O$38, "ERROR", 'Trace metal data'!O21), IF('Trace metal data'!O21="<LOD",'Trace metal data'!O$38, "ERROR"))) -> 42 | P21: =IF('Trace metal data'!P21="","",IF(ISNUMBER('Trace metal data'!P21)=TRUE, IF('Trace metal data'!P21<'Trace metal data'!P$38, "ERROR", 'Trace metal data'!P21), IF('Trace metal data'!P21="<LOD",'Trace metal data'!P$38, "ERROR"))) -> 0.36 | Q21: =IF('Trace metal data'!Q21="","",IF(ISNUMBER('Trace metal data'!Q21)=TRUE, IF('Trace metal data'!Q21<'Trace metal data'!Q$38, "ERROR", 'Trace metal data'!Q21), IF('Trace metal data'!Q21="<LOD",'Trace metal data'!Q$38, "ERROR"))) -> 29.1 | R21: =IF('Trace metal data'!R21="","",IF(ISNUMBER('Trace metal data'!R21)=TRUE, IF('Trace metal data'!R21<'Trace metal data'!R$38, "ERROR", 'Trace metal data'!R21), IF('Trace metal data'!R21="<LOD",'Trace metal data'!R$38, "ERROR"))) -> 87.9 | S21: =IF('Trace metal data'!S21="","",IF(ISNUMBER('Trace metal data'!S21)=TRUE, IF('Trace metal data'!S21<'Trace metal data'!S$38, "ERROR", 'Trace metal data'!S21), IF('Trace metal data'!S21="<LOD",'Trace metal data'!S$38, "ERROR"))) -> 151
H22: =IF('Trace metal data'!H22="","",'Trace metal data'!H22) -> MAR02481.015 | I22: =IF('Trace metal data'!I22="","",'Trace metal data'!I22) ->  | J22: =IFERROR(IF(K22="","",(IF(VLOOKUP(K22,'Application info'!$K$8:$L$37,2,0)="y","y",""))),"Manual entry required") ->  | K22: =IF('Trace metal data'!J22="","",'Trace metal data'!J22) -> 17 | L22: =IF('Trace metal data'!L22="","",IF(ISNUMBER('Trace metal data'!L22)=TRUE, IF('Trace metal data'!L22<'Trace metal data'!L$38, "ERROR", 'Trace metal data'!L22), IF('Trace metal data'!L22="<LOD",'Trace metal data'!L$38, "ERROR"))) -> 26.4 | M22: =IF('Trace metal data'!M22="","",IF(ISNUMBER('Trace metal data'!M22)=TRUE, IF('Trace metal data'!M22<'Trace metal data'!M$38, "ERROR", 'Trace metal data'!M22), IF('Trace metal data'!M22="<LOD",'Trace metal data'!M$38, "ERROR"))) -> 0.14 | N22: =IF('Trace metal data'!N22="","",IF(ISNUMBER('Trace metal data'!N22)=TRUE, IF('Trace metal data'!N22<'Trace metal data'!N$38, "ERROR", 'Trace metal data'!N22), IF('Trace metal data'!N22="<LOD",'Trace metal data'!N$38, "ERROR"))) -> 43.9 | O22: =IF('Trace metal data'!O22="","",IF(ISNUMBER('Trace metal data'!O22)=TRUE, IF('Trace metal data'!O22<'Trace metal data'!O$38, "ERROR", 'Trace metal data'!O22), IF('Trace metal data'!O22="<LOD",'Trace metal data'!O$38, "ERROR"))) -> 37.5 | P22: =IF('Trace metal data'!P22="","",IF(ISNUMBER('Trace metal data'!P22)=TRUE, IF('Trace metal data'!P22<'Trace metal data'!P$38, "ERROR", 'Trace metal data'!P22), IF('Trace metal data'!P22="<LOD",'Trace metal data'!P$38, "ERROR"))) -> 0.29 | Q22: =IF('Trace metal data'!Q22="","",IF(ISNUMBER('Trace metal data'!Q22)=TRUE, IF('Trace metal data'!Q22<'Trace metal data'!Q$38, "ERROR", 'Trace metal data'!Q22), IF('Trace metal data'!Q22="<LOD",'Trace metal data'!Q$38, "ERROR"))) -> 28.4 | R22: =IF('Trace metal data'!R22="","",IF(ISNUMBER('Trace metal data'!R22)=TRUE, IF('Trace metal data'!R22<'Trace metal data'!R$38, "ERROR", 'Trace metal data'!R22), IF('Trace metal data'!R22="<LOD",'Trace metal data'!R$38, "ERROR"))) -> 89 | S22: =IF('Trace metal data'!S22="","",IF(ISNUMBER('Trace metal data'!S22)=TRUE, IF('Trace metal data'!S22<'Trace metal data'!S$38, "ERROR", 'Trace metal data'!S22), IF('Trace metal data'!S22="<LOD",'Trace metal data'!S$38, "ERROR"))) -> 136
H23: =IF('Trace metal data'!H23="","",'Trace metal data'!H23) -> MAR02481.016 | I23: =IF('Trace metal data'!I23="","",'Trace metal data'!I23) ->  | J23: =IFERROR(IF(K23="","",(IF(VLOOKUP(K23,'Application info'!$K$8:$L$37,2,0)="y","y",""))),"Manual entry required") ->  | K23: =IF('Trace metal data'!J23="","",'Trace metal data'!J23) -> 18 | L23: =IF('Trace metal data'!L23="","",IF(ISNUMBER('Trace metal data'!L23)=TRUE, IF('Trace metal data'!L23<'Trace metal data'!L$38, "ERROR", 'Trace metal data'!L23), IF('Trace metal data'!L23="<LOD",'Trace metal data'!L$38, "ERROR"))) -> 27.6 | M23: =IF('Trace metal data'!M23="","",IF(ISNUMBER('Trace metal data'!M23)=TRUE, IF('Trace metal data'!M23<'Trace metal data'!M$38, "ERROR", 'Trace metal data'!M23), IF('Trace metal data'!M23="<LOD",'Trace metal data'!M$38, "ERROR"))) -> 0.15 | N23: =IF('Trace metal data'!N23="","",IF(ISNUMBER('Trace metal data'!N23)=TRUE, IF('Trace metal data'!N23<'Trace metal data'!N$38, "ERROR", 'Trace metal data'!N23), IF('Trace metal data'!N23="<LOD",'Trace metal data'!N$38, "ERROR"))) -> 41.8 | O23: =IF('Trace metal data'!O23="","",IF(ISNUMBER('Trace metal data'!O23)=TRUE, IF('Trace metal data'!O23<'Trace metal data'!O$38, "ERROR", 'Trace metal data'!O23), IF('Trace metal data'!O23="<LOD",'Trace metal data'!O$38, "ERROR"))) -> 34.7 | P23: =IF('Trace metal data'!P23="","",IF(ISNUMBER('Trace metal data'!P23)=TRUE, IF('Trace metal data'!P23<'Trace metal data'!P$38, "ERROR", 'Trace metal data'!P23), IF('Trace metal data'!P23="<LOD",'Trace metal data'!P$38, "ERROR"))) -> 0.28 | Q23: =IF('Trace metal data'!Q23="","",IF(ISNUMBER('Trace metal data'!Q23)=TRUE, IF('Trace metal data'!Q23<'Trace metal data'!Q$38, "ERROR", 'Trace metal data'!Q23), IF('Trace metal data'!Q23="<LOD",'Trace metal data'!Q$38, "ERROR"))) -> 28.3 | R23: =IF('Trace metal data'!R23="","",IF(ISNUMBER('Trace metal data'!R23)=TRUE, IF('Trace metal data'!R23<'Trace metal data'!R$38, "ERROR", 'Trace metal data'!R23), IF('Trace metal data'!R23="<LOD",'Trace metal data'!R$38, "ERROR"))) -> 88.4 | S23: =IF('Trace metal data'!S23="","",IF(ISNUMBER('Trace metal data'!S23)=TRUE, IF('Trace metal data'!S23<'Trace metal data'!S$38, "ERROR", 'Trace metal data'!S23), IF('Trace metal data'!S23="<LOD",'Trace metal data'!S$38, "ERROR"))) -> 133
H24: =IF('Trace metal data'!H24="","",'Trace metal data'!H24) -> MAR02481.017 | I24: =IF('Trace metal data'!I24="","",'Trace metal data'!I24) ->  | J24: =IFERROR(IF(K24="","",(IF(VLOOKUP(K24,'Application info'!$K$8:$L$37,2,0)="y","y",""))),"Manual entry required") ->  | K24: =IF('Trace metal data'!J24="","",'Trace metal data'!J24) -> 19 | L24: =IF('Trace metal data'!L24="","",IF(ISNUMBER('Trace metal data'!L24)=TRUE, IF('Trace metal data'!L24<'Trace metal data'!L$38, "ERROR", 'Trace metal data'!L24), IF('Trace metal data'!L24="<LOD",'Trace metal data'!L$38, "ERROR"))) -> 27.9 | M24: =IF('Trace metal data'!M24="","",IF(ISNUMBER('Trace metal data'!M24)=TRUE, IF('Trace metal data'!M24<'Trace metal data'!M$38, "ERROR", 'Trace metal data'!M24), IF('Trace metal data'!M24="<LOD",'Trace metal data'!M$38, "ERROR"))) -> 0.14 | N24: =IF('Trace metal data'!N24="","",IF(ISNUMBER('Trace metal data'!N24)=TRUE, IF('Trace metal data'!N24<'Trace metal data'!N$38, "ERROR", 'Trace metal data'!N24), IF('Trace metal data'!N24="<LOD",'Trace metal data'!N$38, "ERROR"))) -> 41.4 | O24: =IF('Trace metal data'!O24="","",IF(ISNUMBER('Trace metal data'!O24)=TRUE, IF('Trace metal data'!O24<'Trace metal data'!O$38, "ERROR", 'Trace metal data'!O24), IF('Trace metal data'!O24="<LOD",'Trace metal data'!O$38, "ERROR"))) -> 34.7 | P24: =IF('Trace metal data'!P24="","",IF(ISNUMBER('Trace metal data'!P24)=TRUE, IF('Trace metal data'!P24<'Trace metal data'!P$38, "ERROR", 'Trace metal data'!P24), IF('Trace metal data'!P24="<LOD",'Trace metal data'!P$38, "ERROR"))) -> 0.29 | Q24: =IF('Trace metal data'!Q24="","",IF(ISNUMBER('Trace metal data'!Q24)=TRUE, IF('Trace metal data'!Q24<'Trace metal data'!Q$38, "ERROR", 'Trace metal data'!Q24), IF('Trace metal data'!Q24="<LOD",'Trace metal data'!Q$38, "ERROR"))) -> 27.9 | R24: =IF('Trace metal data'!R24="","",IF(ISNUMBER('Trace metal data'!R24)=TRUE, IF('Trace metal data'!R24<'Trace metal data'!R$38, "ERROR", 'Trace metal data'!R24), IF('Trace metal data'!R24="<LOD",'Trace metal data'!R$38, "ERROR"))) -> 79.9 | S24: =IF('Trace metal data'!S24="","",IF(ISNUMBER('Trace metal data'!S24)=TRUE, IF('Trace metal data'!S24<'Trace metal data'!S$38, "ERROR", 'Trace metal data'!S24), IF('Trace metal data'!S24="<LOD",'Trace metal data'!S$38, "ERROR"))) -> 130
H25: =IF('Trace metal data'!H25="","",'Trace metal data'!H25) -> MAR02481.018 | I25: =IF('Trace metal data'!I25="","",'Trace metal data'!I25) ->  | J25: =IFERROR(IF(K25="","",(IF(VLOOKUP(K25,'Application info'!$K$8:$L$37,2,0)="y","y",""))),"Manual entry required") ->  | K25: =IF('Trace metal data'!J25="","",'Trace metal data'!J25) -> 20 | L25: =IF('Trace metal data'!L25="","",IF(ISNUMBER('Trace metal data'!L25)=TRUE, IF('Trace metal data'!L25<'Trace metal data'!L$38, "ERROR", 'Trace metal data'!L25), IF('Trace metal data'!L25="<LOD",'Trace metal data'!L$38, "ERROR"))) -> 30.9 | M25: =IF('Trace metal data'!M25="","",IF(ISNUMBER('Trace metal data'!M25)=TRUE, IF('Trace metal data'!M25<'Trace metal data'!M$38, "ERROR", 'Trace metal data'!M25), IF('Trace metal data'!M25="<LOD",'Trace metal data'!M$38, "ERROR"))) -> 0.14 | N25: =IF('Trace metal data'!N25="","",IF(ISNUMBER('Trace metal data'!N25)=TRUE, IF('Trace metal data'!N25<'Trace metal data'!N$38, "ERROR", 'Trace metal data'!N25), IF('Trace metal data'!N25="<LOD",'Trace metal data'!N$38, "ERROR"))) -> 43.1 | O25: =IF('Trace metal data'!O25="","",IF(ISNUMBER('Trace metal data'!O25)=TRUE, IF('Trace metal data'!O25<'Trace metal data'!O$38, "ERROR", 'Trace metal data'!O25), IF('Trace metal data'!O25="<LOD",'Trace metal data'!O$38, "ERROR"))) -> 40 | P25: =IF('Trace metal data'!P25="","",IF(ISNUMBER('Trace metal data'!P25)=TRUE, IF('Trace metal data'!P25<'Trace metal data'!P$38, "ERROR", 'Trace metal data'!P25), IF('Trace metal data'!P25="<LOD",'Trace metal data'!P$38, "ERROR"))) -> 0.3 | Q25: =IF('Trace metal data'!Q25="","",IF(ISNUMBER('Trace metal data'!Q25)=TRUE, IF('Trace metal data'!Q25<'Trace metal data'!Q$38, "ERROR", 'Trace metal data'!Q25), IF('Trace metal data'!Q25="<LOD",'Trace metal data'!Q$38, "ERROR"))) -> 30.5 | R25: =IF('Trace metal data'!R25="","",IF(ISNUMBER('Trace metal data'!R25)=TRUE, IF('Trace metal data'!R25<'Trace metal data'!R$38, "ERROR", 'Trace metal data'!R25), IF('Trace metal data'!R25="<LOD",'Trace metal data'!R$38, "ERROR"))) -> 93.9 | S25: =IF('Trace metal data'!S25="","",IF(ISNUMBER('Trace metal data'!S25)=TRUE, IF('Trace metal data'!S25<'Trace metal data'!S$38, "ERROR", 'Trace metal data'!S25), IF('Trace metal data'!S25="<LOD",'Trace metal data'!S$38, "ERROR"))) -> 142
H26: =IF('Trace metal data'!H26="","",'Trace metal data'!H26) -> MAR02481.019 | I26: =IF('Trace metal data'!I26="","",'Trace metal data'!I26) ->  | J26: =IFERROR(IF(K26="","",(IF(VLOOKUP(K26,'Application info'!$K$8:$L$37,2,0)="y","y",""))),"Manual entry required") ->  | K26: =IF('Trace metal data'!J26="","",'Trace metal data'!J26) -> 21 | L26: =IF('Trace metal data'!L26="","",IF(ISNUMBER('Trace metal data'!L26)=TRUE, IF('Trace metal data'!L26<'Trace metal data'!L$38, "ERROR", 'Trace metal data'!L26), IF('Trace metal data'!L26="<LOD",'Trace metal data'!L$38, "ERROR"))) -> 22.4 | M26: =IF('Trace metal data'!M26="","",IF(ISNUMBER('Trace metal data'!M26)=TRUE, IF('Trace metal data'!M26<'Trace metal data'!M$38, "ERROR", 'Trace metal data'!M26), IF('Trace metal data'!M26="<LOD",'Trace metal data'!M$38, "ERROR"))) -> 0.19 | N26: =IF('Trace metal data'!N26="","",IF(ISNUMBER('Trace metal data'!N26)=TRUE, IF('Trace metal data'!N26<'Trace metal data'!N$38, "ERROR", 'Trace metal data'!N26), IF('Trace metal data'!N26="<LOD",'Trace metal data'!N$38, "ERROR"))) -> 48.2 | O26: =IF('Trace metal data'!O26="","",IF(ISNUMBER('Trace metal data'!O26)=TRUE, IF('Trace metal data'!O26<'Trace metal data'!O$38, "ERROR", 'Trace metal data'!O26), IF('Trace metal data'!O26="<LOD",'Trace metal data'!O$38, "ERROR"))) -> 44.8 | P26: =IF('Trace metal data'!P26="","",IF(ISNUMBER('Trace metal data'!P26)=TRUE, IF('Trace metal data'!P26<'Trace metal data'!P$38, "ERROR", 'Trace metal data'!P26), IF('Trace metal data'!P26="<LOD",'Trace metal data'!P$38, "ERROR"))) -> 0.3 | Q26: =IF('Trace metal data'!Q26="","",IF(ISNUMBER('Trace metal data'!Q26)=TRUE, IF('Trace metal data'!Q26<'Trace metal data'!Q$38, "ERROR", 'Trace metal data'!Q26), IF('Trace metal data'!Q26="<LOD",'Trace metal data'!Q$38, "ERROR"))) -> 30.6 | R26: =IF('Trace metal data'!R26="","",IF(ISNUMBER('Trace metal data'!R26)=TRUE, IF('Trace metal data'!R26<'Trace metal data'!R$38, "ERROR", 'Trace metal data'!R26), IF('Trace metal data'!R26="<LOD",'Trace metal data'!R$38, "ERROR"))) -> 97.4 | S26: =IF('Trace metal data'!S26="","",IF(ISNUMBER('Trace metal data'!S26)=TRUE, IF('Trace metal data'!S26<'Trace metal data'!S$38, "ERROR", 'Trace metal data'!S26), IF('Trace metal data'!S26="<LOD",'Trace metal data'!S$38, "ERROR"))) -> 163
H27: =IF('Trace metal data'!H27="","",'Trace metal data'!H27) -> MAR02481.020 | I27: =IF('Trace metal data'!I27="","",'Trace metal data'!I27) ->  | J27: =IFERROR(IF(K27="","",(IF(VLOOKUP(K27,'Application info'!$K$8:$L$37,2,0)="y","y",""))),"Manual entry required") ->  | K27: =IF('Trace metal data'!J27="","",'Trace metal data'!J27) -> 22 | L27: =IF('Trace metal data'!L27="","",IF(ISNUMBER('Trace metal data'!L27)=TRUE, IF('Trace metal data'!L27<'Trace metal data'!L$38, "ERROR", 'Trace metal data'!L27), IF('Trace metal data'!L27="<LOD",'Trace metal data'!L$38, "ERROR"))) -> 21 | M27: =IF('Trace metal data'!M27="","",IF(ISNUMBER('Trace metal data'!M27)=TRUE, IF('Trace metal data'!M27<'Trace metal data'!M$38, "ERROR", 'Trace metal data'!M27), IF('Trace metal data'!M27="<LOD",'Trace metal data'!M$38, "ERROR"))) -> 0.06 | N27: =IF('Trace metal data'!N27="","",IF(ISNUMBER('Trace metal data'!N27)=TRUE, IF('Trace metal data'!N27<'Trace metal data'!N$38, "ERROR", 'Trace metal data'!N27), IF('Trace metal data'!N27="<LOD",'Trace metal data'!N$38, "ERROR"))) -> 26.9 | O27: =IF('Trace metal data'!O27="","",IF(ISNUMBER('Trace metal data'!O27)=TRUE, IF('Trace metal data'!O27<'Trace metal data'!O$38, "ERROR", 'Trace metal data'!O27), IF('Trace metal data'!O27="<LOD",'Trace metal data'!O$38, "ERROR"))) -> 23.3 | P27: =IF('Trace metal data'!P27="","",IF(ISNUMBER('Trace metal data'!P27)=TRUE, IF('Trace metal data'!P27<'Trace metal data'!P$38, "ERROR", 'Trace metal data'!P27), IF('Trace metal data'!P27="<LOD",'Trace metal data'!P$38, "ERROR"))) -> 0.16 | Q27: =IF('Trace metal data'!Q27="","",IF(ISNUMBER('Trace metal data'!Q27)=TRUE, IF('Trace metal data'!Q27<'Trace metal data'!Q$38, "ERROR", 'Trace metal data'!Q27), IF('Trace metal data'!Q27="<LOD",'Trace metal data'!Q$38, "ERROR"))) -> 20.3 | R27: =IF('Trace metal data'!R27="","",IF(ISNUMBER('Trace metal data'!R27)=TRUE, IF('Trace metal data'!R27<'Trace metal data'!R$38, "ERROR", 'Trace metal data'!R27), IF('Trace metal data'!R27="<LOD",'Trace metal data'!R$38, "ERROR"))) -> 50.5 | S27: =IF('Trace metal data'!S27="","",IF(ISNUMBER('Trace metal data'!S27)=TRUE, IF('Trace metal data'!S27<'Trace metal data'!S$38, "ERROR", 'Trace metal data'!S27), IF('Trace metal data'!S27="<LOD",'Trace metal data'!S$38, "ERROR"))) -> 90.5
H28: =IF('Trace metal data'!H28="","",'Trace metal data'!H28) -> MAR02481.021 | I28: =IF('Trace metal data'!I28="","",'Trace metal data'!I28) ->  | J28: =IFERROR(IF(K28="","",(IF(VLOOKUP(K28,'Application info'!$K$8:$L$37,2,0)="y","y",""))),"Manual entry required") ->  | K28: =IF('Trace metal data'!J28="","",'Trace metal data'!J28) -> 23 | L28: =IF('Trace metal data'!L28="","",IF(ISNUMBER('Trace metal data'!L28)=TRUE, IF('Trace metal data'!L28<'Trace metal data'!L$38, "ERROR", 'Trace metal data'!L28), IF('Trace metal data'!L28="<LOD",'Trace metal data'!L$38, "ERROR"))) -> 19.8 | M28: =IF('Trace metal data'!M28="","",IF(ISNUMBER('Trace metal data'!M28)=TRUE, IF('Trace metal data'!M28<'Trace metal data'!M$38, "ERROR", 'Trace metal data'!M28), IF('Trace metal data'!M28="<LOD",'Trace metal data'!M$38, "ERROR"))) -> 0.04 | N28: =IF('Trace metal data'!N28="","",IF(ISNUMBER('Trace metal data'!N28)=TRUE, IF('Trace metal data'!N28<'Trace metal data'!N$38, "ERROR", 'Trace metal data'!N28), IF('Trace metal data'!N28="<LOD",'Trace metal data'!N$38, "ERROR"))) -> 17.2 | O28: =IF('Trace metal data'!O28="","",IF(ISNUMBER('Trace metal data'!O28)=TRUE, IF('Trace metal data'!O28<'Trace metal data'!O$38, "ERROR", 'Trace metal data'!O28), IF('Trace metal data'!O28="<LOD",'Trace metal data'!O$38, "ERROR"))) -> 15.3 | P28: =IF('Trace metal data'!P28="","",IF(ISNUMBER('Trace metal data'!P28)=TRUE, IF('Trace metal data'!P28<'Trace metal data'!P$38, "ERROR", 'Trace metal data'!P28), IF('Trace metal data'!P28="<LOD",'Trace metal data'!P$38, "ERROR"))) -> 0.09 | Q28: =IF('Trace metal data'!Q28="","",IF(ISNUMBER('Trace metal data'!Q28)=TRUE, IF('Trace metal data'!Q28<'Trace metal data'!Q$38, "ERROR", 'Trace metal data'!Q28), IF('Trace metal data'!Q28="<LOD",'Trace metal data'!Q$38, "ERROR"))) -> 15.2 | R28: =IF('Trace metal data'!R28="","",IF(ISNUMBER('Trace metal data'!R28)=TRUE, IF('Trace metal data'!R28<'Trace metal data'!R$38, "ERROR", 'Trace metal data'!R28), IF('Trace metal data'!R28="<LOD",'Trace metal data'!R$38, "ERROR"))) -> 40.5 | S28: =IF('Trace metal data'!S28="","",IF(ISNUMBER('Trace metal data'!S28)=TRUE, IF('Trace metal data'!S28<'Trace metal data'!S$38, "ERROR", 'Trace metal data'!S28), IF('Trace metal data'!S28="<LOD",'Trace metal data'!S$38, "ERROR"))) -> 69
H29: =IF('Trace metal data'!H29="","",'Trace metal data'!H29) -> MAR02481.022 | I29: =IF('Trace metal data'!I29="","",'Trace metal data'!I29) ->  | J29: =IFERROR(IF(K29="","",(IF(VLOOKUP(K29,'Application info'!$K$8:$L$37,2,0)="y","y",""))),"Manual entry required") ->  | K29: =IF('Trace metal data'!J29="","",'Trace metal data'!J29) -> 24 | L29: =IF('Trace metal data'!L29="","",IF(ISNUMBER('Trace metal data'!L29)=TRUE, IF('Trace metal data'!L29<'Trace metal data'!L$38, "ERROR", 'Trace metal data'!L29), IF('Trace metal data'!L29="<LOD",'Trace metal data'!L$38, "ERROR"))) -> 22.1 | M29: =IF('Trace metal data'!M29="","",IF(ISNUMBER('Trace metal data'!M29)=TRUE, IF('Trace metal data'!M29<'Trace metal data'!M$38, "ERROR", 'Trace metal data'!M29), IF('Trace metal data'!M29="<LOD",'Trace metal data'!M$38, "ERROR"))) -> 0.35 | N29: =IF('Trace metal data'!N29="","",IF(ISNUMBER('Trace metal data'!N29)=TRUE, IF('Trace metal data'!N29<'Trace metal data'!N$38, "ERROR", 'Trace metal data'!N29), IF('Trace metal data'!N29="<LOD",'Trace metal data'!N$38, "ERROR"))) -> 60.7 | O29: =IF('Trace metal data'!O29="","",IF(ISNUMBER('Trace metal data'!O29)=TRUE, IF('Trace metal data'!O29<'Trace metal data'!O$38, "ERROR", 'Trace metal data'!O29), IF('Trace metal data'!O29="<LOD",'Trace metal data'!O$38, "ERROR"))) -> 56.2 | P29: =IF('Trace metal data'!P29="","",IF(ISNUMBER('Trace metal data'!P29)=TRUE, IF('Trace metal data'!P29<'Trace metal data'!P$38, "ERROR", 'Trace metal data'!P29), IF('Trace metal data'!P29="<LOD",'Trace metal data'!P$38, "ERROR"))) -> 0.37 | Q29: =IF('Trace metal data'!Q29="","",IF(ISNUMBER('Trace metal data'!Q29)=TRUE, IF('Trace metal data'!Q29<'Trace metal data'!Q$38, "ERROR", 'Trace metal data'!Q29), IF('Trace metal data'!Q29="<LOD",'Trace metal data'!Q$38, "ERROR"))) -> 34 | R29: =IF('Trace metal data'!R29="","",IF(ISNUMBER('Trace metal data'!R29)=TRUE, IF('Trace metal data'!R29<'Trace metal data'!R$38, "ERROR", 'Trace metal data'!R29), IF('Trace metal data'!R29="<LOD",'Trace metal data'!R$38, "ERROR"))) -> 116 | S29: =IF('Trace metal data'!S29="","",IF(ISNUMBER('Trace metal data'!S29)=TRUE, IF('Trace metal data'!S29<'Trace metal data'!S$38, "ERROR", 'Trace metal data'!S29), IF('Trace metal data'!S29="<LOD",'Trace metal data'!S$38, "ERROR"))) -> 189
H30: =IF('Trace metal data'!H30="","",'Trace metal data'!H30) -> MAR02481.023 | I30: =IF('Trace metal data'!I30="","",'Trace metal data'!I30) ->  | J30: =IFERROR(IF(K30="","",(IF(VLOOKUP(K30,'Application info'!$K$8:$L$37,2,0)="y","y",""))),"Manual entry required") ->  | K30: =IF('Trace metal data'!J30="","",'Trace metal data'!J30) -> 25 | L30: =IF('Trace metal data'!L30="","",IF(ISNUMBER('Trace metal data'!L30)=TRUE, IF('Trace metal data'!L30<'Trace metal data'!L$38, "ERROR", 'Trace metal data'!L30), IF('Trace metal data'!L30="<LOD",'Trace metal data'!L$38, "ERROR"))) -> 23.9 | M30: =IF('Trace metal data'!M30="","",IF(ISNUMBER('Trace metal data'!M30)=TRUE, IF('Trace metal data'!M30<'Trace metal data'!M$38, "ERROR", 'Trace metal data'!M30), IF('Trace metal data'!M30="<LOD",'Trace metal data'!M$38, "ERROR"))) -> 0.18 | N30: =IF('Trace metal data'!N30="","",IF(ISNUMBER('Trace metal data'!N30)=TRUE, IF('Trace metal data'!N30<'Trace metal data'!N$38, "ERROR", 'Trace metal data'!N30), IF('Trace metal data'!N30="<LOD",'Trace metal data'!N$38, "ERROR"))) -> 44.1 | O30: =IF('Trace metal data'!O30="","",IF(ISNUMBER('Trace metal data'!O30)=TRUE, IF('Trace metal data'!O30<'Trace metal data'!O$38, "ERROR", 'Trace metal data'!O30), IF('Trace metal data'!O30="<LOD",'Trace metal data'!O$38, "ERROR"))) -> 37.2 | P30: =IF('Trace metal data'!P30="","",IF(ISNUMBER('Trace metal data'!P30)=TRUE, IF('Trace metal data'!P30<'Trace metal data'!P$38, "ERROR", 'Trace metal data'!P30), IF('Trace metal data'!P30="<LOD",'Trace metal data'!P$38, "ERROR"))) -> 0.29 | Q30: =IF('Trace metal data'!Q30="","",IF(ISNUMBER('Trace metal data'!Q30)=TRUE, IF('Trace metal data'!Q30<'Trace metal data'!Q$38, "ERROR", 'Trace metal data'!Q30), IF('Trace metal data'!Q30="<LOD",'Trace metal data'!Q$38, "ERROR"))) -> 29.5 | R30: =IF('Trace metal data'!R30="","",IF(ISNUMBER('Trace metal data'!R30)=TRUE, IF('Trace metal data'!R30<'Trace metal data'!R$38, "ERROR", 'Trace metal data'!R30), IF('Trace metal data'!R30="<LOD",'Trace metal data'!R$38, "ERROR"))) -> 76.5 | S30: =IF('Trace metal data'!S30="","",IF(ISNUMBER('Trace metal data'!S30)=TRUE, IF('Trace metal data'!S30<'Trace metal data'!S$38, "ERROR", 'Trace metal data'!S30), IF('Trace metal data'!S30="<LOD",'Trace metal data'!S$38, "ERROR"))) -> 134
H31: =IF('Trace metal data'!H31="","",'Trace metal data'!H31) ->  | I31: =IF('Trace metal data'!I31="","",'Trace metal data'!I31) ->  | J31: =IFERROR(IF(K31="","",(IF(VLOOKUP(K31,'Application info'!$K$8:$L$37,2,0)="y","y",""))),"Manual entry required") ->  | K31: =IF('Trace metal data'!J31="","",'Trace metal data'!J31) ->  | L31: =IF('Trace metal data'!L31="","",IF(ISNUMBER('Trace metal data'!L31)=TRUE, IF('Trace metal data'!L31<'Trace metal data'!L$38, "ERROR", 'Trace metal data'!L31), IF('Trace metal data'!L31="<LOD",'Trace metal data'!L$38, "ERROR"))) ->  | M31: =IF('Trace metal data'!M31="","",IF(ISNUMBER('Trace metal data'!M31)=TRUE, IF('Trace metal data'!M31<'Trace metal data'!M$38, "ERROR", 'Trace metal data'!M31), IF('Trace metal data'!M31="<LOD",'Trace metal data'!M$38, "ERROR"))) ->  | N31: =IF('Trace metal data'!N31="","",IF(ISNUMBER('Trace metal data'!N31)=TRUE, IF('Trace metal data'!N31<'Trace metal data'!N$38, "ERROR", 'Trace metal data'!N31), IF('Trace metal data'!N31="<LOD",'Trace metal data'!N$38, "ERROR"))) ->  | O31: =IF('Trace metal data'!O31="","",IF(ISNUMBER('Trace metal data'!O31)=TRUE, IF('Trace metal data'!O31<'Trace metal data'!O$38, "ERROR", 'Trace metal data'!O31), IF('Trace metal data'!O31="<LOD",'Trace metal data'!O$38, "ERROR"))) ->  | P31: =IF('Trace metal data'!P31="","",IF(ISNUMBER('Trace metal data'!P31)=TRUE, IF('Trace metal data'!P31<'Trace metal data'!P$38, "ERROR", 'Trace metal data'!P31), IF('Trace metal data'!P31="<LOD",'Trace metal data'!P$38, "ERROR"))) ->  | Q31: =IF('Trace metal data'!Q31="","",IF(ISNUMBER('Trace metal data'!Q31)=TRUE, IF('Trace metal data'!Q31<'Trace metal data'!Q$38, "ERROR", 'Trace metal data'!Q31), IF('Trace metal data'!Q31="<LOD",'Trace metal data'!Q$38, "ERROR"))) ->  | R31: =IF('Trace metal data'!R31="","",IF(ISNUMBER('Trace metal data'!R31)=TRUE, IF('Trace metal data'!R31<'Trace metal data'!R$38, "ERROR", 'Trace metal data'!R31), IF('Trace metal data'!R31="<LOD",'Trace metal data'!R$38, "ERROR"))) ->  | S31: =IF('Trace metal data'!S31="","",IF(ISNUMBER('Trace metal data'!S31)=TRUE, IF('Trace metal data'!S31<'Trace metal data'!S$38, "ERROR", 'Trace metal data'!S31), IF('Trace metal data'!S31="<LOD",'Trace metal data'!S$38, "ERROR"))) -> 
H32: =IF('Trace metal data'!H32="","",'Trace metal data'!H32) ->  | I32: =IF('Trace metal data'!I32="","",'Trace metal data'!I32) ->  | J32: =IFERROR(IF(K32="","",(IF(VLOOKUP(K32,'Application info'!$K$8:$L$37,2,0)="y","y",""))),"Manual entry required") ->  | K32: =IF('Trace metal data'!J32="","",'Trace metal data'!J32) ->  | L32: =IF('Trace metal data'!L32="","",IF(ISNUMBER('Trace metal data'!L32)=TRUE, IF('Trace metal data'!L32<'Trace metal data'!L$38, "ERROR", 'Trace metal data'!L32), IF('Trace metal data'!L32="<LOD",'Trace metal data'!L$38, "ERROR"))) ->  | M32: =IF('Trace metal data'!M32="","",IF(ISNUMBER('Trace metal data'!M32)=TRUE, IF('Trace metal data'!M32<'Trace metal data'!M$38, "ERROR", 'Trace metal data'!M32), IF('Trace metal data'!M32="<LOD",'Trace metal data'!M$38, "ERROR"))) ->  | N32: =IF('Trace metal data'!N32="","",IF(ISNUMBER('Trace metal data'!N32)=TRUE, IF('Trace metal data'!N32<'Trace metal data'!N$38, "ERROR", 'Trace metal data'!N32), IF('Trace metal data'!N32="<LOD",'Trace metal data'!N$38, "ERROR"))) ->  | O32: =IF('Trace metal data'!O32="","",IF(ISNUMBER('Trace metal data'!O32)=TRUE, IF('Trace metal data'!O32<'Trace metal data'!O$38, "ERROR", 'Trace metal data'!O32), IF('Trace metal data'!O32="<LOD",'Trace metal data'!O$38, "ERROR"))) ->  | P32: =IF('Trace metal data'!P32="","",IF(ISNUMBER('Trace metal data'!P32)=TRUE, IF('Trace metal data'!P32<'Trace metal data'!P$38, "ERROR", 'Trace metal data'!P32), IF('Trace metal data'!P32="<LOD",'Trace metal data'!P$38, "ERROR"))) ->  | Q32: =IF('Trace metal data'!Q32="","",IF(ISNUMBER('Trace metal data'!Q32)=TRUE, IF('Trace metal data'!Q32<'Trace metal data'!Q$38, "ERROR", 'Trace metal data'!Q32), IF('Trace metal data'!Q32="<LOD",'Trace metal data'!Q$38, "ERROR"))) ->  | R32: =IF('Trace metal data'!R32="","",IF(ISNUMBER('Trace metal data'!R32)=TRUE, IF('Trace metal data'!R32<'Trace metal data'!R$38, "ERROR", 'Trace metal data'!R32), IF('Trace metal data'!R32="<LOD",'Trace metal data'!R$38, "ERROR"))) ->  | S32: =IF('Trace metal data'!S32="","",IF(ISNUMBER('Trace metal data'!S32)=TRUE, IF('Trace metal data'!S32<'Trace metal data'!S$38, "ERROR", 'Trace metal data'!S32), IF('Trace metal data'!S32="<LOD",'Trace metal data'!S$38, "ERROR"))) -> 
H33: =IF('Trace metal data'!H33="","",'Trace metal data'!H33) ->  | I33: =IF('Trace metal data'!I33="","",'Trace metal data'!I33) ->  | J33: =IFERROR(IF(K33="","",(IF(VLOOKUP(K33,'Application info'!$K$8:$L$37,2,0)="y","y",""))),"Manual entry required") ->  | K33: =IF('Trace metal data'!J33="","",'Trace metal data'!J33) ->  | L33: =IF('Trace metal data'!L33="","",IF(ISNUMBER('Trace metal data'!L33)=TRUE, IF('Trace metal data'!L33<'Trace metal data'!L$38, "ERROR", 'Trace metal data'!L33), IF('Trace metal data'!L33="<LOD",'Trace metal data'!L$38, "ERROR"))) ->  | M33: =IF('Trace metal data'!M33="","",IF(ISNUMBER('Trace metal data'!M33)=TRUE, IF('Trace metal data'!M33<'Trace metal data'!M$38, "ERROR", 'Trace metal data'!M33), IF('Trace metal data'!M33="<LOD",'Trace metal data'!M$38, "ERROR"))) ->  | N33: =IF('Trace metal data'!N33="","",IF(ISNUMBER('Trace metal data'!N33)=TRUE, IF('Trace metal data'!N33<'Trace metal data'!N$38, "ERROR", 'Trace metal data'!N33), IF('Trace metal data'!N33="<LOD",'Trace metal data'!N$38, "ERROR"))) ->  | O33: =IF('Trace metal data'!O33="","",IF(ISNUMBER('Trace metal data'!O33)=TRUE, IF('Trace metal data'!O33<'Trace metal data'!O$38, "ERROR", 'Trace metal data'!O33), IF('Trace metal data'!O33="<LOD",'Trace metal data'!O$38, "ERROR"))) ->  | P33: =IF('Trace metal data'!P33="","",IF(ISNUMBER('Trace metal data'!P33)=TRUE, IF('Trace metal data'!P33<'Trace metal data'!P$38, "ERROR", 'Trace metal data'!P33), IF('Trace metal data'!P33="<LOD",'Trace metal data'!P$38, "ERROR"))) ->  | Q33: =IF('Trace metal data'!Q33="","",IF(ISNUMBER('Trace metal data'!Q33)=TRUE, IF('Trace metal data'!Q33<'Trace metal data'!Q$38, "ERROR", 'Trace metal data'!Q33), IF('Trace metal data'!Q33="<LOD",'Trace metal data'!Q$38, "ERROR"))) ->  | R33: =IF('Trace metal data'!R33="","",IF(ISNUMBER('Trace metal data'!R33)=TRUE, IF('Trace metal data'!R33<'Trace metal data'!R$38, "ERROR", 'Trace metal data'!R33), IF('Trace metal data'!R33="<LOD",'Trace metal data'!R$38, "ERROR"))) ->  | S33: =IF('Trace metal data'!S33="","",IF(ISNUMBER('Trace metal data'!S33)=TRUE, IF('Trace metal data'!S33<'Trace metal data'!S$38, "ERROR", 'Trace metal data'!S33), IF('Trace metal data'!S33="<LOD",'Trace metal data'!S$38, "ERROR"))) -> 
H34: =IF('Trace metal data'!H34="","",'Trace metal data'!H34) ->  | I34: =IF('Trace metal data'!I34="","",'Trace metal data'!I34) ->  | J34: =IFERROR(IF(K34="","",(IF(VLOOKUP(K34,'Application info'!$K$8:$L$37,2,0)="y","y",""))),"Manual entry required") ->  | K34: =IF('Trace metal data'!J34="","",'Trace metal data'!J34) ->  | L34: =IF('Trace metal data'!L34="","",IF(ISNUMBER('Trace metal data'!L34)=TRUE, IF('Trace metal data'!L34<'Trace metal data'!L$38, "ERROR", 'Trace metal data'!L34), IF('Trace metal data'!L34="<LOD",'Trace metal data'!L$38, "ERROR"))) ->  | M34: =IF('Trace metal data'!M34="","",IF(ISNUMBER('Trace metal data'!M34)=TRUE, IF('Trace metal data'!M34<'Trace metal data'!M$38, "ERROR", 'Trace metal data'!M34), IF('Trace metal data'!M34="<LOD",'Trace metal data'!M$38, "ERROR"))) ->  | N34: =IF('Trace metal data'!N34="","",IF(ISNUMBER('Trace metal data'!N34)=TRUE, IF('Trace metal data'!N34<'Trace metal data'!N$38, "ERROR", 'Trace metal data'!N34), IF('Trace metal data'!N34="<LOD",'Trace metal data'!N$38, "ERROR"))) ->  | O34: =IF('Trace metal data'!O34="","",IF(ISNUMBER('Trace metal data'!O34)=TRUE, IF('Trace metal data'!O34<'Trace metal data'!O$38, "ERROR", 'Trace metal data'!O34), IF('Trace metal data'!O34="<LOD",'Trace metal data'!O$38, "ERROR"))) ->  | P34: =IF('Trace metal data'!P34="","",IF(ISNUMBER('Trace metal data'!P34)=TRUE, IF('Trace metal data'!P34<'Trace metal data'!P$38, "ERROR", 'Trace metal data'!P34), IF('Trace metal data'!P34="<LOD",'Trace metal data'!P$38, "ERROR"))) ->  | Q34: =IF('Trace metal data'!Q34="","",IF(ISNUMBER('Trace metal data'!Q34)=TRUE, IF('Trace metal data'!Q34<'Trace metal data'!Q$38, "ERROR", 'Trace metal data'!Q34), IF('Trace metal data'!Q34="<LOD",'Trace metal data'!Q$38, "ERROR"))) ->  | R34: =IF('Trace metal data'!R34="","",IF(ISNUMBER('Trace metal data'!R34)=TRUE, IF('Trace metal data'!R34<'Trace metal data'!R$38, "ERROR", 'Trace metal data'!R34), IF('Trace metal data'!R34="<LOD",'Trace metal data'!R$38, "ERROR"))) ->  | S34: =IF('Trace metal data'!S34="","",IF(ISNUMBER('Trace metal data'!S34)=TRUE, IF('Trace metal data'!S34<'Trace metal data'!S$38, "ERROR", 'Trace metal data'!S34), IF('Trace metal data'!S34="<LOD",'Trace metal data'!S$38, "ERROR"))) -> 
H35: =IF('Trace metal data'!H35="","",'Trace metal data'!H35) ->  | I35: =IF('Trace metal data'!I35="","",'Trace metal data'!I35) ->  | J35: =IFERROR(IF(K35="","",(IF(VLOOKUP(K35,'Application info'!$K$8:$L$37,2,0)="y","y",""))),"Manual entry required") ->  | K35: =IF('Trace metal data'!J35="","",'Trace metal data'!J35) ->  | L35: =IF('Trace metal data'!L35="","",IF(ISNUMBER('Trace metal data'!L35)=TRUE, IF('Trace metal data'!L35<'Trace metal data'!L$38, "ERROR", 'Trace metal data'!L35), IF('Trace metal data'!L35="<LOD",'Trace metal data'!L$38, "ERROR"))) ->  | M35: =IF('Trace metal data'!M35="","",IF(ISNUMBER('Trace metal data'!M35)=TRUE, IF('Trace metal data'!M35<'Trace metal data'!M$38, "ERROR", 'Trace metal data'!M35), IF('Trace metal data'!M35="<LOD",'Trace metal data'!M$38, "ERROR"))) ->  | N35: =IF('Trace metal data'!N35="","",IF(ISNUMBER('Trace metal data'!N35)=TRUE, IF('Trace metal data'!N35<'Trace metal data'!N$38, "ERROR", 'Trace metal data'!N35), IF('Trace metal data'!N35="<LOD",'Trace metal data'!N$38, "ERROR"))) ->  | O35: =IF('Trace metal data'!O35="","",IF(ISNUMBER('Trace metal data'!O35)=TRUE, IF('Trace metal data'!O35<'Trace metal data'!O$38, "ERROR", 'Trace metal data'!O35), IF('Trace metal data'!O35="<LOD",'Trace metal data'!O$38, "ERROR"))) ->  | P35: =IF('Trace metal data'!P35="","",IF(ISNUMBER('Trace metal data'!P35)=TRUE, IF('Trace metal data'!P35<'Trace metal data'!P$38, "ERROR", 'Trace metal data'!P35), IF('Trace metal data'!P35="<LOD",'Trace metal data'!P$38, "ERROR"))) ->  | Q35: =IF('Trace metal data'!Q35="","",IF(ISNUMBER('Trace metal data'!Q35)=TRUE, IF('Trace metal data'!Q35<'Trace metal data'!Q$38, "ERROR", 'Trace metal data'!Q35), IF('Trace metal data'!Q35="<LOD",'Trace metal data'!Q$38, "ERROR"))) ->  | R35: =IF('Trace metal data'!R35="","",IF(ISNUMBER('Trace metal data'!R35)=TRUE, IF('Trace metal data'!R35<'Trace metal data'!R$38, "ERROR", 'Trace metal data'!R35), IF('Trace metal data'!R35="<LOD",'Trace metal data'!R$38, "ERROR"))) ->  | S35: =IF('Trace metal data'!S35="","",IF(ISNUMBER('Trace metal data'!S35)=TRUE, IF('Trace metal data'!S35<'Trace metal data'!S$38, "ERROR", 'Trace metal data'!S35), IF('Trace metal data'!S35="<LOD",'Trace metal data'!S$38, "ERROR"))) -> 
H36: =IF('Trace metal data'!H36="","",'Trace metal data'!H36) ->  | I36: =IF('Trace metal data'!I36="","",'Trace metal data'!I36) ->  | J36: =IFERROR(IF(K36="","",(IF(VLOOKUP(K36,'Application info'!$K$8:$L$37,2,0)="y","y",""))),"Manual entry required") ->  | K36: =IF('Trace metal data'!J36="","",'Trace metal data'!J36) ->  | L36: =IF('Trace metal data'!L36="","",IF(ISNUMBER('Trace metal data'!L36)=TRUE, IF('Trace metal data'!L36<'Trace metal data'!L$38, "ERROR", 'Trace metal data'!L36), IF('Trace metal data'!L36="<LOD",'Trace metal data'!L$38, "ERROR"))) ->  | M36: =IF('Trace metal data'!M36="","",IF(ISNUMBER('Trace metal data'!M36)=TRUE, IF('Trace metal data'!M36<'Trace metal data'!M$38, "ERROR", 'Trace metal data'!M36), IF('Trace metal data'!M36="<LOD",'Trace metal data'!M$38, "ERROR"))) ->  | N36: =IF('Trace metal data'!N36="","",IF(ISNUMBER('Trace metal data'!N36)=TRUE, IF('Trace metal data'!N36<'Trace metal data'!N$38, "ERROR", 'Trace metal data'!N36), IF('Trace metal data'!N36="<LOD",'Trace metal data'!N$38, "ERROR"))) ->  | O36: =IF('Trace metal data'!O36="","",IF(ISNUMBER('Trace metal data'!O36)=TRUE, IF('Trace metal data'!O36<'Trace metal data'!O$38, "ERROR", 'Trace metal data'!O36), IF('Trace metal data'!O36="<LOD",'Trace metal data'!O$38, "ERROR"))) ->  | P36: =IF('Trace metal data'!P36="","",IF(ISNUMBER('Trace metal data'!P36)=TRUE, IF('Trace metal data'!P36<'Trace metal data'!P$38, "ERROR", 'Trace metal data'!P36), IF('Trace metal data'!P36="<LOD",'Trace metal data'!P$38, "ERROR"))) ->  | Q36: =IF('Trace metal data'!Q36="","",IF(ISNUMBER('Trace metal data'!Q36)=TRUE, IF('Trace metal data'!Q36<'Trace metal data'!Q$38, "ERROR", 'Trace metal data'!Q36), IF('Trace metal data'!Q36="<LOD",'Trace metal data'!Q$38, "ERROR"))) ->  | R36: =IF('Trace metal data'!R36="","",IF(ISNUMBER('Trace metal data'!R36)=TRUE, IF('Trace metal data'!R36<'Trace metal data'!R$38, "ERROR", 'Trace metal data'!R36), IF('Trace metal data'!R36="<LOD",'Trace metal data'!R$38, "ERROR"))) ->  | S36: =IF('Trace metal data'!S36="","",IF(ISNUMBER('Trace metal data'!S36)=TRUE, IF('Trace metal data'!S36<'Trace metal data'!S$38, "ERROR", 'Trace metal data'!S36), IF('Trace metal data'!S36="<LOD",'Trace metal data'!S$38, "ERROR"))) -> 
H37: =IF('Trace metal data'!H37="","",'Trace metal data'!H37) ->  | I37: =IF('Trace metal data'!I37="","",'Trace metal data'!I37) ->  | J37: =IFERROR(IF(K37="","",(IF(VLOOKUP(K37,'Application info'!$K$8:$L$37,2,0)="y","y",""))),"Manual entry required") ->  | K37: =IF('Trace metal data'!J37="","",'Trace metal data'!J37) ->  | L37: =IF('Trace metal data'!L37="","",IF(ISNUMBER('Trace metal data'!L37)=TRUE, IF('Trace metal data'!L37<'Trace metal data'!L$38, "ERROR", 'Trace metal data'!L37), IF('Trace metal data'!L37="<LOD",'Trace metal data'!L$38, "ERROR"))) ->  | M37: =IF('Trace metal data'!M37="","",IF(ISNUMBER('Trace metal data'!M37)=TRUE, IF('Trace metal data'!M37<'Trace metal data'!M$38, "ERROR", 'Trace metal data'!M37), IF('Trace metal data'!M37="<LOD",'Trace metal data'!M$38, "ERROR"))) ->  | N37: =IF('Trace metal data'!N37="","",IF(ISNUMBER('Trace metal data'!N37)=TRUE, IF('Trace metal data'!N37<'Trace metal data'!N$38, "ERROR", 'Trace metal data'!N37), IF('Trace metal data'!N37="<LOD",'Trace metal data'!N$38, "ERROR"))) ->  | O37: =IF('Trace metal data'!O37="","",IF(ISNUMBER('Trace metal data'!O37)=TRUE, IF('Trace metal data'!O37<'Trace metal data'!O$38, "ERROR", 'Trace metal data'!O37), IF('Trace metal data'!O37="<LOD",'Trace metal data'!O$38, "ERROR"))) ->  | P37: =IF('Trace metal data'!P37="","",IF(ISNUMBER('Trace metal data'!P37)=TRUE, IF('Trace metal data'!P37<'Trace metal data'!P$38, "ERROR", 'Trace metal data'!P37), IF('Trace metal data'!P37="<LOD",'Trace metal data'!P$38, "ERROR"))) ->  | Q37: =IF('Trace metal data'!Q37="","",IF(ISNUMBER('Trace metal data'!Q37)=TRUE, IF('Trace metal data'!Q37<'Trace metal data'!Q$38, "ERROR", 'Trace metal data'!Q37), IF('Trace metal data'!Q37="<LOD",'Trace metal data'!Q$38, "ERROR"))) ->  | R37: =IF('Trace metal data'!R37="","",IF(ISNUMBER('Trace metal data'!R37)=TRUE, IF('Trace metal data'!R37<'Trace metal data'!R$38, "ERROR", 'Trace metal data'!R37), IF('Trace metal data'!R37="<LOD",'Trace metal data'!R$38, "ERROR"))) ->  | S37: =IF('Trace metal data'!S37="","",IF(ISNUMBER('Trace metal data'!S37)=TRUE, IF('Trace metal data'!S37<'Trace metal data'!S$38, "ERROR", 'Trace metal data'!S37), IF('Trace metal data'!S37="<LOD",'Trace metal data'!S$38, "ERROR"))) -> 
K38: Averages | L38: =IF(COUNT(L8:L37)<1,"", AVERAGE(L8:L37)) -> 20.04782609 | M38: =IF(COUNT(M8:M37)<1,"", AVERAGE(M8:M37)) -> 0.462173913 | N38: 64.74347826 | O38: 51.5173913 | P38: 0.3730434783 | Q38: 31.22608696 | R38: 137.5130435 | S38: 206.1521739
K40: Action level 1: | L40: 20 | M40: 0.4 | N40: 40 | O40: 40 | P40: 0.3 | Q40: 20 | R40: 50 | S40: 130
K41: Action level 2: | L41: 100 | M41: 5 | N41: 400 | O41: 400 | P41: 3 | Q41: 200 | R41: 500 | S41: 800
H45: Transformation to wet weight (mg/kg)
H47: Laboratory sample number | I47: Dredge Area | J47: Excluded (y if yes) | K47: Sample ID(s) | L47: Metals as mg/kg wet weight
L48: Arsenic (As) | M48: Cadmium (Cd) | N48: Chromium (Cr) | O48: Copper (Cu) | P48: Mercury (Hg) | Q48: Nickel (Ni) | R48: Lead (Pb) | S48: Zinc (Zn)
H49: =IF(H8="","",H8) -> MAR02481.001 | K49: 1 | L49: =IF(L8="","",('Trace metal data'!$K8/100)*L8) -> 3.5793 | M49: =IF(M8="","",('Trace metal data'!$K8/100)*M8) -> 0.3201 | N49: =IF(N8="","",('Trace metal data'!$K8/100)*N8) -> 39.576 | O49: =IF(O8="","",('Trace metal data'!$K8/100)*O8) -> 14.4627 | P49: =IF(P8="","",('Trace metal data'!$K8/100)*P8) -> 0.0873 | Q49: =IF(Q8="","",('Trace metal data'!$K8/100)*Q8) -> 9.9522 | R49: =IF(R8="","",('Trace metal data'!$K8/100)*R8) -> 90.21 | S49: =IF(S8="","",('Trace metal data'!$K8/100)*S8) -> 102.432
H50: MAR02481.002 | K50: 2 | L50: =IF(L9="","",('Trace metal data'!$K9/100)*L9) -> 3.1806 | M50: =IF(M9="","",('Trace metal data'!$K9/100)*M9) -> 0.29295 | N50: =IF(N9="","",('Trace metal data'!$K9/100)*N9) -> 34.038 | O50: =IF(O9="","",('Trace metal data'!$K9/100)*O9) -> 13.1409 | P50: =IF(P9="","",('Trace metal data'!$K9/100)*P9) -> 0.08091 | Q50: =IF(Q9="","",('Trace metal data'!$K9/100)*Q9) -> 9.486 | R50: =IF(R9="","",('Trace metal data'!$K9/100)*R9) -> 78.12 | S50: =IF(S9="","",('Trace metal data'!$K9/100)*S9) -> 92.907
H51: MAR02481.003 | K51: 3 | L51: =IF(L10="","",('Trace metal data'!$K10/100)*L10) -> 4.1527 | M51: =IF(M10="","",('Trace metal data'!$K10/100)*M10) -> 0.29164 | N51: =IF(N10="","",('Trace metal data'!$K10/100)*N10) -> 29.6712 | O51: =IF(O10="","",('Trace metal data'!$K10/100)*O10) -> 17.6886 | P51: =IF(P10="","",('Trace metal data'!$K10/100)*P10) -> 0.12997 | Q51: =IF(Q10="","",('Trace metal data'!$K10/100)*Q10) -> 11.095 | R51: =IF(R10="","",('Trace metal data'!$K10/100)*R10) -> 75.446 | S51: =IF(S10="","",('Trace metal data'!$K10/100)*S10) -> 99.221
H52: MAR02481.004 | K52: 4 | L52: =IF(L11="","",('Trace metal data'!$K11/100)*L11) -> 5.7525 | M52: =IF(M11="","",('Trace metal data'!$K11/100)*M11) -> 0.2795 | N52: =IF(N11="","",('Trace metal data'!$K11/100)*N11) -> 31.07 | O52: =IF(O11="","",('Trace metal data'!$K11/100)*O11) -> 22.3275 | P52: =IF(P11="","",('Trace metal data'!$K11/100)*P11) -> 0.1885 | Q52: =IF(Q11="","",('Trace metal data'!$K11/100)*Q11) -> 11.44 | R52: =IF(R11="","",('Trace metal data'!$K11/100)*R11) -> 73.775 | S52: =IF(S11="","",('Trace metal data'!$K11/100)*S11) -> 96.525
H53: MAR02481.005 | K53: 5 | L53: =IF(L12="","",('Trace metal data'!$K12/100)*L12) -> 7.6096 | M53: =IF(M12="","",('Trace metal data'!$K12/100)*M12) -> 0.35728 | N53: =IF(N12="","",('Trace metal data'!$K12/100)*N12) -> 36.9808 | O53: =IF(O12="","",('Trace metal data'!$K12/100)*O12) -> 39.8576 | P53: =IF(P12="","",('Trace metal data'!$K12/100)*P12) -> 0.25984 | Q53: =IF(Q12="","",('Trace metal data'!$K12/100)*Q12) -> 15.9616 | R53: =IF(R12="","",('Trace metal data'!$K12/100)*R12) -> 95.12 | S53: =IF(S12="","",('Trace metal data'!$K12/100)*S12) -> 139.664
H54: MAR02481.006 | K54: 6 | L54: =IF(L13="","",('Trace metal data'!$K13/100)*L13) -> 7.2036 | M54: =IF(M13="","",('Trace metal data'!$K13/100)*M13) -> 0.34362 | N54: =IF(N13="","",('Trace metal data'!$K13/100)*N13) -> 38.088 | O54: =IF(O13="","",('Trace metal data'!$K13/100)*O13) -> 29.3526 | P54: =IF(P13="","",('Trace metal data'!$K13/100)*P13) -> 0.26496 | Q54: =IF(Q13="","",('Trace metal data'!$K13/100)*Q13) -> 14.4072 | R54: =IF(R13="","",('Trace metal data'!$K13/100)*R13) -> 89.424 | S54: =IF(S13="","",('Trace metal data'!$K13/100)*S13) -> 118.818
H55: MAR02481.007 | K55: 7 | L55: =IF(L14="","",('Trace metal data'!$K14/100)*L14) -> 6.4183 | M55: =IF(M14="","",('Trace metal data'!$K14/100)*M14) -> 0.21147 | N55: =IF(N14="","",('Trace metal data'!$K14/100)*N14) -> 28.3444 | O55: =IF(O14="","",('Trace metal data'!$K14/100)*O14) -> 21.4809 | P55: =IF(P14="","",('Trace metal data'!$K14/100)*P14) -> 0.1484 | Q55: =IF(Q14="","",('Trace metal data'!$K14/100)*Q14) -> 12.6511 | R55: =IF(R14="","",('Trace metal data'!$K14/100)*R14) -> 64.554 | S55: =IF(S14="","",('Trace metal data'!$K14/100)*S14) -> 90.524
H56: MAR02481.008 | K56: 8 | L56: =IF(L15="","",('Trace metal data'!$K15/100)*L15) -> 7.3162 | M56: =IF(M15="","",('Trace metal data'!$K15/100)*M15) -> 0.27028 | N56: =IF(N15="","",('Trace metal data'!$K15/100)*N15) -> 34.484 | O56: =IF(O15="","",('Trace metal data'!$K15/100)*O15) -> 30.756 | P56: =IF(P15="","",('Trace metal data'!$K15/100)*P15) -> 0.21436 | Q56: =IF(Q15="","",('Trace metal data'!$K15/100)*Q15) -> 15.4712 | R56: =IF(R15="","",('Trace metal data'!$K15/100)*R15) -> 68.502 | S56: =IF(S15="","",('Trace metal data'!$K15/100)*S15) -> 121.16
H57: MAR02481.009 | K57: 9 | L57: =IF(L16="","",('Trace metal data'!$K16/100)*L16) -> 7.1136 | M57: =IF(M16="","",('Trace metal data'!$K16/100)*M16) -> 0.14592 | N57: =IF(N16="","",('Trace metal data'!$K16/100)*N16) -> 28.0288 | O57: =IF(O16="","",('Trace metal data'!$K16/100)*O16) -> 29.6096 | P57: =IF(P16="","",('Trace metal data'!$K16/100)*P16) -> 0.11552 | Q57: =IF(Q16="","",('Trace metal data'!$K16/100)*Q16) -> 21.9488 | R57: =IF(R16="","",('Trace metal data'!$K16/100)*R16) -> 34.5344 | S57: =IF(S16="","",('Trace metal data'!$K16/100)*S16) -> 76.608
H58: MAR02481.010 | K58: 10 | L58: =IF(L17="","",('Trace metal data'!$K17/100)*L17) -> 9.9386 | M58: =IF(M17="","",('Trace metal data'!$K17/100)*M17) -> 0.14656 | N58: =IF(N17="","",('Trace metal data'!$K17/100)*N17) -> 27.022 | O58: =IF(O17="","",('Trace metal data'!$K17/100)*O17) -> 25.0068 | P58: =IF(P17="","",('Trace metal data'!$K17/100)*P17) -> 0.16488 | Q58: =IF(Q17="","",('Trace metal data'!$K17/100)*Q17) -> 15.1598 | R58: =IF(R17="","",('Trace metal data'!$K17/100)*R17) -> 48.548 | S58: =IF(S17="","",('Trace metal data'!$K17/100)*S17) -> 85.188
H59: =IF(H18="","",H18) -> MAR02481.011 | K59: 11 | L59: =IF(L18="","",('Trace metal data'!$K18/100)*L18) -> 11.9022 | M59: =IF(M18="","",('Trace metal data'!$K18/100)*M18) -> 0.38718 | N59: =IF(N18="","",('Trace metal data'!$K18/100)*N18) -> 38.8136 | O59: =IF(O18="","",('Trace metal data'!$K18/100)*O18) -> 43.8804 | P59: =IF(P18="","",('Trace metal data'!$K18/100)*P18) -> 0.37762 | Q59: =IF(Q18="","",('Trace metal data'!$K18/100)*Q18) -> 16.9212 | R59: =IF(R18="","",('Trace metal data'!$K18/100)*R18) -> 80.782 | S59: =IF(S18="","",('Trace metal data'!$K18/100)*S18) -> 144.356
H60: MAR02481.012 | K60: 12 | L60: =IF(L19="","",('Trace metal data'!$K19/100)*L19) -> 8.9688 | M60: =IF(M19="","",('Trace metal data'!$K19/100)*M19) -> 0.19536 | N60: =IF(N19="","",('Trace metal data'!$K19/100)*N19) -> 28.194 | O60: =IF(O19="","",('Trace metal data'!$K19/100)*O19) -> 28.1496 | P60: =IF(P19="","",('Trace metal data'!$K19/100)*P19) -> 0.20868 | Q60: =IF(Q19="","",('Trace metal data'!$K19/100)*Q19) -> 14.6964 | R60: =IF(R19="","",('Trace metal data'!$K19/100)*R19) -> 49.728 | S60: =IF(S19="","",('Trace metal data'!$K19/100)*S19) -> 89.244
H61: MAR02481.013 | K61: 13 | L61: =IF(L20="","",('Trace metal data'!$K20/100)*L20) -> 9.604 | M61: =IF(M20="","",('Trace metal data'!$K20/100)*M20) -> 0.2205 | N61: =IF(N20="","",('Trace metal data'!$K20/100)*N20) -> 27.195 | O61: =IF(O20="","",('Trace metal data'!$K20/100)*O20) -> 28.763 | P61: =IF(P20="","",('Trace metal data'!$K20/100)*P20) -> 0.196 | Q61: =IF(Q20="","",('Trace metal data'!$K20/100)*Q20) -> 15.582 | R61: =IF(R20="","",('Trace metal data'!$K20/100)*R20) -> 49.98 | S61: =IF(S20="","",('Trace metal data'!$K20/100)*S20) -> 98.98
H62: MAR02481.014 | K62: 15 | L62: =IF(L21="","",('Trace metal data'!$K21/100)*L21) -> 12.5095 | M62: =IF(M21="","",('Trace metal data'!$K21/100)*M21) -> 0.1905 | N62: =IF(N21="","",('Trace metal data'!$K21/100)*N21) -> 29.972 | O62: =IF(O21="","",('Trace metal data'!$K21/100)*O21) -> 26.67 | P62: =IF(P21="","",('Trace metal data'!$K21/100)*P21) -> 0.2286 | Q62: =IF(Q21="","",('Trace metal data'!$K21/100)*Q21) -> 18.4785 | R62: =IF(R21="","",('Trace metal data'!$K21/100)*R21) -> 55.8165 | S62: =IF(S21="","",('Trace metal data'!$K21/100)*S21) -> 95.885
H63: MAR02481.015 | K63: 17 | L63: =IF(L22="","",('Trace metal data'!$K22/100)*L22) -> 12.9096 | M63: =IF(M22="","",('Trace metal data'!$K22/100)*M22) -> 0.06846 | N63: =IF(N22="","",('Trace metal data'!$K22/100)*N22) -> 21.4671 | O63: =IF(O22="","",('Trace metal data'!$K22/100)*O22) -> 18.3375 | P63: =IF(P22="","",('Trace metal data'!$K22/100)*P22) -> 0.14181 | Q63: =IF(Q22="","",('Trace metal data'!$K22/100)*Q22) -> 13.8876 | R63: =IF(R22="","",('Trace metal data'!$K22/100)*R22) -> 43.521 | S63: =IF(S22="","",('Trace metal data'!$K22/100)*S22) -> 66.504
H64: MAR02481.016 | K64: 18 | L64: =IF(L23="","",('Trace metal data'!$K23/100)*L23) -> 14.49 | M64: =IF(M23="","",('Trace metal data'!$K23/100)*M23) -> 0.07875 | N64: =IF(N23="","",('Trace metal data'!$K23/100)*N23) -> 21.945 | O64: =IF(O23="","",('Trace metal data'!$K23/100)*O23) -> 18.2175 | P64: =IF(P23="","",('Trace metal data'!$K23/100)*P23) -> 0.147 | Q64: =IF(Q23="","",('Trace metal data'!$K23/100)*Q23) -> 14.8575 | R64: =IF(R23="","",('Trace metal data'!$K23/100)*R23) -> 46.41 | S64: =IF(S23="","",('Trace metal data'!$K23/100)*S23) -> 69.825
H65: MAR02481.017 | K65: 19 | L65: =IF(L24="","",('Trace metal data'!$K24/100)*L24) -> 13.392 | M65: =IF(M24="","",('Trace metal data'!$K24/100)*M24) -> 0.0672 | N65: =IF(N24="","",('Trace metal data'!$K24/100)*N24) -> 19.872 | O65: =IF(O24="","",('Trace metal data'!$K24/100)*O24) -> 16.656 | P65: =IF(P24="","",('Trace metal data'!$K24/100)*P24) -> 0.1392 | Q65: =IF(Q24="","",('Trace metal data'!$K24/100)*Q24) -> 13.392 | R65: =IF(R24="","",('Trace metal data'!$K24/100)*R24) -> 38.352 | S65: =IF(S24="","",('Trace metal data'!$K24/100)*S24) -> 62.4
H66: MAR02481.018 | K66: 20 | L66: =IF(L25="","",('Trace metal data'!$K25/100)*L25) -> 15.9444 | M66: =IF(M25="","",('Trace metal data'!$K25/100)*M25) -> 0.07224 | N66: =IF(N25="","",('Trace metal data'!$K25/100)*N25) -> 22.2396 | O66: =IF(O25="","",('Trace metal data'!$K25/100)*O25) -> 20.64 | P66: =IF(P25="","",('Trace metal data'!$K25/100)*P25) -> 0.1548 | Q66: =IF(Q25="","",('Trace metal data'!$K25/100)*Q25) -> 15.738 | R66: =IF(R25="","",('Trace metal data'!$K25/100)*R25) -> 48.4524 | S66: =IF(S25="","",('Trace metal data'!$K25/100)*S25) -> 73.272
H67: MAR02481.019 | K67: 21 | L67: =IF(L26="","",('Trace metal data'!$K26/100)*L26) -> 12.4992 | M67: =IF(M26="","",('Trace metal data'!$K26/100)*M26) -> 0.10602 | N67: =IF(N26="","",('Trace metal data'!$K26/100)*N26) -> 26.8956 | O67: =IF(O26="","",('Trace metal data'!$K26/100)*O26) -> 24.9984 | P67: =IF(P26="","",('Trace metal data'!$K26/100)*P26) -> 0.1674 | Q67: =IF(Q26="","",('Trace metal data'!$K26/100)*Q26) -> 17.0748 | R67: =IF(R26="","",('Trace metal data'!$K26/100)*R26) -> 54.3492 | S67: =IF(S26="","",('Trace metal data'!$K26/100)*S26) -> 90.954
H68: MAR02481.020 | K68: 22 | L68: =IF(L27="","",('Trace metal data'!$K27/100)*L27) -> 9.24 | M68: =IF(M27="","",('Trace metal data'!$K27/100)*M27) -> 0.0264 | N68: =IF(N27="","",('Trace metal data'!$K27/100)*N27) -> 11.836 | O68: =IF(O27="","",('Trace metal data'!$K27/100)*O27) -> 10.252 | P68: =IF(P27="","",('Trace metal data'!$K27/100)*P27) -> 0.0704 | Q68: =IF(Q27="","",('Trace metal data'!$K27/100)*Q27) -> 8.932 | R68: =IF(R27="","",('Trace metal data'!$K27/100)*R27) -> 22.22 | S68: =IF(S27="","",('Trace metal data'!$K27/100)*S27) -> 39.82
H69: =IF(H28="","",H28) -> MAR02481.021 | K69: 23 | L69: =IF(L28="","",('Trace metal data'!$K28/100)*L28) -> 11.6424 | M69: =IF(M28="","",('Trace metal data'!$K28/100)*M28) -> 0.02352 | N69: =IF(N28="","",('Trace metal data'!$K28/100)*N28) -> 10.1136 | O69: =IF(O28="","",('Trace metal data'!$K28/100)*O28) -> 8.9964 | P69: =IF(P28="","",('Trace metal data'!$K28/100)*P28) -> 0.05292 | Q69: =IF(Q28="","",('Trace metal data'!$K28/100)*Q28) -> 8.9376 | R69: =IF(R28="","",('Trace metal data'!$K28/100)*R28) -> 23.814 | S69: =IF(S28="","",('Trace metal data'!$K28/100)*S28) -> 40.572
H70: MAR02481.022 | K70: 24 | L70: =IF(L29="","",('Trace metal data'!$K29/100)*L29) -> 14.6081 | M70: =IF(M29="","",('Trace metal data'!$K29/100)*M29) -> 0.23135 | N70: =IF(N29="","",('Trace metal data'!$K29/100)*N29) -> 40.1227 | O70: =IF(O29="","",('Trace metal data'!$K29/100)*O29) -> 37.1482 | P70: =IF(P29="","",('Trace metal data'!$K29/100)*P29) -> 0.24457 | Q70: =IF(Q29="","",('Trace metal data'!$K29/100)*Q29) -> 22.474 | R70: =IF(R29="","",('Trace metal data'!$K29/100)*R29) -> 76.676 | S70: =IF(S29="","",('Trace metal data'!$K29/100)*S29) -> 124.929
H71: MAR02481.023 | K71: 25 | L71: =IF(L30="","",('Trace metal data'!$K30/100)*L30) -> 15.0809 | M71: =IF(M30="","",('Trace metal data'!$K30/100)*M30) -> 0.11358 | N71: =IF(N30="","",('Trace metal data'!$K30/100)*N30) -> 27.8271 | O71: =IF(O30="","",('Trace metal data'!$K30/100)*O30) -> 23.4732 | P71: =IF(P30="","",('Trace metal data'!$K30/100)*P30) -> 0.18299 | Q71: =IF(Q30="","",('Trace metal data'!$K30/100)*Q30) -> 18.6145 | R71: =IF(R30="","",('Trace metal data'!$K30/100)*R30) -> 48.2715 | S71: =IF(S30="","",('Trace metal data'!$K30/100)*S30) -> 84.554
L72: =IF(L31="","",('Trace metal data'!$K31/100)*L31) ->  | M72: =IF(M31="","",('Trace metal data'!$K31/100)*M31) ->  | N72: =IF(N31="","",('Trace metal data'!$K31/100)*N31) ->  | O72: =IF(O31="","",('Trace metal data'!$K31/100)*O31) ->  | P72: =IF(P31="","",('Trace metal data'!$K31/100)*P31) ->  | Q72: =IF(Q31="","",('Trace metal data'!$K31/100)*Q31) ->  | R72: =IF(R31="","",('Trace metal data'!$K31/100)*R31) ->  | S72: =IF(S31="","",('Trace metal data'!$K31/100)*S31) -> 
L73: =IF(L32="","",('Trace metal data'!$K32/100)*L32) ->  | M73: =IF(M32="","",('Trace metal data'!$K32/100)*M32) ->  | N73: =IF(N32="","",('Trace metal data'!$K32/100)*N32) ->  | O73: =IF(O32="","",('Trace metal data'!$K32/100)*O32) ->  | P73: =IF(P32="","",('Trace metal data'!$K32/100)*P32) ->  | Q73: =IF(Q32="","",('Trace metal data'!$K32/100)*Q32) ->  | R73: =IF(R32="","",('Trace metal data'!$K32/100)*R32) ->  | S73: =IF(S32="","",('Trace metal data'!$K32/100)*S32) -> 
L74: =IF(L33="","",('Trace metal data'!$K33/100)*L33) ->  | M74: =IF(M33="","",('Trace metal data'!$K33/100)*M33) ->  | N74: =IF(N33="","",('Trace metal data'!$K33/100)*N33) ->  | O74: =IF(O33="","",('Trace metal data'!$K33/100)*O33) ->  | P74: =IF(P33="","",('Trace metal data'!$K33/100)*P33) ->  | Q74: =IF(Q33="","",('Trace metal data'!$K33/100)*Q33) ->  | R74: =IF(R33="","",('Trace metal data'!$K33/100)*R33) ->  | S74: =IF(S33="","",('Trace metal data'!$K33/100)*S33) -> 
L75: =IF(L34="","",('Trace metal data'!$K34/100)*L34) ->  | M75: =IF(M34="","",('Trace metal data'!$K34/100)*M34) ->  | N75: =IF(N34="","",('Trace metal data'!$K34/100)*N34) ->  | O75: =IF(O34="","",('Trace metal data'!$K34/100)*O34) ->  | P75: =IF(P34="","",('Trace metal data'!$K34/100)*P34) ->  | Q75: =IF(Q34="","",('Trace metal data'!$K34/100)*Q34) ->  | R75: =IF(R34="","",('Trace metal data'!$K34/100)*R34) ->  | S75: =IF(S34="","",('Trace metal data'!$K34/100)*S34) -> 
L76: =IF(L35="","",('Trace metal data'!$K35/100)*L35) ->  | M76: =IF(M35="","",('Trace metal data'!$K35/100)*M35) ->  | N76: =IF(N35="","",('Trace metal data'!$K35/100)*N35) ->  | O76: =IF(O35="","",('Trace metal data'!$K35/100)*O35) ->  | P76: =IF(P35="","",('Trace metal data'!$K35/100)*P35) ->  | Q76: =IF(Q35="","",('Trace metal data'!$K35/100)*Q35) ->  | R76: =IF(R35="","",('Trace metal data'!$K35/100)*R35) ->  | S76: =IF(S35="","",('Trace metal data'!$K35/100)*S35) -> 
L77: =IF(L36="","",('Trace metal data'!$K36/100)*L36) ->  | M77: =IF(M36="","",('Trace metal data'!$K36/100)*M36) ->  | N77: =IF(N36="","",('Trace metal data'!$K36/100)*N36) ->  | O77: =IF(O36="","",('Trace metal data'!$K36/100)*O36) ->  | P77: =IF(P36="","",('Trace metal data'!$K36/100)*P36) ->  | Q77: =IF(Q36="","",('Trace metal data'!$K36/100)*Q36) ->  | R77: =IF(R36="","",('Trace metal data'!$K36/100)*R36) ->  | S77: =IF(S36="","",('Trace metal data'!$K36/100)*S36) -> 
